Workbook

Sheet Menu
B4: OUTIL DE PLANIFICATION BUDGÉTAIRE DU LOGEMENT
B6: MENU
B8: 1 | C8: Budget du programme antérieur à 1997 de la SCHL | E8: Û | F8: 8 Cliquez sur un élément pour passer à la feuille de calcul
B9: 2 | C9: Budget du programme postérieur à 1996 de la SCHL | E9: Û
B10: 3 | C10: Budget des logements de bande, de location avec option d'achat, etc. | E10: Û
B11: 4 | C11: Budget total pour le logement | E11: Û

Sheet Pre-97 Program
A1: Feuille de calcul de planification budgétaire annuelle pour le programme antérieur à 1997 de la SCHL
E3: Instruction visant le feuille de calcul pour le programme antérieur à 1997 | L3: Cliquez pour revenir au menu principal
A4: (A) Année | B4: 0 | D4: Étape 1 : | E4: Inscrire l'année visée par le budget (A).
A5: (B) Nombre de logements | B5: 0 | D5: Étape 2 : | E5: Inscrire le nombre de logements pour le programme antérieur à 1997 (B).
A6: (C ) Taux d'inflation (augmentation du coût de la vie) | B6: 0 | D6: Étape 3 : | E6: Inscrire le taux d'inflation en %. Vous pouvez laisser ce champ vide (F).
D7: Étape 4 : | E7: Inscrire les chiffres de vos état sfinanciers des 3 dernières années (C,D,E).
A8: Date du budget modifé | B8: =TODAY() -> 2018-09-18 | D8: Étape 5 : | E8: Inscrire vos propres chiffres (G). Vous pouvez fonder vos chiffres sur la moyenne des 3 dernières années ou utiliser les chiffres fondés sur le budget indexé ou simplement inscrire vos propres chiffres.
B10: (C ) | D10: (D) | E10: (E ) | J10: (G)
B11: États financiers | D11: États financiers | E11: États financiers | F11: Moyenne des 3 états financiers | G11: Moyenne annuelle par log. | H11: Augment. annuelle | I11: Budget indexé | J11: Votre budget
B12: =IF($B$4="","?",$B$4-3) -> -3 | D12: =IF($B$4="","?",$B$4-2) -> -2 | E12: =IF($B$4="","?",$B$4-1) -> -1
A13: PRODUITS
A14: Loyers - occupants avec loyer proportionné au revenu | B14: 0 | D14: 0 | E14: 0 | F14: =(B14+D14+E14)/3 -> 0 | G14: =IF($B$5<=1,0,F14/$B$5) -> 0 | H14: =F14*$B$6 -> 0 | I14: =F14+H14 -> 0 | J14: 0
A15: Aide fédérale (antérieur à 1997) | B15: 0 | D15: 0 | E15: 0 | F15: 0 | G15: 0 | H15: =F15*$B$6 -> 0 | I15: =F15+H15 -> 0 | J15: 0
A16: Contribution de la bande | B16: 0 | D16: 0 | E16: 0 | F16: 0 | G16: 0 | H16: =F16*$B$6 -> 0 | I16: =F16+H16 -> 0 | J16: 0
A17: Intérêt | B17: 0 | D17: 0 | E17: 0 | F17: 0 | G17: 0 | H17: =F17*$B$6 -> 0 | I17: 0 | J17: 0
A18: Autres produits 1 (modifier le nom, au besoin) | B18: 0 | D18: 0 | E18: 0 | F18: 0 | G18: 0 | H18: =F18*$B$6 -> 0 | I18: 0 | J18: 0
A19: Autres produits 2 (modifier le nom, au besoin) | B19: 0 | D19: 0 | E19: 0 | F19: =(B19+D19+E19)/3 -> 0 | G19: 0 | H19: =F19*$B$6 -> 0 | I19: =F19+H19 -> 0 | J19: 0
A20: Autres produits 3 (modifier le nom, au besoin) | B20: 0 | D20: 0 | E20: 0 | F20: 0 | G20: 0 | H20: 0 | I20: 0 | J20: 0
A21: Total partiel | B21: =SUM(B14:C20) -> 0 | D21: =SUM(D14:D20) -> 0 | E21: =SUM(E14:E20) -> 0 | F21: 0 | G21: 0 | H21: =SUM(H14:H20) -> 0 | I21: =SUM(I14:I20) -> 0 | J21: =SUM(J14:J20) -> 0
A23: CHARGES
A24: Services (enlèvement des ordures, eau, égouts, déneigement) | B24: 0 | D24: 0 | E24: 0 | F24: =(B24+D24+E24)/3 -> 0 | G24: =IF($B$5<=1,0,F24/$B$5) -> 0 | H24: =F24*$B$6 -> 0 | I24: =F24+H24 -> 0 | J24: 0
A25: Assurance | B25: 0 | D25: 0 | E25: 0 | F25: 0 | G25: 0 | H25: 0 | I25: 0 | J25: 0
A26: Entretien | B26: 0 | D26: 0 | E26: 0 | F26: 0 | G26: 0 | H26: 0 | I26: 0 | J26: 0
A27: Chauffage | B27: 0 | D27: 0 | E27: 0 | F27: 0 | G27: 0 | H27: 0 | I27: 0 | J27: 0
A28: Électricité | B28: 0 | D28: 0 | E28: 0 | F28: 0 | G28: 0 | H28: 0 | I28: 0 | J28: 0
A29: Services de conciergerie | B29: 0 | D29: 0 | E29: 0 | F29: 0 | G29: 0 | H29: 0 | I29: 0 | J29: 0
A30: Administration | B30: 0 | D30: 0 | E30: 0 | F30: 0 | G30: 0 | H30: 0 | I30: 0 | J30: 0
A31: Contribution annuelle – réserve de remplacement | B31: 0 | D31: 0 | E31: 0 | F31: 0 | G31: 0 | H31: 0 | I31: 0 | J31: 0
A32: Principal et intérêts sur la dette à long terme | B32: 0 | D32: 0 | E32: 0 | F32: 0 | G32: 0 | H32: 0 | I32: 0 | J32: 0
A33: Créances douteuses et irrécouvrables | B33: 0 | D33: 0 | E33: 0 | F33: 0 | G33: 0 | H33: 0 | I33: 0 | J33: 0
A34: Honoraires professionnels | B34: 0 | D34: 0 | E34: 0 | F34: 0 | G34: 0 | H34: 0 | I34: 0 | J34: 0
A35: Autres charges 1 (modifier le nom, au besoin) | B35: 0 | D35: 0 | E35: 0 | F35: 0 | G35: 0 | H35: 0 | I35: 0 | J35: 0
A36: Autres charges 2 (modifier le nom, au besoin) | B36: 0 | D36: 0 | E36: 0 | F36: =(B36+D36+E36)/3 -> 0 | G36: 0 | H36: =F36*$B$6 -> 0 | I36: =F36+H36 -> 0 | J36: 0
A37: Autres charges 3 (modifier le nom, au besoin) | B37: 0 | D37: 0 | E37: 0 | F37: 0 | G37: 0 | H37: 0 | I37: 0 | J37: 0
A38: Total partiel | B38: =SUM(B24:C37) -> 0 | D38: =SUM(D24:D37) -> 0 | E38: =SUM(E24:E37) -> 0 | F38: 0 | G38: 0 | H38: =SUM(H24:H37) -> 0 | I38: =SUM(I24:I37) -> 0 | J38: =SUM(J24:J37) -> 0
A40: RÉSULTATS (Surplus / déficit) | B40: =B21-B38 -> 0 | D40: =D21-D38 -> 0 | E40: =E21-E38 -> 0 | F40: =(B40+D40+E40)/3 -> 0 | G40: =IF($B$5<=1,0,F40/$B$5) -> 0 | H40: =H21-H38 -> 0 | I40: =I21-I38 -> 0 | J40: =J21-J38 -> 0

Sheet Post-96
A1: Feuille de calcul de planification budgétaire annuelle pour le programme postérieur à 1996 de la SCHL
E3: Instruction visant le feuille de calcul pour le programme postérieur à 1996 | L3: Cliquer pour reveni au menu principal
A4: (A) Année | D4: Étape 1 : | E4: Inscrire l'année visée par le budget (A).
A5: (B) Nombre de logements | D5: Étape 2 : | E5: Inscrire le nombre de logements pour le programme postérieur à 1996 (B).
A6: (C ) Taux d'inflation (augmentation du coût de la vie) | B6: 0 | D6: Étape 3 : | E6: Inscrire le taux d'inflation en %. Vous pouvez laisser ce champ vide (F).
D7: Étape 4 : | E7: Inscrire les chiffres de vos état sfinanciers des 3 dernières années (C,D,E).
A8: Date du budget modifé | B8: =TODAY() -> 2018-09-18 | D8: Étape 5 : | E8: Inscrire vos propres chiffres (G). Vous pouvez fonder vos chiffres sur la moyenne des 3 dernières années ou utiliser les chiffres fondés sur le budget indexé ou simplement inscrire vos propres chiffres.
B10: (C ) | D10: (D) | E10: (E ) | J10: (G)
B11: États financiers | D11: États financiers | E11: États financiers | F11: Moyenne des 3 états financiers | G11: Moyenne annuelle par log. | H11: Augment. annuelle | I11: Budget indexé | J11: Votre budget
B12: =IF($B$4="","?",$B$4-3) -> ? | D12: =IF($B$4="","?",$B$4-2) -> ? | E12: =IF($B$4="","?",$B$4-1) -> ?
A13: PRODUITS
A14: Loyers (postérieur à 1996) | B14: 0 | D14: 0 | E14: 0 | F14: =(B14+D14+E14)/3 -> 0 | G14: =IF($B$5<=1,0,F14/$B$5) -> 0 | H14: =F14*$B$6 -> 0 | I14: =F14+H14 -> 0 | J14: 0
A15: Contribution de la bande | B15: 0 | D15: 0 | E15: 0 | F15: 0 | G15: 0 | H15: =F15*$B$6 -> 0 | I15: =F15+H15 -> 0 | J15: 0
A16: Aide fédérale (postérieur à 1996) | B16: 0 | D16: 0 | E16: 0 | F16: 0 | G16: 0 | H16: =F16*$B$6 -> 0 | I16: =F16+H16 -> 0 | J16: 0
A17: Intérêt | B17: 0 | D17: 0 | E17: 0 | F17: 0 | G17: 0 | H17: =F17*$B$6 -> 0 | I17: 0 | J17: 0
A18: Autres produits 1 (modifier le nom, au besoin) | B18: 0 | D18: 0 | E18: 0 | F18: =(B18+D18+E18)/3 -> 0 | G18: 0 | H18: =F18*$B$6 -> 0 | I18: =F18+H18 -> 0 | J18: 0
A19: Autres produits 2 (modifier le nom, au besoin) | B19: 0 | D19: 0 | E19: 0 | F19: 0 | G19: 0 | H19: 0 | I19: 0 | J19: 0
A20: Autres produits 3 (modifier le nom, au besoin) | B20: 0 | D20: 0 | E20: 0 | F20: 0 | G20: 0 | H20: 0 | I20: 0 | J20: 0
A21: Total partiel | B21: =SUM(B14:B20) -> 0 | D21: =SUM(D14:D20) -> 0 | E21: =SUM(E14:E20) -> 0 | F21: 0 | G21: 0 | H21: =SUM(H14:H20) -> 0 | I21: =SUM(I14:I20) -> 0 | J21: =SUM(J14:J20) -> 0
A23: CHARGES
A24: Services (enlèvement des ordures, eau, égouts, déneigement) | B24: 0 | D24: 0 | E24: 0 | F24: =(B24+D24+E24)/3 -> 0 | G24: =IF($B$5<=1,0,F24/$B$5) -> 0 | H24: =F24*$B$6 -> 0 | I24: =F24+H24 -> 0 | J24: 0
A25: Assurance | B25: 0 | D25: 0 | E25: 0 | F25: 0 | G25: 0 | H25: 0 | I25: 0 | J25: 0
A26: Entretien | B26: 0 | D26: 0 | E26: 0 | F26: 0 | G26: 0 | H26: 0 | I26: 0 | J26: 0
A27: Chauffage | B27: 0 | D27: 0 | E27: 0 | F27: 0 | G27: 0 | H27: 0 | I27: 0 | J27: 0
A28: Électricité | B28: 0 | D28: 0 | E28: 0 | F28: 0 | G28: 0 | H28: 0 | I28: 0 | J28: 0
A29: Services de conciergerie | B29: 0 | D29: 0 | E29: 0 | F29: 0 | G29: 0 | H29: 0 | I29: 0 | J29: 0
A30: Administration | B30: 0 | D30: 0 | E30: 0 | F30: 0 | G30: 0 | H30: 0 | I30: 0 | J30: 0
A31: Contribution annuelle – réserve de remplacement | B31: 0 | D31: 0 | E31: 0 | F31: 0 | G31: 0 | H31: 0 | I31: 0 | J31: 0
A32: Principal et intérêts sur la dette à long terme | B32: 0 | D32: 0 | E32: 0 | F32: 0 | G32: 0 | H32: 0 | I32: 0 | J32: 0
A33: Créances douteuses et irrécouvrables | B33: 0 | D33: 0 | E33: 0 | F33: 0 | G33: 0 | H33: 0 | I33: 0 | J33: 0
A34: Honoraires professionnels | B34: 0 | D34: 0 | E34: 0 | F34: 0 | G34: 0 | H34: 0 | I34: 0 | J34: 0
A35: Autres charges 1 (modifier le nom, au besoin) | B35: 0 | D35: 0 | E35: 0 | F35: =(B35+D35+E35)/3 -> 0 | G35: 0 | H35: =F35*$B$6 -> 0 | I35: =F35+H35 -> 0 | J35: 0
A36: Autres charges 2 (modifier le nom, au besoin) | B36: 0 | D36: 0 | E36: 0 | F36: 0 | G36: 0 | H36: 0 | I36: 0 | J36: 0
A37: Autres charges 3 (modifier le nom, au besoin) | B37: 0 | D37: 0 | E37: 0 | F37: 0 | G37: 0 | H37: 0 | I37: 0 | J37: 0
A38: Total partiel | B38: =SUM(B24:B37) -> 0 | D38: =SUM(D24:D37) -> 0 | E38: =SUM(E24:E37) -> 0 | F38: 0 | G38: 0 | H38: =SUM(H24:H37) -> 0 | I38: =SUM(I24:I37) -> 0 | J38: =SUM(J24:J37) -> 0
A40: RÉSULTATS (Surplus / déficit) | B40: =B21-B38 -> 0 | D40: =D21-D38 -> 0 | E40: =E21-E38 -> 0 | F40: =(B40+D40+E40)/3 -> 0 | G40: =IF($B$5<=1,0,F40/$B$5) -> 0 | H40: =H21-H38 -> 0 | I40: =I21-I38 -> 0 | J40: =J21-J38 -> 0

Sheet Other
A1: Feuille de calcul de planification budgétaire annuelle pour les logements de bande, la location avec option d'achat, etc.
E3: Instruction visant le feuille de calcul pourles logements de bande, la location avec option d'achat, etc. | L3: Cliquer pour reveni au menu principal
A4: (A) Année | D4: Étape 1 : | E4: Inscrire l'année visée par le budget (A).
A5: (B) Nombre de logements | D5: Étape 2 : | E5: Inscrire le nombre de logements pour les logements de la bande, la location avec option d'achat, etc. (B).
A6: (C ) Taux d'inflation (augmentation du coût de la vie) | B6: 0 | D6: Étape 3 : | E6: Inscrire le taux d'inflation en %. Vous pouvez laisser ce champ vide (F).
D7: Étape 4 : | E7: Inscrire les chiffres de vos état sfinanciers des 3 dernières années (C,D,E).
A8: Date du budget modifé | B8: =TODAY() -> 2018-09-18 | D8: Étape 5 : | E8: Inscrire vos propres chiffres (G). Vous pouvez fonder vos chiffres sur la moyenne des 3 dernières années ou utiliser les chiffres fondés sur le budget indexé ou simplement inscrire vos propres chiffres.
B10: (C ) | D10: (D) | E10: (E ) | J10: (G)
B11: États financiers | D11: États financiers | E11: États financiers | F11: Moyenne des 3 états financiers | G11: Moyenne annuelle par log. | H11: Augment. annuelle | I11: Budget indexé | J11: Votre budget
B12: =IF($B$4="","?",$B$4-3) -> ? | D12: =IF($B$4="","?",$B$4-2) -> ? | E12: =IF($B$4="","?",$B$4-1) -> ?
A13: PRODUITS
A14: Loyers | B14: 0 | D14: 0 | E14: 0 | F14: =(B14+D14+E14)/3 -> 0 | G14: =IF($B$5<=1,0,F14/$B$5) -> 0 | H14: =F14*$B$6 -> 0 | I14: =F14+H14 -> 0 | J14: 0
A15: Contribution de la bande | B15: 0 | D15: 0 | E15: 0 | F15: 0 | G15: =IF($B$5<=1,0,F15/$B$5) -> 0 | H15: =F15*$B$6 -> 0 | I15: =F15+H15 -> 0 | J15: 0
B16: 0 | D16: 0 | E16: 0 | J16: 0
A17: Intérêt | B17: 0 | D17: 0 | E17: 0 | F17: =(B17+D17+E17)/3 -> 0 | G17: =IF($B$5<=1,0,F17/$B$5) -> 0 | H17: =F17*$B$6 -> 0 | I17: =F17+H17 -> 0 | J17: 0
A18: Autres produits 1 (modifier le nom, au besoin) | B18: 0 | D18: 0 | E18: 0 | F18: =(B18+D18+E18)/3 -> 0 | G18: =IF($B$5<=1,0,F18/$B$5) -> 0 | H18: =F18*$B$6 -> 0 | I18: =F18+H18 -> 0 | J18: 0
A19: Autres produits 2 (modifier le nom, au besoin) | B19: 0 | D19: 0 | E19: 0 | F19: 0 | G19: 0 | H19: 0 | I19: 0 | J19: 0
A20: Autres produits 3 (modifier le nom, au besoin) | B20: 0 | D20: 0 | E20: 0 | F20: 0 | G20: 0 | H20: 0 | I20: 0 | J20: 0
A21: Total partiel | B21: =SUM(B14:B20) -> 0 | D21: =SUM(D14:D20) -> 0 | E21: =SUM(E14:E20) -> 0 | F21: 0 | G21: =IF($B$5<=1,0,F21/$B$5) -> 0 | H21: =SUM(H14:H20) -> 0 | I21: =SUM(I14:I20) -> 0 | J21: =SUM(J14:J20) -> 0
A23: CHARGES
A24: Services (enlèvement des ordures, eau, égouts, déneigement) | B24: 0 | D24: 0 | E24: 0 | F24: =(B24+D24+E24)/3 -> 0 | G24: =IF($B$5<=1,0,F24/$B$5) -> 0 | H24: =F24*$B$6 -> 0 | I24: =F24+H24 -> 0 | J24: 0
A25: Assurance | B25: 0 | D25: 0 | E25: 0 | F25: 0 | G25: 0 | H25: 0 | I25: 0 | J25: 0
A26: Entretien | B26: 0 | D26: 0 | E26: 0 | F26: 0 | G26: 0 | H26: 0 | I26: 0 | J26: 0
A27: Chauffage | B27: 0 | D27: 0 | E27: 0 | F27: 0 | G27: 0 | H27: 0 | I27: 0 | J27: 0
A28: Électricité | B28: 0 | D28: 0 | E28: 0 | F28: 0 | G28: 0 | H28: 0 | I28: 0 | J28: 0
A29: Services de conciergerie | B29: 0 | D29: 0 | E29: 0 | F29: 0 | G29: 0 | H29: 0 | I29: 0 | J29: 0
A30: Administration | B30: 0 | D30: 0 | E30: 0 | F30: 0 | G30: 0 | H30: 0 | I30: 0 | J30: 0
A31: Contribution annuelle – réserve de remplacement | B31: 0 | D31: 0 | E31: 0 | F31: =(B31+D31+E31)/3 -> 0 | G31: 0 | H31: =F31*$B$6 -> 0 | I31: =F31+H31 -> 0 | J31: 0
A32: Principal et intérêts sur la dette à long terme | B32: 0 | D32: 0 | E32: 0 | F32: =(B32+D32+E32)/3 -> 0 | G32: 0 | H32: 0 | I32: =F32+H32 -> 0 | J32: 0
A33: Créances douteuses et irrécouvrables | B33: 0 | D33: 0 | E33: 0 | F33: 0 | G33: 0 | H33: 0 | I33: 0 | J33: 0
A34: Honoraires professionnels | B34: 0 | D34: 0 | E34: 0 | F34: 0 | G34: 0 | H34: 0 | I34: 0 | J34: 0
A35: Autres charges 1 (modifier le nom, au besoin) | B35: 0 | D35: 0 | E35: 0 | F35: =(B35+D35+E35)/3 -> 0 | G35: 0 | H35: =F35*$B$6 -> 0 | I35: =F35+H35 -> 0 | J35: 0
A36: Autres charges 2 (modifier le nom, au besoin) | B36: 0 | D36: 0 | E36: 0 | F36: 0 | G36: 0 | H36: 0 | I36: 0 | J36: 0
A37: Autres charges 3 (modifier le nom, au besoin) | B37: 0 | D37: 0 | E37: 0 | F37: 0 | G37: 0 | H37: 0 | I37: 0 | J37: 0
A38: Total partiel | B38: =SUM(B24:B37) -> 0 | D38: =SUM(D24:D37) -> 0 | E38: =SUM(E24:E37) -> 0 | F38: 0 | G38: =IF($B$5<=1,0,F38/$B$5) -> 0 | H38: =SUM(H24:H37) -> 0 | I38: =SUM(I24:I37) -> 0 | J38: =SUM(J24:J37) -> 0
A40: RÉSULTATS (Surplus / déficit) | B40: =B21-B38 -> 0 | D40: =D21-D38 -> 0 | E40: =E21-E38 -> 0 | F40: =(B40+D40+E40)/3 -> 0 | G40: =IF($B$5<=1,0,F40/$B$5) -> 0 | H40: =H21-H38 -> 0 | I40: =I21-I38 -> 0 | J40: =J21-J38 -> 0

Sheet P1 (hidden)
B2: Click to return to Main Menu
A5: Name of Community | F5: =#REF! ->  | J5: CMHC File No | M5: =#REF! -> 
D6: Unit No | E6: Type of Unit | G6: Address | I6: Tenant's Name | J6: Ajusted Household Income | L6: No of Children | M6: Months Occupied | N6: Lower End of Market Rent (LEM) | O6: Income Tested Assistance | P6: Rent based on 25%(RGI) | Q6: CMHC's Income Tested Assistance | R6: Actual Rent Charged | T6: Y
B7: Project Number | T7: N
G8: Civic No | H8: Street | J8: Annual | K8: Monthly
D9: 1 | E9: 5 | F9: =IF(E9<>"",VLOOKUP(E9,$A$16:$C$31,2),0) -> Bungalow-3Bdr | G9: 40 | H9: Etudah Street | I9: Emmett Matoush | K9: =J9/12 -> 0 | M9: 12 | N9: =IF(E9<>"",VLOOKUP(E9,$A$16:$C$31,3),0) -> 500 | O9: n | P9: =IF(O9="Y",IF(IF(ROUND((+K9*0.25)-($T$10+(L9*$T$9)),0)>N9,N9,ROUND((+K9*0.25)-($T$10+(L9*$T$9)),0))<32,32,IF(ROUND((+K9*0.25)-($T$10+(L9*$T$9)),0)>N9,N9,ROUND((+K9*0.25)-($T$10+(L9*$T$9)),0))),N9) -> 500 | Q9: =IF(N9-P9<0,0,N9-P9) -> 0 | R9: 450 | T9: 2
B10: 001 | D10: 2 | E10: 5 | F10: =IF(E10<>"",VLOOKUP(E10,$A$16:$C$31,2),0) -> Bungalow-3Bdr | G10: 32 | H10: Etudah Street | I10: Joseph A. Shecapio | K10: 0 | M10: 12 | N10: =IF(E10<>"",VLOOKUP(E10,$A$16:$C$31,3),0) -> 500 | O10: n | P10: 500 | Q10: =IF(N10-P10<0,0,N10-P10) -> 0 | R10: 450 | T10: =#REF! -> 
D11: 3 | E11: 5 | F11: Bungalow-3Bdr | G11: 64 | H11: Etudah Street | I11: Robert Baribeau | K11: 0 | M11: 12 | N11: 500 | O11: n | P11: 500 | Q11: 0 | R11: 450
D12: 4 | E12: 5 | F12: Bungalow-3Bdr | G12: 131 | H12: Spruce Street | I12: George Coon Come | K12: 0 | M12: 12 | N12: 500 | O12: n | P12: 500 | Q12: 0 | R12: 450
A13: TYPE | B13: No of Units | C13: 25 | D13: 5 | E13: 5 | F13: Bungalow-3Bdr | G13: 83 | H13: Spruce Street | I13: Mary C. Etapp | K13: 0 | M13: 12 | N13: 500 | O13: n | P13: 500 | Q13: 0 | R13: 450
D14: 6 | E14: 5 | F14: Bungalow-3Bdr | G14: 163 | H14: Spruce Street | I14: Betsy Gunner | K14: 0 | M14: 12 | N14: 500 | O14: n | P14: 500 | Q14: 0 | R14: 450
B15: Model | C15: LEM | D15: 7 | E15: 5 | F15: Bungalow-3Bdr | G15: 56 | H15: Etudah Street | I15: James A. Gunner | K15: 0 | M15: 12 | N15: 500 | O15: n | P15: 500 | Q15: 0 | R15: 335
A16: 1 | B16: Triplex-1Bdr | D16: 8 | E16: 5 | F16: Bungalow-3Bdr | G16: 171 | H16: Spruce Street | I16: Matthew Gunner Sr. | J16: 22689.35 | K16: 1890.779167 | M16: 12 | N16: 500 | O16: Y | R16: 296
A17: 2 | B17: Quadruplex-1Bdr | D17: 9 | E17: 5 | F17: Bungalow-3Bdr | G17: 200 | H17: Spruce Street | I17: Charlie Iserhoff | J17: 30534.07 | K17: 2544.505833 | M17: 12 | N17: 500 | O17: Y | R17: 450
D18: 10 | E18: 5 | F18: Bungalow-3Bdr | G18: 211 | H18: Spruce Street | I18: Louise Coon Come | K18: 0 | M18: 12 | N18: 500 | O18: n | P18: 500 | Q18: 0 | R18: 434
A19: 3 | B19: Duplex-2Bdr | D19: 11 | E19: 5 | F19: Bungalow-3Bdr | G19: 123 | H19: Spruce Street | I19: Paul Iserhoff | K19: 0 | M19: 12 | N19: 500 | O19: n | P19: 500 | Q19: 0 | R19: 450
A20: 4 | B20: Triplex-2Bdr | D20: 12 | E20: 5 | F20: Bungalow-3Bdr | G20: 175 | H20: Spruce Street | I20: Robert Jimiken | K20: 0 | M20: 12 | N20: 500 | O20: n | P20: 500 | Q20: 0 | R20: 450
D21: 13 | E21: 5 | F21: Bungalow-3Bdr | G21: 179 | H21: Spruce Street | I21: Allan Loon | K21: 0 | M21: 12 | N21: 500 | O21: n | P21: 500 | Q21: 0 | R21: 450
A22: 5 | B22: Bungalow-3Bdr | C22: 500 | D22: 14 | E22: 5 | F22: Bungalow-3Bdr | G22: 48 | H22: Etudah Street | I22: Edward Matoush | K22: 0 | M22: 12 | N22: 500 | O22: n | P22: 500 | Q22: 0 | R22: 450
A23: 6 | B23: Duplex-3Bdr | D23: 15 | E23: 5 | F23: Bungalow-3Bdr | G23: 208 | H23: Spruce Street | I23: Sarah Matoush | K23: 0 | M23: 12 | N23: 500 | O23: n | P23: 500 | Q23: 0 | R23: 392
A24: 7 | B24: Row-3Bdr | D24: 16 | E24: 5 | F24: Bungalow-3Bdr | G24: 72 | H24: Etudah Street | I24: Thomas Mattawashish | J24: 57294.3 | K24: 4774.525 | M24: 12 | N24: 500 | O24: n | P24: 500 | Q24: 0 | R24: 450
D25: 17 | E25: 5 | F25: Bungalow-3Bdr | G25: 195 | H25: Spruce Street | I25: Abel J. Neeposh | K25: 0 | M25: 12 | N25: 500 | O25: n | P25: 500 | Q25: 0 | R25: 450
A26: 8 | B26: Bungalow-4Bdr | D26: 18 | E26: 5 | F26: Bungalow-3Bdr | G26: 147 | H26: Spruce Street | I26: Taria Matoush | K26: 0 | M26: 12 | N26: 500 | O26: n | P26: 500 | Q26: 0 | R26: 369
A27: 9 | B27: Duplex-4Bdr | D27: 19 | E27: 5 | F27: Bungalow-3Bdr | G27: 107 | H27: Spruce Street | I27: Simeon Petawabano | J27: 31226 | K27: 2602.166667 | M27: 12 | N27: 500 | O27: Y | R27: 354
A28: 10 | B28: Row-4Bdr | D28: 20 | E28: 5 | F28: Bungalow-3Bdr | G28: 187 | H28: Spruce Street | I28: Hattie Shecapio | J28: 52095.24 | K28: 4341.27 | M28: 12 | N28: 500 | O28: n | P28: 500 | Q28: 0 | R28: 450
D29: 21 | E29: 5 | F29: Bungalow-3Bdr | G29: 219 | H29: Spruce Street | I29: John P. Shecapio | K29: 0 | M29: 12 | N29: 500 | O29: n | P29: 500 | Q29: 0 | R29: 343
A30: 11 | B30: Bungalow-5Bdr | D30: 22 | E30: 5 | F30: Bungalow-3Bdr | G30: 99 | H30: Spruce Street | I30: Peter Shecapio | K30: 0 | M30: 12 | N30: 500 | O30: n | P30: 500 | Q30: 0 | R30: 450
A31: 12 | B31: Duplex-5Bdr | D31: 23 | E31: 5 | F31: Bungalow-3Bdr | G31: 203 | H31: Spruce Street | I31: Nathan Mattawashish | J31: 33193.3 | K31: 2766.108333 | M31: 12 | N31: 500 | O31: Y | R31: 370
D32: 24 | E32: 5 | F32: Bungalow-3Bdr | G32: 139 | H32: Spruce Street | I32: Isaiah Voyageur | K32: 0 | M32: 12 | N32: 500 | O32: n | P32: 500 | Q32: 0 | R32: 450
D33: 25 | E33: 5 | F33: Bungalow-3Bdr | G33: 91 | H33: Spruce Street | I33: Norman Whiskeychan | J33: 27445.44 | K33: 2287.12 | M33: 12 | N33: 500 | O33: Y | R33: 405
D34: 26 | F34: 0 | K34: 0 | M34: 12 | N34: 0 | O34: n | P34: 0 | Q34: 0
D35: 27 | F35: 0 | K35: 0 | M35: 12 | N35: 0 | O35: n | P35: 0 | Q35: 0
D36: 28 | F36: 0 | K36: 0 | M36: 12 | N36: 0 | O36: n | P36: 0 | Q36: 0
D37: 29 | F37: 0 | K37: 0 | M37: 12 | N37: 0 | O37: n | P37: 0 | Q37: 0
D38: 30 | F38: 0 | K38: 0 | M38: 12 | N38: 0 | O38: n | P38: 0 | Q38: 0
D39: 31 | F39: 0 | K39: 0 | M39: 12 | N39: 0 | O39: n | P39: 0 | Q39: 0
D40: 32 | F40: 0 | K40: 0 | M40: 12 | N40: 0 | O40: n | P40: 0 | Q40: 0
D41: 33 | F41: 0 | K41: 0 | M41: 12 | N41: 0 | O41: n | P41: 0 | Q41: 0
D42: 34 | F42: 0 | K42: 0 | M42: 12 | N42: 0 | O42: n | P42: 0 | Q42: 0
D43: 35 | F43: 0 | K43: 0 | M43: 12 | N43: 0 | O43: n | P43: 0 | Q43: 0
D44: 36 | F44: 0 | K44: 0 | M44: 12 | N44: 0 | O44: n | P44: 0 | Q44: 0
D45: 37 | F45: 0 | K45: 0 | M45: 12 | N45: 0 | O45: n | P45: 0 | Q45: 0
D46: 38 | F46: 0 | K46: 0 | M46: 12 | N46: 0 | O46: n | P46: 0 | Q46: 0
D47: 39 | F47: 0 | K47: 0 | M47: 12 | N47: 0 | O47: n | P47: 0 | Q47: 0
D48: 40 | F48: 0 | K48: 0 | M48: 12 | N48: 0 | O48: n | P48: 0 | Q48: 0
A49: Pre-97 Project Number | I49: =B10 -> 001 | K49: Annual totals: | N49: =SUMPRODUCT(N9:N48,M9:M48) -> 150000 | P49: =SUMPRODUCT(P9:P48,M9:M48) ->  | Q49: =SUMPRODUCT(Q9:Q48,M9:M48) ->  | R49: =SUMPRODUCT(R9:R48,M9:M48) -> 125976
K50: Additional Funds required by Band to equal RGI | R50: =P49-R49 -> 

Sheet P2 (hidden)
B2: Click to return to Main Menu
A5: Name of Community | F5: =#REF! ->  | J5: CMHC File No | M5: =#REF! -> 
D6: Unit No | E6: Type of Unit | G6: Address | I6: Tenant's Name | J6: Ajusted Household Income | L6: No of Children | M6: Months Occupied | N6: Lower End of Market Rent (LEM) | O6: Income Tested Assistance | P6: Rent based on 25%(RGI) | Q6: CMHC's Income Tested Assistance | R6: Actual Rent Charged | T6: Y
B7: Project Number | T7: N
G8: Civic No | H8: Street | J8: Annual | K8: Monthly
D9: 1 | E9: 5 | F9: =IF(E9<>"",VLOOKUP(E9,$A$16:$C$31,2),0) -> Bungalow-3Bdr | G9: 203 | H9: Queen Street | I9: Winnie Blacksmith | K9: 0 | M9: 12 | N9: =IF(E9<>"",VLOOKUP(E9,$A$16:$C$31,3),0) -> 500 | O9: n | P9: =IF(O9="Y",IF(IF(ROUND((+K9*0.25)-($T$10+(L9*$T$9)),0)>N9,N9,ROUND((+K9*0.25)-($T$10+(L9*$T$9)),0))<32,32,IF(ROUND((+K9*0.25)-($T$10+(L9*$T$9)),0)>N9,N9,ROUND((+K9*0.25)-($T$10+(L9*$T$9)),0))),N9) -> 500 | Q9: =IF(N9-P9<0,0,N9-P9) -> 0 | R9: 298 | T9: 2
B10: 002 | D10: 2 | E10: 5 | F10: =IF(E10<>"",VLOOKUP(E10,$A$16:$C$31,2),0) -> Bungalow-3Bdr | G10: 248 | H10: Nesk Street | I10: Thomas Coon | K10: =J10/12 -> 0 | M10: 12 | N10: =IF(E10<>"",VLOOKUP(E10,$A$16:$C$31,3),0) -> 500 | O10: n | P10: 500 | Q10: =IF(N10-P10<0,0,N10-P10) -> 0 | R10: 450 | T10: =#REF! -> 
D11: 3 | E11: 5 | F11: Bungalow-3Bdr | G11: 59 | H11: Etudah Street | I11: Dinah Coon Come | K11: 0 | M11: 12 | N11: 500 | O11: n | P11: 500 | Q11: 0 | R11: 409
D12: 4 | E12: 5 | F12: Bungalow-3Bdr | G12: 16 | H12: Etudah Street | I12: Charlie Coon Blacksmith | K12: 0 | M12: 12 | N12: 500 | O12: n | P12: 500 | Q12: 0 | R12: 354
A13: TYPE | B13: No of Units | C13: 24 | D13: 5 | E13: 5 | F13: Bungalow-3Bdr | G13: 11 | H13: Etudah Street | I13: John Coonishish | K13: 0 | M13: 12 | N13: 500 | O13: n | P13: 500 | Q13: 0 | R13: 450
D14: 6 | E14: 5 | F14: Bungalow-3Bdr | G14: 280 | H14: Nesk Street | I14: Kitty Coonishish | K14: 0 | M14: 12 | N14: 500 | O14: n | P14: 500 | Q14: 0 | R14: 137
B15: Model | C15: LEM | D15: 7 | E15: 5 | F15: Bungalow-3Bdr | G15: 19 | H15: Etudah Street | I15: Titus Metabie | K15: 0 | M15: 12 | N15: 500 | O15: n | P15: 500 | Q15: 0 | R15: 450
A16: 1 | B16: Triplex-1Bdr | D16: 8 | E16: 5 | F16: Bungalow-3Bdr | G16: 136 | H16: Spruce Street | I16: Charlie Etapp | K16: 0 | M16: 12 | N16: 500 | O16: n | P16: 500 | Q16: 0 | R16: 409
A17: 2 | B17: Quadruplex-1Bdr | D17: 9 | E17: 5 | F17: Bungalow-3Bdr | G17: 75 | H17: Etudah Street | I17: Margaret Gunner | K17: 0 | M17: 12 | N17: 500 | O17: n | P17: 500 | Q17: 0 | R17: 289
D18: 10 | E18: 5 | F18: Bungalow-3Bdr | G18: 144 | H18: St-John Street | I18: Jean Baptiste Loon | J18: 38155.35 | K18: 3179.6125 | M18: 12 | N18: 500 | O18: Y | R18: 450
A19: 3 | B19: Duplex-2Bdr | D19: 11 | E19: 5 | F19: Bungalow-3Bdr | G19: 24 | H19: Etudah Street | I19: Sandy Loon | K19: 0 | M19: 12 | N19: 500 | O19: n | P19: 500 | Q19: 0 | R19: 450
A20: 4 | B20: Triplex-2Bdr | D20: 12 | E20: 5 | F20: Bungalow-3Bdr | G20: 168 | H20: Spruce Street | I20: Samuel Matoush | K20: 0 | M20: 12 | N20: 500 | O20: n | P20: 500 | Q20: 0 | R20: 255
D21: 13 | E21: 5 | F21: Bungalow-3Bdr | G21: 128 | H21: Spruce Street | I21: David Mianscum | J21: 27982.87 | K21: 2331.905833 | M21: 12 | N21: 500 | O21: Y | R21: 397
A22: 5 | B22: Bungalow-3Bdr | C22: 500 | D22: 14 | E22: 5 | F22: Bungalow-3Bdr | G22: 83 | H22: Etudah Street | I22: Harry Mianscum | K22: 0 | M22: 12 | N22: 500 | O22: n | P22: 500 | Q22: 0 | R22: 278
A23: 6 | B23: Duplex-3Bdr | D23: 15 | E23: 5 | F23: Bungalow-3Bdr | G23: 176 | H23: Spruce Street | I23: Matthew Neeposh | K23: 0 | M23: 12 | N23: 500 | O23: n | P23: 500 | Q23: 0 | R23: 450
A24: 7 | B24: Row-3Bdr | D24: 16 | E24: 5 | F24: Bungalow-3Bdr | G24: 216 | H24: Spruce Street | I24: Tony Neeposh | K24: 0 | M24: 12 | N24: 500 | O24: n | P24: 500 | Q24: 0 | R24: 450
D25: 17 | E25: 5 | F25: Bungalow-3Bdr | G25: 152 | H25: St-John Street | I25: Charlie Petawabano | J25: 68900.73 | K25: 5741.7275 | M25: 12 | N25: 500 | O25: Y | R25: 450
A26: 8 | B26: Bungalow-4Bdr | D26: 18 | E26: 5 | F26: Bungalow-3Bdr | G26: 144 | H26: Spruce Street | I26: Sam Petawabano | K26: 0 | M26: 12 | N26: 500 | O26: n | P26: 500 | Q26: 0 | R26: 450
A27: 9 | B27: Duplex-4Bdr | D27: 19 | E27: 5 | F27: Bungalow-3Bdr | G27: 120 | H27: Spruce Street | I27: Johnny Rabbitskin | J27: 32204.64 | K27: 2683.72 | M27: 12 | N27: 500 | O27: N | P27: 500 | Q27: 0 | R27: 337
A28: 10 | B28: Row-4Bdr | D28: 20 | E28: 5 | F28: Bungalow-3Bdr | G28: 8 | H28: Etudah Street | I28: Charlotte Gunner Sr. | K28: 0 | M28: 12 | N28: 500 | O28: n | P28: 500 | Q28: 0 | R28: 450
D29: 21 | E29: 5 | F29: Bungalow-3Bdr | G29: 211 | H29: Nesk Street | I29: Susan Taylor | K29: 0 | M29: 12 | N29: 500 | O29: n | P29: 500 | Q29: 0 | R29: 393
A30: 11 | B30: Bungalow-5Bdr | D30: 22 | E30: 5 | F30: Bungalow-3Bdr | G30: 67 | H30: Etudah Street | I30: Boyce Trapper | K30: 0 | M30: 12 | N30: 500 | O30: n | P30: 500 | Q30: 0 | R30: 292
A31: 12 | B31: Duplex-5Bdr | D31: 23 | E31: 5 | F31: Bungalow-3Bdr | G31: 35 | H31: Etudah Street | I31: Rosie Wapachee | J31: 13760.42 | K31: 1146.701667 | M31: 12 | N31: 500 | O31: Y | R31: 120
D32: 24 | E32: 5 | F32: Bungalow-3Bdr | G32: 51 | H32: Etudah Street | I32: Walter Wapachee | K32: 0 | M32: 12 | N32: 500 | O32: n | P32: 500 | Q32: 0 | R32: 227
D33: 25 | F33: 0 | K33: 0 | M33: 12 | N33: 0 | O33: n | P33: 0 | Q33: 0
D34: 26 | F34: 0 | K34: 0 | M34: 12 | N34: 0 | O34: n | P34: 0 | Q34: 0
D35: 27 | F35: 0 | K35: 0 | M35: 12 | N35: 0 | O35: n | P35: 0 | Q35: 0
D36: 28 | F36: 0 | K36: 0 | M36: 12 | N36: 0 | O36: n | P36: 0 | Q36: 0
D37: 29 | F37: 0 | K37: 0 | M37: 12 | N37: 0 | O37: n | P37: 0 | Q37: 0
D38: 30 | F38: 0 | K38: 0 | M38: 12 | N38: 0 | O38: n | P38: 0 | Q38: 0
D39: 31 | F39: 0 | K39: 0 | M39: 12 | N39: 0 | O39: n | P39: 0 | Q39: 0
D40: 32 | F40: 0 | K40: 0 | M40: 12 | N40: 0 | O40: n | P40: 0 | Q40: 0
D41: 33 | F41: 0 | K41: 0 | M41: 12 | N41: 0 | O41: n | P41: 0 | Q41: 0
D42: 34 | F42: 0 | K42: 0 | M42: 12 | N42: 0 | O42: n | P42: 0 | Q42: 0
D43: 35 | F43: 0 | K43: 0 | M43: 12 | N43: 0 | O43: n | P43: 0 | Q43: 0
D44: 36 | F44: 0 | K44: 0 | M44: 12 | N44: 0 | O44: n | P44: 0 | Q44: 0
D45: 37 | F45: 0 | K45: 0 | M45: 12 | N45: 0 | O45: n | P45: 0 | Q45: 0
D46: 38 | F46: 0 | K46: 0 | M46: 12 | N46: 0 | O46: n | P46: 0 | Q46: 0
D47: 39 | F47: 0 | K47: 0 | M47: 12 | N47: 0 | O47: n | P47: 0 | Q47: 0
D48: 40 | F48: 0 | K48: 0 | M48: 12 | N48: 0 | O48: n | P48: 0 | Q48: 0
A49: Pre-97 Project Number | I49: =B10 -> 002 | K49: Annual totals: | N49: =SUMPRODUCT(N9:N48,M9:M48) -> 144000 | P49: =SUMPRODUCT(P9:P48,M9:M48) ->  | Q49: =SUMPRODUCT(Q9:Q48,M9:M48) ->  | R49: =SUMPRODUCT(R9:R48,M9:M48) -> 104340
K50: Additional Funds required by Band to equal RGI | R50: =P49-R49 -> 

Sheet P3 (hidden)
B2: Click to return to Main Menu
A5: Name of Community | F5: =#REF! ->  | J5: CMHC File No | M5: =#REF! -> 
D6: Unit No | E6: Type of Unit | G6: Address | I6: Tenant's Name | J6: Ajusted Household Income | L6: No of Children | M6: Months Occupied | N6: Lower End of Market Rent (LEM) | O6: Income Tested Assistance | P6: Rent based on 25%(RGI) | Q6: CMHC's Income Tested Assistance | R6: Actual Rent Charged | T6: Y
B7: Project Number | T7: N
G8: Civic No | H8: Street | J8: Annual | K8: Monthly
D9: 1 | E9: 3 | F9: =IF(E9<>"",VLOOKUP(E9,$A$16:$C$31,2),0) -> Duplex-2Bdr | G9: 323 | H9: Mistissini Blvd | I9: George Blacksmith Sr | K9: =J9/12 -> 0 | M9: 12 | N9: =IF(E9<>"",VLOOKUP(E9,$A$16:$C$31,3),0) -> 450 | O9: n | P9: =IF(O9="Y",IF(IF(ROUND((+K9*0.25)-($T$10+(L9*$T$9)),0)>N9,N9,ROUND((+K9*0.25)-($T$10+(L9*$T$9)),0))<32,32,IF(ROUND((+K9*0.25)-($T$10+(L9*$T$9)),0)>N9,N9,ROUND((+K9*0.25)-($T$10+(L9*$T$9)),0))),N9) -> 450 | Q9: =IF(N9-P9<0,0,N9-P9) -> 0 | R9: 418 | T9: 2
B10: 003 | D10: 2 | E10: 3 | F10: =IF(E10<>"",VLOOKUP(E10,$A$16:$C$31,2),0) -> Duplex-2Bdr | G10: 19 | H10: Queen Street | I10: Bobby Coon | K10: 0 | M10: 12 | N10: =IF(E10<>"",VLOOKUP(E10,$A$16:$C$31,3),0) -> 450 | O10: n | P10: 450 | Q10: =IF(N10-P10<0,0,N10-P10) -> 0 | R10: 418 | T10: =#REF! -> 
D11: 3 | E11: 3 | F11: Duplex-2Bdr | G11: 312 | H11: Nesk Street | I11: Roderick Coonishish | J11: 7572.96 | K11: 631.08 | M11: 12 | N11: 450 | O11: Y | R11: 155
D12: 4 | E12: 3 | F12: Duplex-2Bdr | G12: 288 | H12: Nesk Street | I12: Randy Gunner | K12: 0 | M12: 12 | N12: 450 | O12: n | P12: 450 | Q12: 0 | R12: 418
A13: TYPE | B13: No of Units | C13: 19 | D13: 5 | E13: 3 | F13: Duplex-2Bdr | G13: 168 | H13: Queen Street | I13: Eva Iserhoff | K13: 0 | M13: 12 | N13: 450 | O13: n | P13: 450 | Q13: 0 | R13: 110
D14: 6 | E14: 3 | F14: Duplex-2Bdr | G14: 20 | H14: Waapstan St. W. | I14: Kenny Longchap | K14: 0 | M14: 12 | N14: 450 | O14: n | P14: 450 | Q14: 0 | R14: 418
B15: Model | C15: LEM | D15: 7 | E15: 3 | F15: Duplex-2Bdr | G15: 291 | H15: Queen Street | I15: Matthew Ottereyes | K15: 0 | M15: 12 | N15: 450 | O15: n | P15: 450 | Q15: 0 | R15: 242
A16: 1 | B16: Triplex-1Bdr | D16: 8 | E16: 3 | F16: Duplex-2Bdr | G16: 320 | H16: Nesk Street | I16: Charlotte Macleod | K16: 0 | M16: 12 | N16: 450 | O16: n | P16: 450 | Q16: 0 | R16: 418
A17: 2 | B17: Quadruplex-1Bdr | D17: 9 | E17: 3 | F17: Duplex-2Bdr | G17: 299 | H17: Mistissini Blvd | I17: Christopher Husky | K17: 0 | M17: 12 | N17: 450 | O17: n | P17: 450 | Q17: 0 | R17: 354
D18: 10 | E18: 3 | F18: Duplex-2Bdr | G18: 8 | H18: Spruce Street | I18: Henry Matoush | K18: 0 | M18: 12 | N18: 450 | O18: n | P18: 450 | Q18: 0 | R18: 418
A19: 3 | B19: Duplex-2Bdr | C19: 450 | D19: 11 | E19: 3 | F19: Duplex-2Bdr | G19: 296 | H19: Nesk Street | I19: Mathew Mattawashish | K19: 0 | M19: 12 | N19: 450 | O19: n | P19: 450 | Q19: 0 | R19: 418
A20: 4 | B20: Triplex-2Bdr | D20: 12 | E20: 3 | F20: Duplex-2Bdr | G20: 283 | H20: Queen Street | I20: Johnny Meskino | K20: 0 | M20: 12 | N20: 450 | O20: n | P20: 450 | Q20: 0 | R20: 162
D21: 13 | E21: 3 | F21: Duplex-2Bdr | G21: 120 | H21: Queen Street | I21: Robbie Mianscum | K21: 0 | M21: 12 | N21: 450 | O21: n | P21: 450 | Q21: 0 | R21: 418
A22: 5 | B22: Bungalow-3Bdr | D22: 14 | E22: 3 | F22: Duplex-2Bdr | G22: 291 | H22: Mistissini Blvd | I22: Clifford Neeposh | K22: 0 | M22: 12 | N22: 450 | O22: n | P22: 450 | Q22: 0 | R22: 418
A23: 6 | B23: Duplex-3Bdr | D23: 15 | E23: 3 | F23: Duplex-2Bdr | G23: 315 | H23: Mistissini Blvd | I23: Stanley Petwabano | K23: 0 | M23: 12 | N23: 450 | O23: n | P23: 450 | Q23: 0 | R23: 418
A24: 7 | B24: Row-3Bdr | D24: 16 | E24: 3 | F24: Duplex-2Bdr | G24: 304 | H24: Nesk Street | I24: Edward Rabbitskin | J24: 44218.46 | K24: 3684.871667 | M24: 12 | N24: 450 | O24: Y | R24: 418
D25: 17 | E25: 3 | F25: Duplex-2Bdr | G25: 51 | H25: Amanda St. | I25: Crystale P. Hester | K25: 0 | M25: 12 | N25: 450 | O25: n | P25: 450 | Q25: 0 | R25: 418
A26: 8 | B26: Bungalow-4Bdr | D26: 18 | E26: 3 | F26: Duplex-2Bdr | G26: 283 | H26: Mistissini Blvd | I26: Eva Spencer | K26: 0 | M26: 12 | N26: 450 | O26: n | P26: 450 | Q26: 0 | R26: 418
A27: 9 | B27: Duplex-4Bdr | D27: 19 | E27: 3 | F27: Duplex-2Bdr | G27: 307 | H27: Mistissini Blvd | I27: William Swallow | K27: 0 | M27: 12 | N27: 450 | O27: n | P27: 450 | Q27: 0 | R27: 418
A28: 10 | B28: Row-4Bdr | D28: 20 | F28: 0 | K28: 0 | M28: 12 | N28: 0 | O28: n | P28: 0 | Q28: 0
D29: 21 | F29: 0 | K29: 0 | M29: 12 | N29: 0 | O29: n | P29: 0 | Q29: 0
A30: 11 | B30: Bungalow-5Bdr | D30: 22 | F30: 0 | K30: 0 | M30: 12 | N30: 0 | O30: n | P30: 0 | Q30: 0
A31: 12 | B31: Duplex-5Bdr | D31: 23 | F31: 0 | K31: 0 | M31: 12 | N31: 0 | O31: n | P31: 0 | Q31: 0
D32: 24 | F32: 0 | K32: 0 | M32: 12 | N32: 0 | O32: n | P32: 0 | Q32: 0
D33: 25 | F33: 0 | K33: 0 | M33: 12 | N33: 0 | O33: n | P33: 0 | Q33: 0
D34: 26 | F34: 0 | K34: 0 | M34: 12 | N34: 0 | O34: n | P34: 0 | Q34: 0
D35: 27 | F35: 0 | K35: 0 | M35: 12 | N35: 0 | O35: n | P35: 0 | Q35: 0
D36: 28 | F36: 0 | K36: 0 | M36: 12 | N36: 0 | O36: n | P36: 0 | Q36: 0
D37: 29 | F37: 0 | K37: 0 | M37: 12 | N37: 0 | O37: n | P37: 0 | Q37: 0
D38: 30 | F38: 0 | K38: 0 | M38: 12 | N38: 0 | O38: n | P38: 0 | Q38: 0
D39: 31 | F39: 0 | K39: 0 | M39: 12 | N39: 0 | O39: n | P39: 0 | Q39: 0
D40: 32 | F40: 0 | K40: 0 | M40: 12 | N40: 0 | O40: n | P40: 0 | Q40: 0
D41: 33 | F41: 0 | K41: 0 | M41: 12 | N41: 0 | O41: n | P41: 0 | Q41: 0
D42: 34 | F42: 0 | K42: 0 | M42: 12 | N42: 0 | O42: n | P42: 0 | Q42: 0
D43: 35 | F43: 0 | K43: 0 | M43: 12 | N43: 0 | O43: n | P43: 0 | Q43: 0
D44: 36 | F44: 0 | K44: 0 | M44: 12 | N44: 0 | O44: n | P44: 0 | Q44: 0
D45: 37 | F45: 0 | K45: 0 | M45: 12 | N45: 0 | O45: n | P45: 0 | Q45: 0
D46: 38 | F46: 0 | K46: 0 | M46: 12 | N46: 0 | O46: n | P46: 0 | Q46: 0
D47: 39 | F47: 0 | K47: 0 | M47: 12 | N47: 0 | O47: n | P47: 0 | Q47: 0
D48: 40 | F48: 0 | K48: 0 | M48: 12 | N48: 0 | O48: n | P48: 0 | Q48: 0
A49: Pre-97 Project Number | I49: =B10 -> 003 | K49: Annual totals: | N49: =SUMPRODUCT(N9:N48,M9:M48) -> 102600 | P49: =SUMPRODUCT(P9:P48,M9:M48) ->  | Q49: =SUMPRODUCT(Q9:Q48,M9:M48) ->  | R49: =SUMPRODUCT(R9:R48,M9:M48) -> 82500
K50: Additional Funds required by Band to equal RGI | R50: =P49-R49 -> 

Sheet P4 (hidden)
B2: Click to return to Main Menu
A5: Name of Community | F5: =#REF! ->  | J5: CMHC File No | M5: =#REF! -> 
D6: Unit No | E6: Type of Unit | G6: Address | I6: Tenant's Name | J6: Ajusted Household Income | L6: No of Children | M6: Months Occupied | N6: Lower End of Market Rent (LEM) | O6: Income Tested Assistance | P6: Rent based on 25%(RGI) | Q6: CMHC's Income Tested Assistance | R6: Actual Rent Charged | T6: Y
B7: Project Number | T7: N
G8: Civic No | H8: Street | J8: Annual | K8: Monthly
D9: 1 | E9: 6 | F9: =IF(E9<>"",VLOOKUP(E9,$A$16:$C$31,2),0) -> Duplex-3Bdr | G9: 371 | H9: Amisk Street | I9: Sarah Shecapio Jr | J9: 22665.15 | K9: =J9/12 -> 1888.7625 | M9: 12 | N9: =IF(E9<>"",VLOOKUP(E9,$A$16:$C$31,3),0) -> 460 | O9: Y | P9: =IF(O9="Y",IF(IF(ROUND((+K9*0.25)-($T$10+(L9*$T$9)),0)>N9,N9,ROUND((+K9*0.25)-($T$10+(L9*$T$9)),0))<32,32,IF(ROUND((+K9*0.25)-($T$10+(L9*$T$9)),0)>N9,N9,ROUND((+K9*0.25)-($T$10+(L9*$T$9)),0))),N9) ->  | Q9: =IF(N9-P9<0,0,N9-P9) ->  | R9: 305 | T9: 2
B10: 004 | D10: 2 | E10: 6 | F10: =IF(E10<>"",VLOOKUP(E10,$A$16:$C$31,2),0) -> Duplex-3Bdr | G10: 381 | H10: Amisk Street | I10: Roger Blacksmith | K10: 0 | M10: 12 | N10: =IF(E10<>"",VLOOKUP(E10,$A$16:$C$31,3),0) -> 460 | O10: n | P10: 460 | Q10: =IF(N10-P10<0,0,N10-P10) -> 0 | R10: 424 | T10: =#REF! -> 
D11: 3 | E11: 6 | F11: Duplex-3Bdr | G11: 355 | H11: Amisk Street | I11: Dennis Brien | K11: 0 | M11: 12 | N11: 460 | O11: n | P11: 460 | Q11: 0 | R11: 424
D12: 4 | E12: 6 | F12: Duplex-3Bdr | G12: 362 | H12: Amisk Street | I12: Jordon Coonishish | K12: 0 | M12: 12 | N12: 460 | O12: n | P12: 460 | Q12: 0 | R12: 424
A13: TYPE | B13: No of Units | C13: 14 | D13: 5 | E13: 6 | F13: Duplex-3Bdr | G13: 357 | H13: Amisk Street | I13: Kimberly Coon | K13: 0 | M13: 12 | N13: 460 | O13: n | P13: 460 | Q13: 0
D14: 6 | E14: 6 | F14: Duplex-3Bdr | G14: 346 | H14: Amisk Street | I14: Ivan Coonishish | K14: 0 | M14: 12 | N14: 460 | O14: n | P14: 460 | Q14: 0 | R14: 424
B15: Model | C15: LEM | D15: 7 | E15: 6 | F15: Duplex-3Bdr | G15: 379 | H15: Amisk Street | I15: Morley Gunner | K15: 0 | M15: 12 | N15: 460 | O15: n | P15: 460 | Q15: 0 | R15: 286
A16: 1 | B16: Triplex-1Bdr | D16: 8 | E16: 6 | F16: Duplex-3Bdr | G16: 338 | H16: Amisk Street | I16: Rosie Iserhoff | K16: 0 | M16: 12 | N16: 460 | O16: N | P16: 460 | Q16: 0 | R16: 424
A17: 2 | B17: Quadruplex-1Bdr | D17: 9 | E17: 6 | F17: Duplex-3Bdr | G17: 360 | H17: Amisk Street | I17: Christopher Swallow | J17: 25214.03 | K17: 2101.169167 | M17: 12 | N17: 460 | O17: Y | R17: 316
D18: 10 | E18: 6 | F18: Duplex-3Bdr | G18: 365 | H18: Amisk Street | I18: Morley Longchap | K18: 0 | M18: 12 | N18: 460 | O18: n | P18: 460 | Q18: 0 | R18: 424
A19: 3 | B19: Duplex-2Bdr | D19: 11 | E19: 6 | F19: Duplex-3Bdr | G19: 373 | H19: Amisk Street | I19: Lucy Mianscum | K19: 0 | M19: 12 | N19: 460 | O19: n | P19: 460 | Q19: 0 | R19: 424
A20: 4 | B20: Triplex-2Bdr | D20: 12 | E20: 6 | F20: Duplex-3Bdr | G20: 363 | H20: Amisk Street | I20: Buckley Shecapio | K20: 0 | M20: 12 | N20: 460 | O20: n | P20: 460 | Q20: 0 | R20: 424
D21: 13 | E21: 6 | F21: Duplex-3Bdr | G21: 344 | H21: Amisk Street | I21: John Shecapio Jr | K21: 0 | M21: 12 | N21: 460 | O21: n | P21: 460 | Q21: 0 | R21: 424
A22: 5 | B22: Bungalow-3Bdr | D22: 14 | E22: 6 | F22: Duplex-3Bdr | G22: 336 | H22: Amisk Street | I22: Mary Trapper | K22: 0 | M22: 12 | N22: 460 | O22: n | P22: 460 | Q22: 0 | R22: 424
A23: 6 | B23: Duplex-3Bdr | C23: 460 | D23: 15 | F23: 0 | K23: 0 | M23: 12 | N23: 0 | O23: n | P23: 0 | Q23: 0
A24: 7 | B24: Row-3Bdr | D24: 16 | F24: 0 | K24: 0 | M24: 12 | N24: 0 | O24: n | P24: 0 | Q24: 0
D25: 17 | F25: 0 | K25: 0 | M25: 12 | N25: 0 | O25: n | P25: 0 | Q25: 0
A26: 8 | B26: Bungalow-4Bdr | D26: 18 | F26: 0 | K26: 0 | M26: 12 | N26: 0 | O26: n | P26: 0 | Q26: 0
A27: 9 | B27: Duplex-4Bdr | D27: 19 | F27: 0 | K27: 0 | M27: 12 | N27: 0 | O27: n | P27: 0 | Q27: 0
A28: 10 | B28: Row-4Bdr | D28: 20 | F28: 0 | K28: 0 | M28: 12 | N28: 0 | O28: n | P28: 0 | Q28: 0
D29: 21 | F29: 0 | K29: 0 | M29: 12 | N29: 0 | O29: n | P29: 0 | Q29: 0
A30: 11 | B30: Bungalow-5Bdr | D30: 22 | F30: 0 | K30: 0 | M30: 12 | N30: 0 | O30: n | P30: 0 | Q30: 0
A31: 12 | B31: Duplex-5Bdr | D31: 23 | F31: 0 | K31: 0 | M31: 12 | N31: 0 | O31: n | P31: 0 | Q31: 0
D32: 24 | F32: 0 | K32: 0 | M32: 12 | N32: 0 | O32: n | P32: 0 | Q32: 0
D33: 25 | F33: 0 | K33: 0 | M33: 12 | N33: 0 | O33: n | P33: 0 | Q33: 0
D34: 26 | F34: 0 | K34: 0 | M34: 12 | N34: 0 | O34: n | P34: 0 | Q34: 0
D35: 27 | F35: 0 | K35: 0 | M35: 12 | N35: 0 | O35: n | P35: 0 | Q35: 0
D36: 28 | F36: 0 | K36: 0 | M36: 12 | N36: 0 | O36: n | P36: 0 | Q36: 0
D37: 29 | F37: 0 | K37: 0 | M37: 12 | N37: 0 | O37: n | P37: 0 | Q37: 0
D38: 30 | F38: 0 | K38: 0 | M38: 12 | N38: 0 | O38: n | P38: 0 | Q38: 0
D39: 31 | F39: 0 | K39: 0 | M39: 12 | N39: 0 | O39: n | P39: 0 | Q39: 0
D40: 32 | F40: 0 | K40: 0 | M40: 12 | N40: 0 | O40: n | P40: 0 | Q40: 0
D41: 33 | F41: 0 | K41: 0 | M41: 12 | N41: 0 | O41: n | P41: 0 | Q41: 0
D42: 34 | F42: 0 | K42: 0 | M42: 12 | N42: 0 | O42: n | P42: 0 | Q42: 0
D43: 35 | F43: 0 | K43: 0 | M43: 12 | N43: 0 | O43: n | P43: 0 | Q43: 0
D44: 36 | F44: 0 | K44: 0 | M44: 12 | N44: 0 | O44: n | P44: 0 | Q44: 0
D45: 37 | F45: 0 | K45: 0 | M45: 12 | N45: 0 | O45: n | P45: 0 | Q45: 0
D46: 38 | F46: 0 | K46: 0 | M46: 12 | N46: 0 | O46: n | P46: 0 | Q46: 0
D47: 39 | F47: 0 | K47: 0 | M47: 12 | N47: 0 | O47: n | P47: 0 | Q47: 0
D48: 40 | F48: 0 | K48: 0 | M48: 12 | N48: 0 | O48: n | P48: 0 | Q48: 0
A49: Pre-97 Project Number | I49: =B10 -> 004 | K49: Annual totals: | N49: =SUMPRODUCT(N9:N48,M9:M48) -> 77280 | P49: =SUMPRODUCT(P9:P48,M9:M48) ->  | Q49: =SUMPRODUCT(Q9:Q48,M9:M48) ->  | R49: =SUMPRODUCT(R9:R48,M9:M48) -> 61764
K50: Additional Funds required by Band to equal RGI | R50: =P49-R49 -> 

Sheet P5 (hidden)
B2: Click to return to Main Menu
A5: Name of Community | F5: =#REF! ->  | J5: CMHC File No | M5: =#REF! -> 
D6: Unit No | E6: Type of Unit | G6: Address | I6: Tenant's Name | J6: Ajusted Household Income | L6: No of Children | M6: Months Occupied | N6: Lower End of Market Rent (LEM) | O6: Income Tested Assistance | P6: Rent based on 25%(RGI) | Q6: CMHC's Income Tested Assistance | R6: Actual Rent Charged | T6: Y
B7: Project Number | T7: N
G8: Civic No | H8: Street | J8: Annual | K8: Monthly
D9: 1 | E9: 5 | F9: =IF(E9<>"",VLOOKUP(E9,$A$16:$C$31,2),0) -> Bungalow-3Bdr | G9: 48 | H9: Sunset Street | I9: Jimmy Blacksmith | J9: 64236.87 | K9: =J9/12 -> 5353.0725 | M9: 12 | N9: =IF(E9<>"",VLOOKUP(E9,$A$16:$C$31,3),0) -> 500 | O9: Y | P9: =IF(O9="Y",IF(IF(ROUND((+K9*0.25)-($T$10+(L9*$T$9)),0)>N9,N9,ROUND((+K9*0.25)-($T$10+(L9*$T$9)),0))<32,32,IF(ROUND((+K9*0.25)-($T$10+(L9*$T$9)),0)>N9,N9,ROUND((+K9*0.25)-($T$10+(L9*$T$9)),0))),N9) ->  | Q9: =IF(N9-P9<0,0,N9-P9) ->  | R9: 450 | T9: 2
B10: 005 | D10: 2 | E10: 5 | F10: =IF(E10<>"",VLOOKUP(E10,$A$16:$C$31,2),0) -> Bungalow-3Bdr | G10: 323 | H10: Nesk Street | I10: Tiffany Neeposh | K10: 0 | M10: 12 | N10: =IF(E10<>"",VLOOKUP(E10,$A$16:$C$31,3),0) -> 500 | O10: n | P10: 500 | Q10: =IF(N10-P10<0,0,N10-P10) -> 0 | R10: 450 | T10: =#REF! -> 
D11: 3 | E11: 5 | F11: Bungalow-3Bdr | G11: 128 | H11: Sunset Street | I11: Dennis Coon | K11: 0 | M11: 12 | N11: 500 | O11: n | P11: 500 | Q11: 0 | R11: 409
D12: 4 | E12: 5 | F12: Bungalow-3Bdr | G12: 115 | H12: Sunset Street | I12: Kathleen Coon Come | K12: 0 | M12: 12 | N12: 500 | O12: n | P12: 500 | Q12: 0 | R12: 231
A13: TYPE | B13: No of Units | C13: 20 | D13: 5 | E13: 5 | F13: Bungalow-3Bdr | G13: 328 | H13: Nesk Street | I13: Samuel Etapp | K13: 0 | M13: 12 | N13: 500 | O13: n | P13: 500 | Q13: 0 | R13: 450
D14: 6 | E14: 5 | F14: Bungalow-3Bdr | G14: 51 | H14: Sunset Street | I14: Edward Gunner | K14: 0 | M14: 12 | N14: 500 | O14: n | P14: 500 | Q14: 0 | R14: 409
B15: Model | C15: LEM | D15: 7 | E15: 5 | F15: Bungalow-3Bdr | G15: 75 | H15: Amanda St. | I15: Francois Gunner | K15: 0 | M15: 12 | N15: 500 | O15: n | P15: 500 | Q15: 0 | R15: 450
A16: 1 | B16: Triplex-1Bdr | D16: 8 | E16: 5 | F16: Bungalow-3Bdr | G16: 107 | H16: Sunset Street | I16: Mary Iserhoff | K16: 0 | M16: 12 | N16: 500 | O16: n | P16: 500 | Q16: 0 | R16: 111
A17: 2 | B17: Quadruplex-1Bdr | D17: 9 | E17: 5 | F17: Bungalow-3Bdr | G17: 344 | H17: Nesk Street | I17: Eileen Coonishish | J17: 75165.32 | K17: 6263.776667 | M17: 12 | N17: 500 | O17: Y | R17: 450
D18: 10 | E18: 5 | F18: Bungalow-3Bdr | G18: 64 | H18: Sunset Street | I18: Gordon Jolly | J18: 53259.49 | K18: 4438.290833 | M18: 12 | N18: 500 | O18: n | P18: 500 | Q18: 0 | R18: 450
A19: 3 | B19: Duplex-2Bdr | D19: 11 | E19: 5 | F19: Bungalow-3Bdr | G19: 267 | H19: Nesk Street | I19: Abel Longchap | K19: 0 | M19: 12 | N19: 500 | O19: n | P19: 500 | Q19: 0 | R19: 450
A20: 4 | B20: Triplex-2Bdr | D20: 12 | E20: 5 | F20: Bungalow-3Bdr | G20: 275 | H20: Nesk Street | I20: Johnny Mattawashish | K20: 0 | M20: 12 | N20: 500 | O20: n | P20: 500 | Q20: 0 | R20: 414
D21: 13 | E21: 5 | F21: Bungalow-3Bdr | G21: 336 | H21: Mistissini Blvd. | I21: Leslie Mianscum | K21: 0 | M21: 12 | N21: 500 | O21: n | P21: 500 | Q21: 0 | R21: 450
A22: 5 | B22: Bungalow-3Bdr | C22: 500 | D22: 14 | E22: 5 | F22: Bungalow-3Bdr | G22: 336 | H22: Nesk Street | I22: Buckley Petawabano | K22: 0 | M22: 12 | N22: 500 | O22: n | P22: 500 | Q22: 0 | R22: 450
A23: 6 | B23: Duplex-3Bdr | D23: 15 | E23: 5 | F23: Bungalow-3Bdr | G23: 272 | H23: Nesk Street | I23: Norman Petawabano | K23: 0 | M23: 12 | N23: 500 | O23: n | P23: 500 | Q23: 0 | R23: 450
A24: 7 | B24: Row-3Bdr | D24: 16 | E24: 5 | F24: Bungalow-3Bdr | G24: 67 | H24: Sunset Street | I24: Matthew Coon Come Jr | K24: 0 | M24: 12 | N24: 500 | O24: n | P24: 500 | Q24: 0 | R24: 397
D25: 17 | E25: 5 | F25: Bungalow-3Bdr | G25: 56 | H25: Sunset Street | I25: Philip C. Shecapio | K25: 0 | M25: 12 | N25: 500 | O25: n | P25: 500 | Q25: 0 | R25: 187
A26: 8 | B26: Bungalow-4Bdr | D26: 18 | E26: 5 | F26: Bungalow-3Bdr | G26: 59 | H26: Sunset Street | I26: Philip N. Shecapio | K26: 0 | M26: 12 | N26: 500 | O26: n | P26: 500 | Q26: 0 | R26: 381
A27: 9 | B27: Duplex-4Bdr | D27: 19 | E27: 5 | F27: Bungalow-3Bdr | G27: 331 | H27: Nesk Street | I27: Anita Shecapio | K27: 0 | M27: 12 | N27: 500 | O27: n | P27: 500 | Q27: 0 | R27: 325
A28: 10 | B28: Row-4Bdr | D28: 20 | E28: 5 | F28: Bungalow-3Bdr | G28: 131 | H28: Sunset Street | I28: Mary Voyageur | K28: 0 | M28: 12 | N28: 500 | O28: n | P28: 500 | Q28: 0 | R28: 159
D29: 21 | F29: 0 | K29: 0 | M29: 12 | N29: 0 | O29: n | P29: 0 | Q29: 0
A30: 11 | B30: Bungalow-5Bdr | D30: 22 | F30: 0 | K30: 0 | M30: 12 | N30: 0 | O30: n | P30: 0 | Q30: 0
A31: 12 | B31: Duplex-5Bdr | D31: 23 | F31: 0 | K31: 0 | M31: 12 | N31: 0 | O31: n | P31: 0 | Q31: 0
D32: 24 | F32: 0 | K32: 0 | M32: 12 | N32: 0 | O32: n | P32: 0 | Q32: 0
D33: 25 | F33: 0 | K33: 0 | M33: 12 | N33: 0 | O33: n | P33: 0 | Q33: 0
D34: 26 | F34: 0 | K34: 0 | M34: 12 | N34: 0 | O34: n | P34: 0 | Q34: 0
D35: 27 | F35: 0 | K35: 0 | M35: 12 | N35: 0 | O35: n | P35: 0 | Q35: 0
D36: 28 | F36: 0 | K36: 0 | M36: 12 | N36: 0 | O36: n | P36: 0 | Q36: 0
D37: 29 | F37: 0 | K37: 0 | M37: 12 | N37: 0 | O37: n | P37: 0 | Q37: 0
D38: 30 | F38: 0 | K38: 0 | M38: 12 | N38: 0 | O38: n | P38: 0 | Q38: 0
D39: 31 | F39: 0 | K39: 0 | M39: 12 | N39: 0 | O39: n | P39: 0 | Q39: 0
D40: 32 | F40: 0 | K40: 0 | M40: 12 | N40: 0 | O40: n | P40: 0 | Q40: 0
D41: 33 | F41: 0 | K41: 0 | M41: 12 | N41: 0 | O41: n | P41: 0 | Q41: 0
D42: 34 | F42: 0 | K42: 0 | M42: 12 | N42: 0 | O42: n | P42: 0 | Q42: 0
D43: 35 | F43: 0 | K43: 0 | M43: 12 | N43: 0 | O43: n | P43: 0 | Q43: 0
D44: 36 | F44: 0 | K44: 0 | M44: 12 | N44: 0 | O44: n | P44: 0 | Q44: 0
D45: 37 | F45: 0 | K45: 0 | M45: 12 | N45: 0 | O45: n | P45: 0 | Q45: 0
D46: 38 | F46: 0 | K46: 0 | M46: 12 | N46: 0 | O46: n | P46: 0 | Q46: 0
D47: 39 | F47: 0 | K47: 0 | M47: 12 | N47: 0 | O47: n | P47: 0 | Q47: 0
D48: 40 | F48: 0 | K48: 0 | M48: 12 | N48: 0 | O48: n | P48: 0 | Q48: 0
A49: Pre-97 Project Number | I49: =B10 -> 005 | K49: Annual totals: | N49: =SUMPRODUCT(N9:N48,M9:M48) -> 120000 | P49: =SUMPRODUCT(P9:P48,M9:M48) ->  | Q49: =SUMPRODUCT(Q9:Q48,M9:M48) ->  | R49: =SUMPRODUCT(R9:R48,M9:M48) -> 90276
K50: Additional Funds required by Band to equal RGI | R50: =P49-R49 -> 

Sheet P6 (hidden)
B2: Click to return to Main Menu
A5: Name of Community | F5: =#REF! ->  | J5: CMHC File No | M5: =#REF! -> 
D6: Unit No | E6: Type of Unit | G6: Address | I6: Tenant's Name | J6: Ajusted Household Income | L6: No of Children | M6: Months Occupied | N6: Lower End of Market Rent (LEM) | O6: Income Tested Assistance | P6: Rent based on 25%(RGI) | Q6: CMHC's Income Tested Assistance | R6: Actual Rent Charged | T6: Y
B7: Project Number | T7: N
G8: Civic No | H8: Street | J8: Annual | K8: Monthly
D9: 1 | E9: 6 | F9: =IF(E9<>"",VLOOKUP(E9,$A$16:$C$31,2),0) -> Duplex-3Bdr | G9: 480 | H9: Mistissini Blvd. | I9: Daniel Blacksmith | K9: =J9/12 -> 0 | M9: 12 | N9: =IF(E9<>"",VLOOKUP(E9,$A$16:$C$31,3),0) -> 460 | O9: n | P9: =IF(O9="Y",IF(IF(ROUND((+K9*0.25)-($T$10+(L9*$T$9)),0)>N9,N9,ROUND((+K9*0.25)-($T$10+(L9*$T$9)),0))<32,32,IF(ROUND((+K9*0.25)-($T$10+(L9*$T$9)),0)>N9,N9,ROUND((+K9*0.25)-($T$10+(L9*$T$9)),0))),N9) -> 460 | Q9: =IF(N9-P9<0,0,N9-P9) -> 0 | R9: 382 | T9: 2
B10: 006 | D10: 2 | E10: 6 | F10: =IF(E10<>"",VLOOKUP(E10,$A$16:$C$31,2),0) -> Duplex-3Bdr | G10: 475 | H10: Mistissini Blvd. | I10: Kyla Matoush | K10: 0 | M10: 12 | N10: =IF(E10<>"",VLOOKUP(E10,$A$16:$C$31,3),0) -> 460 | O10: n | P10: 460 | Q10: =IF(N10-P10<0,0,N10-P10) -> 0 | R10: 185 | T10: =#REF! -> 
D11: 3 | E11: 6 | F11: Duplex-3Bdr | G11: 477 | H11: Mistissini Blvd. | I11: George Cannashish | K11: 0 | M11: 12 | N11: 460 | O11: n | P11: 460 | Q11: 0 | R11: 100
D12: 4 | E12: 6 | F12: Duplex-3Bdr | G12: 440 | H12: Mistissini Blvd. | I12: Johnny M. Coon | K12: 0 | M12: 12 | N12: 460 | O12: n | P12: 460 | Q12: 0 | R12: 424
A13: TYPE | B13: No of Units | C13: 36 | D13: 5 | E13: 6 | F13: Duplex-3Bdr | G13: 458 | H13: Mistissini Blvd. | I13: Allan Coon Come | K13: 0 | M13: 12 | N13: 460 | O13: n | P13: 460 | Q13: 0 | R13: 424
D14: 6 | E14: 6 | F14: Duplex-3Bdr | G14: 461 | H14: Mistissini Blvd. | I14: Paul Coon Come | K14: 0 | M14: 12 | N14: 460 | O14: n | P14: 460 | Q14: 0 | R14: 424
B15: Model | C15: LEM | D15: 7 | E15: 6 | F15: Duplex-3Bdr | G15: 453 | H15: Mistissini Blvd. | I15: Patrick Loon | K15: 0 | M15: 12 | N15: 460 | O15: n | P15: 460 | Q15: 0 | R15: 424
A16: 1 | B16: Triplex-1Bdr | D16: 8 | E16: 6 | F16: Duplex-3Bdr | G16: 466 | H16: Mistissini Blvd. | I16: Charlo Gunner | K16: 0 | M16: 12 | N16: 460 | O16: n | P16: 460 | Q16: 0 | R16: 117
A17: 2 | B17: Quadruplex-1Bdr | D17: 9 | E17: 6 | F17: Duplex-3Bdr | G17: 437 | H17: Mistissini Blvd. | I17: Alfred Mark | K17: 0 | M17: 12 | N17: 460 | O17: n | P17: 460 | Q17: 0 | R17: 424
D18: 10 | E18: 6 | F18: Duplex-3Bdr | G18: 435 | H18: Mistissini Blvd. | I18: Minnie Gunner | J18: 13898.28 | K18: 1158.19 | M18: 12 | N18: 460 | O18: Y | R18: 131
A19: 3 | B19: Duplex-2Bdr | C19: 370 | D19: 11 | E19: 6 | F19: Duplex-3Bdr | G19: 467 | H19: Mistissini Blvd. | I19: Abel Jolly | K19: 0 | M19: 12 | N19: 460 | O19: n | P19: 460 | Q19: 0 | R19: 302
A20: 4 | B20: Triplex-2Bdr | D20: 12 | E20: 6 | F20: Duplex-3Bdr | G20: 485 | H20: Mistissini Blvd. | I20: Willie Longchap Sr | K20: 0 | M20: 12 | N20: 460 | O20: n | P20: 460 | Q20: 0 | R20: 316
D21: 13 | E21: 6 | F21: Duplex-3Bdr | G21: 469 | H21: Mistissini Blvd. | I21: Sydney Loon | K21: 0 | M21: 12 | N21: 460 | O21: n | P21: 460 | Q21: 0 | R21: 424
A22: 5 | B22: Bungalow-3Bdr | D22: 14 | E22: 6 | F22: Duplex-3Bdr | G22: 434 | H22: Mistissini Blvd. | I22: Annie V. Matoush | K22: 0 | M22: 12 | N22: 460 | O22: n | P22: 460 | Q22: 0 | R22: 424
A23: 6 | B23: Duplex-3Bdr | C23: 460 | D23: 15 | E23: 6 | F23: Duplex-3Bdr | G23: 442 | H23: Mistissini Blvd. | I23: Linda J. Blacksmith | J23: 19228.1 | K23: 1602.341667 | M23: 12 | N23: 460 | O23: Y | R23: 242
A24: 7 | B24: Row-3Bdr | D24: 16 | E24: 6 | F24: Duplex-3Bdr | G24: 432 | H24: Mistissini Blvd. | I24: Paul Cannashish | K24: 0 | M24: 12 | N24: 460 | O24: n | P24: 460 | Q24: 0 | R24: 424
D25: 17 | E25: 6 | F25: Duplex-3Bdr | G25: 459 | H25: Mistissini Blvd. | I25: George Neeposh Sr. | K25: 0 | M25: 12 | N25: 460 | O25: n | P25: 460 | Q25: 0 | R25: 424
A26: 8 | B26: Bungalow-4Bdr | D26: 18 | E26: 6 | F26: Duplex-3Bdr | G26: 451 | H26: Mistissini Blvd. | I26: Janice Longchap | K26: 0 | M26: 12 | N26: 460 | O26: n | P26: 460 | Q26: 0 | R26: 424
A27: 9 | B27: Duplex-4Bdr | D27: 19 | E27: 6 | F27: Duplex-3Bdr | G27: 464 | H27: Mistissini Blvd. | I27: Darlene Neeposh | K27: 0 | M27: 12 | N27: 460 | O27: n | P27: 460 | Q27: 0 | R27: 289
A28: 10 | B28: Row-4Bdr | D28: 20 | E28: 6 | F28: Duplex-3Bdr | G28: 445 | H28: Mistissini Blvd. | I28: Mary Rabbitskin | K28: 0 | M28: 12 | N28: 460 | O28: n | P28: 460 | Q28: 0 | R28: 424
D29: 21 | E29: 6 | F29: Duplex-3Bdr | G29: 474 | H29: Mistissini Blvd. | I29: William Rabbitskin | K29: 0 | M29: 12 | N29: 460 | O29: n | P29: 460 | Q29: 0 | R29: 289
A30: 11 | B30: Bungalow-5Bdr | D30: 22 | E30: 6 | F30: Duplex-3Bdr | G30: 482 | H30: Mistissini Blvd. | I30: Georges Shecapio | K30: 0 | M30: 12 | N30: 460 | O30: n | P30: 460 | Q30: 0 | R30: 294
A31: 12 | B31: Duplex-5Bdr | D31: 23 | E31: 6 | F31: Duplex-3Bdr | G31: 450 | H31: Mistissini Blvd. | I31: Johnny S. Shecapio | K31: 0 | M31: 12 | N31: 460 | O31: n | P31: 460 | Q31: 0 | R31: 424
D32: 24 | E32: 6 | F32: Duplex-3Bdr | G32: 472 | H32: Mistissini Blvd. | I32: Joseph Swallow | K32: 0 | M32: 12 | N32: 460 | O32: n | P32: 460 | Q32: 0 | R32: 424
D33: 25 | E33: 6 | F33: Duplex-3Bdr | G33: 443 | H33: Mistissini Blvd. | I33: Amelia S. Brien | J33: 8256 | K33: 688 | M33: 12 | N33: 460 | O33: Y | R33: 68
D34: 26 | E34: 6 | F34: Duplex-3Bdr | G34: 448 | H34: Mistissini Blvd. | I34: Ronnie Trapper | K34: 0 | M34: 12 | N34: 460 | O34: n | P34: 460 | Q34: 0 | R34: 424
D35: 27 | E35: 6 | F35: Duplex-3Bdr | G35: 456 | H35: Mistissini Blvd. | I35: Thomas Shecapio | K35: 0 | M35: 12 | N35: 460 | O35: n | P35: 460 | Q35: 0 | R35: 424
D36: 28 | E36: 6 | F36: Duplex-3Bdr | G36: 483 | H36: Mistissini Blvd. | I36: Andrew Wapachee | K36: 0 | M36: 12 | N36: 460 | O36: n | P36: 460 | Q36: 0 | R36: 424
D37: 29 | E37: 3 | F37: Duplex-2Bdr | G37: 224 | H37: Riverside | I37: Michael Gunner Jr | J37: 44889 | K37: 3740.75 | M37: 12 | N37: 370 | O37: Y | R37: 370
D38: 30 | E38: 3 | F38: Duplex-2Bdr | G38: 232 | H38: Riverside | I38: Joseph Longchap | K38: 0 | M38: 12 | N38: 370 | O38: n | P38: 370 | Q38: 0 | R38: 370
D39: 31 | E39: 3 | F39: Duplex-2Bdr | G39: 210 | H39: Riverside | I39: Sydney Longchap | K39: 0 | M39: 12 | N39: 370 | O39: n | P39: 370 | Q39: 0 | R39: 370
D40: 32 | E40: 3 | F40: Duplex-2Bdr | G40: 202 | H40: Riverside | I40: Jeffrey Petawabano | J40: 15920.81 | K40: 1326.734167 | M40: 12 | N40: 370 | O40: Y | R40: 173
D41: 33 | E41: 3 | F41: Duplex-2Bdr | G41: 200 | H41: Riverside | I41: John Petawabano | K41: 0 | M41: 12 | N41: 370 | O41: n | P41: 370 | Q41: 0 | R41: 370
D42: 34 | E42: 3 | F42: Duplex-2Bdr | G42: 208 | H42: Riverside | I42: Sydney Rabbitskin | K42: 0 | M42: 12 | N42: 370 | O42: n | P42: 370 | Q42: 0 | R42: 370
D43: 35 | E43: 3 | F43: Duplex-2Bdr | G43: 234 | H43: Riverside | I43: Agnes Trapper | J43: 18959.49 | K43: 1579.9575 | M43: 12 | N43: 370 | O43: n | P43: 370 | Q43: 0 | R43: 166
D44: 36 | E44: 3 | F44: Duplex-2Bdr | G44: 226 | H44: Riverside | I44: John Wapachee | J44: 47999.49 | K44: 3999.9575 | M44: 12 | N44: 370 | O44: Y | R44: 370
D45: 37 | F45: 0 | K45: 0 | M45: 12 | N45: 0 | O45: n | P45: 0 | Q45: 0
D46: 38 | F46: 0 | K46: 0 | M46: 12 | N46: 0 | O46: n | P46: 0 | Q46: 0
D47: 39 | F47: 0 | K47: 0 | M47: 12 | N47: 0 | O47: n | P47: 0 | Q47: 0
D48: 40 | F48: 0 | K48: 0 | M48: 12 | N48: 0 | O48: n | P48: 0 | Q48: 0
A49: Pre-97 Project Number | I49: =B10 -> 006 | K49: Annual totals: | N49: =SUMPRODUCT(N9:N48,M9:M48) -> 190080 | P49: =SUMPRODUCT(P9:P48,M9:M48) ->  | Q49: =SUMPRODUCT(Q9:Q48,M9:M48) ->  | R49: =SUMPRODUCT(R9:R48,M9:M48) -> 144696
K50: Additional Funds required by Band to equal RGI | R50: =P49-R49 -> 

Sheet P7 (hidden)
B2: Click to return to Main Menu
A5: Name of Community | F5: =#REF! ->  | J5: CMHC File No | M5: =#REF! -> 
D6: Unit No | E6: Type of Unit | G6: Address | I6: Tenant's Name | J6: Ajusted Household Income | L6: No of Children | M6: Months Occupied | N6: Lower End of Market Rent (LEM) | O6: Income Tested Assistance | P6: Rent based on 25%(RGI) | Q6: CMHC's Income Tested Assistance | R6: Actual Rent Charged | T6: Y
B7: Project Number | T7: N
G8: Civic No | H8: Street | J8: Annual | K8: Monthly
D9: 1 | E9: 8 | F9: =IF(E9<>"",VLOOKUP(E9,$A$16:$C$31,2),0) -> Bungalow-4Bdr | G9: 520 | H9: Mistissini Blvd. | I9: Laurent Blacksmith | K9: =J9/12 -> 0 | M9: 12 | N9: =IF(E9<>"",VLOOKUP(E9,$A$16:$C$31,3),0) -> 500 | O9: n | P9: =IF(O9="Y",IF(IF(ROUND((+K9*0.25)-($T$10+(L9*$T$9)),0)>N9,N9,ROUND((+K9*0.25)-($T$10+(L9*$T$9)),0))<32,32,IF(ROUND((+K9*0.25)-($T$10+(L9*$T$9)),0)>N9,N9,ROUND((+K9*0.25)-($T$10+(L9*$T$9)),0))),N9) -> 500 | Q9: =IF(N9-P9<0,0,N9-P9) -> 0 | R9: 450 | T9: 2
B10: 007 | D10: 2 | E10: 8 | F10: =IF(E10<>"",VLOOKUP(E10,$A$16:$C$31,2),0) -> Bungalow-4Bdr | G10: 384 | H10: Amisk Street | I10: Abel Brien | K10: 0 | M10: 12 | N10: =IF(E10<>"",VLOOKUP(E10,$A$16:$C$31,3),0) -> 500 | O10: n | P10: 500 | Q10: =IF(N10-P10<0,0,N10-P10) -> 0 | R10: 450 | T10: =#REF! -> 
D11: 3 | E11: 8 | F11: Bungalow-4Bdr | G11: 504 | H11: Mistissini Blvd. | I11: Allan Brien | K11: 0 | M11: 12 | N11: 500 | O11: n | P11: 500 | Q11: 0 | R11: 328
D12: 4 | E12: 8 | F12: Bungalow-4Bdr | G12: 523 | H12: Mistissini Blvd. | I12: Matthew Brien | K12: 0 | M12: 12 | N12: 500 | O12: n | P12: 500 | Q12: 0 | R12: 450
A13: TYPE | B13: No of Units | C13: 19 | D13: 5 | E13: 8 | F13: Bungalow-4Bdr | G13: 347 | H13: Amisk Street | I13: Johnny Coon Sr | J13: 19706.88 | K13: 1642.24 | M13: 12 | N13: 500 | O13: Y | R13: 226
D14: 6 | E14: 8 | F14: Bungalow-4Bdr | G14: 515 | H14: Mistissini Blvd. | I14: Walter Edwards | K14: 0 | M14: 12 | N14: 500 | O14: n | P14: 500 | Q14: 0 | R14: 450
B15: Model | C15: LEM | D15: 7 | E15: 8 | F15: Bungalow-4Bdr | G15: 419 | H15: Mistissini Blvd. | I15: Georgina Forward | K15: 0 | M15: 12 | N15: 500 | O15: n | P15: 500 | Q15: 0 | R15: 450
A16: 1 | B16: Triplex-1Bdr | D16: 8 | E16: 8 | F16: Bungalow-4Bdr | G16: 424 | H16: Mistissini Blvd. | I16: Mathew Gunner Jr | J16: 63826.38 | K16: 5318.865 | M16: 12 | N16: 500 | O16: Y | R16: 450
A17: 2 | B17: Quadruplex-1Bdr | D17: 9 | E17: 8 | F17: Bungalow-4Bdr | G17: 512 | H17: Mistissini Blvd. | I17: Bella Iserhoff | K17: 0 | M17: 12 | N17: 500 | O17: n | P17: 500 | Q17: 0 | R17: 172
D18: 10 | E18: 8 | F18: Bungalow-4Bdr | G18: 427 | H18: Mistissini Blvd. | I18: Evelyn Loon | K18: 0 | M18: 12 | N18: 500 | O18: n | P18: 500 | Q18: 0 | R18: 328
A19: 3 | B19: Duplex-2Bdr | D19: 11 | E19: 8 | F19: Bungalow-4Bdr | G19: 499 | H19: Mistissini Blvd. | I19: Charlie Jimiken | J19: 27469.44 | K19: 2289.12 | M19: 12 | N19: 500 | O19: Y | R19: 327
A20: 4 | B20: Triplex-2Bdr | D20: 12 | E20: 8 | F20: Bungalow-4Bdr | G20: 376 | H20: Amisk Street | I20: Matthew Loon | J20: 49278.86 | K20: 4106.571667 | M20: 12 | N20: 500 | O20: n | P20: 500 | Q20: 0 | R20: 450
D21: 13 | E21: 8 | F21: Bungalow-4Bdr | G21: 155 | H21: Spruce Street | I21: Lizzie Mianscum | J21: 15772.24 | K21: 1314.353333 | M21: 12 | N21: 500 | O21: Y | R21: 162
A22: 5 | B22: Bungalow-3Bdr | C22: 500 | D22: 14 | E22: 8 | F22: Bungalow-4Bdr | G22: 408 | H22: Amisk Street | I22: Daisy Neeposh | K22: 0 | M22: 12 | N22: 500 | O22: n | P22: 500 | Q22: 0 | R22: 409
A23: 6 | B23: Duplex-3Bdr | D23: 15 | E23: 8 | F23: Bungalow-4Bdr | G23: 368 | H23: Amisk Street | I23: Derek Shecapio | K23: 0 | M23: 12 | N23: 500 | O23: n | P23: 500 | Q23: 0 | R23: 0
A24: 7 | B24: Row-3Bdr | D24: 16 | E24: 8 | F24: Bungalow-4Bdr | G24: 496 | H24: Mistissini Blvd. | I24: Sam Shecapio | J24: 93431.11 | K24: 7785.925833 | M24: 12 | N24: 500 | O24: Y | R24: 450
D25: 17 | E25: 8 | F25: Bungalow-4Bdr | G25: 339 | H25: Amisk Street | I25: Malcolm Trapper | K25: 0 | M25: 12 | N25: 500 | O25: n | P25: 500 | Q25: 0 | R25: 450
A26: 8 | B26: Bungalow-4Bdr | C26: 500 | D26: 18 | E26: 8 | F26: Bungalow-4Bdr | G26: 416 | H26: Mistissini Blvd. | I26: Charlie Voyageur | J26: 69820.19 | K26: 5818.349167 | M26: 12 | N26: 500 | O26: Y | R26: 450
A27: 9 | B27: Duplex-4Bdr | D27: 19 | E27: 8 | F27: Bungalow-4Bdr | G27: 507 | H27: Mistissini Blvd. | I27: Richard Mianscum | K27: 0 | M27: 12 | N27: 500 | O27: n | P27: 500 | Q27: 0 | R27: 450
A28: 10 | B28: Row-4Bdr | D28: 20 | F28: 0 | K28: 0 | M28: 12 | N28: 0 | O28: n | P28: 0 | Q28: 0
D29: 21 | F29: 0 | K29: 0 | M29: 12 | N29: 0 | O29: n | P29: 0 | Q29: 0
A30: 11 | B30: Bungalow-5Bdr | D30: 22 | F30: 0 | K30: 0 | M30: 12 | N30: 0 | O30: n | P30: 0 | Q30: 0
A31: 12 | B31: Duplex-5Bdr | D31: 23 | F31: 0 | K31: 0 | M31: 12 | N31: 0 | O31: n | P31: 0 | Q31: 0
D32: 24 | F32: 0 | K32: 0 | M32: 12 | N32: 0 | O32: n | P32: 0 | Q32: 0
D33: 25 | F33: 0 | K33: 0 | M33: 12 | N33: 0 | O33: n | P33: 0 | Q33: 0
D34: 26 | F34: 0 | K34: 0 | M34: 12 | N34: 0 | O34: n | P34: 0 | Q34: 0
D35: 27 | F35: 0 | K35: 0 | M35: 12 | N35: 0 | O35: n | P35: 0 | Q35: 0
D36: 28 | F36: 0 | K36: 0 | M36: 12 | N36: 0 | O36: n | P36: 0 | Q36: 0
D37: 29 | F37: 0 | K37: 0 | M37: 12 | N37: 0 | O37: n | P37: 0 | Q37: 0
D38: 30 | F38: 0 | K38: 0 | M38: 12 | N38: 0 | O38: n | P38: 0 | Q38: 0
D39: 31 | F39: 0 | K39: 0 | M39: 12 | N39: 0 | O39: n | P39: 0 | Q39: 0
D40: 32 | F40: 0 | K40: 0 | M40: 12 | N40: 0 | O40: n | P40: 0 | Q40: 0
D41: 33 | F41: 0 | K41: 0 | M41: 12 | N41: 0 | O41: n | P41: 0 | Q41: 0
D42: 34 | F42: 0 | K42: 0 | M42: 12 | N42: 0 | O42: n | P42: 0 | Q42: 0
D43: 35 | F43: 0 | K43: 0 | M43: 12 | N43: 0 | O43: n | P43: 0 | Q43: 0
D44: 36 | F44: 0 | K44: 0 | M44: 12 | N44: 0 | O44: n | P44: 0 | Q44: 0
D45: 37 | F45: 0 | K45: 0 | M45: 12 | N45: 0 | O45: n | P45: 0 | Q45: 0
D46: 38 | F46: 0 | K46: 0 | M46: 12 | N46: 0 | O46: n | P46: 0 | Q46: 0
D47: 39 | F47: 0 | K47: 0 | M47: 12 | N47: 0 | O47: n | P47: 0 | Q47: 0
D48: 40 | F48: 0 | K48: 0 | M48: 12 | N48: 0 | O48: n | P48: 0 | Q48: 0
A49: Pre-97 Project Number | I49: =B10 -> 007 | K49: Annual totals: | N49: =SUMPRODUCT(N9:N48,M9:M48) -> 114000 | P49: =SUMPRODUCT(P9:P48,M9:M48) ->  | Q49: =SUMPRODUCT(Q9:Q48,M9:M48) ->  | R49: =SUMPRODUCT(R9:R48,M9:M48) -> 82824
K50: Additional Funds required by Band to equal RGI | R50: =P49-R49 -> 

Sheet P8 (hidden)
B2: Click to return to Main Menu
A5: Name of Community | F5: =#REF! ->  | J5: CMHC File No | M5: =#REF! -> 
D6: Unit No | E6: Type of Unit | G6: Address | I6: Tenant's Name | J6: Ajusted Household Income | L6: No of Children | M6: Months Occupied | N6: Lower End of Market Rent (LEM) | O6: Income Tested Assistance | P6: Rent based on 25%(RGI) | Q6: CMHC's Income Tested Assistance | R6: Actual Rent Charged | T6: Y
B7: Project Number | T7: N
G8: Civic No | H8: Street | J8: Annual | K8: Monthly
D9: 1 | E9: 5 | F9: =IF(E9<>"",VLOOKUP(E9,$A$16:$C$31,2),0) -> Bungalow-3Bdr | G9: 256 | H9: Queen Street | I9: Francis Rabbitskin | K9: =J9/12 -> 0 | M9: 12 | N9: =IF(E9<>"",VLOOKUP(E9,$A$16:$C$31,3),0) -> 500 | O9: n | P9: =IF(O9="Y",IF(IF(ROUND((+K9*0.25)-($T$10+(L9*$T$9)),0)>N9,N9,ROUND((+K9*0.25)-($T$10+(L9*$T$9)),0))<32,32,IF(ROUND((+K9*0.25)-($T$10+(L9*$T$9)),0)>N9,N9,ROUND((+K9*0.25)-($T$10+(L9*$T$9)),0))),N9) -> 500 | Q9: =IF(N9-P9<0,0,N9-P9) -> 0 | R9: 450 | T9: 2
B10: 008 | D10: 2 | E10: 5 | F10: =IF(E10<>"",VLOOKUP(E10,$A$16:$C$31,2),0) -> Bungalow-3Bdr | G10: 35 | H10: Queen Street | I10: Isaac Shecapio | K10: 0 | M10: 12 | N10: =IF(E10<>"",VLOOKUP(E10,$A$16:$C$31,3),0) -> 500 | O10: n | P10: 500 | Q10: =IF(N10-P10<0,0,N10-P10) -> 0 | R10: 450 | T10: =#REF! -> 
D11: 3 | E11: 5 | F11: Bungalow-3Bdr | G11: 235 | H11: Queen Street | I11: Alfred Trapper | K11: 0 | M11: 12 | N11: 500 | O11: n | P11: 500 | Q11: 0 | R11: 176
D12: 4 | E12: 5 | F12: Bungalow-3Bdr | G12: 267 | H12: Queen Street | I12: Sydney Trapper Sr. | K12: 0 | M12: 12 | N12: 500 | O12: n | P12: 500 | Q12: 0 | R12: 450
A13: TYPE | B13: No of Units | C13: 16 | D13: 5 | E13: 6 | F13: Duplex-3Bdr | G13: 248 | H13: Riverside | I13: Joseph Awashish | K13: 0 | M13: 12 | N13: 460 | O13: n | P13: 460 | Q13: 0 | R13: 424
D14: 6 | E14: 6 | F14: Duplex-3Bdr | G14: 240 | H14: Riverside | I14: Jacob Blacksmith | K14: 0 | M14: 12 | N14: 460 | O14: n | P14: 460 | Q14: 0 | R14: 424
B15: Model | C15: LEM | D15: 7 | E15: 6 | F15: Duplex-3Bdr | G15: 258 | H15: Riverside | I15: William Bosum | K15: 0 | M15: 12 | N15: 460 | O15: n | P15: 460 | Q15: 0 | R15: 424
A16: 1 | B16: Triplex-1Bdr | D16: 8 | E16: 6 | F16: Duplex-3Bdr | G16: 264 | H16: Riverside | I16: Samuel Coon | K16: 0 | M16: 12 | N16: 460 | O16: n | P16: 460 | Q16: 0 | R16: 424
A17: 2 | B17: Quadruplex-1Bdr | D17: 9 | E17: 6 | F17: Duplex-3Bdr | G17: 282 | H17: Riverside | I17: David F. Coonishish | J17: 18585 | K17: 1548.75 | M17: 12 | N17: 460 | O17: Y | R17: 229
D18: 10 | E18: 6 | F18: Duplex-3Bdr | G18: 242 | H18: Riverside | I18: Andrew Gunner | K18: 0 | M18: 12 | N18: 460 | O18: n | P18: 460 | Q18: 0 | R18: 424
A19: 3 | B19: Duplex-2Bdr | D19: 11 | E19: 6 | F19: Duplex-3Bdr | G19: 266 | H19: Riverside | I19: Johnny Jolly | K19: 0 | M19: 12 | N19: 460 | O19: n | P19: 460 | Q19: 0 | R19: 424
A20: 4 | B20: Triplex-2Bdr | D20: 12 | E20: 6 | F20: Duplex-3Bdr | G20: 272 | H20: Riverside | I20: Charles Mattawashish | K20: 0 | M20: 12 | N20: 460 | O20: n | P20: 460 | Q20: 0 | R20: 424
D21: 13 | E21: 6 | F21: Duplex-3Bdr | G21: 274 | H21: Riverside | I21: Joe Max Loon | K21: 0 | M21: 12 | N21: 460 | O21: n | P21: 460 | Q21: 0 | R21: 121
A22: 5 | B22: Bungalow-3Bdr | C22: 500 | D22: 14 | E22: 6 | F22: Duplex-3Bdr | G22: 250 | H22: Riverside | I22: Edna Neeposh | K22: 0 | M22: 12 | N22: 460 | O22: n | P22: 460 | Q22: 0 | R22: 424
A23: 6 | B23: Duplex-3Bdr | C23: 460 | D23: 15 | E23: 6 | F23: Duplex-3Bdr | G23: 280 | H23: Riverside | I23: Alfred Swallow | K23: 0 | M23: 12 | N23: 460 | O23: n | P23: 460 | Q23: 0 | R23: 382
A24: 7 | B24: Row-3Bdr | D24: 16 | E24: 6 | F24: Duplex-3Bdr | G24: 256 | H24: Riverside | I24: Matthew Gunner | K24: 0 | M24: 12 | N24: 460 | O24: n | P24: 460 | Q24: 0 | R24: 424
D25: 17 | F25: 0 | K25: 0 | M25: 12 | N25: 0 | O25: n | P25: 0 | Q25: 0
A26: 8 | B26: Bungalow-4Bdr | D26: 18 | F26: 0 | K26: 0 | M26: 12 | N26: 0 | O26: n | P26: 0 | Q26: 0
A27: 9 | B27: Duplex-4Bdr | D27: 19 | F27: 0 | K27: 0 | M27: 12 | N27: 0 | O27: n | P27: 0 | Q27: 0
A28: 10 | B28: Row-4Bdr | D28: 20 | F28: 0 | K28: 0 | M28: 12 | N28: 0 | O28: n | P28: 0 | Q28: 0
D29: 21 | F29: 0 | K29: 0 | M29: 12 | N29: 0 | O29: n | P29: 0 | Q29: 0
A30: 11 | B30: Bungalow-5Bdr | D30: 22 | F30: 0 | K30: 0 | M30: 12 | N30: 0 | O30: n | P30: 0 | Q30: 0
A31: 12 | B31: Duplex-5Bdr | D31: 23 | F31: 0 | K31: 0 | M31: 12 | N31: 0 | O31: n | P31: 0 | Q31: 0
D32: 24 | F32: 0 | K32: 0 | M32: 12 | N32: 0 | O32: n | P32: 0 | Q32: 0
D33: 25 | F33: 0 | K33: 0 | M33: 12 | N33: 0 | O33: n | P33: 0 | Q33: 0
D34: 26 | F34: 0 | K34: 0 | M34: 12 | N34: 0 | O34: n | P34: 0 | Q34: 0
D35: 27 | F35: 0 | K35: 0 | M35: 12 | N35: 0 | O35: n | P35: 0 | Q35: 0
D36: 28 | F36: 0 | K36: 0 | M36: 12 | N36: 0 | O36: n | P36: 0 | Q36: 0
D37: 29 | F37: 0 | K37: 0 | M37: 12 | N37: 0 | O37: n | P37: 0 | Q37: 0
D38: 30 | F38: 0 | K38: 0 | M38: 12 | N38: 0 | O38: n | P38: 0 | Q38: 0
D39: 31 | F39: 0 | K39: 0 | M39: 12 | N39: 0 | O39: n | P39: 0 | Q39: 0
D40: 32 | F40: 0 | K40: 0 | M40: 12 | N40: 0 | O40: n | P40: 0 | Q40: 0
D41: 33 | F41: 0 | K41: 0 | M41: 12 | N41: 0 | O41: n | P41: 0 | Q41: 0
D42: 34 | F42: 0 | K42: 0 | M42: 12 | N42: 0 | O42: n | P42: 0 | Q42: 0
D43: 35 | F43: 0 | K43: 0 | M43: 12 | N43: 0 | O43: n | P43: 0 | Q43: 0
D44: 36 | F44: 0 | K44: 0 | M44: 12 | N44: 0 | O44: n | P44: 0 | Q44: 0
D45: 37 | F45: 0 | K45: 0 | M45: 12 | N45: 0 | O45: n | P45: 0 | Q45: 0
D46: 38 | F46: 0 | K46: 0 | M46: 12 | N46: 0 | O46: n | P46: 0 | Q46: 0
D47: 39 | F47: 0 | K47: 0 | M47: 12 | N47: 0 | O47: n | P47: 0 | Q47: 0
D48: 40 | F48: 0 | K48: 0 | M48: 12 | N48: 0 | O48: n | P48: 0 | Q48: 0
A49: Pre-97 Project Number | I49: =B10 -> 008 | K49: Annual totals: | N49: =SUMPRODUCT(N9:N48,M9:M48) -> 90240 | P49: =SUMPRODUCT(P9:P48,M9:M48) ->  | Q49: =SUMPRODUCT(Q9:Q48,M9:M48) ->  | R49: =SUMPRODUCT(R9:R48,M9:M48) -> 72888
K50: Additional Funds required by Band to equal RGI | R50: =P49-R49 -> 

Sheet P9 (hidden)
B2: Click to return to Main Menu
A5: Name of Community | F5: =#REF! ->  | J5: CMHC File No | M5: =#REF! -> 
D6: Unit No | E6: Type of Unit | G6: Address | I6: Tenant's Name | J6: Ajusted Household Income | L6: No of Children | M6: Months Occupied | N6: Lower End of Market Rent (LEM) | O6: Income Tested Assistance | P6: Rent based on 25%(RGI) | Q6: CMHC's Income Tested Assistance | R6: Actual Rent Charged | T6: Y
B7: Project Number | T7: N
G8: Civic No | H8: Street | J8: Annual | K8: Monthly
D9: 1 | E9: 8 | F9: =IF(E9<>"",VLOOKUP(E9,$A$16:$C$31,2),0) -> Bungalow-4Bdr | G9: 8 | H9: Albanel Street | I9: Paul Brien | K9: =J9/12 -> 0 | M9: 12 | N9: =IF(E9<>"",VLOOKUP(E9,$A$16:$C$31,3),0) -> 540 | O9: n | P9: =IF(O9="Y",IF(IF(ROUND((+K9*0.25)-($T$10+(L9*$T$9)),0)>N9,N9,ROUND((+K9*0.25)-($T$10+(L9*$T$9)),0))<32,32,IF(ROUND((+K9*0.25)-($T$10+(L9*$T$9)),0)>N9,N9,ROUND((+K9*0.25)-($T$10+(L9*$T$9)),0))),N9) -> 540 | Q9: =IF(N9-P9<0,0,N9-P9) -> 0 | R9: 478 | T9: 2
B10: 009 | D10: 2 | E10: 8 | F10: =IF(E10<>"",VLOOKUP(E10,$A$16:$C$31,2),0) -> Bungalow-4Bdr | G10: 603 | H10: Mistissini Blvd. | I10: John Henry Shecapio | K10: 0 | M10: 12 | N10: =IF(E10<>"",VLOOKUP(E10,$A$16:$C$31,3),0) -> 540 | O10: n | P10: 540 | Q10: =IF(N10-P10<0,0,N10-P10) -> 0 | R10: 478 | T10: =#REF! -> 
D11: 3 | E11: 8 | F11: Bungalow-4Bdr | G11: 32 | H11: Albanel Street | I11: Awashish Minnie | J11: 12074.94 | K11: 1006.245 | M11: 12 | N11: 540 | O11: Y | R11: 93
D12: 4 | E12: 8 | F12: Bungalow-4Bdr | G12: 48 | H12: Albanel Street | I12: Alex Blacksmith | K12: 0 | M12: 12 | N12: 540 | O12: n | P12: 540 | Q12: 0 | R12: 375
A13: TYPE | B13: No of Units | C13: 22 | D13: 5 | E13: 8 | F13: Bungalow-4Bdr | G13: 560 | H13: Mistissini Blvd. | I13: Joseph Blacksmith | K13: 0 | M13: 12 | N13: 540 | O13: n | P13: 540 | Q13: 0 | R13: 478
D14: 6 | E14: 8 | F14: Bungalow-4Bdr | G14: 643 | H14: Mistissini Blvd. | I14: Charlie Cannashish | K14: 0 | M14: 12 | N14: 540 | O14: n | P14: 540 | Q14: 0 | R14: 417
B15: Model | C15: LEM | D15: 7 | E15: 8 | F15: Bungalow-4Bdr | G15: 112 | H15: Albanel Street | I15: Isaac John Coon | K15: 0 | M15: 12 | N15: 540 | O15: n | P15: 540 | Q15: 0 | R15: 435
A16: 1 | B16: Triplex-1Bdr | D16: 8 | E16: 8 | F16: Bungalow-4Bdr | G16: 115 | H16: Albanel Street | I16: Edward Evadney | J16: 35576.76 | K16: 2964.73 | M16: 12 | N16: 540 | O16: Y | R16: 478
A17: 2 | B17: Quadruplex-1Bdr | D17: 9 | E17: 8 | F17: Bungalow-4Bdr | G17: 611 | H17: Mistissini Blvd. | I17: Charlotte B. Georgekish | J17: 51847.47 | K17: 4320.6225 | M17: 12 | N17: 540 | O17: Y | R17: 478
D18: 10 | E18: 8 | F18: Bungalow-4Bdr | G18: 11 | H18: Albanel Street | I18: Simeon Longchap | K18: 0 | M18: 12 | N18: 540 | O18: n | P18: 540 | Q18: 0 | R18: 282
A19: 3 | B19: Duplex-2Bdr | D19: 11 | E19: 8 | F19: Bungalow-4Bdr | G19: 531 | H19: Mistissini Blvd. | I19: Willie J. Loon | J19: 47733.68 | K19: 3977.806667 | M19: 12 | N19: 540 | O19: Y | R19: 478
A20: 4 | B20: Triplex-2Bdr | D20: 12 | E20: 8 | F20: Bungalow-4Bdr | G20: 35 | H20: Albanel Street | I20: Abel Mark | K20: 0 | M20: 12 | N20: 540 | O20: n | P20: 540 | Q20: 0 | R20: 435
D21: 13 | E21: 8 | F21: Bungalow-4Bdr | G21: 555 | H21: Mistissini Blvd. | I21: Allen Matoush | K21: 0 | M21: 12 | N21: 540 | O21: n | P21: 540 | Q21: 0 | R21: 478
A22: 5 | B22: Bungalow-3Bdr | D22: 14 | E22: 8 | F22: Bungalow-4Bdr | G22: 667 | H22: Mistissini Blvd. | I22: John Matoush Sr. | K22: 0 | M22: 12 | N22: 540 | O22: n | P22: 540 | Q22: 0 | R22: 478
A23: 6 | B23: Duplex-3Bdr | D23: 15 | E23: 8 | F23: Bungalow-4Bdr | G23: 83 | H23: Albanel Street | I23: William Mianscum | K23: 0 | M23: 12 | N23: 540 | O23: n | P23: 540 | Q23: 0 | R23: 478
A24: 7 | B24: Row-3Bdr | D24: 16 | E24: 8 | F24: Bungalow-4Bdr | G24: 544 | H24: Mistissini Blvd. | I24: Doris S. Matoush | K24: 0 | M24: 12 | N24: 540 | O24: n | P24: 540 | Q24: 0 | R24: 478
D25: 17 | E25: 8 | F25: Bungalow-4Bdr | G25: 571 | H25: Mistissini Blvd. | I25: James Rabbitskin | J25: 42520.92 | K25: 3543.41 | M25: 12 | N25: 540 | O25: Y | R25: 478
A26: 8 | B26: Bungalow-4Bdr | C26: 540 | D26: 18 | E26: 8 | F26: Bungalow-4Bdr | G26: 75 | H26: Albanel Street | I26: Abel Shecapio | K26: 0 | M26: 12 | N26: 540 | O26: n | P26: 540 | Q26: 0 | R26: 354
A27: 9 | B27: Duplex-4Bdr | D27: 19 | E27: 8 | F27: Bungalow-4Bdr | G27: 659 | H27: Mistissini Blvd. | I27: George M. Shecapio | K27: 0 | M27: 12 | N27: 540 | O27: n | P27: 540 | Q27: 0 | R27: 478
A28: 10 | B28: Row-4Bdr | D28: 20 | E28: 8 | F28: Bungalow-4Bdr | G28: 67 | H28: Amanda Street | I28: Johnny A. Shecapio | K28: 0 | M28: 12 | N28: 540 | O28: n | P28: 540 | Q28: 0 | R28: 478
D29: 21 | E29: 8 | F29: Bungalow-4Bdr | G29: 43 | H29: Albanel Street | I29: Charlie Blacksmith | K29: 0 | M29: 12 | N29: 540 | O29: n | P29: 540 | Q29: 0 | R29: 389
A30: 11 | B30: Bungalow-5Bdr | D30: 22 | E30: 8 | F30: Bungalow-4Bdr | G30: 107 | H30: Albanel Street | I30: Alice Wapache-Petawabano | K30: 0 | M30: 12 | N30: 540 | O30: n | P30: 540 | Q30: 0 | R30: 125
A31: 12 | B31: Duplex-5Bdr | D31: 23 | F31: 0 | K31: 0 | M31: 12 | N31: 0 | O31: n | P31: 0 | Q31: 0
D32: 24 | F32: 0 | K32: 0 | M32: 12 | N32: 0 | O32: n | P32: 0 | Q32: 0
D33: 25 | F33: 0 | K33: 0 | M33: 12 | N33: 0 | O33: n | P33: 0 | Q33: 0
D34: 26 | F34: 0 | K34: 0 | M34: 12 | N34: 0 | O34: n | P34: 0 | Q34: 0
D35: 27 | F35: 0 | K35: 0 | M35: 12 | N35: 0 | O35: n | P35: 0 | Q35: 0
D36: 28 | F36: 0 | K36: 0 | M36: 12 | N36: 0 | O36: n | P36: 0 | Q36: 0
D37: 29 | F37: 0 | K37: 0 | M37: 12 | N37: 0 | O37: n | P37: 0 | Q37: 0
D38: 30 | F38: 0 | K38: 0 | M38: 12 | N38: 0 | O38: n | P38: 0 | Q38: 0
D39: 31 | F39: 0 | K39: 0 | M39: 12 | N39: 0 | O39: n | P39: 0 | Q39: 0
D40: 32 | F40: 0 | K40: 0 | M40: 12 | N40: 0 | O40: n | P40: 0 | Q40: 0
D41: 33 | F41: 0 | K41: 0 | M41: 12 | N41: 0 | O41: n | P41: 0 | Q41: 0
D42: 34 | F42: 0 | K42: 0 | M42: 12 | N42: 0 | O42: n | P42: 0 | Q42: 0
D43: 35 | F43: 0 | K43: 0 | M43: 12 | N43: 0 | O43: n | P43: 0 | Q43: 0
D44: 36 | F44: 0 | K44: 0 | M44: 12 | N44: 0 | O44: n | P44: 0 | Q44: 0
D45: 37 | F45: 0 | K45: 0 | M45: 12 | N45: 0 | O45: n | P45: 0 | Q45: 0
D46: 38 | F46: 0 | K46: 0 | M46: 12 | N46: 0 | O46: n | P46: 0 | Q46: 0
D47: 39 | F47: 0 | K47: 0 | M47: 12 | N47: 0 | O47: n | P47: 0 | Q47: 0
D48: 40 | F48: 0 | K48: 0 | M48: 12 | N48: 0 | O48: n | P48: 0 | Q48: 0
A49: Pre-97 Project Number | I49: =B10 -> 009 | K49: Annual totals: | N49: =SUMPRODUCT(N9:N48,M9:M48) -> 142560 | P49: =SUMPRODUCT(P9:P48,M9:M48) ->  | Q49: =SUMPRODUCT(Q9:Q48,M9:M48) ->  | R49: =SUMPRODUCT(R9:R48,M9:M48) -> 109428
K50: Additional Funds required by Band to equal RGI | R50: =P49-R49 -> 

Sheet P10 (hidden)
B2: Click to return to Main Menu
A5: Name of Community | F5: =#REF! ->  | J5: CMHC File No | M5: =#REF! -> 
D6: Unit No | E6: Type of Unit | G6: Address | I6: Tenant's Name | J6: Ajusted Household Income | L6: No of Children | M6: Months Occupied | N6: Lower End of Market Rent (LEM) | O6: Income Tested Assistance | P6: Rent based on 25%(RGI) | Q6: CMHC's Income Tested Assistance | R6: Actual Rent Charged | T6: Y
B7: Project Number | T7: N
G8: Civic No | H8: Street | J8: Annual | K8: Monthly
D9: 1 | E9: 5 | F9: =IF(E9<>"",VLOOKUP(E9,$A$16:$C$31,2),0) -> Bungalow-3Bdr | G9: 536 | H9: Mistissini Blvd. | I9: Andrew G. Blacksmith | K9: =J9/12 -> 0 | M9: 12 | N9: =IF(E9<>"",VLOOKUP(E9,$A$16:$C$31,3),0) -> 500 | O9: n | P9: =IF(O9="Y",IF(IF(ROUND((+K9*0.25)-($T$10+(L9*$T$9)),0)>N9,N9,ROUND((+K9*0.25)-($T$10+(L9*$T$9)),0))<32,32,IF(ROUND((+K9*0.25)-($T$10+(L9*$T$9)),0)>N9,N9,ROUND((+K9*0.25)-($T$10+(L9*$T$9)),0))),N9) -> 500 | Q9: =IF(N9-P9<0,0,N9-P9) -> 0 | R9: 395 | T9: 2
B10: 010 | D10: 2 | E10: 5 | F10: =IF(E10<>"",VLOOKUP(E10,$A$16:$C$31,2),0) -> Bungalow-3Bdr | G10: 592 | H10: Mistissini Blvd. | I10: Harry Coon | K10: 0 | M10: 12 | N10: =IF(E10<>"",VLOOKUP(E10,$A$16:$C$31,3),0) -> 500 | O10: n | P10: 500 | Q10: =IF(N10-P10<0,0,N10-P10) -> 0 | R10: 450 | T10: =#REF! -> 
D11: 3 | E11: 5 | F11: Bungalow-3Bdr | G11: 539 | H11: Mistissini Blvd. | I11: Benjamin Voyageur | K11: 0 | M11: 12 | N11: 500 | O11: n | P11: 500 | Q11: 0 | R11: 395
D12: 4 | E12: 5 | F12: Bungalow-3Bdr | G12: 16 | H12: Albanel Street | I12: Stanley Gunner | K12: 0 | M12: 12 | N12: 500 | O12: n | P12: 500 | Q12: 0
A13: TYPE | B13: No of Units | C13: 23 | D13: 5 | E13: 5 | F13: Bungalow-3Bdr | G13: 635 | H13: Mistissini Blvd. | I13: Tommy Weskanun-Longchap | K13: 0 | M13: 12 | N13: 500 | O13: n | P13: 500 | Q13: 0 | R13: 348
D14: 6 | E14: 5 | F14: Bungalow-3Bdr | G14: 608 | H14: Mistissini Blvd. | I14: Mary E. Petawabano | J14: 45656.59 | K14: 3804.715833 | M14: 12 | N14: 500 | O14: Y | R14: 450
B15: Model | C15: LEM | D15: 7 | E15: 5 | F15: Bungalow-3Bdr | G15: 595 | H15: Mistissini Blvd. | I15: Simon J. Rabbitskin | J15: 28037.14 | K15: 2336.428333 | M15: 12 | N15: 500 | O15: Y | R15: 311
A16: 1 | B16: Triplex-1Bdr | D16: 8 | E16: 5 | F16: Bungalow-3Bdr | G16: 619 | H16: Mistissini Blvd. | I16: Matthew P. Shecapio | K16: 0 | M16: 12 | N16: 500 | O16: n | P16: 500 | Q16: 0 | R16: 450
A17: 2 | B17: Quadruplex-1Bdr | D17: 9 | E17: 5 | F17: Bungalow-3Bdr | G17: 576 | H17: Mistissini Blvd. | I17: Roy Shecapio | K17: 0 | M17: 12 | N17: 500 | O17: n | P17: 500 | Q17: 0 | R17: 450
D18: 10 | E18: 5 | F18: Bungalow-3Bdr | G18: 579 | H18: Mistissini Blvd. | I18: Johnny Trapper | J18: 42541.24 | K18: 3545.103333 | M18: 12 | N18: 500 | O18: Y | R18: 450
A19: 3 | B19: Duplex-2Bdr | D19: 11 | E19: 8 | F19: Bungalow-4Bdr | G19: 587 | H19: Mistissini Blvd. | I19: George A. Blacksmith | K19: 0 | M19: 12 | N19: 540 | O19: n | P19: 540 | Q19: 0 | R19: 478
A20: 4 | B20: Triplex-2Bdr | D20: 12 | E20: 8 | F20: Bungalow-4Bdr | G20: 59 | H20: Albanel Street | I20: Sydney Coon | K20: 0 | M20: 12 | N20: 540 | O20: n | P20: 540 | Q20: 0 | R20: 478
D21: 13 | E21: 8 | F21: Bungalow-4Bdr | G21: 96 | H21: Albanel Street | I21: Harry Coonishish | K21: 0 | M21: 12 | N21: 540 | O21: n | P21: 540 | Q21: 0 | R21: 478
A22: 5 | B22: Bungalow-3Bdr | C22: 500 | D22: 14 | E22: 8 | F22: Bungalow-4Bdr | G22: 600 | H22: Mistissini Blvd. | I22: David Gunner | K22: 0 | M22: 12 | N22: 540 | O22: n | P22: 540 | Q22: 0 | R22: 478
A23: 6 | B23: Duplex-3Bdr | D23: 15 | E23: 8 | F23: Bungalow-4Bdr | G23: 568 | H23: Mistissini Blvd. | I23: Philip Neeposh Jr. | J23: 18174 | K23: 1514.5 | M23: 12 | N23: 540 | O23: Y | R23: 435
A24: 7 | B24: Row-3Bdr | D24: 16 | E24: 8 | F24: Bungalow-4Bdr | G24: 627 | H24: Mistissini Blvd. | I24: Leslie Longchap | K24: 0 | M24: 12 | N24: 540 | O24: n | P24: 540 | Q24: 0 | R24: 318
D25: 17 | E25: 8 | F25: Bungalow-4Bdr | G25: 547 | H25: Mistissini Blvd. | I25: Louise Jimiken | K25: 0 | M25: 12 | N25: 540 | O25: n | P25: 540 | Q25: 0 | R25: 93
A26: 8 | B26: Bungalow-4Bdr | C26: 540 | D26: 18 | E26: 8 | F26: Bungalow-4Bdr | G26: 640 | H26: Mistissini Blvd. | I26: George M. Longchap | K26: 0 | M26: 12 | N26: 540 | O26: n | P26: 540 | Q26: 0 | R26: 223
A27: 9 | B27: Duplex-4Bdr | D27: 19 | E27: 8 | F27: Bungalow-4Bdr | G27: 80 | H27: Albanel Street | I27: Lawrence Petawabano | K27: 0 | M27: 12 | N27: 540 | O27: n | P27: 540 | Q27: 0 | R27: 478
A28: 10 | B28: Row-4Bdr | D28: 20 | E28: 8 | F28: Bungalow-4Bdr | G28: 528 | H28: Mistissini Blvd. | I28: Alex Mianscum | J28: 60116.98 | K28: 5009.748333 | M28: 12 | N28: 540 | O28: Y | R28: 478
D29: 21 | E29: 8 | F29: Bungalow-4Bdr | G29: 584 | H29: Mistissini Blvd. | I29: Stanley Mianscum | K29: 0 | M29: 12 | N29: 540 | O29: n | P29: 540 | Q29: 0 | R29: 478
A30: 11 | B30: Bungalow-5Bdr | D30: 22 | E30: 8 | F30: Bungalow-4Bdr | G30: 24 | H30: Albanel Street | I30: John Trapper | K30: 0 | M30: 12 | N30: 540 | O30: n | P30: 540 | Q30: 0 | R30: 387
A31: 12 | B31: Duplex-5Bdr | D31: 23 | E31: 8 | F31: Bungalow-4Bdr | G31: 64 | H31: Albanel Street | I31: William Voyageur | K31: 0 | M31: 12 | N31: 540 | O31: n | P31: 540 | Q31: 0 | R31: 478
D32: 24 | F32: 0 | K32: 0 | M32: 12 | N32: 0 | O32: n | P32: 0 | Q32: 0
D33: 25 | F33: 0 | K33: 0 | M33: 12 | N33: 0 | O33: n | P33: 0 | Q33: 0
D34: 26 | F34: 0 | K34: 0 | M34: 12 | N34: 0 | O34: n | P34: 0 | Q34: 0
D35: 27 | F35: 0 | K35: 0 | M35: 12 | N35: 0 | O35: n | P35: 0 | Q35: 0
D36: 28 | F36: 0 | K36: 0 | M36: 12 | N36: 0 | O36: n | P36: 0 | Q36: 0
D37: 29 | F37: 0 | K37: 0 | M37: 12 | N37: 0 | O37: n | P37: 0 | Q37: 0
D38: 30 | F38: 0 | K38: 0 | M38: 12 | N38: 0 | O38: n | P38: 0 | Q38: 0
D39: 31 | F39: 0 | K39: 0 | M39: 12 | N39: 0 | O39: n | P39: 0 | Q39: 0
D40: 32 | F40: 0 | K40: 0 | M40: 12 | N40: 0 | O40: n | P40: 0 | Q40: 0
D41: 33 | F41: 0 | K41: 0 | M41: 12 | N41: 0 | O41: n | P41: 0 | Q41: 0
D42: 34 | F42: 0 | K42: 0 | M42: 12 | N42: 0 | O42: n | P42: 0 | Q42: 0
D43: 35 | F43: 0 | K43: 0 | M43: 12 | N43: 0 | O43: n | P43: 0 | Q43: 0
D44: 36 | F44: 0 | K44: 0 | M44: 12 | N44: 0 | O44: n | P44: 0 | Q44: 0
D45: 37 | F45: 0 | K45: 0 | M45: 12 | N45: 0 | O45: n | P45: 0 | Q45: 0
D46: 38 | F46: 0 | K46: 0 | M46: 12 | N46: 0 | O46: n | P46: 0 | Q46: 0
D47: 39 | F47: 0 | K47: 0 | M47: 12 | N47: 0 | O47: n | P47: 0 | Q47: 0
D48: 40 | F48: 0 | K48: 0 | M48: 12 | N48: 0 | O48: n | P48: 0 | Q48: 0
A49: Pre-97 Project Number | I49: =B10 -> 010 | K49: Annual totals: | N49: =SUMPRODUCT(N9:N48,M9:M48) -> 144240 | P49: =SUMPRODUCT(P9:P48,M9:M48) ->  | Q49: =SUMPRODUCT(Q9:Q48,M9:M48) ->  | R49: =SUMPRODUCT(R9:R48,M9:M48) -> 107748
K50: Additional Funds required by Band to equal RGI | R50: =P49-R49 -> 

Sheet P11 (hidden)
B2: Click to return to Main Menu
A5: Name of Community | F5: =#REF! ->  | J5: CMHC File No | M5: =#REF! -> 
D6: Unit No | E6: Type of Unit | G6: Address | I6: Tenant's Name | J6: Ajusted Household Income | L6: No of Children | M6: Months Occupied | N6: Lower End of Market Rent (LEM) | O6: Income Tested Assistance | P6: Rent based on 25%(RGI) | Q6: CMHC's Income Tested Assistance | R6: Actual Rent Charged | T6: Y
B7: Project Number | T7: N
G8: Civic No | H8: Street | J8: Annual | K8: Monthly
D9: 1 | E9: 8 | F9: =IF(E9<>"",VLOOKUP(E9,$A$16:$C$31,2),0) -> Bungalow-4Bdr | G9: 91 | H9: Wabushush Street | I9: George Blacksmith | K9: =J9/12 -> 0 | M9: 12 | N9: =IF(E9<>"",VLOOKUP(E9,$A$16:$C$31,3),0) -> 540 | O9: n | P9: =IF(O9="Y",IF(IF(ROUND((+K9*0.25)-($T$10+(L9*$T$9)),0)>N9,N9,ROUND((+K9*0.25)-($T$10+(L9*$T$9)),0))<32,32,IF(ROUND((+K9*0.25)-($T$10+(L9*$T$9)),0)>N9,N9,ROUND((+K9*0.25)-($T$10+(L9*$T$9)),0))),N9) -> 540 | Q9: =IF(N9-P9<0,0,N9-P9) -> 0 | R9: 478 | T9: 2
B10: 011 | D10: 2 | E10: 8 | F10: =IF(E10<>"",VLOOKUP(E10,$A$16:$C$31,2),0) -> Bungalow-4Bdr | G10: 315 | H10: Nesk Street | I10: Samuel B. Blacksmith | K10: 0 | M10: 12 | N10: =IF(E10<>"",VLOOKUP(E10,$A$16:$C$31,3),0) -> 540 | O10: n | P10: 540 | Q10: =IF(N10-P10<0,0,N10-P10) -> 0 | R10: 361 | T10: =#REF! -> 
D11: 3 | E11: 8 | F11: Bungalow-4Bdr | G11: 27 | H11: Wabushush Street | I11: Morley Brien | K11: 0 | M11: 12 | N11: 540 | O11: n | P11: 540 | Q11: 0 | R11: 478
D12: 4 | E12: 8 | F12: Bungalow-4Bdr | G12: 299 | H12: Nesk Street | I12: sopie Coonishish | K12: 0 | M12: 12 | N12: 540 | O12: n | P12: 540 | Q12: 0 | R12: 162
A13: TYPE | B13: No of Units | C13: 35 | D13: 5 | E13: 8 | F13: Bungalow-4Bdr | G13: 219 | H13: Mistissini Blvd. | I13: Isaac Gunner | K13: 0 | M13: 12 | N13: 540 | O13: n | P13: 540 | Q13: 0 | R13: 102
D14: 6 | E14: 8 | F14: Bungalow-4Bdr | G14: 224 | H14: Nesk Street | I14: Eileen M. Dash | J14: 39752.75 | K14: 3312.729167 | M14: 12 | N14: 540 | O14: Y | R14: 478
B15: Model | C15: LEM | D15: 7 | E15: 8 | F15: Bungalow-4Bdr | G15: 67 | H15: Mistissini Blvd. | I15: Steven Husky | K15: 0 | M15: 12 | N15: 540 | O15: n | P15: 540 | Q15: 0 | R15: 478
A16: 1 | B16: Triplex-1Bdr | D16: 8 | E16: 8 | F16: Bungalow-4Bdr | G16: 75 | H16: Wabushush Street | I16: Joseph Jimiken | K16: 0 | M16: 12 | N16: 540 | O16: n | P16: 540 | Q16: 0 | R16: 478
A17: 2 | B17: Quadruplex-1Bdr | D17: 9 | E17: 8 | F17: Bungalow-4Bdr | G17: 43 | H17: Mistissini Blvd. | I17: Luke MacLeod | K17: 0 | M17: 12 | N17: 540 | O17: n | P17: 540 | Q17: 0 | R17: 478
D18: 10 | E18: 8 | F18: Bungalow-4Bdr | G18: 99 | H18: Mistissini Blvd. | I18: Thomas MacLeod | K18: 0 | M18: 12 | N18: 540 | O18: n | P18: 540 | Q18: 0 | R18: 478
A19: 3 | B19: Duplex-2Bdr | D19: 11 | E19: 8 | F19: Bungalow-4Bdr | G19: 291 | H19: Nesk Street | I19: Peter Mattawashish | J19: 18911.89 | K19: 1575.990833 | M19: 12 | N19: 540 | O19: Y | R19: 435
A20: 4 | B20: Triplex-2Bdr | D20: 12 | E20: 8 | F20: Bungalow-4Bdr | G20: 27 | H20: Mistissini Blvd. | I20: Kenny Neeposh | K20: 0 | M20: 12 | N20: 540 | O20: n | P20: 540 | Q20: 0 | R20: 478
D21: 13 | E21: 8 | F21: Bungalow-4Bdr | G21: 107 | H21: Wabushush Street | I21: William Petawabano | K21: 0 | M21: 12 | N21: 540 | O21: n | P21: 540 | Q21: 0 | R21: 164
A22: 5 | B22: Bungalow-3Bdr | D22: 14 | E22: 8 | F22: Bungalow-4Bdr | G22: 11 | H22: Wabushush Street | I22: Gary Blacksmith | K22: 0 | M22: 12 | N22: 540 | O22: n | P22: 540 | Q22: 0 | R22: 478
A23: 6 | B23: Duplex-3Bdr | D23: 15 | E23: 8 | F23: Bungalow-4Bdr | G23: 8 | H23: Main Street | I23: James Wapachee | K23: 0 | M23: 12 | N23: 540 | O23: n | P23: 540 | Q23: 0 | R23: 478
A24: 7 | B24: Row-3Bdr | D24: 16 | E24: 8 | F24: Bungalow-4Bdr | G24: 219 | H24: Nesk Street | I24: Brian Samuel Coon | K24: 0 | M24: 12 | N24: 540 | O24: n | P24: 540 | Q24: 0 | R24: 316
D25: 17 | E25: 8 | F25: Bungalow-4Bdr | G25: 147 | H25: St-John Street | I25: Rene Blacksmith | J25: 64464.11 | K25: 5372.009167 | M25: 12 | N25: 540 | O25: Y | R25: 409
A26: 8 | B26: Bungalow-4Bdr | C26: 540 | D26: 18 | E26: 8 | F26: Bungalow-4Bdr | G26: 88 | H26: Albanel Street | I26: Kenny Brien | J26: 26146.29 | K26: 2178.8575 | M26: 12 | N26: 540 | O26: Y | R26: 325
A27: 9 | B27: Duplex-4Bdr | D27: 19 | E27: 8 | F27: Bungalow-4Bdr | G27: 8 | H27: Wabushush Street | I27: Wally Brien | K27: 0 | M27: 12 | N27: 540 | O27: n | P27: 540 | Q27: 0 | R27: 478
A28: 10 | B28: Row-4Bdr | D28: 20 | E28: 8 | F28: Bungalow-4Bdr | G28: 24 | H28: Wabushush Street | I28: Charlie Coon Sr. | K28: 0 | M28: 12 | N28: 540 | O28: n | P28: 540 | Q28: 0 | R28: 423
D29: 21 | E29: 8 | F29: Bungalow-4Bdr | G29: 67 | H29: Albanel Street | I29: Mary Jolly | K29: 0 | M29: 12 | N29: 540 | O29: n | P29: 540 | Q29: 0 | R29: 438
A30: 11 | B30: Bungalow-5Bdr | D30: 22 | E30: 8 | F30: Bungalow-4Bdr | G30: 64 | H30: Wabushush Street | I30: Bertie Longchap | K30: 0 | M30: 12 | N30: 540 | O30: n | P30: 540 | Q30: 0 | R30: 435
A31: 12 | B31: Duplex-5Bdr | D31: 23 | E31: 8 | F31: Bungalow-4Bdr | G31: 56 | H31: Albanel Street | I31: Willie Loon Sr. | K31: 0 | M31: 12 | N31: 540 | O31: n | P31: 540 | Q31: 0 | R31: 473
D32: 24 | E32: 8 | F32: Bungalow-4Bdr | G32: 115 | H32: St-John Street | I32: Roderick Mark | K32: 0 | M32: 12 | N32: 540 | O32: n | P32: 540 | Q32: 0 | R32: 478
D33: 25 | E33: 8 | F33: Bungalow-4Bdr | G33: 59 | H33: Wabushush Street | I33: Emmett A. Matoush | K33: 0 | M33: 12 | N33: 540 | O33: n | P33: 540 | Q33: 0 | R33: 435
D34: 26 | E34: 8 | F34: Bungalow-4Bdr | G34: 91 | H34: Mistissini Blvd. | I34: Mary Mattawashish | J34: 19851.44 | K34: 1654.286667 | M34: 12 | N34: 540 | O34: Y | R34: 207
D35: 27 | E35: 8 | F35: Bungalow-4Bdr | G35: 272 | H35: Queen St. | I35: Norman Iserhoff | J35: 37356.31 | K35: 3113.025833 | M35: 12 | N35: 540 | O35: Y | R35: 478
D36: 28 | E36: 8 | F36: Bungalow-4Bdr | G36: 112 | H36: Sunset Street | I36: Harry Meskino | K36: 0 | M36: 12 | N36: 540 | O36: n | P36: 540 | Q36: 0 | R36: 478
D37: 29 | E37: 8 | F37: Bungalow-4Bdr | G37: 171 | H37: Mistissini Blvd. | I37: Jean-Marie Metabie | J37: 10224.96 | K37: 852.08 | M37: 12 | N37: 540 | O37: Y | R37: 478
D38: 30 | E38: 8 | F38: Bungalow-4Bdr | G38: 227 | H38: Mistissini Blvd. | I38: Joseph Neeposh | K38: 0 | M38: 12 | N38: 540 | O38: n | P38: 540 | Q38: 0 | R38: 478
D39: 31 | E39: 8 | F39: Bungalow-4Bdr | G39: 80 | H39: Wabushush Street | I39: Henry Ottereyes | K39: 0 | M39: 12 | N39: 540 | O39: n | P39: 540 | Q39: 0 | R39: 272
D40: 32 | E40: 8 | F40: Bungalow-4Bdr | G40: 43 | H40: Wabushush Street | I40: Joseph P. Shecapio | K40: 0 | M40: 12 | N40: 540 | O40: n | P40: 540 | Q40: 0 | R40: 478
D41: 33 | E41: 8 | F41: Bungalow-4Bdr | G41: 395 | H41: Swallow Street | I41: William SandyShecapio | K41: 0 | M41: 12 | N41: 540 | O41: n | P41: 540 | Q41: 0 | R41: 402
D42: 34 | E42: 8 | F42: Bungalow-4Bdr | G42: 379 | H42: Swallow Street | I42: Philip Swallow | K42: 0 | M42: 12 | N42: 540 | O42: n | P42: 540 | Q42: 0 | R42: 379
D43: 35 | E43: 8 | F43: Bungalow-4Bdr | G43: 96 | H43: Wabushush Street | I43: Allen Trapper | K43: 0 | M43: 12 | N43: 540 | O43: n | P43: 540 | Q43: 0 | R43: 400
D44: 36 | F44: 0 | K44: 0 | M44: 12 | N44: 0 | O44: n | P44: 0 | Q44: 0
D45: 37 | F45: 0 | K45: 0 | M45: 12 | N45: 0 | O45: n | P45: 0 | Q45: 0
D46: 38 | F46: 0 | K46: 0 | M46: 12 | N46: 0 | O46: n | P46: 0 | Q46: 0
D47: 39 | F47: 0 | K47: 0 | M47: 12 | N47: 0 | O47: n | P47: 0 | Q47: 0
D48: 40 | F48: 0 | K48: 0 | M48: 12 | N48: 0 | O48: n | P48: 0 | Q48: 0
A49: Pre-97 Project Number | I49: =B10 -> 011 | K49: Annual totals: | N49: =SUMPRODUCT(N9:N48,M9:M48) -> 226800 | P49: =SUMPRODUCT(P9:P48,M9:M48) ->  | Q49: =SUMPRODUCT(Q9:Q48,M9:M48) ->  | R49: =SUMPRODUCT(R9:R48,M9:M48) -> 171168
K50: Additional Funds required by Band to equal RGI | R50: =P49-R49 -> 

Sheet P12 (hidden)
B2: Click to return to Main Menu
A5: Name of Community | F5: =#REF! ->  | J5: CMHC File No | M5: =#REF! -> 
D6: Unit No | E6: Type of Unit | G6: Address | I6: Tenant's Name | J6: Ajusted Household Income | L6: No of Children | M6: Months Occupied | N6: Lower End of Market Rent (LEM) | O6: Income Tested Assistance | P6: Rent based on 25%(RGI) | Q6: CMHC's Income Tested Assistance | R6: Actual Rent Charged | T6: Y
B7: Project Number | T7: N
G8: Civic No | H8: Street | J8: Annual | K8: Monthly
D9: 1 | E9: 8 | F9: =IF(E9<>"",VLOOKUP(E9,$A$16:$C$31,2),0) -> Bungalow-4Bdr | G9: 184 | H9: St-John Street | I9: Jimmy Etapp | K9: =J9/12 -> 0 | M9: 12 | N9: =IF(E9<>"",VLOOKUP(E9,$A$16:$C$31,3),0) -> 540 | O9: n | P9: =IF(O9="Y",IF(IF(ROUND((+K9*0.25)-($T$10+(L9*$T$9)),0)>N9,N9,ROUND((+K9*0.25)-($T$10+(L9*$T$9)),0))<32,32,IF(ROUND((+K9*0.25)-($T$10+(L9*$T$9)),0)>N9,N9,ROUND((+K9*0.25)-($T$10+(L9*$T$9)),0))),N9) -> 540 | Q9: =IF(N9-P9<0,0,N9-P9) -> 0 | R9: 478 | T9: 2
B10: 012 | D10: 2 | E10: 8 | F10: =IF(E10<>"",VLOOKUP(E10,$A$16:$C$31,2),0) -> Bungalow-4Bdr | G10: 171 | H10: St-John Street | I10: Tommy Husky | K10: 0 | M10: 12 | N10: =IF(E10<>"",VLOOKUP(E10,$A$16:$C$31,3),0) -> 540 | O10: n | P10: 540 | Q10: =IF(N10-P10<0,0,N10-P10) -> 0 | R10: 435 | T10: =#REF! -> 
D11: 3 | E11: 8 | F11: Bungalow-4Bdr | G11: 168 | H11: St-John Street | I11: George J. Longchap | K11: 0 | M11: 12 | N11: 540 | O11: n | P11: 540 | Q11: 0 | R11: 416
D12: 4 | E12: 8 | F12: Bungalow-4Bdr | G12: 131 | H12: St-John Street | I12: David Mark | K12: 0 | M12: 12 | N12: 540 | O12: n | P12: 540 | Q12: 0 | R12: 478
A13: TYPE | B13: No of Units | C13: 10 | D13: 5 | E13: 8 | F13: Bungalow-4Bdr | G13: 107 | H13: St-John Street | I13: David Coon come | K13: 0 | M13: 12 | N13: 540 | O13: n | P13: 540 | Q13: 0 | R13: 478
D14: 6 | E14: 8 | F14: Bungalow-4Bdr | G14: 139 | H14: St-John Street | I14: Isabelle Blacksmith | J14: 21628.88 | K14: 1802.406667 | M14: 12 | N14: 540 | O14: Y | R14: 292
B15: Model | C15: LEM | D15: 7 | E15: 8 | F15: Bungalow-4Bdr | G15: 179 | H15: St-John Street | I15: Matthew Shecapio Sr. | K15: 0 | M15: 12 | N15: 540 | O15: n | P15: 540 | Q15: 0 | R15: 416
A16: 1 | B16: Triplex-1Bdr | D16: 8 | E16: 8 | F16: Bungalow-4Bdr | G16: 67 | H16: Pine Street | I16: Johnny Swallow | K16: 0 | M16: 12 | N16: 540 | O16: n | P16: 540 | Q16: 0 | R16: 478
A17: 2 | B17: Quadruplex-1Bdr | D17: 9 | E17: 8 | F17: Bungalow-4Bdr | G17: 176 | H17: St-John Street | I17: Sydney Swallow | K17: 0 | M17: 12 | N17: 540 | O17: n | P17: 540 | Q17: 0 | R17: 478
D18: 10 | E18: 8 | F18: Bungalow-4Bdr | G18: 163 | H18: St-John Street | I18: Billy Voyageur | J18: 20685.41 | K18: 1723.784167 | M18: 12 | N18: 540 | O18: Y | R18: 254
A19: 3 | B19: Duplex-2Bdr | D19: 11 | F19: 0 | K19: 0 | M19: 12 | N19: 0 | O19: n | P19: 0 | Q19: 0
A20: 4 | B20: Triplex-2Bdr | D20: 12 | F20: 0 | K20: 0 | M20: 12 | N20: 0 | O20: n | P20: 0 | Q20: 0
D21: 13 | F21: 0 | K21: 0 | M21: 12 | N21: 0 | O21: n | P21: 0 | Q21: 0
A22: 5 | B22: Bungalow-3Bdr | D22: 14 | F22: 0 | K22: 0 | M22: 12 | N22: 0 | O22: n | P22: 0 | Q22: 0
A23: 6 | B23: Duplex-3Bdr | D23: 15 | F23: 0 | K23: 0 | M23: 12 | N23: 0 | O23: n | P23: 0 | Q23: 0
A24: 7 | B24: Row-3Bdr | D24: 16 | F24: 0 | K24: 0 | M24: 12 | N24: 0 | O24: n | P24: 0 | Q24: 0
D25: 17 | F25: 0 | K25: 0 | M25: 12 | N25: 0 | O25: n | P25: 0 | Q25: 0
A26: 8 | B26: Bungalow-4Bdr | C26: 540 | D26: 18 | F26: 0 | K26: 0 | M26: 12 | N26: 0 | O26: n | P26: 0 | Q26: 0
A27: 9 | B27: Duplex-4Bdr | D27: 19 | F27: 0 | K27: 0 | M27: 12 | N27: 0 | O27: n | P27: 0 | Q27: 0
A28: 10 | B28: Row-4Bdr | D28: 20 | F28: 0 | K28: 0 | M28: 12 | N28: 0 | O28: n | P28: 0 | Q28: 0
D29: 21 | F29: 0 | K29: 0 | M29: 12 | N29: 0 | O29: n | P29: 0 | Q29: 0
A30: 11 | B30: Bungalow-5Bdr | D30: 22 | F30: 0 | K30: 0 | M30: 12 | N30: 0 | O30: n | P30: 0 | Q30: 0
A31: 12 | B31: Duplex-5Bdr | D31: 23 | F31: 0 | K31: 0 | M31: 12 | N31: 0 | O31: n | P31: 0 | Q31: 0
D32: 24 | F32: 0 | K32: 0 | M32: 12 | N32: 0 | O32: n | P32: 0 | Q32: 0
D33: 25 | F33: 0 | K33: 0 | M33: 12 | N33: 0 | O33: n | P33: 0 | Q33: 0
D34: 26 | F34: 0 | K34: 0 | M34: 12 | N34: 0 | O34: n | P34: 0 | Q34: 0
D35: 27 | F35: 0 | K35: 0 | M35: 12 | N35: 0 | O35: n | P35: 0 | Q35: 0
D36: 28 | F36: 0 | K36: 0 | M36: 12 | N36: 0 | O36: n | P36: 0 | Q36: 0
D37: 29 | F37: 0 | K37: 0 | M37: 12 | N37: 0 | O37: n | P37: 0 | Q37: 0
D38: 30 | F38: 0 | K38: 0 | M38: 12 | N38: 0 | O38: n | P38: 0 | Q38: 0
D39: 31 | F39: 0 | K39: 0 | M39: 12 | N39: 0 | O39: n | P39: 0 | Q39: 0
D40: 32 | F40: 0 | K40: 0 | M40: 12 | N40: 0 | O40: n | P40: 0 | Q40: 0
D41: 33 | F41: 0 | K41: 0 | M41: 12 | N41: 0 | O41: n | P41: 0 | Q41: 0
D42: 34 | F42: 0 | K42: 0 | M42: 12 | N42: 0 | O42: n | P42: 0 | Q42: 0
D43: 35 | F43: 0 | K43: 0 | M43: 12 | N43: 0 | O43: n | P43: 0 | Q43: 0
D44: 36 | F44: 0 | K44: 0 | M44: 12 | N44: 0 | O44: n | P44: 0 | Q44: 0
D45: 37 | F45: 0 | K45: 0 | M45: 12 | N45: 0 | O45: n | P45: 0 | Q45: 0
D46: 38 | F46: 0 | K46: 0 | M46: 12 | N46: 0 | O46: n | P46: 0 | Q46: 0
D47: 39 | F47: 0 | K47: 0 | M47: 12 | N47: 0 | O47: n | P47: 0 | Q47: 0
D48: 40 | F48: 0 | K48: 0 | M48: 12 | N48: 0 | O48: n | P48: 0 | Q48: 0
A49: Pre-97 Project Number | I49: =B10 -> 012 | K49: Annual totals: | N49: =SUMPRODUCT(N9:N48,M9:M48) -> 64800 | P49: =SUMPRODUCT(P9:P48,M9:M48) ->  | Q49: =SUMPRODUCT(Q9:Q48,M9:M48) ->  | R49: =SUMPRODUCT(R9:R48,M9:M48) -> 50436
K50: Additional Funds required by Band to equal RGI | R50: =P49-R49 -> 

Sheet P13 (hidden)
B2: Click to return to Main Menu
A5: Name of Community | F5: =#REF! ->  | J5: CMHC File No | M5: =#REF! -> 
D6: Unit No | E6: Type of Unit | G6: Address | I6: Tenant's Name | J6: Ajusted Household Income | L6: No of Children | M6: Months Occupied | N6: Lower End of Market Rent (LEM) | O6: Income Tested Assistance | P6: Rent based on 25%(RGI) | Q6: CMHC's Income Tested Assistance | R6: Actual Rent Charged | T6: Y
B7: Project Number | T7: N
G8: Civic No | H8: Street | J8: Annual | K8: Monthly
D9: 1 | E9: 8 | F9: =IF(E9<>"",VLOOKUP(E9,$A$16:$C$31,2),0) -> Bungalow-4Bdr | G9: 123 | H9: Riverside | I9: Noah Coonishish | K9: =J9/12 -> 0 | M9: 12 | N9: =IF(E9<>"",VLOOKUP(E9,$A$16:$C$31,3),0) -> 540 | O9: n | P9: =IF(O9="Y",IF(IF(ROUND((+K9*0.25)-($T$10+(L9*$T$9)),0)>N9,N9,ROUND((+K9*0.25)-($T$10+(L9*$T$9)),0))<32,32,IF(ROUND((+K9*0.25)-($T$10+(L9*$T$9)),0)>N9,N9,ROUND((+K9*0.25)-($T$10+(L9*$T$9)),0))),N9) -> 540 | Q9: =IF(N9-P9<0,0,N9-P9) -> 0 | R9: 478 | T9: 2
B10: 013 | D10: 2 | E10: 8 | F10: =IF(E10<>"",VLOOKUP(E10,$A$16:$C$31,2),0) -> Bungalow-4Bdr | G10: 147 | H10: Riverside | I10: Norman Coonishish | K10: 0 | M10: 12 | N10: =IF(E10<>"",VLOOKUP(E10,$A$16:$C$31,3),0) -> 540 | O10: n | P10: 540 | Q10: =IF(N10-P10<0,0,N10-P10) -> 0 | R10: 478 | T10: =#REF! -> 
D11: 3 | E11: 8 | F11: Bungalow-4Bdr | G11: 115 | H11: Riverside | I11: George Matoush Jr. | K11: 0 | M11: 12 | N11: 540 | O11: n | P11: 540 | Q11: 0 | R11: 478
D12: 4 | E12: 8 | F12: Bungalow-4Bdr | G12: 139 | H12: Riverside | I12: Paul Matoush | J12: 51961.71 | K12: 4330.1425 | M12: 12 | N12: 540 | O12: Y | R12: 478
A13: TYPE | B13: No of Units | C13: 10 | D13: 5 | E13: 8 | F13: Bungalow-4Bdr | G13: 59 | H13: Pine Street | I13: Abel Mianscum | K13: 0 | M13: 12 | N13: 540 | O13: n | P13: 540 | Q13: 0 | R13: 478
D14: 6 | E14: 8 | F14: Bungalow-4Bdr | G14: 75 | H14: Queen Street | I14: Joseph Mianscum | K14: 0 | M14: 12 | N14: 540 | O14: n | P14: 540 | Q14: 0 | R14: 478
B15: Model | C15: LEM | D15: 7 | E15: 8 | F15: Bungalow-4Bdr | G15: 251 | H15: Queen Street | I15: cynthia N. Icebound | J15: 28846.87 | K15: 2403.905833 | M15: 12 | N15: 540 | O15: Y | R15: 424
A16: 1 | B16: Triplex-1Bdr | D16: 8 | E16: 8 | F16: Bungalow-4Bdr | G16: 155 | H16: Riverside | I16: Henry Petawabano | K16: 0 | M16: 12 | N16: 540 | O16: n | P16: 540 | Q16: 0 | R16: 478
A17: 2 | B17: Quadruplex-1Bdr | D17: 9 | E17: 8 | F17: Bungalow-4Bdr | G17: 131 | H17: Riverside | I17: Maggie Louise Petawabano | K17: 0 | M17: 12 | N17: 540 | O17: n | P17: 540 | Q17: 0 | R17: 478
D18: 10 | E18: 8 | F18: Bungalow-4Bdr | G18: 163 | H18: Riverside | I18: Isaac Voyageur | K18: 0 | M18: 12 | N18: 540 | O18: n | P18: 540 | Q18: 0 | R18: 478
A19: 3 | B19: Duplex-2Bdr | D19: 11 | F19: 0 | K19: 0 | M19: 12 | N19: 0 | O19: n | P19: 0 | Q19: 0
A20: 4 | B20: Triplex-2Bdr | D20: 12 | F20: 0 | K20: 0 | M20: 12 | N20: 0 | O20: n | P20: 0 | Q20: 0
D21: 13 | F21: 0 | K21: 0 | M21: 12 | N21: 0 | O21: n | P21: 0 | Q21: 0
A22: 5 | B22: Bungalow-3Bdr | D22: 14 | F22: 0 | K22: 0 | M22: 12 | N22: 0 | O22: n | P22: 0 | Q22: 0
A23: 6 | B23: Duplex-3Bdr | D23: 15 | F23: 0 | K23: 0 | M23: 12 | N23: 0 | O23: n | P23: 0 | Q23: 0
A24: 7 | B24: Row-3Bdr | D24: 16 | F24: 0 | K24: 0 | M24: 12 | N24: 0 | O24: n | P24: 0 | Q24: 0
D25: 17 | F25: 0 | K25: 0 | M25: 12 | N25: 0 | O25: n | P25: 0 | Q25: 0
A26: 8 | B26: Bungalow-4Bdr | C26: 540 | D26: 18 | F26: 0 | K26: 0 | M26: 12 | N26: 0 | O26: n | P26: 0 | Q26: 0
A27: 9 | B27: Duplex-4Bdr | D27: 19 | F27: 0 | K27: 0 | M27: 12 | N27: 0 | O27: n | P27: 0 | Q27: 0
A28: 10 | B28: Row-4Bdr | D28: 20 | F28: 0 | K28: 0 | M28: 12 | N28: 0 | O28: n | P28: 0 | Q28: 0
D29: 21 | F29: 0 | K29: 0 | M29: 12 | N29: 0 | O29: n | P29: 0 | Q29: 0
A30: 11 | B30: Bungalow-5Bdr | D30: 22 | F30: 0 | K30: 0 | M30: 12 | N30: 0 | O30: n | P30: 0 | Q30: 0
A31: 12 | B31: Duplex-5Bdr | D31: 23 | F31: 0 | K31: 0 | M31: 12 | N31: 0 | O31: n | P31: 0 | Q31: 0
D32: 24 | F32: 0 | K32: 0 | M32: 12 | N32: 0 | O32: n | P32: 0 | Q32: 0
D33: 25 | F33: 0 | K33: 0 | M33: 12 | N33: 0 | O33: n | P33: 0 | Q33: 0
D34: 26 | F34: 0 | K34: 0 | M34: 12 | N34: 0 | O34: n | P34: 0 | Q34: 0
D35: 27 | F35: 0 | K35: 0 | M35: 12 | N35: 0 | O35: n | P35: 0 | Q35: 0
D36: 28 | F36: 0 | K36: 0 | M36: 12 | N36: 0 | O36: n | P36: 0 | Q36: 0
D37: 29 | F37: 0 | K37: 0 | M37: 12 | N37: 0 | O37: n | P37: 0 | Q37: 0
D38: 30 | F38: 0 | K38: 0 | M38: 12 | N38: 0 | O38: n | P38: 0 | Q38: 0
D39: 31 | F39: 0 | K39: 0 | M39: 12 | N39: 0 | O39: n | P39: 0 | Q39: 0
D40: 32 | F40: 0 | K40: 0 | M40: 12 | N40: 0 | O40: n | P40: 0 | Q40: 0
D41: 33 | F41: 0 | K41: 0 | M41: 12 | N41: 0 | O41: n | P41: 0 | Q41: 0
D42: 34 | F42: 0 | K42: 0 | M42: 12 | N42: 0 | O42: n | P42: 0 | Q42: 0
D43: 35 | F43: 0 | K43: 0 | M43: 12 | N43: 0 | O43: n | P43: 0 | Q43: 0
D44: 36 | F44: 0 | K44: 0 | M44: 12 | N44: 0 | O44: n | P44: 0 | Q44: 0
D45: 37 | F45: 0 | K45: 0 | M45: 12 | N45: 0 | O45: n | P45: 0 | Q45: 0
D46: 38 | F46: 0 | K46: 0 | M46: 12 | N46: 0 | O46: n | P46: 0 | Q46: 0
D47: 39 | F47: 0 | K47: 0 | M47: 12 | N47: 0 | O47: n | P47: 0 | Q47: 0
D48: 40 | F48: 0 | K48: 0 | M48: 12 | N48: 0 | O48: n | P48: 0 | Q48: 0
A49: Pre-97 Project Number | I49: =B10 -> 013 | K49: Annual totals: | N49: =SUMPRODUCT(N9:N48,M9:M48) -> 64800 | P49: =SUMPRODUCT(P9:P48,M9:M48) ->  | Q49: =SUMPRODUCT(Q9:Q48,M9:M48) ->  | R49: =SUMPRODUCT(R9:R48,M9:M48) -> 56712
K50: Additional Funds required by Band to equal RGI | R50: =P49-R49 -> 

Sheet P14 (hidden)
B2: Click to return to Main Menu
A5: Name of Community | F5: =#REF! ->  | J5: CMHC File No | M5: =#REF! -> 
D6: Unit No | E6: Type of Unit | G6: Address | I6: Tenant's Name | J6: Ajusted Household Income | L6: No of Children | M6: Months Occupied | N6: Lower End of Market Rent (LEM) | O6: Income Tested Assistance | P6: Rent based on 25%(RGI) | Q6: CMHC's Income Tested Assistance | R6: Actual Rent Charged | T6: Y
B7: Project Number | T7: N
G8: Civic No | H8: Street | J8: Annual | K8: Monthly
D9: 1 | E9: 8 | F9: =IF(E9<>"",VLOOKUP(E9,$A$16:$C$31,2),0) -> Bungalow-4Bdr | G9: 51 | H9: Queen Street | I9: Delores Rabbitskin | K9: =J9/12 -> 0 | M9: 12 | N9: =IF(E9<>"",VLOOKUP(E9,$A$16:$C$31,3),0) -> 540 | O9: n | P9: =IF(O9="Y",IF(IF(ROUND((+K9*0.25)-($T$10+(L9*$T$9)),0)>N9,N9,ROUND((+K9*0.25)-($T$10+(L9*$T$9)),0))<32,32,IF(ROUND((+K9*0.25)-($T$10+(L9*$T$9)),0)>N9,N9,ROUND((+K9*0.25)-($T$10+(L9*$T$9)),0))),N9) -> 540 | Q9: =IF(N9-P9<0,0,N9-P9) -> 0 | R9: 397 | T9: 2
B10: 014 | D10: 2 | E10: 8 | F10: =IF(E10<>"",VLOOKUP(E10,$A$16:$C$31,2),0) -> Bungalow-4Bdr | G10: 171 | H10: Queen Street | I10: Jimmy Bosum | K10: 0 | M10: 12 | N10: =IF(E10<>"",VLOOKUP(E10,$A$16:$C$31,3),0) -> 540 | O10: n | P10: 540 | Q10: =IF(N10-P10<0,0,N10-P10) -> 0 | R10: 478 | T10: =#REF! -> 
D11: 3 | E11: 8 | F11: Bungalow-4Bdr | G11: 264 | H11: Queen Street | I11: Edward Brien | J11: 70711.62 | K11: 5892.635 | M11: 12 | N11: 540 | O11: Y | R11: 478
D12: 4 | E12: 8 | F12: Bungalow-4Bdr | G12: 216 | H12: Queen Street | I12: Lizzie Brien | K12: 0 | M12: 12 | N12: 540 | O12: n | P12: 540 | Q12: 0 | R12: 406
A13: TYPE | B13: No of Units | C13: 6 | D13: 5 | E13: 8 | F13: Bungalow-4Bdr | G13: 243 | H13: Queen Street | I13: Vincent Shecapio | K13: 0 | M13: 12 | N13: 540 | O13: n | P13: 540 | Q13: 0 | R13: 478
D14: 6 | E14: 8 | F14: Bungalow-4Bdr | G14: 160 | H14: Queen Street | I14: Sarah Taylor | K14: 0 | M14: 12 | N14: 540 | O14: n | P14: 540 | Q14: 0 | R14: 478
B15: Model | C15: LEM | D15: 7 | F15: 0 | K15: 0 | M15: 12 | N15: 0 | O15: n | P15: 0 | Q15: 0
A16: 1 | B16: Triplex-1Bdr | D16: 8 | F16: 0 | K16: 0 | M16: 12 | N16: 0 | O16: n | P16: 0 | Q16: 0
A17: 2 | B17: Quadruplex-1Bdr | D17: 9 | F17: 0 | K17: 0 | M17: 12 | N17: 0 | O17: n | P17: 0 | Q17: 0
D18: 10 | F18: 0 | K18: 0 | M18: 12 | N18: 0 | O18: n | P18: 0 | Q18: 0
A19: 3 | B19: Duplex-2Bdr | D19: 11 | F19: 0 | K19: 0 | M19: 12 | N19: 0 | O19: n | P19: 0 | Q19: 0
A20: 4 | B20: Triplex-2Bdr | D20: 12 | F20: 0 | K20: 0 | M20: 12 | N20: 0 | O20: n | P20: 0 | Q20: 0
D21: 13 | F21: 0 | K21: 0 | M21: 12 | N21: 0 | O21: n | P21: 0 | Q21: 0
A22: 5 | B22: Bungalow-3Bdr | D22: 14 | F22: 0 | K22: 0 | M22: 12 | N22: 0 | O22: n | P22: 0 | Q22: 0
A23: 6 | B23: Duplex-3Bdr | D23: 15 | F23: 0 | K23: 0 | M23: 12 | N23: 0 | O23: n | P23: 0 | Q23: 0
A24: 7 | B24: Row-3Bdr | D24: 16 | F24: 0 | K24: 0 | M24: 12 | N24: 0 | O24: n | P24: 0 | Q24: 0
D25: 17 | F25: 0 | K25: 0 | M25: 12 | N25: 0 | O25: n | P25: 0 | Q25: 0
A26: 8 | B26: Bungalow-4Bdr | C26: 540 | D26: 18 | F26: 0 | K26: 0 | M26: 12 | N26: 0 | O26: n | P26: 0 | Q26: 0
A27: 9 | B27: Duplex-4Bdr | D27: 19 | F27: 0 | K27: 0 | M27: 12 | N27: 0 | O27: n | P27: 0 | Q27: 0
A28: 10 | B28: Row-4Bdr | D28: 20 | F28: 0 | K28: 0 | M28: 12 | N28: 0 | O28: n | P28: 0 | Q28: 0
D29: 21 | F29: 0 | K29: 0 | M29: 12 | N29: 0 | O29: n | P29: 0 | Q29: 0
A30: 11 | B30: Bungalow-5Bdr | D30: 22 | F30: 0 | K30: 0 | M30: 12 | N30: 0 | O30: n | P30: 0 | Q30: 0
A31: 12 | B31: Duplex-5Bdr | D31: 23 | F31: 0 | K31: 0 | M31: 12 | N31: 0 | O31: n | P31: 0 | Q31: 0
D32: 24 | F32: 0 | K32: 0 | M32: 12 | N32: 0 | O32: n | P32: 0 | Q32: 0
D33: 25 | F33: 0 | K33: 0 | M33: 12 | N33: 0 | O33: n | P33: 0 | Q33: 0
D34: 26 | F34: 0 | K34: 0 | M34: 12 | N34: 0 | O34: n | P34: 0 | Q34: 0
D35: 27 | F35: 0 | K35: 0 | M35: 12 | N35: 0 | O35: n | P35: 0 | Q35: 0
D36: 28 | F36: 0 | K36: 0 | M36: 12 | N36: 0 | O36: n | P36: 0 | Q36: 0
D37: 29 | F37: 0 | K37: 0 | M37: 12 | N37: 0 | O37: n | P37: 0 | Q37: 0
D38: 30 | F38: 0 | K38: 0 | M38: 12 | N38: 0 | O38: n | P38: 0 | Q38: 0
D39: 31 | F39: 0 | K39: 0 | M39: 12 | N39: 0 | O39: n | P39: 0 | Q39: 0
D40: 32 | F40: 0 | K40: 0 | M40: 12 | N40: 0 | O40: n | P40: 0 | Q40: 0
D41: 33 | F41: 0 | K41: 0 | M41: 12 | N41: 0 | O41: n | P41: 0 | Q41: 0
D42: 34 | F42: 0 | K42: 0 | M42: 12 | N42: 0 | O42: n | P42: 0 | Q42: 0
D43: 35 | F43: 0 | K43: 0 | M43: 12 | N43: 0 | O43: n | P43: 0 | Q43: 0
D44: 36 | F44: 0 | K44: 0 | M44: 12 | N44: 0 | O44: n | P44: 0 | Q44: 0
D45: 37 | F45: 0 | K45: 0 | M45: 12 | N45: 0 | O45: n | P45: 0 | Q45: 0
D46: 38 | F46: 0 | K46: 0 | M46: 12 | N46: 0 | O46: n | P46: 0 | Q46: 0
D47: 39 | F47: 0 | K47: 0 | M47: 12 | N47: 0 | O47: n | P47: 0 | Q47: 0
D48: 40 | F48: 0 | K48: 0 | M48: 12 | N48: 0 | O48: n | P48: 0 | Q48: 0
A49: Pre-97 Project Number | I49: =B10 -> 014 | K49: Annual totals: | N49: =SUMPRODUCT(N9:N48,M9:M48) -> 38880 | P49: =SUMPRODUCT(P9:P48,M9:M48) ->  | Q49: =SUMPRODUCT(Q9:Q48,M9:M48) ->  | R49: =SUMPRODUCT(R9:R48,M9:M48) -> 32580
K50: Additional Funds required by Band to equal RGI | R50: =P49-R49 -> 

Sheet P15 (hidden)
B2: Click to return to Main Menu
A5: Name of Community | F5: =#REF! ->  | J5: CMHC File No | M5: =#REF! -> 
D6: Unit No | E6: Type of Unit | G6: Address | I6: Tenant's Name | J6: Ajusted Household Income | L6: No of Children | M6: Months Occupied | N6: Lower End of Market Rent (LEM) | O6: Income Tested Assistance | P6: Rent based on 25%(RGI) | Q6: CMHC's Income Tested Assistance | R6: Actual Rent Charged | T6: Y
B7: Project Number | T7: N
G8: Civic No | H8: Street | J8: Annual | K8: Monthly
D9: 1 | E9: 8 | F9: =IF(E9<>"",VLOOKUP(E9,$A$16:$C$31,2),0) -> Bungalow-4Bdr | G9: 56 | H9: Mistissini Blvd. | I9: Walter Swallow | K9: =J9/12 -> 0 | M9: 12 | N9: =IF(E9<>"",VLOOKUP(E9,$A$16:$C$31,3),0) -> 540 | O9: n | P9: =IF(O9="Y",IF(IF(ROUND((+K9*0.25)-($T$10+(L9*$T$9)),0)>N9,N9,ROUND((+K9*0.25)-($T$10+(L9*$T$9)),0))<32,32,IF(ROUND((+K9*0.25)-($T$10+(L9*$T$9)),0)>N9,N9,ROUND((+K9*0.25)-($T$10+(L9*$T$9)),0))),N9) -> 540 | Q9: =IF(N9-P9<0,0,N9-P9) -> 0 | R9: 478 | T9: 2
B10: 015 | D10: 2 | E10: 8 | F10: =IF(E10<>"",VLOOKUP(E10,$A$16:$C$31,2),0) -> Bungalow-4Bdr | G10: 128 | H10: Riverside | I10: Johnny F. Blacksmith | K10: 0 | M10: 12 | N10: =IF(E10<>"",VLOOKUP(E10,$A$16:$C$31,3),0) -> 540 | O10: n | P10: 540 | Q10: =IF(N10-P10<0,0,N10-P10) -> 0 | R10: 478 | T10: =#REF! -> 
D11: 3 | E11: 8 | F11: Bungalow-4Bdr | G11: 136 | H11: Riverside | I11: Paul John Brien | K11: 0 | M11: 12 | N11: 540 | O11: n | P11: 540 | Q11: 0 | R11: 478
D12: 4 | E12: 8 | F12: Bungalow-4Bdr | G12: 48 | H12: Mistissini Blvd. | I12: Emily Husky | J12: 19538.49 | K12: 1628.2075 | M12: 12 | N12: 540 | O12: Y | R12: 248
A13: TYPE | B13: No of Units | C13: 10 | D13: 5 | E13: 8 | F13: Bungalow-4Bdr | G13: 152 | H13: Riverside | I13: Jason Shecapio | J13: 45502.21 | K13: 3791.850833 | M13: 12 | N13: 540 | O13: Y | R13: 478
D14: 6 | E14: 8 | F14: Bungalow-4Bdr | G14: 112 | H14: Riverside | I14: Samuel L. Mianscum | J14: 29273.38 | K14: 2439.448333 | M14: 12 | N14: 540 | O14: Y | R14: 373
B15: Model | C15: LEM | D15: 7 | E15: 8 | F15: Bungalow-4Bdr | G15: 64 | H15: Mistissini Blvd. | I15: Murray Neeposh | K15: 0 | M15: 12 | N15: 540 | O15: n | P15: 540 | Q15: 0 | R15: 478
A16: 1 | B16: Triplex-1Bdr | D16: 8 | E16: 8 | F16: Bungalow-4Bdr | G16: 176 | H16: Mistissini Blvd. | I16: Jimmy Trapper | K16: 0 | M16: 12 | N16: 540 | O16: n | P16: 540 | Q16: 0 | R16: 478
A17: 2 | B17: Quadruplex-1Bdr | D17: 9 | E17: 8 | F17: Bungalow-4Bdr | G17: 160 | H17: Riverside | I17: Caroline Voyageur | K17: 0 | M17: 12 | N17: 540 | O17: n | P17: 540 | Q17: 0 | R17: 65
D18: 10 | E18: 8 | F18: Bungalow-4Bdr | G18: 120 | H18: Riverside | I18: Elizabeth Trapper | J18: 36130.93 | K18: 3010.910833 | M18: 12 | N18: 540 | O18: Y | R18: 478
A19: 3 | B19: Duplex-2Bdr | D19: 11 | F19: 0 | K19: 0 | M19: 12 | N19: 0 | O19: n | P19: 0 | Q19: 0
A20: 4 | B20: Triplex-2Bdr | D20: 12 | F20: 0 | K20: 0 | M20: 12 | N20: 0 | O20: n | P20: 0 | Q20: 0
D21: 13 | F21: 0 | K21: 0 | M21: 12 | N21: 0 | O21: n | P21: 0 | Q21: 0
A22: 5 | B22: Bungalow-3Bdr | D22: 14 | F22: 0 | K22: 0 | M22: 12 | N22: 0 | O22: n | P22: 0 | Q22: 0
A23: 6 | B23: Duplex-3Bdr | D23: 15 | F23: 0 | K23: 0 | M23: 12 | N23: 0 | O23: n | P23: 0 | Q23: 0
A24: 7 | B24: Row-3Bdr | D24: 16 | F24: 0 | K24: 0 | M24: 12 | N24: 0 | O24: n | P24: 0 | Q24: 0
D25: 17 | F25: 0 | K25: 0 | M25: 12 | N25: 0 | O25: n | P25: 0 | Q25: 0
A26: 8 | B26: Bungalow-4Bdr | C26: 540 | D26: 18 | F26: 0 | K26: 0 | M26: 12 | N26: 0 | O26: n | P26: 0 | Q26: 0
A27: 9 | B27: Duplex-4Bdr | D27: 19 | F27: 0 | K27: 0 | M27: 12 | N27: 0 | O27: n | P27: 0 | Q27: 0
A28: 10 | B28: Row-4Bdr | D28: 20 | F28: 0 | K28: 0 | M28: 12 | N28: 0 | O28: n | P28: 0 | Q28: 0
D29: 21 | F29: 0 | K29: 0 | M29: 12 | N29: 0 | O29: n | P29: 0 | Q29: 0
A30: 11 | B30: Bungalow-5Bdr | D30: 22 | F30: 0 | K30: 0 | M30: 12 | N30: 0 | O30: n | P30: 0 | Q30: 0
A31: 12 | B31: Duplex-5Bdr | D31: 23 | F31: 0 | K31: 0 | M31: 12 | N31: 0 | O31: n | P31: 0 | Q31: 0
D32: 24 | F32: 0 | K32: 0 | M32: 12 | N32: 0 | O32: n | P32: 0 | Q32: 0
D33: 25 | F33: 0 | K33: 0 | M33: 12 | N33: 0 | O33: n | P33: 0 | Q33: 0
D34: 26 | F34: 0 | K34: 0 | M34: 12 | N34: 0 | O34: n | P34: 0 | Q34: 0
D35: 27 | F35: 0 | K35: 0 | M35: 12 | N35: 0 | O35: n | P35: 0 | Q35: 0
D36: 28 | F36: 0 | K36: 0 | M36: 12 | N36: 0 | O36: n | P36: 0 | Q36: 0
D37: 29 | F37: 0 | K37: 0 | M37: 12 | N37: 0 | O37: n | P37: 0 | Q37: 0
D38: 30 | F38: 0 | K38: 0 | M38: 12 | N38: 0 | O38: n | P38: 0 | Q38: 0
D39: 31 | F39: 0 | K39: 0 | M39: 12 | N39: 0 | O39: n | P39: 0 | Q39: 0
D40: 32 | F40: 0 | K40: 0 | M40: 12 | N40: 0 | O40: n | P40: 0 | Q40: 0
D41: 33 | F41: 0 | K41: 0 | M41: 12 | N41: 0 | O41: n | P41: 0 | Q41: 0
D42: 34 | F42: 0 | K42: 0 | M42: 12 | N42: 0 | O42: n | P42: 0 | Q42: 0
D43: 35 | F43: 0 | K43: 0 | M43: 12 | N43: 0 | O43: n | P43: 0 | Q43: 0
D44: 36 | F44: 0 | K44: 0 | M44: 12 | N44: 0 | O44: n | P44: 0 | Q44: 0
D45: 37 | F45: 0 | K45: 0 | M45: 12 | N45: 0 | O45: n | P45: 0 | Q45: 0
D46: 38 | F46: 0 | K46: 0 | M46: 12 | N46: 0 | O46: n | P46: 0 | Q46: 0
D47: 39 | F47: 0 | K47: 0 | M47: 12 | N47: 0 | O47: n | P47: 0 | Q47: 0
D48: 40 | F48: 0 | K48: 0 | M48: 12 | N48: 0 | O48: n | P48: 0 | Q48: 0
A49: Pre-97 Project Number | I49: =B10 -> 015 | K49: Annual totals: | N49: =SUMPRODUCT(N9:N48,M9:M48) -> 64800 | P49: =SUMPRODUCT(P9:P48,M9:M48) ->  | Q49: =SUMPRODUCT(Q9:Q48,M9:M48) ->  | R49: =SUMPRODUCT(R9:R48,M9:M48) -> 48384
K50: Additional Funds required by Band to equal RGI | R50: =P49-R49 -> 

Sheet P16 (hidden)
B2: Click to return to Main Menu
A5: Name of Community | F5: =#REF! ->  | J5: CMHC File No | M5: =#REF! -> 
D6: Unit No | E6: Type of Unit | G6: Address | I6: Tenant's Name | J6: Ajusted Household Income | L6: No of Children | M6: Months Occupied | N6: Lower End of Market Rent (LEM) | O6: Income Tested Assistance | P6: Rent based on 25%(RGI) | Q6: CMHC's Income Tested Assistance | R6: Actual Rent Charged | T6: Y
B7: Project Number | T7: N
G8: Civic No | H8: Street | J8: Annual | K8: Monthly
D9: 1 | E9: 3 | F9: =IF(E22<>"",VLOOKUP(E22,$A$16:$C$31,2),0) -> Bungalow-4Bdr | G9: 264 | H9: Nesk Street | I9: Francis Voyageur | K9: =J9/12 -> 0 | M9: 12 | N9: =IF(E22<>"",VLOOKUP(E22,$A$16:$C$31,3),0) -> 540 | O9: n | P9: =IF(O9="Y",IF(IF(ROUND((+K9*0.25)-($T$10+(L9*$T$9)),0)>N9,N9,ROUND((+K9*0.25)-($T$10+(L9*$T$9)),0))<32,32,IF(ROUND((+K9*0.25)-($T$10+(L9*$T$9)),0)>N9,N9,ROUND((+K9*0.25)-($T$10+(L9*$T$9)),0))),N9) -> 540 | Q9: =IF(N9-P9<0,0,N9-P9) -> 0 | R9: 221 | T9: 2
B10: 016 | D10: 2 | E10: 3 | F10: Bungalow-4Bdr | G10: 355 | H10: Mistissini Blvd. | I10: Sally Gunner | K10: 0 | M10: 12 | N10: 540 | O10: n | P10: 540 | Q10: =IF(N10-P10<0,0,N10-P10) -> 0 | R10: 80 | T10: =#REF! -> 
D11: 3 | E11: 3 | F11: Bungalow-4Bdr | G11: 192 | H11: Queen Street | I11: Marlene Iserhoff | K11: 0 | M11: 12 | N11: 540 | O11: n | P11: 540 | Q11: 0 | R11: 80
D12: 4 | E12: 3 | F12: Bungalow-4Bdr | G12: 208 | H12: Nesk Street | I12: Eva Meskino | J12: 10080 | K12: 840 | M12: 12 | N12: 540 | O12: Y | R12: 51
A13: TYPE | B13: No of Units | C13: 20 | D13: 5 | E13: 3 | F13: Bungalow-4Bdr | G13: 347 | H13: Mistissini Blvd. | I13: Rosie Neeposh | K13: 0 | M13: 12 | N13: 540 | O13: n | P13: 540 | Q13: 0 | R13: 217
D14: 6 | E14: 3 | F14: Bungalow-4Bdr | G14: 187 | H14: Queen Street | I14: Gili B. Voyageur (peter) | K14: 0 | M14: 12 | N14: 540 | O14: n | P14: 540 | Q14: 0 | R14: 106
B15: Model | C15: LEM | D15: 7 | E15: 3 | F15: Bungalow-4Bdr | G15: 352 | H15: Mistissini Blvd. | I15: Louis Whiskeychan | K15: 0 | M15: 12 | N15: 540 | O15: n | P15: 540 | Q15: 0 | R15: 328
A16: 1 | B16: Triplex-1Bdr | D16: 8 | E16: 3 | F16: =IF(E9<>"",VLOOKUP(E9,$A$16:$C$31,2),0) -> Bungalow-2Bdr | G16: 227 | H16: Riverside | I16: Ronnie Coon come | K16: 0 | M16: 12 | N16: =IF(E9<>"",VLOOKUP(E9,$A$16:$C$31,3),0) -> 450 | O16: n | P16: 450 | Q16: 0 | R16: 450
A17: 2 | B17: Quadruplex-1Bdr | D17: 9 | E17: 3 | F17: Bungalow-2Bdr | G17: 184 | H17: Mistissini Blvd. | I17: Matthew Coonishish | J17: 14153.29 | K17: 1179.440833 | M17: 12 | N17: 450 | O17: Y | R17: 136
D18: 10 | E18: 3 | F18: Bungalow-2Bdr | G18: 211 | H18: Riverside | I18: Smally Petawabano | K18: 0 | M18: 12 | N18: 450 | O18: n | P18: 450 | Q18: 0 | R18: 377
A19: 3 | B19: Bungalow-2Bdr | C19: 450 | D19: 11 | E19: 3 | F19: Bungalow-2Bdr | G19: 219 | H19: Riverside | I19: Johnny Swallow | K19: 0 | M19: 12 | N19: 450 | O19: n | P19: 450 | Q19: 0 | R19: 409
A20: 4 | B20: Triplex-2Bdr | D20: 12 | E20: 3 | F20: Bungalow-2Bdr | G20: 99 | H20: Queen Street | I20: Mary Ann Bosum | J20: 21261.78 | K20: 1771.815 | M20: 12 | N20: 450 | O20: Y | R20: 184
D21: 13 | E21: 3 | F21: Bungalow-2Bdr | G21: 104 | H21: Queen Street | I21: Jane Trapper | J21: 19528.64 | K21: 1627.386667 | M21: 12 | N21: 450 | O21: Y | R21: 206
A22: 5 | B22: Bungalow-3Bdr | C22: 500 | D22: 14 | E22: 8 | F22: =IF(E15<>"",VLOOKUP(E15,$A$16:$C$31,2),0) -> Bungalow-2Bdr | G22: 131 | H22: Queen Street | I22: Samuel Blacksmith | K22: 0 | M22: 12 | N22: =IF(E15<>"",VLOOKUP(E15,$A$16:$C$31,3),0) -> 450 | O22: n | P22: 450 | Q22: 0 | R22: 478
A23: 6 | B23: Duplex-3Bdr | D23: 15 | E23: 8 | F23: Bungalow-2Bdr | G23: 275 | H23: Amisk Street | I23: Mary Linton | K23: 0 | M23: 12 | N23: 450 | O23: n | P23: 450 | Q23: 0 | R23: 478
A24: 7 | B24: Row-3Bdr | D24: 16 | E24: 8 | F24: Bungalow-2Bdr | G24: 112 | H24: Queen Street | I24: Gordon Loon | K24: 0 | M24: 12 | N24: 450 | O24: n | P24: 450 | Q24: 0 | R24: 478
D25: 17 | E25: 8 | F25: Bungalow-2Bdr | G25: 75 | H25: Pine Street | I25: Clifford Mattawashish | K25: 0 | M25: 12 | N25: 450 | O25: n | P25: 450 | Q25: 0 | R25: 357
A26: 8 | B26: Bungalow-4Bdr | C26: 540 | D26: 18 | E26: 8 | F26: Bungalow-2Bdr | G26: 136 | H26: St-John Street | I26: John Mattawashish Jr. | K26: 0 | M26: 12 | N26: 450 | O26: n | P26: 450 | Q26: 0 | R26: 478
A27: 9 | B27: Duplex-4Bdr | D27: 19 | E27: 8 | F27: Bungalow-2Bdr | G27: 75 | H27: Mistissini Blvd. | I27: Alice Mettaweskum | K27: 0 | M27: 12 | N27: 450 | O27: n | P27: 450 | Q27: 0 | R27: 478
A28: 10 | B28: Row-4Bdr | D28: 20 | E28: 8 | F28: Bungalow-2Bdr | G28: 168 | H28: Mistissini Blvd. | I28: Charlotte Michel | J28: 41451.91 | K28: 3454.325833 | M28: 12 | N28: 450 | O28: Y | R28: 478
D29: 21 | F29: =IF(E29<>"",VLOOKUP(E29,$A$16:$C$31,2),0) -> 0 | K29: 0 | M29: 12 | N29: =IF(E29<>"",VLOOKUP(E29,$A$16:$C$31,3),0) -> 0 | O29: n | P29: 0 | Q29: 0
A30: 11 | B30: Bungalow-5Bdr | D30: 22 | F30: 0 | K30: 0 | M30: 12 | N30: 0 | O30: n | P30: 0 | Q30: 0
A31: 12 | B31: Duplex-5Bdr | D31: 23 | F31: 0 | K31: 0 | M31: 12 | N31: 0 | O31: n | P31: 0 | Q31: 0
D32: 24 | F32: 0 | K32: 0 | M32: 12 | N32: 0 | O32: n | P32: 0 | Q32: 0
D33: 25 | F33: 0 | K33: 0 | M33: 12 | N33: 0 | O33: n | P33: 0 | Q33: 0
D34: 26 | F34: 0 | K34: 0 | M34: 12 | N34: 0 | O34: n | P34: 0 | Q34: 0
D35: 27 | F35: 0 | K35: 0 | M35: 12 | N35: 0 | O35: n | P35: 0 | Q35: 0
D36: 28 | F36: 0 | K36: 0 | M36: 12 | N36: 0 | O36: n | P36: 0 | Q36: 0
D37: 29 | F37: 0 | K37: 0 | M37: 12 | N37: 0 | O37: n | P37: 0 | Q37: 0
D38: 30 | F38: 0 | K38: 0 | M38: 12 | N38: 0 | O38: n | P38: 0 | Q38: 0
D39: 31 | F39: 0 | K39: 0 | M39: 12 | N39: 0 | O39: n | P39: 0 | Q39: 0
D40: 32 | F40: 0 | K40: 0 | M40: 12 | N40: 0 | O40: n | P40: 0 | Q40: 0
D41: 33 | F41: 0 | K41: 0 | M41: 12 | N41: 0 | O41: n | P41: 0 | Q41: 0
D42: 34 | F42: 0 | K42: 0 | M42: 12 | N42: 0 | O42: n | P42: 0 | Q42: 0
D43: 35 | F43: 0 | K43: 0 | M43: 12 | N43: 0 | O43: n | P43: 0 | Q43: 0
D44: 36 | F44: 0 | K44: 0 | M44: 12 | N44: 0 | O44: n | P44: 0 | Q44: 0
D45: 37 | F45: 0 | K45: 0 | M45: 12 | N45: 0 | O45: n | P45: 0 | Q45: 0
D46: 38 | F46: 0 | K46: 0 | M46: 12 | N46: 0 | O46: n | P46: 0 | Q46: 0
D47: 39 | F47: 0 | K47: 0 | M47: 12 | N47: 0 | O47: n | P47: 0 | Q47: 0
D48: 40 | F48: 0 | K48: 0 | M48: 12 | N48: 0 | O48: n | P48: 0 | Q48: 0
A49: Pre-97 Project Number | I49: =B10 -> 016 | K49: Annual totals: | N49: =SUMPRODUCT(N9:N48,M9:M48) -> 115560 | P49: =SUMPRODUCT(P9:P48,M9:M48) ->  | Q49: =SUMPRODUCT(Q9:Q48,M9:M48) ->  | R49: =SUMPRODUCT(R9:R48,M9:M48) -> 72840
K50: Additional Funds required by Band to equal RGI | R50: =P49-R49 -> 

Sheet P17 (hidden)
B2: Click to return to Main Menu
A5: Name of Community | F5: =#REF! ->  | J5: CMHC File No | M5: =#REF! -> 
D6: Unit No | E6: Type of Unit | G6: Address | I6: Tenant's Name | J6: Ajusted Household Income | L6: No of Children | M6: Months Occupied | N6: Lower End of Market Rent (LEM) | O6: Income Tested Assistance | P6: Rent based on 25%(RGI) | Q6: CMHC's Income Tested Assistance | R6: Actual Rent Charged | T6: Y
B7: Project Number | T7: N
G8: Civic No | H8: Street | J8: Annual | K8: Monthly
D9: 1 | E9: 5 | F9: =IF(E9<>"",VLOOKUP(E9,$A$16:$C$31,2),0) -> Bungalow-3Bdr | G9: 259 | H9: Amisk Street | I9: Mabel Gunner | K9: =J9/12 -> 0 | M9: 12 | N9: =IF(E9<>"",VLOOKUP(E9,$A$16:$C$31,3),0) -> 500 | O9: n | P9: =IF(O9="Y",IF(IF(ROUND((+K9*0.25)-($T$10+(L9*$T$9)),0)>N9,N9,ROUND((+K9*0.25)-($T$10+(L9*$T$9)),0))<32,32,IF(ROUND((+K9*0.25)-($T$10+(L9*$T$9)),0)>N9,N9,ROUND((+K9*0.25)-($T$10+(L9*$T$9)),0))),N9) -> 500 | Q9: =IF(N9-P9<0,0,N9-P9) -> 0 | R9: 103 | T9: 2
B10: 017 | D10: 2 | E10: 5 | F10: =IF(E10<>"",VLOOKUP(E10,$A$16:$C$31,2),0) -> Bungalow-3Bdr | G10: 120 | H10: Nesk Street | I10: Robin Campbell | K10: 0 | M10: 12 | N10: =IF(E10<>"",VLOOKUP(E10,$A$16:$C$31,3),0) -> 500 | O10: n | P10: 500 | Q10: =IF(N10-P10<0,0,N10-P10) -> 0 | R10: 417 | T10: =#REF! -> 
D11: 3 | E11: 5 | F11: Bungalow-3Bdr | G11: 243 | H11: Nesk Street | I11: Donald Matoush | K11: 0 | M11: 12 | N11: 500 | O11: n | P11: 500 | Q11: 0 | R11: 450
D12: 4 | E12: 5 | F12: Bungalow-3Bdr | G12: 96 | H12: Pine Street | I12: Helen Mianscum | J12: 17346.03 | K12: 1445.5025 | M12: 12 | N12: 500 | O12: Y | R12: 119
A13: TYPE | B13: No of Units | C13: 16 | D13: 5 | E13: 5 | F13: Bungalow-3Bdr | G13: 152 | H13: Queen Street | I13: Abel Swallow | J13: 27954.45 | K13: 2329.5375 | M13: 12 | N13: 500 | O13: Y | R13: 363
D14: 6 | E14: 5 | F14: Bungalow-3Bdr | G14: 96 | H14: Nesk Street | I14: Kathleen Voyageur | K14: 0 | M14: 12 | N14: 500 | O14: n | P14: 500 | Q14: 0 | R14: 248
B15: Model | C15: LEM | D15: 7 | E15: 8 | F15: Bungalow-4Bdr | G15: 259 | H15: Nesk Street | I15: Christopher Gunner | K15: 0 | M15: 12 | N15: 540 | O15: n | P15: 540 | Q15: 0 | R15: 269
A16: 1 | B16: Triplex-1Bdr | D16: 8 | E16: 8 | F16: Bungalow-4Bdr | G16: 320 | H16: Mistissini Blvd. | I16: Abel Coon Come | K16: 0 | M16: 12 | N16: 540 | O16: n | P16: 540 | Q16: 0 | R16: 478
A17: 2 | B17: Quadruplex-1Bdr | D17: 9 | E17: 8 | F17: Bungalow-4Bdr | G17: 240 | H17: Nesk Street | I17: Matthew Longchap | K17: 0 | M17: 12 | N17: 540 | O17: n | P17: 540 | Q17: 0 | R17: 478
D18: 10 | E18: 8 | F18: Bungalow-4Bdr | G18: 43 | H18: Queen Street | I18: Johnny Gunner | K18: 0 | M18: 12 | N18: 540 | O18: n | P18: 540 | Q18: 0 | R18: 478
A19: 3 | B19: Duplex-2Bdr | D19: 11 | E19: 8 | F19: Bungalow-4Bdr | G19: 176 | H19: Queen Street | I19: Paul Longchap | K19: 0 | M19: 12 | N19: 540 | O19: n | P19: 540 | Q19: 0 | R19: 478
A20: 4 | B20: Triplex-2Bdr | D20: 12 | E20: 8 | F20: Bungalow-4Bdr | G20: 179 | H20: Queen Street | I20: Wally Longchap | K20: 0 | M20: 12 | N20: 540 | O20: n | P20: 540 | Q20: 0 | R20: 478
D21: 13 | E21: 8 | F21: Bungalow-4Bdr | G21: 24 | H21: Spruce Street | I21: Beverly Mianscum | J21: 26301.27 | K21: 2191.7725 | M21: 12 | N21: 540 | O21: n | P21: 540 | Q21: 0 | R21: 389
A22: 5 | B22: Bungalow-3Bdr | C22: 500 | D22: 14 | E22: 8 | F22: Bungalow-4Bdr | G22: 64 | H22: Queen Street | I22: Deanna Mianscum | K22: 0 | M22: 12 | N22: 540 | O22: n | P22: 540 | Q22: 0 | R22: 478
A23: 6 | B23: Duplex-3Bdr | D23: 15 | E23: 8 | F23: Bungalow-4Bdr | G23: 299 | H23: Amisk Street | I23: Jane N. L. Shecapio | K23: 0 | M23: 12 | N23: 540 | O23: n | P23: 540 | Q23: 0 | R23: 289
A24: 7 | B24: Row-3Bdr | D24: 16 | E24: 8 | F24: Bungalow-4Bdr | G24: 96 | H24: Queen Street | I24: Roderick Swallow | J24: 31124.57 | K24: 2593.714167 | M24: 12 | N24: 540 | O24: Y | R24: 298
D25: 17 | F25: 0 | K25: 0 | M25: 12 | N25: 0 | O25: n | P25: 0 | Q25: 0
A26: 8 | B26: Bungalow-4Bdr | C26: 540 | D26: 18 | F26: 0 | K26: 0 | M26: 12 | N26: 0 | O26: n | P26: 0 | Q26: 0
A27: 9 | B27: Duplex-4Bdr | D27: 19 | F27: 0 | K27: 0 | M27: 12 | N27: 0 | O27: n | P27: 0 | Q27: 0
A28: 10 | B28: Row-4Bdr | D28: 20 | F28: 0 | K28: 0 | M28: 12 | N28: 0 | O28: n | P28: 0 | Q28: 0
D29: 21 | F29: 0 | K29: 0 | M29: 12 | N29: 0 | O29: n | P29: 0 | Q29: 0
A30: 11 | B30: Bungalow-5Bdr | D30: 22 | F30: 0 | K30: 0 | M30: 12 | N30: 0 | O30: n | P30: 0 | Q30: 0
A31: 12 | B31: Duplex-5Bdr | D31: 23 | F31: 0 | K31: 0 | M31: 12 | N31: 0 | O31: n | P31: 0 | Q31: 0
D32: 24 | F32: 0 | K32: 0 | M32: 12 | N32: 0 | O32: n | P32: 0 | Q32: 0
D33: 25 | F33: 0 | K33: 0 | M33: 12 | N33: 0 | O33: n | P33: 0 | Q33: 0
D34: 26 | F34: 0 | K34: 0 | M34: 12 | N34: 0 | O34: n | P34: 0 | Q34: 0
D35: 27 | F35: 0 | K35: 0 | M35: 12 | N35: 0 | O35: n | P35: 0 | Q35: 0
D36: 28 | F36: 0 | K36: 0 | M36: 12 | N36: 0 | O36: n | P36: 0 | Q36: 0
D37: 29 | F37: 0 | K37: 0 | M37: 12 | N37: 0 | O37: n | P37: 0 | Q37: 0
D38: 30 | F38: 0 | K38: 0 | M38: 12 | N38: 0 | O38: n | P38: 0 | Q38: 0
D39: 31 | F39: 0 | K39: 0 | M39: 12 | N39: 0 | O39: n | P39: 0 | Q39: 0
D40: 32 | F40: 0 | K40: 0 | M40: 12 | N40: 0 | O40: n | P40: 0 | Q40: 0
D41: 33 | F41: 0 | K41: 0 | M41: 12 | N41: 0 | O41: n | P41: 0 | Q41: 0
D42: 34 | F42: 0 | K42: 0 | M42: 12 | N42: 0 | O42: n | P42: 0 | Q42: 0
D43: 35 | F43: 0 | K43: 0 | M43: 12 | N43: 0 | O43: n | P43: 0 | Q43: 0
D44: 36 | F44: 0 | K44: 0 | M44: 12 | N44: 0 | O44: n | P44: 0 | Q44: 0
D45: 37 | F45: 0 | K45: 0 | M45: 12 | N45: 0 | O45: n | P45: 0 | Q45: 0
D46: 38 | F46: 0 | K46: 0 | M46: 12 | N46: 0 | O46: n | P46: 0 | Q46: 0
D47: 39 | F47: 0 | K47: 0 | M47: 12 | N47: 0 | O47: n | P47: 0 | Q47: 0
D48: 40 | F48: 0 | K48: 0 | M48: 12 | N48: 0 | O48: n | P48: 0 | Q48: 0
A49: Pre-97 Project Number | I49: =B10 -> 017 | K49: Annual totals: | N49: =SUMPRODUCT(N9:N48,M9:M48) -> 100800 | P49: =SUMPRODUCT(P9:P48,M9:M48) ->  | Q49: =SUMPRODUCT(Q9:Q48,M9:M48) ->  | R49: =SUMPRODUCT(R9:R48,M9:M48) -> 69756
K50: Additional Funds required by Band to equal RGI | R50: =P49-R49 -> 

Sheet P18 (hidden)
B2: Click to return to Main Menu
A5: Name of Community | F5: =#REF! ->  | J5: CMHC File No | M5: =#REF! -> 
D6: Unit No | E6: Type of Unit | G6: Address | I6: Tenant's Name | J6: Ajusted Household Income | L6: No of Children | M6: Months Occupied | N6: Lower End of Market Rent (LEM) | O6: Income Tested Assistance | P6: Rent based on 25%(RGI) | Q6: CMHC's Income Tested Assistance | R6: Actual Rent Charged | T6: Y
B7: Project Number | T7: N
G8: Civic No | H8: Street | J8: Annual | K8: Monthly
D9: 1 | E9: 3 | F9: =IF(E9<>"",VLOOKUP(E9,$A$16:$C$31,2),0) -> Bungalow-2Bdr | G9: 55 | H9: Pine Street | I9: George Mianscum | K9: =J9/12 -> 0 | M9: 12 | N9: =IF(E9<>"",VLOOKUP(E9,$A$16:$C$31,3),0) -> 450 | O9: n | P9: =IF(O9="Y",IF(IF(ROUND((+K9*0.25)-($T$10+(L9*$T$9)),0)>N9,N9,ROUND((+K9*0.25)-($T$10+(L9*$T$9)),0))<32,32,IF(ROUND((+K9*0.25)-($T$10+(L9*$T$9)),0)>N9,N9,ROUND((+K9*0.25)-($T$10+(L9*$T$9)),0))),N9) -> 450 | Q9: =IF(N9-P9<0,0,N9-P9) -> 0 | R9: 363 | T9: 2
B10: 018 | D10: 2 | E10: 3 | F10: =IF(E10<>"",VLOOKUP(E10,$A$16:$C$31,2),0) -> Bungalow-2Bdr | G10: 40 | H10: Queen Street | I10: Laurie Shecapio | J10: 17084.93 | K10: 1423.744167 | M10: 12 | N10: =IF(E10<>"",VLOOKUP(E10,$A$16:$C$31,3),0) -> 450 | O10: Y | Q10: =IF(N10-P10<0,0,N10-P10) ->  | R10: 194 | T10: =#REF! -> 
D11: 3 | E11: 3 | F11: Bungalow-2Bdr | G11: 56 | H11: Queen Street | I11: Sarah Shecapio | J11: 18028.27 | K11: 1502.355833 | M11: 12 | N11: 450 | O11: Y | R11: 191
D12: 4 | E12: 3 | F12: Bungalow-2Bdr | G12: 72 | H12: Queen Street | I12: George A. Awashish | K12: 0 | M12: 12 | N12: 450 | O12: n | P12: 450 | Q12: 0 | R12: 418
A13: TYPE | B13: No of Units | C13: 10 | D13: 5 | E13: 3 | F13: Bungalow-2Bdr | G13: 115 | H13: Queen Street | I13: Henry Iserhoff | K13: 0 | M13: 12 | N13: 450 | O13: n | P13: 450 | Q13: 0 | R13: 60
D14: 6 | E14: 3 | F14: Bungalow-2Bdr | G14: 128 | H14: Queen Street | I14: Philip Bosum | K14: 0 | M14: 12 | N14: 450 | O14: n | P14: 450 | Q14: 0 | R14: 353
B15: Model | C15: LEM | D15: 7 | E15: 3 | F15: Bungalow-2Bdr | G15: 136 | H15: Queen Street | I15: Charlie Jolly | K15: 0 | M15: 12 | N15: 450 | O15: n | P15: 450 | Q15: 0 | R15: 113
A16: 1 | B16: Triplex-1Bdr | D16: 8 | E16: 3 | F16: Bungalow-2Bdr | G16: 139 | H16: Queen Street | I16: Gordon Swallow | K16: 0 | M16: 12 | N16: 450 | O16: n | P16: 450 | Q16: 0 | R16: 360
A17: 2 | B17: Quadruplex-1Bdr | D17: 9 | E17: 3 | F17: Bungalow-2Bdr | G17: 200 | H17: Queen Street | I17: Pierre Shecapio | J17: 18561.88 | K17: 1546.823333 | M17: 12 | N17: 450 | O17: Y | R17: 220
D18: 10 | E18: 3 | F18: Bungalow-2Bdr | G18: 42 | H18: Spruce | I18: Smally Gunner | K18: 0 | M18: 12 | N18: 450 | O18: n | P18: 450 | Q18: 0 | R18: 375
A19: 3 | B19: Bungalow-2Bdr | C19: 450 | D19: 11 | F19: 0 | K19: 0 | M19: 12 | N19: 0 | O19: n | P19: 0 | Q19: 0
A20: 4 | B20: Triplex-2Bdr | D20: 12 | F20: 0 | K20: 0 | M20: 12 | N20: 0 | O20: n | P20: 0 | Q20: 0
D21: 13 | F21: 0 | K21: 0 | M21: 12 | N21: 0 | O21: n | P21: 0 | Q21: 0
A22: 5 | B22: Bungalow-3Bdr | D22: 14 | F22: 0 | K22: 0 | M22: 12 | N22: 0 | O22: n | P22: 0 | Q22: 0
A23: 6 | B23: Duplex-3Bdr | D23: 15 | F23: 0 | K23: 0 | M23: 12 | N23: 0 | O23: n | P23: 0 | Q23: 0
A24: 7 | B24: Row-3Bdr | D24: 16 | F24: 0 | K24: 0 | M24: 12 | N24: 0 | O24: n | P24: 0 | Q24: 0
D25: 17 | F25: 0 | K25: 0 | M25: 12 | N25: 0 | O25: n | P25: 0 | Q25: 0
A26: 8 | B26: Bungalow-4Bdr | D26: 18 | F26: 0 | K26: 0 | M26: 12 | N26: 0 | O26: n | P26: 0 | Q26: 0
A27: 9 | B27: Duplex-4Bdr | D27: 19 | F27: 0 | K27: 0 | M27: 12 | N27: 0 | O27: n | P27: 0 | Q27: 0
A28: 10 | B28: Row-4Bdr | D28: 20 | F28: 0 | K28: 0 | M28: 12 | N28: 0 | O28: n | P28: 0 | Q28: 0
D29: 21 | F29: 0 | K29: 0 | M29: 12 | N29: 0 | O29: n | P29: 0 | Q29: 0
A30: 11 | B30: Bungalow-5Bdr | D30: 22 | F30: 0 | K30: 0 | M30: 12 | N30: 0 | O30: n | P30: 0 | Q30: 0
A31: 12 | B31: Duplex-5Bdr | D31: 23 | F31: 0 | K31: 0 | M31: 12 | N31: 0 | O31: n | P31: 0 | Q31: 0
D32: 24 | F32: 0 | K32: 0 | M32: 12 | N32: 0 | O32: n | P32: 0 | Q32: 0
D33: 25 | F33: 0 | K33: 0 | M33: 12 | N33: 0 | O33: n | P33: 0 | Q33: 0
D34: 26 | F34: 0 | K34: 0 | M34: 12 | N34: 0 | O34: n | P34: 0 | Q34: 0
D35: 27 | F35: 0 | K35: 0 | M35: 12 | N35: 0 | O35: n | P35: 0 | Q35: 0
D36: 28 | F36: 0 | K36: 0 | M36: 12 | N36: 0 | O36: n | P36: 0 | Q36: 0
D37: 29 | F37: 0 | K37: 0 | M37: 12 | N37: 0 | O37: n | P37: 0 | Q37: 0
D38: 30 | F38: 0 | K38: 0 | M38: 12 | N38: 0 | O38: n | P38: 0 | Q38: 0
D39: 31 | F39: 0 | K39: 0 | M39: 12 | N39: 0 | O39: n | P39: 0 | Q39: 0
D40: 32 | F40: 0 | K40: 0 | M40: 12 | N40: 0 | O40: n | P40: 0 | Q40: 0
D41: 33 | F41: 0 | K41: 0 | M41: 12 | N41: 0 | O41: n | P41: 0 | Q41: 0
D42: 34 | F42: 0 | K42: 0 | M42: 12 | N42: 0 | O42: n | P42: 0 | Q42: 0
D43: 35 | F43: 0 | K43: 0 | M43: 12 | N43: 0 | O43: n | P43: 0 | Q43: 0
D44: 36 | F44: 0 | K44: 0 | M44: 12 | N44: 0 | O44: n | P44: 0 | Q44: 0
D45: 37 | F45: 0 | K45: 0 | M45: 12 | N45: 0 | O45: n | P45: 0 | Q45: 0
D46: 38 | F46: 0 | K46: 0 | M46: 12 | N46: 0 | O46: n | P46: 0 | Q46: 0
D47: 39 | F47: 0 | K47: 0 | M47: 12 | N47: 0 | O47: n | P47: 0 | Q47: 0
D48: 40 | F48: 0 | K48: 0 | M48: 12 | N48: 0 | O48: n | P48: 0 | Q48: 0
A49: Pre-97 Project Number | I49: =B10 -> 018 | K49: Annual totals: | N49: =SUMPRODUCT(N9:N48,M9:M48) -> 54000 | P49: =SUMPRODUCT(P9:P48,M9:M48) ->  | Q49: =SUMPRODUCT(Q9:Q48,M9:M48) ->  | R49: =SUMPRODUCT(R9:R48,M9:M48) -> 31764
K50: Additional Funds required by Band to equal RGI | R50: =P49-R49 -> 

Sheet P19 (hidden)
B2: Click to return to Main Menu
A5: Name of Community | F5: =#REF! ->  | J5: CMHC File No | M5: =#REF! -> 
D6: Unit No | E6: Type of Unit | G6: Address | I6: Tenant's Name | J6: Ajusted Household Income | L6: No of Children | M6: Months Occupied | N6: Lower End of Market Rent (LEM) | O6: Income Tested Assistance | P6: Rent based on 25%(RGI) | Q6: CMHC's Income Tested Assistance | R6: Actual Rent Charged | T6: Y
B7: Project Number | T7: N
G8: Civic No | H8: Street | J8: Annual | K8: Monthly
D9: 1 | E9: 1 | F9: =IF(E9<>"",VLOOKUP(E9,$A$16:$C$31,2),0) -> bungalow-1Bdr | G9: 500-A | H9: Amisk Street | I9: George P. Matoush | K9: =J9/12 -> 0 | M9: 12 | N9: =IF(E9<>"",VLOOKUP(E9,$A$16:$C$31,3),0) -> 360 | O9: n | P9: =IF(O9="Y",IF(IF(ROUND((+K9*0.25)-($T$10+(L9*$T$9)),0)>N9,N9,ROUND((+K9*0.25)-($T$10+(L9*$T$9)),0))<32,32,IF(ROUND((+K9*0.25)-($T$10+(L9*$T$9)),0)>N9,N9,ROUND((+K9*0.25)-($T$10+(L9*$T$9)),0))),N9) -> 360 | Q9: =IF(N9-P9<0,0,N9-P9) -> 0 | R9: 60 | T9: 2
B10: 019 | D10: 2 | E10: 1 | F10: =IF(E10<>"",VLOOKUP(E10,$A$16:$C$31,2),0) -> bungalow-1Bdr | G10: 500-B | H10: Amisk Street | I10: Suzanne Trapper | J10: 15363.64 | K10: 1280.303333 | M10: 12 | N10: =IF(E10<>"",VLOOKUP(E10,$A$16:$C$31,3),0) -> 360 | O10: Y | Q10: =IF(N10-P10<0,0,N10-P10) ->  | R10: 161 | T10: =#REF! -> 
D11: 3 | E11: 1 | F11: bungalow-1Bdr | G11: 503-A | H11: Amisk Street | I11: William Blacksmith | J11: 12060 | K11: 1005 | M11: 12 | N11: 360 | O11: Y | R11: 93
D12: 4 | E12: 1 | F12: bungalow-1Bdr | G12: 503-B | H12: Amisk Street | I12: Mary Ann Neeposh | K12: 0 | M12: 12 | N12: 360 | O12: n | P12: 360 | Q12: 0 | R12: 60
A13: TYPE | B13: No of Units | C13: 31 | D13: 5 | E13: 1 | F13: bungalow-1Bdr | G13: 504-A | H13: Amisk Street | I13: Abraham Loon | K13: 0 | M13: 12 | N13: 360 | O13: n | P13: 360 | Q13: 0 | R13: 340
D14: 6 | E14: 1 | F14: bungalow-1Bdr | G14: 504-B | H14: Amisk Street | I14: Lillian Coonishish | K14: 0 | M14: 12 | N14: 360 | O14: n | P14: 360 | Q14: 0 | R14: 340
B15: Model | C15: LEM | D15: 7 | E15: 1 | F15: bungalow-1Bdr | G15: 507-A | H15: Amisk Street | I15: Matthew Pete Coonishish | K15: 0 | M15: 12 | N15: 360 | O15: n | P15: 360 | Q15: 0 | R15: 265
A16: 1 | B16: bungalow-1Bdr | C16: 360 | D16: 8 | E16: 1 | F16: bungalow-1Bdr | G16: 507-B | H16: Amisk Street | I16: David Matthews | K16: 0 | M16: 12 | N16: 360 | O16: n | P16: 360 | Q16: 0 | R16: 242
A17: 2 | B17: Quadruplex-1Bdr | D17: 9 | E17: 1 | F17: bungalow-1Bdr | G17: 508-A | H17: Amisk Street | I17: Eddie Metabie | K17: 0 | M17: 12 | N17: 360 | O17: n | P17: 360 | Q17: 0 | R17: 211
D18: 10 | E18: 1 | F18: bungalow-1Bdr | G18: 508-B | H18: Amisk Street | I18: Steven Wapachee | K18: 0 | M18: 12 | N18: 360 | O18: n | P18: 360 | Q18: 0 | R18: 244
A19: 3 | B19: Duplex-2Bdr | D19: 11 | E19: 1 | F19: bungalow-1Bdr | G19: 511-A | H19: Amisk Street | I19: Tony Coonishish | K19: 0 | M19: 12 | N19: 360 | O19: n | P19: 360 | Q19: 0 | R19: 317
A20: 4 | B20: Triplex-2Bdr | D20: 12 | E20: 1 | F20: bungalow-1Bdr | G20: 511-B | H20: Amisk Street | I20: John Mettawashish Sr. | K20: 0 | M20: 12 | N20: 360 | O20: n | P20: 360 | Q20: 0 | R20: 120
D21: 13 | E21: 1 | F21: bungalow-1Bdr | G21: 512-A | H21: Amisk Street | I21: Melanie Petawabano | K21: 0 | M21: 12 | N21: 360 | O21: n | P21: 360 | Q21: 0 | R21: 160
A22: 5 | B22: Bungalow-3Bdr | C22: 460 | D22: 14 | E22: 1 | F22: bungalow-1Bdr | G22: 512-B | H22: Amisk Street | I22: Andrew Loon | K22: 0 | M22: 12 | N22: 360 | O22: n | P22: 360 | Q22: 0 | R22: 340
A23: 6 | B23: Duplex-3Bdr | C23: 460 | D23: 15 | E23: 1 | F23: bungalow-1Bdr | G23: 515-A | H23: Amisk Street | I23: Philip Mark | K23: 0 | M23: 12 | N23: 360 | O23: n | P23: 360 | Q23: 0 | R23: 315
A24: 7 | B24: Row-3Bdr | D24: 16 | E24: 1 | F24: bungalow-1Bdr | G24: 515-B | H24: Amisk Street | I24: Charlie D. Blacksmith | K24: 0 | M24: 12 | N24: 360 | O24: n | P24: 360 | Q24: 0 | R24: 340
D25: 17 | E25: 1 | F25: bungalow-1Bdr | G25: 519-A | H25: Amisk Street | I25: Johnny Blacksmith Sr. | K25: 0 | M25: 12 | N25: 360 | O25: n | P25: 360 | Q25: 0 | R25: 60
A26: 8 | B26: Bungalow-4Bdr | C26: 540 | D26: 18 | E26: 1 | F26: bungalow-1Bdr | G26: 519-B | H26: Amisk Street | I26: Gordon F. Gunner | J26: 14931.02 | K26: 1244.251667 | M26: 12 | N26: 360 | O26: Y | R26: 212
A27: 9 | B27: Duplex-4Bdr | D27: 19 | E27: 5 | F27: =IF(E27<>"",VLOOKUP(E27,$A$16:$C$31,2),0) -> Bungalow-3Bdr | G27: 483 | H27: Amisk Street | I27: Christopher N. Loon | K27: 0 | M27: 12 | N27: =IF(E27<>"",VLOOKUP(E27,$A$16:$C$31,3),0) -> 460 | O27: n | P27: 460 | Q27: 0 | R27: 424
A28: 10 | B28: Row-4Bdr | D28: 20 | E28: 5 | F28: Bungalow-3Bdr | G28: 484 | H28: Amisk Street | I28: Clarence Loon | K28: 0 | M28: 12 | N28: 460 | O28: n | P28: 460 | Q28: 0 | R28: 424
D29: 21 | E29: 5 | F29: Bungalow-3Bdr | G29: 487 | H29: Amisk Street | I29: Mabel Gunner | K29: 0 | M29: 12 | N29: 460 | O29: n | P29: 460 | Q29: 0 | R29: 103
A30: 11 | B30: Bungalow-5Bdr | D30: 22 | E30: 5 | F30: Bungalow-3Bdr | G30: 488 | H30: Amisk Street | I30: Rene Coon Come | K30: 0 | M30: 12 | N30: 460 | O30: n | P30: 460 | Q30: 0 | R30: 424
A31: 12 | B31: Duplex-5Bdr | D31: 23 | E31: 5 | F31: Bungalow-3Bdr | G31: 491 | H31: Amisk Street | I31: Michael longchap | K31: 0 | M31: 12 | N31: 460 | O31: n | P31: 460 | Q31: 0 | R31: 424
D32: 24 | E32: 5 | F32: Bungalow-3Bdr | G32: 492 | H32: Amisk Street | I32: kathleen Rabbitskin | K32: 0 | M32: 12 | N32: 460 | O32: n | P32: 460 | Q32: 0 | R32: 344
D33: 25 | E33: 5 | F33: Bungalow-3Bdr | G33: 495 | H33: Amisk Street | I33: Nancy Mianscum | K33: 0 | M33: 12 | N33: 460 | O33: n | P33: 460 | Q33: 0 | R33: 424
D34: 26 | E34: 5 | F34: Bungalow-3Bdr | G34: 499 | H34: Amisk Street | I34: Melissa Jolly | K34: 0 | M34: 12 | N34: 460 | O34: n | P34: 460 | Q34: 0 | R34: 120
D35: 27 | E35: 5 | F35: Bungalow-3Bdr | G35: 496 | H35: Amisk Street | I35: Matthew G. Shecapio | K35: 0 | M35: 12 | N35: 460 | O35: n | P35: 460 | Q35: 0 | R35: 349
D36: 28 | E36: 8 | F36: Bungalow-4Bdr | G36: 47 | H36: Amisk Street | I36: Anglican Church Residence | K36: 0 | M36: 12 | N36: 540 | O36: n | P36: 540 | Q36: 0 | R36: 120
D37: 29 | E37: 8 | F37: Bungalow-4Bdr | G37: 235 | H37: Nesk Street | I37: vacant | K37: 0 | M37: 12 | N37: 540 | O37: n | P37: 540 | Q37: 0 | R37: 478
D38: 30 | E38: 8 | F38: Bungalow-4Bdr | G38: 48 | H38: Queen Street | I38: Kenneth Matoush | K38: 0 | M38: 12 | N38: 540 | O38: n | P38: 540 | Q38: 0
D39: 31 | E39: 8 | F39: Bungalow-4Bdr | G39: 123 | H39: Queen Street | I39: Clarence Swallow | K39: 0 | M39: 12 | N39: 540 | O39: n | P39: 540 | Q39: 0 | R39: 119
D40: 32 | F40: 0 | K40: 0 | M40: 12 | N40: 0 | O40: n | P40: 0 | Q40: 0
D41: 33 | F41: 0 | K41: 0 | M41: 12 | N41: 0 | O41: n | P41: 0 | Q41: 0
D42: 34 | F42: 0 | K42: 0 | M42: 12 | N42: 0 | O42: n | P42: 0 | Q42: 0
D43: 35 | F43: 0 | K43: 0 | M43: 12 | N43: 0 | O43: n | P43: 0 | Q43: 0
D44: 36 | F44: 0 | K44: 0 | M44: 12 | N44: 0 | O44: n | P44: 0 | Q44: 0
D45: 37 | F45: 0 | K45: 0 | M45: 12 | N45: 0 | O45: n | P45: 0 | Q45: 0
D46: 38 | F46: 0 | K46: 0 | M46: 12 | N46: 0 | O46: n | P46: 0 | Q46: 0
D47: 39 | F47: 0 | K47: 0 | M47: 12 | N47: 0 | O47: n | P47: 0 | Q47: 0
D48: 40 | F48: 0 | K48: 0 | M48: 12 | N48: 0 | O48: n | P48: 0 | Q48: 0
A49: Pre-97 Project Number | I49: =B10 -> 019 | K49: Annual totals: | N49: =SUMPRODUCT(N9:N48,M9:M48) -> 153360 | P49: =SUMPRODUCT(P9:P48,M9:M48) ->  | Q49: =SUMPRODUCT(Q9:Q48,M9:M48) ->  | R49: =SUMPRODUCT(R9:R48,M9:M48) -> 91596
K50: Additional Funds required by Band to equal RGI | R50: =P49-R49 -> 

Sheet P20 (hidden)
B2: Click to return to Main Menu
A5: Name of Community | F5: =#REF! ->  | J5: CMHC File No | M5: =#REF! -> 
D6: Unit No | E6: Type of Unit | G6: Address | I6: Tenant's Name | J6: Ajusted Household Income | L6: No of Children | M6: Months Occupied | N6: Lower End of Market Rent (LEM) | O6: Income Tested Assistance | P6: Rent based on 25%(RGI) | Q6: CMHC's Income Tested Assistance | R6: Actual Rent Charged | T6: Y
B7: Project Number | T7: N
G8: Civic No | H8: Street | J8: Annual | K8: Monthly
D9: 1 | E9: 5 | F9: =IF(E9<>"",VLOOKUP(E9,$A$16:$C$31,2),0) -> Bungalow-3Bdr | G9: 461 | H9: Amisk Street | I9: Rebeca Gunner | K9: =J9/12 -> 0 | M9: 12 | N9: =IF(E9<>"",VLOOKUP(E9,$A$16:$C$31,3),0) -> 500 | O9: n | P9: =IF(O9="Y",IF(IF(ROUND((+K9*0.25)-($T$10+(L9*$T$9)),0)>N9,N9,ROUND((+K9*0.25)-($T$10+(L9*$T$9)),0))<32,32,IF(ROUND((+K9*0.25)-($T$10+(L9*$T$9)),0)>N9,N9,ROUND((+K9*0.25)-($T$10+(L9*$T$9)),0))),N9) -> 500 | Q9: =IF(N9-P9<0,0,N9-P9) -> 0 | R9: 120 | T9: 2
B10: 020 | D10: 2 | E10: 5 | F10: =IF(E10<>"",VLOOKUP(E10,$A$16:$C$31,2),0) -> Bungalow-3Bdr | G10: 14 | H10: Bedabin Street | I10: Rene Gunner | K10: 0 | M10: 12 | N10: =IF(E10<>"",VLOOKUP(E10,$A$16:$C$31,3),0) -> 500 | O10: n | P10: 500 | Q10: =IF(N10-P10<0,0,N10-P10) -> 0 | R10: 216 | T10: =#REF! -> 
D11: 3 | E11: 5 | F11: Bungalow-3Bdr | G11: 13 | H11: Bedabin Street | I11: John Rabbitskin | K11: 0 | M11: 12 | N11: 500 | O11: n | P11: 500 | Q11: 0 | R11: 450
D12: 4 | E12: 5 | F12: Bungalow-3Bdr | G12: 17 | H12: Bedabin Street | I12: Johnny Mianscum | K12: 0 | M12: 12 | N12: 500 | O12: n | P12: 500 | Q12: 0 | R12: 306
A13: TYPE | B13: No of Units | C13: 11 | D13: 5 | E13: 5 | F13: Bungalow-3Bdr | G13: 83 | H13: Pine Street | I13: Alfred Coon Come | K13: 0 | M13: 12 | N13: 500 | O13: n | P13: 500 | Q13: 0 | R13: 409
D14: 6 | E14: 5 | F14: Bungalow-3Bdr | G14: 16 | H14: Spruce | I14: Charlie Mianscum | J14: 56592.87 | K14: 4716.0725 | M14: 12 | N14: 500 | O14: Y | R14: 450
B15: Model | C15: LEM | D15: 7 | E15: 8 | F15: Bungalow-4Bdr | G15: 288 | H15: Amisk Street | I15: Matthew Iserhoff Jr. | K15: 0 | M15: 12 | N15: 540 | O15: n | P15: 540 | Q15: 0 | R15: 478
A16: 1 | B16: Triplex-1Bdr | D16: 8 | E16: 8 | F16: Bungalow-4Bdr | G16: 10 | H16: Bedabin Street | I16: Abel Gunner | K16: 0 | M16: 12 | N16: 540 | O16: n | P16: 540 | Q16: 0 | R16: 478
A17: 2 | B17: Quadruplex-1Bdr | D17: 9 | E17: 8 | F17: Bungalow-4Bdr | G17: 18 | H17: Bedabin Street | I17: Charlie J. Matoush | K17: 0 | M17: 12 | N17: 540 | O17: n | P17: 540 | Q17: 0 | R17: 478
D18: 10 | E18: 8 | F18: Bungalow-4Bdr | G18: 22 | H18: Bedabin Street | I18: Neil Longchap | K18: 0 | M18: 12 | N18: 540 | O18: n | P18: 540 | Q18: 0 | R18: 478
A19: 3 | B19: Duplex-2Bdr | D19: 11 | E19: 8 | F19: Bungalow-4Bdr | G19: 152 | H19: Nesk Street | I19: Willie K. Gunner | K19: 0 | M19: 12 | N19: 540 | O19: n | P19: 540 | Q19: 0 | R19: 478
A20: 4 | B20: Triplex-2Bdr | D20: 12 | F20: 0 | K20: 0 | M20: 12 | N20: 0 | O20: n | P20: 0 | Q20: 0
D21: 13 | F21: 0 | K21: 0 | M21: 12 | N21: 0 | O21: n | P21: 0 | Q21: 0
A22: 5 | B22: Bungalow-3Bdr | C22: 500 | D22: 14 | F22: 0 | K22: 0 | M22: 12 | N22: 0 | O22: n | P22: 0 | Q22: 0
A23: 6 | B23: Duplex-3Bdr | D23: 15 | F23: 0 | K23: 0 | M23: 12 | N23: 0 | O23: n | P23: 0 | Q23: 0
A24: 7 | B24: Row-3Bdr | D24: 16 | F24: 0 | K24: 0 | M24: 12 | N24: 0 | O24: n | P24: 0 | Q24: 0
D25: 17 | F25: 0 | K25: 0 | M25: 12 | N25: 0 | O25: n | P25: 0 | Q25: 0
A26: 8 | B26: Bungalow-4Bdr | C26: 540 | D26: 18 | F26: 0 | K26: 0 | M26: 12 | N26: 0 | O26: n | P26: 0 | Q26: 0
A27: 9 | B27: Duplex-4Bdr | D27: 19 | F27: 0 | K27: 0 | M27: 12 | N27: 0 | O27: n | P27: 0 | Q27: 0
A28: 10 | B28: Row-4Bdr | D28: 20 | F28: 0 | K28: 0 | M28: 12 | N28: 0 | O28: n | P28: 0 | Q28: 0
D29: 21 | F29: 0 | K29: 0 | M29: 12 | N29: 0 | O29: n | P29: 0 | Q29: 0
A30: 11 | B30: Bungalow-5Bdr | D30: 22 | F30: 0 | K30: 0 | M30: 12 | N30: 0 | O30: n | P30: 0 | Q30: 0
A31: 12 | B31: Duplex-5Bdr | D31: 23 | F31: 0 | K31: 0 | M31: 12 | N31: 0 | O31: n | P31: 0 | Q31: 0
D32: 24 | F32: 0 | K32: 0 | M32: 12 | N32: 0 | O32: n | P32: 0 | Q32: 0
D33: 25 | F33: 0 | K33: 0 | M33: 12 | N33: 0 | O33: n | P33: 0 | Q33: 0
D34: 26 | F34: 0 | K34: 0 | M34: 12 | N34: 0 | O34: n | P34: 0 | Q34: 0
D35: 27 | F35: 0 | K35: 0 | M35: 12 | N35: 0 | O35: n | P35: 0 | Q35: 0
D36: 28 | F36: 0 | K36: 0 | M36: 12 | N36: 0 | O36: n | P36: 0 | Q36: 0
D37: 29 | F37: 0 | K37: 0 | M37: 12 | N37: 0 | O37: n | P37: 0 | Q37: 0
D38: 30 | F38: 0 | K38: 0 | M38: 12 | N38: 0 | O38: n | P38: 0 | Q38: 0
D39: 31 | F39: 0 | K39: 0 | M39: 12 | N39: 0 | O39: n | P39: 0 | Q39: 0
D40: 32 | F40: 0 | K40: 0 | M40: 12 | N40: 0 | O40: n | P40: 0 | Q40: 0
D41: 33 | F41: 0 | K41: 0 | M41: 12 | N41: 0 | O41: n | P41: 0 | Q41: 0
D42: 34 | F42: 0 | K42: 0 | M42: 12 | N42: 0 | O42: n | P42: 0 | Q42: 0
D43: 35 | F43: 0 | K43: 0 | M43: 12 | N43: 0 | O43: n | P43: 0 | Q43: 0
D44: 36 | F44: 0 | K44: 0 | M44: 12 | N44: 0 | O44: n | P44: 0 | Q44: 0
D45: 37 | F45: 0 | K45: 0 | M45: 12 | N45: 0 | O45: n | P45: 0 | Q45: 0
D46: 38 | F46: 0 | K46: 0 | M46: 12 | N46: 0 | O46: n | P46: 0 | Q46: 0
D47: 39 | F47: 0 | K47: 0 | M47: 12 | N47: 0 | O47: n | P47: 0 | Q47: 0
D48: 40 | F48: 0 | K48: 0 | M48: 12 | N48: 0 | O48: n | P48: 0 | Q48: 0
A49: Pre-97 Project Number | I49: =B10 -> 020 | K49: Annual totals: | N49: =SUMPRODUCT(N9:N48,M9:M48) -> 68400 | P49: =SUMPRODUCT(P9:P48,M9:M48) ->  | Q49: =SUMPRODUCT(Q9:Q48,M9:M48) ->  | R49: =SUMPRODUCT(R9:R48,M9:M48) -> 52092
K50: Additional Funds required by Band to equal RGI | R50: =P49-R49 -> 

Sheet P21 (hidden)
B2: Click to return to Main Menu
A5: Name of Community | F5: =#REF! ->  | J5: CMHC File No | M5: =#REF! -> 
D6: Unit No | E6: Type of Unit | G6: Address | I6: Tenant's Name | J6: Ajusted Household Income | L6: No of Children | M6: Months Occupied | N6: Lower End of Market Rent (LEM) | O6: Income Tested Assistance | P6: Rent based on 25%(RGI) | Q6: CMHC's Income Tested Assistance | R6: Actual Rent Charged | T6: Y
B7: Project Number | T7: N
G8: Civic No | H8: Street | J8: Annual | K8: Monthly
D9: 1 | E9: 5 | F9: =IF(E9<>"",VLOOKUP(E9,$A$16:$C$31,2),0) -> Bungalow-3Bdr | G9: 19 | H9: Bedabin Street | I9: Mary Jane R. Trapper | K9: =J9/12 -> 0 | M9: 12 | N9: =IF(E9<>"",VLOOKUP(E9,$A$16:$C$31,3),0) -> 500 | O9: n | P9: =IF(O9="Y",IF(IF(ROUND((+K9*0.25)-($T$10+(L9*$T$9)),0)>N9,N9,ROUND((+K9*0.25)-($T$10+(L9*$T$9)),0))<32,32,IF(ROUND((+K9*0.25)-($T$10+(L9*$T$9)),0)>N9,N9,ROUND((+K9*0.25)-($T$10+(L9*$T$9)),0))),N9) -> 500 | Q9: =IF(N9-P9<0,0,N9-P9) -> 0 | R9: 89 | T9: 2
B10: 021 | D10: 2 | E10: 5 | F10: =IF(E10<>"",VLOOKUP(E10,$A$16:$C$31,2),0) -> Bungalow-3Bdr | G10: 24 | H10: Bedabin Street | I10: Francis B. Trapper | K10: 0 | M10: 12 | N10: =IF(E10<>"",VLOOKUP(E10,$A$16:$C$31,3),0) -> 500 | O10: n | P10: 500 | Q10: =IF(N10-P10<0,0,N10-P10) -> 0 | R10: 375 | T10: =#REF! -> 
D11: 3 | E11: 5 | F11: Bungalow-3Bdr | G11: 28 | H11: Bedabin Street | I11: Evadney S. Blacksmith | K11: 0 | M11: 12 | N11: 500 | O11: n | P11: 500 | Q11: 0 | R11: 242
D12: 4 | E12: 5 | F12: Bungalow-3Bdr | G12: 128 | H12: Nesk Street | I12: Kenny Coon Come | J12: 34511.01 | K12: 2875.9175 | M12: 12 | N12: 500 | O12: Y | R12: 391
A13: TYPE | B13: No of Units | C13: 9 | D13: 5 | E13: 8 | F13: Bungalow-4Bdr | G13: 296 | H13: Amisk Street | I13: Eva Ratt | K13: 0 | M13: 12 | N13: 540 | O13: n | P13: 540 | Q13: 0 | R13: 478
D14: 6 | E14: 8 | F14: Bungalow-4Bdr | G14: 9 | H14: Bedabin Street | I14: Sarah Iserhoff | K14: 0 | M14: 12 | N14: 540 | O14: n | P14: 540 | Q14: 0 | R14: 478
B15: Model | C15: LEM | D15: 7 | E15: 8 | F15: Bungalow-4Bdr | G15: 12 | H15: Bedabin Street | I15: Bradley Mianscum | K15: 0 | M15: 12 | N15: 540 | O15: n | P15: 540 | Q15: 0 | R15: 478
A16: 1 | B16: Triplex-1Bdr | D16: 8 | E16: 8 | F16: Bungalow-4Bdr | G16: 88 | H16: Pine Street | I16: Sandra Coonishish | K16: 0 | M16: 12 | N16: 540 | O16: n | P16: 540 | Q16: 0 | R16: 478
A17: 2 | B17: Quadruplex-1Bdr | D17: 9 | E17: 8 | F17: Bungalow-4Bdr | G17: 32 | H17: Spruce Street | I17: Bertie Rabbitskin | J17: 23885.89 | K17: 1990.490833 | M17: 12 | N17: 540 | O17: Y | R17: 339
D18: 10 | F18: 0 | K18: 0 | M18: 12 | N18: 0 | O18: n | P18: 0 | Q18: 0
A19: 3 | B19: Duplex-2Bdr | D19: 11 | F19: 0 | K19: 0 | M19: 12 | N19: 0 | O19: n | P19: 0 | Q19: 0
A20: 4 | B20: Triplex-2Bdr | D20: 12 | F20: 0 | K20: 0 | M20: 12 | N20: 0 | O20: n | P20: 0 | Q20: 0
D21: 13 | F21: 0 | K21: 0 | M21: 12 | N21: 0 | O21: n | P21: 0 | Q21: 0
A22: 5 | B22: Bungalow-3Bdr | C22: 500 | D22: 14 | F22: 0 | K22: 0 | M22: 12 | N22: 0 | O22: n | P22: 0 | Q22: 0
A23: 6 | B23: Duplex-3Bdr | D23: 15 | F23: 0 | K23: 0 | M23: 12 | N23: 0 | O23: n | P23: 0 | Q23: 0
A24: 7 | B24: Row-3Bdr | D24: 16 | F24: 0 | K24: 0 | M24: 12 | N24: 0 | O24: n | P24: 0 | Q24: 0
D25: 17 | F25: 0 | K25: 0 | M25: 12 | N25: 0 | O25: n | P25: 0 | Q25: 0
A26: 8 | B26: Bungalow-4Bdr | C26: 540 | D26: 18 | F26: 0 | K26: 0 | M26: 12 | N26: 0 | O26: n | P26: 0 | Q26: 0
A27: 9 | B27: Duplex-4Bdr | D27: 19 | F27: 0 | K27: 0 | M27: 12 | N27: 0 | O27: n | P27: 0 | Q27: 0
A28: 10 | B28: Row-4Bdr | D28: 20 | F28: 0 | K28: 0 | M28: 12 | N28: 0 | O28: n | P28: 0 | Q28: 0
D29: 21 | F29: 0 | K29: 0 | M29: 12 | N29: 0 | O29: n | P29: 0 | Q29: 0
A30: 11 | B30: Bungalow-5Bdr | D30: 22 | F30: 0 | K30: 0 | M30: 12 | N30: 0 | O30: n | P30: 0 | Q30: 0
A31: 12 | B31: Duplex-5Bdr | D31: 23 | F31: 0 | K31: 0 | M31: 12 | N31: 0 | O31: n | P31: 0 | Q31: 0
D32: 24 | F32: 0 | K32: 0 | M32: 12 | N32: 0 | O32: n | P32: 0 | Q32: 0
D33: 25 | F33: 0 | K33: 0 | M33: 12 | N33: 0 | O33: n | P33: 0 | Q33: 0
D34: 26 | F34: 0 | K34: 0 | M34: 12 | N34: 0 | O34: n | P34: 0 | Q34: 0
D35: 27 | F35: 0 | K35: 0 | M35: 12 | N35: 0 | O35: n | P35: 0 | Q35: 0
D36: 28 | F36: 0 | K36: 0 | M36: 12 | N36: 0 | O36: n | P36: 0 | Q36: 0
D37: 29 | F37: 0 | K37: 0 | M37: 12 | N37: 0 | O37: n | P37: 0 | Q37: 0
D38: 30 | F38: 0 | K38: 0 | M38: 12 | N38: 0 | O38: n | P38: 0 | Q38: 0
D39: 31 | F39: 0 | K39: 0 | M39: 12 | N39: 0 | O39: n | P39: 0 | Q39: 0
D40: 32 | F40: 0 | K40: 0 | M40: 12 | N40: 0 | O40: n | P40: 0 | Q40: 0
D41: 33 | F41: 0 | K41: 0 | M41: 12 | N41: 0 | O41: n | P41: 0 | Q41: 0
D42: 34 | F42: 0 | K42: 0 | M42: 12 | N42: 0 | O42: n | P42: 0 | Q42: 0
D43: 35 | F43: 0 | K43: 0 | M43: 12 | N43: 0 | O43: n | P43: 0 | Q43: 0
D44: 36 | F44: 0 | K44: 0 | M44: 12 | N44: 0 | O44: n | P44: 0 | Q44: 0
D45: 37 | F45: 0 | K45: 0 | M45: 12 | N45: 0 | O45: n | P45: 0 | Q45: 0
D46: 38 | F46: 0 | K46: 0 | M46: 12 | N46: 0 | O46: n | P46: 0 | Q46: 0
D47: 39 | F47: 0 | K47: 0 | M47: 12 | N47: 0 | O47: n | P47: 0 | Q47: 0
D48: 40 | F48: 0 | K48: 0 | M48: 12 | N48: 0 | O48: n | P48: 0 | Q48: 0
A49: Pre-97 Project Number | I49: =B10 -> 021 | K49: Annual totals: | N49: =SUMPRODUCT(N9:N48,M9:M48) -> 56400 | P49: =SUMPRODUCT(P9:P48,M9:M48) ->  | Q49: =SUMPRODUCT(Q9:Q48,M9:M48) ->  | R49: =SUMPRODUCT(R9:R48,M9:M48) -> 40176
K50: Additional Funds required by Band to equal RGI | R50: =P49-R49 -> 

Sheet P22 (hidden)
B2: Click to return to Main Menu
A5: Name of Community | F5: =#REF! ->  | J5: CMHC File No | M5: =#REF! -> 
D6: Unit No | E6: Type of Unit | G6: Address | I6: Tenant's Name | J6: Ajusted Household Income | L6: No of Children | M6: Months Occupied | N6: Lower End of Market Rent (LEM) | O6: Income Tested Assistance | P6: Rent based on 25%(RGI) | Q6: CMHC's Income Tested Assistance | R6: Actual Rent Charged | T6: Y
B7: Project Number | T7: N
G8: Civic No | H8: Street | J8: Annual | K8: Monthly
D9: 1 | E9: 3 | F9: =IF(E9<>"",VLOOKUP(E9,$A$16:$C$31,2),0) -> Apt. Block-2Bdr | G9: 280-3 | H9: Queen Street | I9: Ernest Petawabano | K9: =J9/12 -> 0 | M9: 12 | N9: =IF(E9<>"",VLOOKUP(E9,$A$16:$C$31,3),0) -> 410 | O9: n | P9: =IF(O9="Y",IF(IF(ROUND((+K9*0.25)-($T$10+(L9*$T$9)),0)>N9,N9,ROUND((+K9*0.25)-($T$10+(L9*$T$9)),0))<32,32,IF(ROUND((+K9*0.25)-($T$10+(L9*$T$9)),0)>N9,N9,ROUND((+K9*0.25)-($T$10+(L9*$T$9)),0))),N9) -> 410 | Q9: =IF(N9-P9<0,0,N9-P9) -> 0 | R9: 374 | T9: 2
B10: 022 | D10: 2 | E10: 3 | F10: =IF(E10<>"",VLOOKUP(E10,$A$16:$C$31,2),0) -> Apt. Block-2Bdr | G10: 280-6 | H10: Queen Street | I10: Isaac J. Etapp | K10: 0 | M10: 12 | N10: =IF(E10<>"",VLOOKUP(E10,$A$16:$C$31,3),0) -> 410 | O10: n | P10: 410 | Q10: =IF(N10-P10<0,0,N10-P10) -> 0 | R10: 199 | T10: =#REF! -> 
D11: 3 | E11: 3 | F11: Apt. Block-2Bdr | G11: 280-9 | H11: Queen Street | I11: Lizzie Blacksmith | K11: 0 | M11: 12 | N11: 410 | O11: N | P11: 410 | Q11: 0 | R11: 173
D12: 4 | E12: 3 | F12: Apt. Block-2Bdr | G12: 280-12 | H12: Queen Street | I12: Edna Blacksmith | J12: 39259.36 | K12: 3271.613333 | M12: 12 | N12: 410 | O12: Y | R12: 374
A13: TYPE | B13: No of Units | C13: 30 | D13: 5 | E13: 5 | F13: Apt. Block-3Bdr | G13: 280-1 | H13: Queen Street | I13: Ernest M. Coonishish | K13: 0 | M13: 12 | N13: 460 | O13: n | P13: 460 | Q13: 0 | R13: 407
D14: 6 | E14: 5 | F14: Apt. Block-3Bdr | G14: 280-2 | H14: Queen Street | I14: Amanda Wapachee | J14: 18711.98 | K14: 1559.331667 | M14: 12 | N14: 460 | O14: Y | R14: 176
B15: Model | C15: LEM | D15: 7 | E15: 5 | F15: Apt. Block-3Bdr | G15: 280-4 | H15: Queen Street | I15: Maria Mianscum | K15: 0 | M15: 12 | N15: 460 | O15: n | P15: 460 | Q15: 0 | R15: 348
A16: 1 | B16: Triplex-1Bdr | D16: 8 | E16: 5 | F16: Apt. Block-3Bdr | G16: 280-5 | H16: Queen Street | I16: Michael Gunner | K16: 0 | M16: 12 | N16: 460 | O16: n | P16: 460 | Q16: 0 | R16: 407
A17: 2 | B17: Quadruplex-1Bdr | D17: 9 | E17: 5 | F17: Apt. Block-3Bdr | G17: 280-7 | H17: Queen Street | I17: Helen Husky | J17: 17026.08 | K17: 1418.84 | M17: 12 | N17: 460 | O17: Y | R17: 160
D18: 10 | E18: 5 | F18: Apt. Block-3Bdr | G18: 280-8 | H18: Queen Street | I18: Clifford MacLeod | J18: 42610.18 | K18: 3550.848333 | M18: 12 | N18: 460 | O18: Y | R18: 407
A19: 3 | B19: Apt. Block-2Bdr | C19: 410 | D19: 11 | E19: 5 | F19: Apt. Block-3Bdr | G19: 280-10 | H19: Queen Street | I19: Jimmy Coon Come | K19: 0 | M19: 12 | N19: 460 | O19: n | P19: 460 | Q19: 0 | R19: 407
A20: 4 | B20: Triplex-2Bdr | C20: 410 | D20: 12 | E20: 5 | F20: Apt. Block-3Bdr | G20: 280-11 | H20: Queen Street | I20: Lina Coonishish | K20: 0 | M20: 12 | N20: 460 | O20: n | P20: 460 | Q20: 0 | R20: 407
D21: 13 | E21: 6 | F21: Duplex-3Bdr | G21: 3 | H21: Waapstan | I21: Denise White | K21: 0 | M21: 12 | N21: 460 | O21: n | P21: 460 | Q21: 0 | R21: 424
A22: 5 | B22: Apt. Block-3Bdr | C22: 460 | D22: 14 | E22: 6 | F22: Duplex-3Bdr | G22: 5 | H22: Waapstan | I22: Wasesquin Gunner | K22: 0 | M22: 12 | N22: 460 | O22: n | P22: 460 | Q22: 0 | R22: 424
A23: 6 | B23: Duplex-3Bdr | C23: 460 | D23: 15 | E23: 6 | F23: Duplex-3Bdr | G23: 7 | H23: Waapstan | I23: Abraham Husky | K23: 0 | M23: 12 | N23: 460 | O23: n | P23: 460 | Q23: 0 | R23: 424
A24: 7 | B24: triplex-3Bdr | C24: 460 | D24: 16 | E24: 6 | F24: Duplex-3Bdr | G24: 9 | H24: Waapstan | I24: Emmett Matoush | K24: 0 | M24: 12 | N24: 460 | O24: n | P24: 460 | Q24: 0 | R24: 424
D25: 17 | E25: 7 | F25: triplex-3Bdr | G25: 2 | H25: Waapstan | I25: Samuel Coon Come | K25: 0 | M25: 12 | N25: 460 | O25: n | P25: 460 | Q25: 0 | R25: 424
A26: 8 | B26: Bungalow-4Bdr | C26: 540 | D26: 18 | E26: 7 | F26: triplex-3Bdr | G26: 4 | H26: Waapstan | I26: Robbie Petawabano | K26: 0 | M26: 12 | N26: 460 | O26: n | P26: 460 | Q26: 0 | R26: 424
A27: 9 | B27: Duplex-4Bdr | D27: 19 | E27: 7 | F27: triplex-3Bdr | G27: 6 | H27: Waapstan | I27: David Neeposh | K27: 0 | M27: 12 | N27: 460 | O27: n | P27: 460 | Q27: 0 | R27: 424
A28: 10 | B28: Row-4Bdr | D28: 20 | E28: 7 | F28: triplex-3Bdr | G28: 8 | H28: Waapstan | I28: Michael J. Mianscum | K28: 0 | M28: 12 | N28: 460 | O28: n | P28: 460 | Q28: 0 | R28: 424
D29: 21 | E29: 7 | F29: triplex-3Bdr | G29: 10 | H29: Waapstan | I29: Irene Rabbitskin | K29: 0 | M29: 12 | N29: 460 | O29: n | P29: 460 | Q29: 0 | R29: 424
A30: 11 | B30: Bungalow-5Bdr | D30: 22 | E30: 7 | F30: triplex-3Bdr | G30: 12 | H30: Waapstan | I30: Allen Neeposh | K30: 0 | M30: 12 | N30: 460 | O30: n | P30: 460 | Q30: 0 | R30: 424
A31: 12 | B31: Duplex-5Bdr | D31: 23 | E31: 8 | F31: Bungalow-4Bdr | G31: 160 | H31: St-John Street | I31: Samuel Gunner | K31: 0 | M31: 12 | N31: 540 | O31: n | P31: 540 | Q31: 0 | R31: 478
D32: 24 | E32: 8 | F32: Bungalow-4Bdr | G32: 80 | H32: Pine Street | I32: Matoush Norman | K32: 0 | M32: 12 | N32: 540 | O32: n | P32: 540 | Q32: 0 | R32: 478
D33: 25 | E33: 8 | F33: Bungalow-4Bdr | G33: 16 | H33: Bedabin Street | I33: Clifford Benac | K33: 0 | M33: 12 | N33: 540 | O33: n | P33: 540 | Q33: 0 | R33: 478
D34: 26 | E34: 8 | F34: Bungalow-4Bdr | G34: 15 | H34: Bedabin Street | I34: Allen Coonishish | K34: 0 | M34: 12 | N34: 540 | O34: n | P34: 540 | Q34: 0 | R34: 478
D35: 27 | E35: 8 | F35: Bungalow-4Bdr | G35: 20 | H35: Bedabin Street | I35: Raymond Mattawashish | K35: 0 | M35: 12 | N35: 540 | O35: n | P35: 540 | Q35: 0 | R35: 478
D36: 28 | E36: 8 | F36: Bungalow-4Bdr | G36: 23 | H36: Bedabin Street | I36: David Trapper | K36: 0 | M36: 12 | N36: 540 | O36: n | P36: 540 | Q36: 0 | R36: 478
D37: 29 | E37: 8 | F37: Bungalow-4Bdr | G37: 26 | H37: Bedabin Street | I37: William P. Matoush | K37: 0 | M37: 12 | N37: 540 | O37: n | P37: 540 | Q37: 0 | R37: 434
D38: 30 | E38: 8 | F38: Bungalow-4Bdr | G38: 32 | H38: Bedabin Street | I38: Kenny Gunner | K38: 0 | M38: 12 | N38: 540 | O38: n | P38: 540 | Q38: 0 | R38: 478
D39: 31 | F39: 0 | K39: 0 | M39: 12 | N39: 0 | O39: n | P39: 0 | Q39: 0
D40: 32 | F40: 0 | K40: 0 | M40: 12 | N40: 0 | O40: n | P40: 0 | Q40: 0
D41: 33 | F41: 0 | K41: 0 | M41: 12 | N41: 0 | O41: n | P41: 0 | Q41: 0
D42: 34 | F42: 0 | K42: 0 | M42: 12 | N42: 0 | O42: n | P42: 0 | Q42: 0
D43: 35 | F43: 0 | K43: 0 | M43: 12 | N43: 0 | O43: n | P43: 0 | Q43: 0
D44: 36 | F44: 0 | K44: 0 | M44: 12 | N44: 0 | O44: n | P44: 0 | Q44: 0
D45: 37 | F45: 0 | K45: 0 | M45: 12 | N45: 0 | O45: n | P45: 0 | Q45: 0
D46: 38 | F46: 0 | K46: 0 | M46: 12 | N46: 0 | O46: n | P46: 0 | Q46: 0
D47: 39 | F47: 0 | K47: 0 | M47: 12 | N47: 0 | O47: n | P47: 0 | Q47: 0
D48: 40 | F48: 0 | K48: 0 | M48: 12 | N48: 0 | O48: n | P48: 0 | Q48: 0
A49: Pre-97 Project Number | I49: =B10 -> 022 | K49: Annual totals: | N49: =SUMPRODUCT(N9:N48,M9:M48) -> 170880 | P49: =SUMPRODUCT(P9:P48,M9:M48) ->  | Q49: =SUMPRODUCT(Q9:Q48,M9:M48) ->  | R49: =SUMPRODUCT(R9:R48,M9:M48) -> 142308
K50: Additional Funds required by Band to equal RGI | R50: =P49-R49 -> 

Sheet Summary for Pre-97 (hidden)
B2: Click to return to Main Menu
B4: SUMMARY OF RENTAL INCOME FOR ALL PRE-97 (CMHC) SOCIAL HOUSING PROJECTS
B6: Name of Community | D6: =#REF! -> 
B7: CMHC File No | D7: =#REF! -> 
B9: Pre-97 Projects | C9: No of Units | D9: Total Lower End of Market Rent (LEM) | E9: Total Rent Gear to Income (RGI) | F9: CMHC's Income Tested Assistance | G9: Additional Funds required by Band to equal RGI | H9: Actual Rent charged
B10: Project 001 | C10: ='P1'!$C$13 -> 25 | D10: ='P1'!$N$49 -> 150000 | E10: ='P1'!$P$49 ->  | F10: ='P1'!$Q$49 ->  | G10: ='P1'!$R$50 ->  | H10: ='P1'!$R$49 -> 125976
B11: Project 002 | C11: ='P2'!$C$13 -> 24 | D11: ='P2'!$N$49 -> 144000 | E11: ='P2'!$P$49 ->  | F11: ='P2'!$Q$49 ->  | G11: ='P2'!$R$50 ->  | H11: ='P2'!$R$49 -> 104340
B12: Project 003 | C12: ='P3'!$C$13 -> 19 | D12: ='P3'!$N$49 -> 102600 | E12: ='P3'!$P$49 ->  | F12: ='P3'!$Q$49 ->  | G12: ='P3'!$R$50 ->  | H12: ='P3'!$R$49 -> 82500
B13: Project 004 | C13: ='P4'!$C$13 -> 14 | D13: ='P4'!$N$49 -> 77280 | E13: ='P4'!$P$49 ->  | F13: ='P4'!$Q$49 ->  | G13: ='P4'!$R$50 ->  | H13: ='P4'!$R$49 -> 61764
B14: Project 005 | C14: ='P5'!$C$13 -> 20 | D14: ='P5'!$N$49 -> 120000 | E14: ='P5'!$P$49 ->  | F14: ='P5'!$Q$49 ->  | G14: ='P5'!$R$50 ->  | H14: ='P5'!$R$49 -> 90276
B15: Project 006 | C15: ='P6'!$C$13 -> 36 | D15: ='P6'!$N$49 -> 190080 | E15: ='P6'!$P$49 ->  | F15: ='P6'!$Q$49 ->  | G15: ='P6'!$R$50 ->  | H15: ='P6'!$R$49 -> 144696
B16: Project 007 | C16: ='P7'!$C$13 -> 19 | D16: ='P7'!$N$49 -> 114000 | E16: ='P7'!$P$49 ->  | F16: ='P7'!$Q$49 ->  | G16: ='P7'!$R$50 ->  | H16: ='P7'!$R$49 -> 82824
B17: Project 008 | C17: ='P8'!$C$13 -> 16 | D17: ='P8'!$N$49 -> 90240 | E17: ='P8'!$P$49 ->  | F17: ='P8'!$Q$49 ->  | G17: ='P8'!$R$50 ->  | H17: ='P8'!$R$49 -> 72888
B18: Project 009 | C18: ='P9'!$C$13 -> 22 | D18: ='P9'!$N$49 -> 142560 | E18: ='P9'!$P$49 ->  | F18: ='P9'!$Q$49 ->  | G18: ='P9'!$R$50 ->  | H18: ='P9'!$R$49 -> 109428
B19: Project 010 | C19: ='P10'!$C$13 -> 23 | D19: ='P10'!$N$49 -> 144240 | E19: ='P10'!$P$49 ->  | F19: ='P10'!$Q$49 ->  | G19: ='P10'!$R$50 ->  | H19: ='P10'!$R$49 -> 107748
B20: Project 011 | C20: ='P11'!$C$13 -> 35 | D20: ='P11'!$N$49 -> 226800 | E20: ='P11'!$P$49 ->  | F20: ='P11'!$Q$49 ->  | G20: ='P11'!$R$50 ->  | H20: ='P11'!$R$49 -> 171168
B21: Project 012 | C21: ='P12'!$C$13 -> 10 | D21: ='P12'!$N$49 -> 64800 | E21: ='P12'!$P$49 ->  | F21: ='P12'!$Q$49 ->  | G21: ='P12'!$R$50 ->  | H21: ='P12'!$R$49 -> 50436
B22: Project 013 | C22: ='P13'!$C$13 -> 10 | D22: ='P13'!$N$49 -> 64800 | E22: ='P13'!$P$49 ->  | F22: ='P13'!$Q$49 ->  | G22: ='P13'!$R$50 ->  | H22: ='P13'!$R$49 -> 56712
B23: Project 014 | C23: ='P14'!$C$13 -> 6 | D23: ='P14'!$N$49 -> 38880 | E23: ='P14'!$P$49 ->  | F23: ='P14'!$Q$49 ->  | G23: ='P14'!$R$50 ->  | H23: ='P14'!$R$49 -> 32580
B24: Project 015 | C24: ='P15'!$C$13 -> 10 | D24: ='P15'!$N$49 -> 64800 | E24: ='P15'!$P$49 ->  | F24: ='P15'!$Q$49 ->  | G24: ='P15'!$R$50 ->  | H24: ='P15'!$R$49 -> 48384
B25: Project 016 | C25: ='P16'!$C$13 -> 20 | D25: ='P16'!$N$49 -> 115560 | E25: ='P16'!$P$49 ->  | F25: ='P16'!$Q$49 ->  | G25: ='P16'!$R$50 ->  | H25: ='P16'!$R$49 -> 72840
B26: Project 017 | C26: ='P17'!$C$13 -> 16 | D26: ='P17'!$N$49 -> 100800 | E26: ='P17'!$P$49 ->  | F26: ='P17'!$Q$49 ->  | G26: ='P17'!$R$50 ->  | H26: ='P17'!$R$49 -> 69756
B27: Project 018 | C27: ='P18'!$C$13 -> 10 | D27: ='P18'!$N$49 -> 54000 | E27: ='P18'!$P$49 ->  | F27: ='P18'!$Q$49 ->  | G27: ='P18'!$R$50 ->  | H27: ='P18'!$R$49 -> 31764
B28: Project 019 | C28: ='P19'!$C$13 -> 31 | D28: ='P19'!$N$49 -> 153360 | E28: ='P19'!$P$49 ->  | F28: ='P19'!$Q$49 ->  | G28: ='P19'!$R$50 ->  | H28: ='P19'!$R$49 -> 91596
B29: Project 020 | C29: ='P20'!$C$13 -> 11 | D29: ='P20'!$N$49 -> 68400 | E29: ='P20'!$P$49 ->  | F29: ='P20'!$Q$49 ->  | G29: ='P20'!$R$50 ->  | H29: ='P20'!$R$49 -> 52092
B30: Project 021 | C30: ='P21'!$C$13 -> 9 | D30: ='P21'!$N$49 -> 56400 | E30: ='P21'!$P$49 ->  | F30: ='P21'!$Q$49 ->  | G30: ='P21'!$R$50 ->  | H30: ='P21'!$R$49 -> 40176
B31: Project 022 | C31: ='P22'!$C$13 -> 30 | D31: ='P22'!$N$49 -> 170880 | E31: ='P22'!$P$49 ->  | F31: ='P22'!$Q$49 ->  | G31: ='P22'!$R$50 ->  | H31: ='P22'!$R$49 -> 142308
B32: Total Pre-97 | C32: =SUM(C10:C31) -> 416 | D32: 2454480 | H32: 1842252

Sheet N6 (hidden)
B2: Click to return to Main Menu
A5: Name of Community | F5: =#REF! ->  | J5: CMHC File No | L5: =#REF! -> 
D6: Unit No | E6: Type of Unit | G6: Address | I6: Tenant's Name | J6: Months Occupied | K6: Minimum monthly revenue contribution according to 301 form | L6: Actual Monthly Rent Charged
B7: Project Number
G8: Civic No | H8: Street
D9: 1 | E9: 8 | F9: =IF(E9<>"",VLOOKUP(E9,$A$16:$C$31,2),0) -> Bungalow-4Bdr | G9: 17 | H9: Blazo-U-Meskanum St. | I9: Leona G. Hester | J9: 12 | K9: =IF(E9<>"",VLOOKUP(E9,$A$16:$C$31,3),0) -> 310 | L9: 445
B10: N006 | D10: 2 | E10: 8 | F10: =IF(E10<>"",VLOOKUP(E10,$A$16:$C$31,2),0) -> Bungalow-4Bdr | G10: 27 | H10: Blazo-U-Meskanum St. | I10: Jimmy Paul Coon Come | J10: 12 | K10: =IF(E10<>"",VLOOKUP(E10,$A$16:$C$31,3),0) -> 310 | L10: 478
D11: 3 | E11: 8 | F11: Bungalow-4Bdr | G11: 10 | H11: Waapstan W. St. | I11: Clifford I. Neeposh | J11: 12 | K11: 310 | L11: 478
D12: 4 | E12: 8 | F12: Bungalow-4Bdr | G12: 11 | H12: Waapstan W. St. | I12: Johnny Loon | J12: 12 | K12: 310 | L12: 478
A13: TYPE | B13: No of Units | C13: 10 | D13: 5 | E13: 8 | F13: Bungalow-4Bdr | G13: 12 | H13: Waapstan W. St. | I13: Shawn Neeposh | J13: 12 | K13: 310 | L13: 478
D14: 6 | E14: 8 | F14: Bungalow-4Bdr | G14: 13 | H14: Waapstan W. St. | I14: Claude Coon | J14: 12 | K14: 310 | L14: 478
B15: Model | C15: 301 | D15: 7 | E15: 8 | F15: Bungalow-4Bdr | G15: 14 | H15: Waapstan W. St. | I15: Daniel Mianscum | J15: 12 | K15: 310 | L15: 397
A16: 1 | B16: Triplex-1Bdr | D16: 8 | E16: 8 | F16: Bungalow-4Bdr | G16: 15 | H16: Waapstan W. St. | I16: Hattie Mary Coonishish | J16: 12 | K16: 310 | L16: 478
A17: 2 | B17: Quadruplex-1Bdr | D17: 9 | E17: 8 | F17: Bungalow-4Bdr | G17: 18 | H17: Waapstan W. St. | I17: Alex Brien | J17: 12 | K17: 310 | L17: 478
D18: 10 | E18: 8 | F18: Bungalow-4Bdr | G18: 19 | H18: Waapstan W. St. | I18: Johnny H. Coon | J18: 12 | K18: 310 | L18: 478
A19: 3 | B19: Duplex-2Bdr | D19: 11 | F19: 0 | J19: 12 | K19: 0
A20: 4 | B20: Triplex-2Bdr | D20: 12 | F20: 0 | J20: 12 | K20: 0
D21: 13 | F21: 0 | J21: 12 | K21: 0
A22: 5 | B22: Bungalow-3Bdr | D22: 14 | F22: 0 | J22: 12 | K22: 0
A23: 6 | B23: Duplex-3Bdr | D23: 15 | F23: 0 | J23: 12 | K23: 0
A24: 7 | B24: Row-3Bdr | D24: 16 | F24: 0 | J24: 12 | K24: 0
D25: 17 | F25: 0 | J25: 12 | K25: 0
A26: 8 | B26: Bungalow-4Bdr | C26: 310 | D26: 18 | F26: 0 | J26: 12 | K26: 0
A27: 9 | B27: Duplex-4Bdr | D27: 19 | F27: 0 | J27: 12 | K27: 0
A28: 10 | B28: Row-4Bdr | D28: 20 | F28: 0 | J28: 12 | K28: 0
D29: 21 | F29: 0 | J29: 12 | K29: 0
A30: 11 | B30: Bungalow-5Bdr | D30: 22 | F30: 0 | J30: 12 | K30: 0
A31: 12 | B31: Duplex-5Bdr | D31: 23 | F31: 0 | J31: 12 | K31: 0
D32: 24 | F32: 0 | J32: 12 | K32: 0
D33: 25 | F33: 0 | J33: 12 | K33: 0
D34: 26 | F34: 0 | J34: 12 | K34: 0
D35: 27 | F35: 0 | J35: 12 | K35: 0
D36: 28 | F36: 0 | J36: 12 | K36: 0
D37: 29 | F37: 0 | J37: 12 | K37: 0
D38: 30 | F38: 0 | J38: 12 | K38: 0
D39: 31 | F39: 0 | J39: 12 | K39: 0
D40: 32 | F40: 0 | J40: 12 | K40: 0
D41: 33 | F41: 0 | J41: 12 | K41: 0
D42: 34 | F42: 0 | J42: 12 | K42: 0
D43: 35 | F43: 0 | J43: 12 | K43: 0
D44: 36 | F44: 0 | J44: 12 | K44: 0
D45: 37 | F45: 0 | J45: 12 | K45: 0
D46: 38 | F46: 0 | J46: 12 | K46: 0
D47: 39 | F47: 0 | J47: 12 | K47: 0
D48: 40 | F48: 0 | J48: 12 | K48: 0
A49: Post-96 Project Number | I49: =B10 -> N006 | K49: =SUMPRODUCT(K9:K48,J9:J48) -> 37200 | L49: =SUMPRODUCT(L9:L48,J9:J48) -> 55992
J50: Difference | L50: =L49-K49 -> 18792

Sheet N7 (hidden)
B2: Click to return to Main Menu
A5: Name of Community | F5: =#REF! ->  | J5: CMHC File No | L5: =#REF! -> 
D6: Unit No | E6: Type of Unit | G6: Address | I6: Tenant's Name | J6: Months Occupied | K6: Minimum monthly revenue contribution according to 301 form | L6: Actual Monthly Rent Charged
B7: Project Number
G8: Civic No | H8: Street
D9: 1 | E9: 8 | F9: =IF(E9<>"",VLOOKUP(E9,$A$16:$C$31,2),0) -> Bungalow-4Bdr | G9: 22 | H9: Petawabano E. St. | I9: Emmett MacLeod | J9: 12 | K9: =IF(E9<>"",VLOOKUP(E9,$A$16:$C$31,3),0) -> 314 | L9: 478
B10: N007 | D10: 2 | E10: 8 | F10: =IF(E10<>"",VLOOKUP(E10,$A$16:$C$31,2),0) -> Bungalow-4Bdr | G10: 24 | H10: Petawabano E. St. | I10: Suzan Wapachee | J10: 12 | K10: =IF(E10<>"",VLOOKUP(E10,$A$16:$C$31,3),0) -> 314 | L10: 478
D11: 3 | E11: 8 | F11: Bungalow-4Bdr | G11: 25 | H11: Petawabano E. St. | I11: Benjamin John Loon | J11: 12 | K11: 314 | L11: 445
D12: 4 | E12: 8 | F12: Bungalow-4Bdr | G12: 26 | H12: Petawabano E. St. | I12: Lukie Iserhoff | J12: 12 | K12: 314 | L12: 377
A13: TYPE | B13: No of Units | C13: 12 | D13: 5 | E13: 8 | F13: Bungalow-4Bdr | G13: 27 | H13: Petawabano E. St. | I13: John Matoush | J13: 12 | K13: 314 | L13: 478
D14: 6 | E14: 8 | F14: Bungalow-4Bdr | G14: 29 | H14: Petawabano E. St. | I14: Johnny Dixon | J14: 12 | K14: 314 | L14: 478
B15: Model | C15: 301 | D15: 7 | E15: 8 | F15: Bungalow-4Bdr | G15: 103 | H15: Waabinuutau W. St. | I15: Titus Shecapio | J15: 12 | K15: 314 | L15: 478
A16: 1 | B16: Triplex-1Bdr | D16: 8 | E16: 8 | F16: Bungalow-4Bdr | G16: 105 | H16: Waabinuutau W. St. | I16: Joseph P. Swallow | J16: 12 | K16: 314 | L16: 405
A17: 2 | B17: Quadruplex-1Bdr | D17: 9 | E17: 8 | F17: Bungalow-4Bdr | G17: 2 | H17: Waapstan W. St. | I17: Jerry Matoush | J17: 12 | K17: 314 | L17: 478
D18: 10 | E18: 8 | F18: Bungalow-4Bdr | G18: 4 | H18: Waapstan W. St. | I18: John Iserhoff | J18: 12 | K18: 314 | L18: 478
A19: 3 | B19: Duplex-2Bdr | D19: 11 | E19: 8 | F19: Bungalow-4Bdr | G19: 6 | H19: Waapstan W. St. | I19: Samuel I. Shecapio | J19: 12 | K19: 314 | L19: 458
A20: 4 | B20: Triplex-2Bdr | D20: 12 | E20: 8 | F20: Bungalow-4Bdr | G20: 8 | H20: Waapstan W. St. | I20: Maggie Coonishish | J20: 12 | K20: 314 | L20: 478
D21: 13 | F21: 0 | J21: 12 | K21: 0
A22: 5 | B22: Bungalow-3Bdr | D22: 14 | F22: 0 | J22: 12 | K22: 0
A23: 6 | B23: Duplex-3Bdr | D23: 15 | F23: 0 | J23: 12 | K23: 0
A24: 7 | B24: Row-3Bdr | D24: 16 | F24: 0 | J24: 12 | K24: 0
D25: 17 | F25: 0 | J25: 12 | K25: 0
A26: 8 | B26: Bungalow-4Bdr | C26: 314 | D26: 18 | F26: 0 | J26: 12 | K26: 0
A27: 9 | B27: Duplex-4Bdr | D27: 19 | F27: 0 | J27: 12 | K27: 0
A28: 10 | B28: Row-4Bdr | D28: 20 | F28: 0 | J28: 12 | K28: 0
D29: 21 | F29: 0 | J29: 12 | K29: 0
A30: 11 | B30: Bungalow-5Bdr | D30: 22 | F30: 0 | J30: 12 | K30: 0
A31: 12 | B31: Duplex-5Bdr | D31: 23 | F31: 0 | J31: 12 | K31: 0
D32: 24 | F32: 0 | J32: 12 | K32: 0
D33: 25 | F33: 0 | J33: 12 | K33: 0
D34: 26 | F34: 0 | J34: 12 | K34: 0
D35: 27 | F35: 0 | J35: 12 | K35: 0
D36: 28 | F36: 0 | J36: 12 | K36: 0
D37: 29 | F37: 0 | J37: 12 | K37: 0
D38: 30 | F38: 0 | J38: 12 | K38: 0
D39: 31 | F39: 0 | J39: 12 | K39: 0
D40: 32 | F40: 0 | J40: 12 | K40: 0
D41: 33 | F41: 0 | J41: 12 | K41: 0
D42: 34 | F42: 0 | J42: 12 | K42: 0
D43: 35 | F43: 0 | J43: 12 | K43: 0
D44: 36 | F44: 0 | J44: 12 | K44: 0
D45: 37 | F45: 0 | J45: 12 | K45: 0
D46: 38 | F46: 0 | J46: 12 | K46: 0
D47: 39 | F47: 0 | J47: 12 | K47: 0
D48: 40 | F48: 0 | J48: 12 | K48: 0
A49: Post-96 Project Number | I49: =B10 -> N007 | K49: =SUMPRODUCT(K9:K48,J9:J48) -> 45216 | L49: =SUMPRODUCT(L9:L48,J9:J48) -> 66108
J50: Difference | L50: =L49-K49 -> 20892

Sheet N8 (hidden)
B2: Click to return to Main Menu
A5: Name of Community | F5: =#REF! ->  | J5: CMHC File No | L5: =#REF! -> 
D6: Unit No | E6: Type of Unit | G6: Address | I6: Tenant's Name | J6: Months Occupied | K6: Minimum monthly revenue contribution according to 301 form | L6: Actual Monthly Rent Charged
B7: Project Number
G8: Civic No | H8: Street
D9: 1 | E9: 1 | F9: =IF(E9<>"",VLOOKUP(E9,$A$16:$C$31,2),0) -> Bungalow-1Bdr | G9: 30-A | H9: Petawabano E. St. | I9: Christine Petawabano | J9: 12 | K9: =IF(E9<>"",VLOOKUP(E9,$A$16:$C$31,3),0) -> 250 | L9: 340
B10: N008 | D10: 2 | E10: 1 | F10: =IF(E10<>"",VLOOKUP(E10,$A$16:$C$31,2),0) -> Bungalow-1Bdr | G10: 30-B | H10: Petawabano E. St. | I10: Sophie Blacksmith | J10: 12 | K10: =IF(E10<>"",VLOOKUP(E10,$A$16:$C$31,3),0) -> 250 | L10: 340
D11: 3 | E11: 1 | F11: Bungalow-1Bdr | G11: 32-A | H11: Petawabano E. St. | I11: Jane Blacksmith | J11: 12 | K11: 250 | L11: 340
D12: 4 | E12: 1 | F12: Bungalow-1Bdr | G12: 32-B | H12: Petawabano E. St. | I12: Ron Mianscum | J12: 12 | K12: 250 | L12: 251
A13: TYPE | B13: No of Units | C13: 23 | D13: 5 | E13: 5 | F13: Bungalow-3Bdr | G13: 149 | H13: Bishchewananch St. | I13: Edgar Gunner | J13: 12 | K13: 289 | L13: 450
D14: 6 | E14: 5 | F14: Bungalow-3Bdr | G14: 151 | H14: Bishchewananch St. | I14: Jessica Iserhoff | J14: 12 | K14: 289 | L14: 230
B15: Model | C15: 301 | D15: 7 | E15: 5 | F15: Bungalow-3Bdr | G15: 153 | H15: Bishchewananch St. | I15: Marcel Blacksmith Sr. | J15: 12 | K15: 289 | L15: 450
A16: 1 | B16: Bungalow-1Bdr | C16: 250 | D16: 8 | E16: 5 | F16: Bungalow-3Bdr | G16: 155 | H16: Bishchewananch St. | I16: David Jimiken | J16: 12 | K16: 289 | L16: 450
A17: 2 | B17: Quadruplex-1Bdr | D17: 9 | E17: 5 | F17: Bungalow-3Bdr | G17: 42 | H17: Petawabano E. St. | I17: Isabelle Awashish | J17: 12 | K17: 289 | L17: 177
D18: 10 | E18: 5 | F18: Bungalow-3Bdr | G18: 44 | H18: Petawabano E. St. | I18: Nathaniel Coon Come | J18: 12 | K18: 289 | L18: 450
A19: 3 | B19: Duplex-2Bdr | D19: 11 | E19: 5 | F19: Bungalow-3Bdr | G19: 46 | H19: Petawabano E. St. | I19: Elizabeth Coon Come | J19: 12 | K19: 289 | L19: 103
A20: 4 | B20: Triplex-2Bdr | D20: 12 | E20: 5 | F20: Bungalow-3Bdr | G20: 47 | H20: Petawabano E. St. | I20: Isaac Trapper | J20: 12 | K20: 289 | L20: 450
D21: 13 | E21: 5 | F21: Bungalow-3Bdr | G21: 48 | H21: Petawabano E. St. | I21: Gordon S. Gunner | J21: 12 | K21: 289 | L21: 450
A22: 5 | B22: Bungalow-3Bdr | C22: 289 | D22: 14 | E22: 5 | F22: Bungalow-3Bdr | G22: 49 | H22: Petawabano E. St. | I22: James Shecapio | J22: 12 | K22: 289 | L22: 450
A23: 6 | B23: Duplex-3Bdr | D23: 15 | E23: 5 | F23: Bungalow-3Bdr | G23: 50 | H23: Petawabano E. St. | I23: Helen Brien | J23: 12 | K23: 289 | L23: 126
A24: 7 | B24: Row-3Bdr | D24: 16 | E24: 5 | F24: Bungalow-3Bdr | G24: 51 | H24: Petawabano E. St. | I24: David Iserhoff | J24: 12 | K24: 289 | L24: 450
D25: 17 | E25: 5 | F25: Bungalow-3Bdr | G25: 60 | H25: Waabinuutau St. | I25: Nancy Loon | J25: 12 | K25: 289 | L25: 450
A26: 8 | B26: Bungalow-4Bdr | C26: 365 | D26: 18 | E26: 5 | F26: Bungalow-3Bdr | G26: 62 | H26: Waabinuutau St. | I26: Maggie C. Longchap | J26: 12 | K26: 289 | L26: 209
A27: 9 | B27: Duplex-4Bdr | D27: 19 | E27: 5 | F27: Bungalow-3Bdr | G27: 64 | H27: Waabinuutau St. | I27: Nannie Blacksmith | J27: 12 | K27: 289 | L27: 312
A28: 10 | B28: Row-4Bdr | D28: 20 | E28: 8 | F28: Bungalow-4Bdr | G28: 152 | H28: Bishchewananch St. | I28: Norman Trapper | J28: 12 | K28: 365 | L28: 478
D29: 21 | E29: 8 | F29: Bungalow-4Bdr | G29: 28 | H29: Petawabano E. St. | I29: Charlie Gunner | J29: 12 | K29: 365 | L29: 478
A30: 11 | B30: Bungalow-5Bdr | D30: 22 | E30: 8 | F30: Bungalow-4Bdr | G30: 43 | H30: Petawabano E. St. | I30: Paul Petawabano Jr. | J30: 12 | K30: 365 | L30: 478
A31: 12 | B31: Duplex-5Bdr | D31: 23 | E31: 8 | F31: Bungalow-4Bdr | G31: 106 | H31: Waabinuutau St. | I31: Christian Swallow | J31: 12 | K31: 365 | L31: 478
D32: 24 | F32: 0 | J32: 12 | K32: 0
D33: 25 | F33: 0 | J33: 12 | K33: 0
D34: 26 | F34: 0 | J34: 12 | K34: 0
D35: 27 | F35: 0 | J35: 12 | K35: 0
D36: 28 | F36: 0 | J36: 12 | K36: 0
D37: 29 | F37: 0 | J37: 12 | K37: 0
D38: 30 | F38: 0 | J38: 12 | K38: 0
D39: 31 | F39: 0 | J39: 12 | K39: 0
D40: 32 | F40: 0 | J40: 12 | K40: 0
D41: 33 | F41: 0 | J41: 12 | K41: 0
D42: 34 | F42: 0 | J42: 12 | K42: 0
D43: 35 | F43: 0 | J43: 12 | K43: 0
D44: 36 | F44: 0 | J44: 12 | K44: 0
D45: 37 | F45: 0 | J45: 12 | K45: 0
D46: 38 | F46: 0 | J46: 12 | K46: 0
D47: 39 | F47: 0 | J47: 12 | K47: 0
D48: 40 | F48: 0 | J48: 12 | K48: 0
A49: Post-96 Project Number | I49: =B10 -> N008 | K49: =SUMPRODUCT(K9:K48,J9:J48) -> 81540 | L49: =SUMPRODUCT(L9:L48,J9:J48) -> 100680
J50: Difference | L50: =L49-K49 -> 19140

Sheet N9 (hidden)
B2: Click to return to Main Menu
A5: Name of Community | F5: =#REF! ->  | J5: CMHC File No | L5: =#REF! -> 
D6: Unit No | E6: Type of Unit | G6: Address | I6: Tenant's Name | J6: Months Occupied | K6: Minimum monthly revenue contribution according to 301 form | L6: Actual Monthly Rent Charged
B7: Project Number
G8: Civic No | H8: Street
D9: 1 | E9: 1 | F9: =IF(E9<>"",VLOOKUP(E9,$A$16:$C$31,2),0) -> bungalow-1Bdr | G9: 37-A | H9: Blazo-U-Meskinam St. | I9: Racheal Brien | J9: 12 | K9: =IF(E9<>"",VLOOKUP(E9,$A$16:$C$31,3),0) -> 275
B10: N009 | D10: 2 | E10: 1 | F10: =IF(E10<>"",VLOOKUP(E10,$A$16:$C$31,2),0) -> bungalow-1Bdr | G10: 37-B | H10: Blazo-U-Meskinam St. | I10: Harry Blacksmtih | J10: 12 | K10: =IF(E10<>"",VLOOKUP(E10,$A$16:$C$31,3),0) -> 275 | L10: 289
D11: 3 | E11: 8 | F11: Bungalow-4Bdr | G11: 11 | H11: Kebatakin St. | I11: Andy Metabie | J11: 12 | K11: 389 | L11: 478
D12: 4 | E12: 8 | F12: Bungalow-4Bdr | G12: 13 | H12: Kebatakin St. | I12: Johnny Matoush | J12: 12 | K12: 389 | L12: 478
A13: TYPE | B13: No of Units | C13: 25 | D13: 5 | E13: 8 | F13: Bungalow-4Bdr | G13: 15 | H13: Kebatakin St. | I13: Kitty Blacksmith | J13: 12 | K13: 389 | L13: 478
D14: 6 | E14: 8 | F14: Bungalow-4Bdr | G14: 11 | H14: Mischewek St. | I14: Alex Coonishish | J14: 12 | K14: 389 | L14: 478
B15: Model | C15: 301 | D15: 7 | E15: 5 | F15: Bungalow-3Bdr | G15: 13 | H15: Mischewek St. | I15: Wilbert Shecapio | J15: 12 | K15: 350 | L15: 424
A16: 1 | B16: bungalow-1Bdr | C16: 275 | D16: 8 | E16: 5 | F16: Bungalow-3Bdr | G16: 15 | H16: Mischewek St. | I16: Abel Trapper | J16: 12 | K16: 350 | L16: 424
A17: 2 | B17: Quadruplex-1Bdr | D17: 9 | E17: 5 | F17: Bungalow-3Bdr | G17: 17 | H17: Mischewek St. | I17: April B. Iserhoff | J17: 12 | K17: 350 | L17: 424
D18: 10 | E18: 5 | F18: Bungalow-3Bdr | G18: 19 | H18: Mischewek St. | I18: Timothy Matoush | J18: 12 | K18: 350 | L18: 424
A19: 3 | B19: Duplex-2Bdr | D19: 11 | E19: 5 | F19: Bungalow-3Bdr | G19: 27 | H19: Mischewek St. | I19: Uriah Neeposh | J19: 12 | K19: 350 | L19: 386
A20: 4 | B20: Triplex-2Bdr | D20: 12 | E20: 5 | F20: Bungalow-3Bdr | G20: 28 | H20: Mischewek St. | I20: Dale Petawabano | J20: 12 | K20: 350 | L20: 424
D21: 13 | E21: 5 | F21: Bungalow-3Bdr | G21: 29 | H21: Mischewek St. | I21: Anna Mabel Trapper | J21: 12 | K21: 350 | L21: 424
A22: 5 | B22: Bungalow-3Bdr | C22: 350 | D22: 14 | E22: 5 | F22: Bungalow-3Bdr | G22: 30 | H22: Mischewek St. | I22: Hattie Longchap | J22: 12 | K22: 350 | L22: 395
A23: 6 | B23: Duplex-3Bdr | D23: 15 | E23: 5 | F23: Bungalow-3Bdr | G23: 31 | H23: Mischewek St. | I23: Mary Sarah Shecapio | J23: 12 | K23: 350 | L23: 424
A24: 7 | B24: Row-3Bdr | D24: 16 | E24: 5 | F24: Bungalow-3Bdr | G24: 32 | H24: Mischewek St. | I24: Carmilla Gunner | J24: 12 | K24: 350 | L24: 193
D25: 17 | E25: 1 | F25: bungalow-1Bdr | G25: 183 | H25: Nesk St. | I25: Noel Coon Come | J25: 12 | K25: 275 | L25: 286
A26: 8 | B26: Bungalow-4Bdr | C26: 389 | D26: 18 | E26: 1 | F26: bungalow-1Bdr | G26: 185 | H26: Nesk St. | I26: Benjamin R. Loon | J26: 12 | K26: 275 | L26: 340
A27: 9 | B27: Duplex-4Bdr | D27: 19 | E27: 1 | F27: bungalow-1Bdr | G27: 28-A | H27: Nichuk St. (Blazo St.) | I27: Hattie Coonishish Jr. | J27: 12 | K27: 275 | L27: 160
A28: 10 | B28: Row-4Bdr | D28: 20 | E28: 1 | F28: bungalow-1Bdr | G28: 28-B | H28: Nichuk St. (Blazo St.) | I28: Louise Iserhoff | J28: 12 | K28: 275 | L28: 154
D29: 21 | E29: 8 | F29: Bungalow-4Bdr | G29: 312 | H29: Queen St. | I29: Jerry Coon | J29: 12 | K29: 389 | L29: 478
A30: 11 | B30: Bungalow-5Bdr | D30: 22 | E30: 8 | F30: Bungalow-4Bdr | G30: 21 | H30: Waabinuutau St. | I30: George Iserhoff | J30: 12 | K30: 389 | L30: 450
A31: 12 | B31: Duplex-5Bdr | D31: 23 | E31: 8 | F31: Bungalow-4Bdr | G31: 23 | H31: Waabinuutau St. | I31: Billy Longchap | J31: 12 | K31: 389 | L31: 478
D32: 24 | E32: 5 | F32: Bungalow-3Bdr | G32: 58-A | H32: Waabinuutau St. | I32: Michael Shecapio | J32: 12 | K32: 350 | L32: 424
D33: 25 | E33: 5 | F33: Bungalow-3Bdr | G33: 58-B | H33: Waabinuutau St. | I33: Raymond Brien | J33: 12 | K33: 350 | L33: 424
D34: 26 | F34: 0 | J34: 12 | K34: 0
D35: 27 | F35: 0 | K35: 0
D36: 28 | F36: 0 | K36: 0
D37: 29 | F37: 0 | K37: 0
D38: 30 | F38: 0 | K38: 0
D39: 31 | F39: 0 | K39: 0
D40: 32 | F40: 0 | K40: 0
D41: 33 | F41: 0 | K41: 0
D42: 34 | F42: 0 | K42: 0
D43: 35 | F43: 0 | K43: 0
D44: 36 | F44: 0 | K44: 0
D45: 37 | F45: 0 | K45: 0
D46: 38 | F46: 0 | K46: 0
D47: 39 | F47: 0 | K47: 0
D48: 40 | F48: 0 | J48: 12 | K48: 0
A49: Post-96 Project Number | I49: =B10 -> N009 | K49: =SUMPRODUCT(K9:K48,J9:J48) -> 102876 | L49: =SUMPRODUCT(L9:L48,J9:J48) -> 112044
J50: Difference | L50: =L49-K49 -> 9168

Sheet N10 (hidden)
B2: Click to return to Main Menu
A5: Name of Community | F5: =#REF! ->  | J5: CMHC File No | L5: =#REF! -> 
D6: Unit No | E6: Type of Unit | G6: Address | I6: Tenant's Name | J6: Months Occupied | K6: Minimum monthly revenue contribution according to 301 form | L6: Actual Monthly Rent Charged
B7: Project Number
G8: Civic No | H8: Street
D9: 1 | F9: =IF(E9<>"",VLOOKUP(E9,$A$16:$C$31,2),0) -> 0 | J9: 12 | K9: =IF(E9<>"",VLOOKUP(E9,$A$16:$C$31,3),0) -> 0
B10: N010 | D10: 2 | F10: =IF(E10<>"",VLOOKUP(E10,$A$16:$C$31,2),0) -> 0 | J10: 12 | K10: =IF(E10<>"",VLOOKUP(E10,$A$16:$C$31,3),0) -> 0
D11: 3 | F11: 0 | J11: 12 | K11: 0
D12: 4 | F12: 0 | J12: 12 | K12: 0
A13: TYPE | B13: No of Units | D13: 5 | F13: 0 | J13: 12 | K13: 0
D14: 6 | F14: 0 | J14: 12 | K14: 0
B15: Model | C15: 301 | D15: 7 | F15: 0 | J15: 12 | K15: 0
A16: 1 | B16: Triplex-1Bdr | D16: 8 | F16: 0 | J16: 12 | K16: 0
A17: 2 | B17: Quadruplex-1Bdr | D17: 9 | F17: 0 | J17: 12 | K17: 0
D18: 10 | F18: 0 | J18: 12 | K18: 0
A19: 3 | B19: Duplex-2Bdr | D19: 11 | F19: 0 | J19: 12 | K19: 0
A20: 4 | B20: Triplex-2Bdr | D20: 12 | F20: 0 | J20: 12 | K20: 0
D21: 13 | F21: 0 | J21: 12 | K21: 0
A22: 5 | B22: Bungalow-3Bdr | D22: 14 | F22: 0 | J22: 12 | K22: 0
A23: 6 | B23: Duplex-3Bdr | D23: 15 | F23: 0 | J23: 12 | K23: 0
A24: 7 | B24: Row-3Bdr | D24: 16 | F24: 0 | J24: 12 | K24: 0
D25: 17 | F25: 0 | J25: 12 | K25: 0
A26: 8 | B26: Bungalow-4Bdr | D26: 18 | F26: 0 | J26: 12 | K26: 0
A27: 9 | B27: Duplex-4Bdr | D27: 19 | F27: 0 | J27: 12 | K27: 0
A28: 10 | B28: Row-4Bdr | D28: 20 | F28: 0 | J28: 12 | K28: 0
D29: 21 | F29: 0 | J29: 12 | K29: 0
A30: 11 | B30: Bungalow-5Bdr | D30: 22 | F30: 0 | J30: 12 | K30: 0
A31: 12 | B31: Duplex-5Bdr | D31: 23 | F31: 0 | J31: 12 | K31: 0
D32: 24 | F32: 0 | J32: 12 | K32: 0
D33: 25 | F33: 0 | J33: 12 | K33: 0
D34: 26 | F34: 0 | J34: 12 | K34: 0
D35: 27 | F35: 0 | J35: 12 | K35: 0
D36: 28 | F36: 0 | J36: 12 | K36: 0
D37: 29 | F37: 0 | J37: 12 | K37: 0
D38: 30 | F38: 0 | J38: 12 | K38: 0
D39: 31 | F39: 0 | J39: 12 | K39: 0
D40: 32 | F40: 0 | J40: 12 | K40: 0
D41: 33 | F41: 0 | J41: 12 | K41: 0
D42: 34 | F42: 0 | J42: 12 | K42: 0
D43: 35 | F43: 0 | J43: 12 | K43: 0
D44: 36 | F44: 0 | J44: 12 | K44: 0
D45: 37 | F45: 0 | J45: 12 | K45: 0
D46: 38 | F46: 0 | J46: 12 | K46: 0
D47: 39 | F47: 0 | J47: 12 | K47: 0
D48: 40 | F48: 0 | J48: 12 | K48: 0
A49: Post-96 Project Number | I49: =B10 -> N010 | K49: =SUMPRODUCT(K9:K48,J9:J48) -> 0 | L49: =SUMPRODUCT(L9:L48,J9:J48) -> 0
J50: Difference | L50: =L49-K49 -> 0

Sheet N11 (hidden)
B2: Click to return to Main Menu
A5: Name of Community | F5: =#REF! ->  | J5: CMHC File No | L5: =#REF! -> 
D6: Unit No | E6: Type of Unit | G6: Address | I6: Tenant's Name | J6: Months Occupied | K6: Minimum monthly revenue contribution according to 301 form | L6: Actual Monthly Rent Charged
B7: Project Number
G8: Civic No | H8: Street
D9: 1 | F9: =IF(E9<>"",VLOOKUP(E9,$A$16:$C$31,2),0) -> 0 | J9: 12 | K9: =IF(E9<>"",VLOOKUP(E9,$A$16:$C$31,3),0) -> 0
B10: N011 | D10: 2 | F10: =IF(E10<>"",VLOOKUP(E10,$A$16:$C$31,2),0) -> 0 | J10: 12 | K10: =IF(E10<>"",VLOOKUP(E10,$A$16:$C$31,3),0) -> 0
D11: 3 | F11: 0 | J11: 12 | K11: 0
D12: 4 | F12: 0 | J12: 12 | K12: 0
A13: TYPE | B13: No of Units | D13: 5 | F13: 0 | J13: 12 | K13: 0
D14: 6 | F14: 0 | J14: 12 | K14: 0
B15: Model | C15: 301 | D15: 7 | F15: 0 | J15: 12 | K15: 0
A16: 1 | B16: Triplex-1Bdr | D16: 8 | F16: 0 | J16: 12 | K16: 0
A17: 2 | B17: Quadruplex-1Bdr | D17: 9 | F17: 0 | J17: 12 | K17: 0
D18: 10 | F18: 0 | J18: 12 | K18: 0
A19: 3 | B19: Duplex-2Bdr | D19: 11 | F19: 0 | J19: 12 | K19: 0
A20: 4 | B20: Triplex-2Bdr | D20: 12 | F20: 0 | J20: 12 | K20: 0
D21: 13 | F21: 0 | J21: 12 | K21: 0
A22: 5 | B22: Bungalow-3Bdr | D22: 14 | F22: 0 | J22: 12 | K22: 0
A23: 6 | B23: Duplex-3Bdr | D23: 15 | F23: 0 | J23: 12 | K23: 0
A24: 7 | B24: Row-3Bdr | D24: 16 | F24: 0 | J24: 12 | K24: 0
D25: 17 | F25: 0 | J25: 12 | K25: 0
A26: 8 | B26: Bungalow-4Bdr | D26: 18 | F26: 0 | J26: 12 | K26: 0
A27: 9 | B27: Duplex-4Bdr | D27: 19 | F27: 0 | J27: 12 | K27: 0
A28: 10 | B28: Row-4Bdr | D28: 20 | F28: 0 | J28: 12 | K28: 0
D29: 21 | F29: 0 | J29: 12 | K29: 0
A30: 11 | B30: Bungalow-5Bdr | D30: 22 | F30: 0 | J30: 12 | K30: 0
A31: 12 | B31: Duplex-5Bdr | D31: 23 | F31: 0 | J31: 12 | K31: 0
D32: 24 | F32: 0 | J32: 12 | K32: 0
D33: 25 | F33: 0 | J33: 12 | K33: 0
D34: 26 | F34: 0 | J34: 12 | K34: 0
D35: 27 | F35: 0 | J35: 12 | K35: 0
D36: 28 | F36: 0 | J36: 12 | K36: 0
D37: 29 | F37: 0 | J37: 12 | K37: 0
D38: 30 | F38: 0 | J38: 12 | K38: 0
D39: 31 | F39: 0 | J39: 12 | K39: 0
D40: 32 | F40: 0 | J40: 12 | K40: 0
D41: 33 | F41: 0 | J41: 12 | K41: 0
D42: 34 | F42: 0 | J42: 12 | K42: 0
D43: 35 | F43: 0 | J43: 12 | K43: 0
D44: 36 | F44: 0 | J44: 12 | K44: 0
D45: 37 | F45: 0 | J45: 12 | K45: 0
D46: 38 | F46: 0 | J46: 12 | K46: 0
D47: 39 | F47: 0 | J47: 12 | K47: 0
D48: 40 | F48: 0 | J48: 12 | K48: 0
A49: Post-96 Project Number | I49: =B10 -> N011 | K49: =SUMPRODUCT(K9:K48,J9:J48) -> 0 | L49: =SUMPRODUCT(L9:L48,J9:J48) -> 0
J50: Difference | L50: =L49-K49 -> 0

Sheet N12 (hidden)
B2: Click to return to Main Menu
A5: Name of Community | F5: =#REF! ->  | J5: CMHC File No | L5: =#REF! -> 
D6: Unit No | E6: Type of Unit | G6: Address | I6: Tenant's Name | J6: Months Occupied | K6: Minimum monthly revenue contribution according to 301 form | L6: Actual Monthly Rent Charged
B7: Project Number
G8: Civic No | H8: Street
D9: 1 | F9: =IF(E9<>"",VLOOKUP(E9,$A$16:$C$31,2),0) -> 0 | J9: 12 | K9: =IF(E9<>"",VLOOKUP(E9,$A$16:$C$31,3),0) -> 0
B10: N012 | D10: 2 | F10: =IF(E10<>"",VLOOKUP(E10,$A$16:$C$31,2),0) -> 0 | J10: 12 | K10: =IF(E10<>"",VLOOKUP(E10,$A$16:$C$31,3),0) -> 0
D11: 3 | F11: 0 | J11: 12 | K11: 0
D12: 4 | F12: 0 | J12: 12 | K12: 0
A13: TYPE | B13: No of Units | D13: 5 | F13: 0 | J13: 12 | K13: 0
D14: 6 | F14: 0 | J14: 12 | K14: 0
B15: Model | C15: 301 | D15: 7 | F15: 0 | J15: 12 | K15: 0
A16: 1 | B16: Triplex-1Bdr | D16: 8 | F16: 0 | J16: 12 | K16: 0
A17: 2 | B17: Quadruplex-1Bdr | D17: 9 | F17: 0 | J17: 12 | K17: 0
D18: 10 | F18: 0 | J18: 12 | K18: 0
A19: 3 | B19: Duplex-2Bdr | D19: 11 | F19: 0 | J19: 12 | K19: 0
A20: 4 | B20: Triplex-2Bdr | D20: 12 | F20: 0 | J20: 12 | K20: 0
D21: 13 | F21: 0 | J21: 12 | K21: 0
A22: 5 | B22: Bungalow-3Bdr | D22: 14 | F22: 0 | J22: 12 | K22: 0
A23: 6 | B23: Duplex-3Bdr | D23: 15 | F23: 0 | J23: 12 | K23: 0
A24: 7 | B24: Row-3Bdr | D24: 16 | F24: 0 | J24: 12 | K24: 0
D25: 17 | F25: 0 | J25: 12 | K25: 0
A26: 8 | B26: Bungalow-4Bdr | D26: 18 | F26: 0 | J26: 12 | K26: 0
A27: 9 | B27: Duplex-4Bdr | D27: 19 | F27: 0 | J27: 12 | K27: 0
A28: 10 | B28: Row-4Bdr | D28: 20 | F28: 0 | J28: 12 | K28: 0
D29: 21 | F29: 0 | J29: 12 | K29: 0
A30: 11 | B30: Bungalow-5Bdr | D30: 22 | F30: 0 | J30: 12 | K30: 0
A31: 12 | B31: Duplex-5Bdr | D31: 23 | F31: 0 | J31: 12 | K31: 0
D32: 24 | F32: 0 | J32: 12 | K32: 0
D33: 25 | F33: 0 | J33: 12 | K33: 0
D34: 26 | F34: 0 | J34: 12 | K34: 0
D35: 27 | F35: 0 | J35: 12 | K35: 0
D36: 28 | F36: 0 | J36: 12 | K36: 0
D37: 29 | F37: 0 | J37: 12 | K37: 0
D38: 30 | F38: 0 | J38: 12 | K38: 0
D39: 31 | F39: 0 | J39: 12 | K39: 0
D40: 32 | F40: 0 | J40: 12 | K40: 0
D41: 33 | F41: 0 | J41: 12 | K41: 0
D42: 34 | F42: 0 | J42: 12 | K42: 0
D43: 35 | F43: 0 | J43: 12 | K43: 0
D44: 36 | F44: 0 | J44: 12 | K44: 0
D45: 37 | F45: 0 | J45: 12 | K45: 0
D46: 38 | F46: 0 | J46: 12 | K46: 0
D47: 39 | F47: 0 | J47: 12 | K47: 0
D48: 40 | F48: 0 | J48: 12 | K48: 0
A49: Post-96 Project Number | I49: =B10 -> N012 | K49: =SUMPRODUCT(K9:K48,J9:J48) -> 0 | L49: =SUMPRODUCT(L9:L48,J9:J48) -> 0
J50: Difference | L50: =L49-K49 -> 0

Sheet N13 (hidden)
B2: Click to return to Main Menu
A5: Name of Community | F5: =#REF! ->  | J5: CMHC File No | L5: =#REF! -> 
D6: Unit No | E6: Type of Unit | G6: Address | I6: Tenant's Name | J6: Months Occupied | K6: Minimum monthly revenue contribution according to 301 form | L6: Actual Monthly Rent Charged
B7: Project Number
G8: Civic No | H8: Street
D9: 1 | F9: =IF(E9<>"",VLOOKUP(E9,$A$16:$C$31,2),0) -> 0 | J9: 12 | K9: =IF(E9<>"",VLOOKUP(E9,$A$16:$C$31,3),0) -> 0
B10: N013 | D10: 2 | F10: =IF(E10<>"",VLOOKUP(E10,$A$16:$C$31,2),0) -> 0 | J10: 12 | K10: =IF(E10<>"",VLOOKUP(E10,$A$16:$C$31,3),0) -> 0
D11: 3 | F11: 0 | J11: 12 | K11: 0
D12: 4 | F12: 0 | J12: 12 | K12: 0
A13: TYPE | B13: No of Units | D13: 5 | F13: 0 | J13: 12 | K13: 0
D14: 6 | F14: 0 | J14: 12 | K14: 0
B15: Model | C15: 301 | D15: 7 | F15: 0 | J15: 12 | K15: 0
A16: 1 | B16: Triplex-1Bdr | D16: 8 | F16: 0 | J16: 12 | K16: 0
A17: 2 | B17: Quadruplex-1Bdr | D17: 9 | F17: 0 | J17: 12 | K17: 0
D18: 10 | F18: 0 | J18: 12 | K18: 0
A19: 3 | B19: Duplex-2Bdr | D19: 11 | F19: 0 | J19: 12 | K19: 0
A20: 4 | B20: Triplex-2Bdr | D20: 12 | F20: 0 | J20: 12 | K20: 0
D21: 13 | F21: 0 | J21: 12 | K21: 0
A22: 5 | B22: Bungalow-3Bdr | D22: 14 | F22: 0 | J22: 12 | K22: 0
A23: 6 | B23: Duplex-3Bdr | D23: 15 | F23: 0 | J23: 12 | K23: 0
A24: 7 | B24: Row-3Bdr | D24: 16 | F24: 0 | J24: 12 | K24: 0
D25: 17 | F25: 0 | J25: 12 | K25: 0
A26: 8 | B26: Bungalow-4Bdr | D26: 18 | F26: 0 | J26: 12 | K26: 0
A27: 9 | B27: Duplex-4Bdr | D27: 19 | F27: 0 | J27: 12 | K27: 0
A28: 10 | B28: Row-4Bdr | D28: 20 | F28: 0 | J28: 12 | K28: 0
D29: 21 | F29: 0 | J29: 12 | K29: 0
A30: 11 | B30: Bungalow-5Bdr | D30: 22 | F30: 0 | J30: 12 | K30: 0
A31: 12 | B31: Duplex-5Bdr | D31: 23 | F31: 0 | J31: 12 | K31: 0
D32: 24 | F32: 0 | J32: 12 | K32: 0
D33: 25 | F33: 0 | J33: 12 | K33: 0
D34: 26 | F34: 0 | J34: 12 | K34: 0
D35: 27 | F35: 0 | J35: 12 | K35: 0
D36: 28 | F36: 0 | J36: 12 | K36: 0
D37: 29 | F37: 0 | J37: 12 | K37: 0
D38: 30 | F38: 0 | J38: 12 | K38: 0
D39: 31 | F39: 0 | J39: 12 | K39: 0
D40: 32 | F40: 0 | J40: 12 | K40: 0
D41: 33 | F41: 0 | J41: 12 | K41: 0
D42: 34 | F42: 0 | J42: 12 | K42: 0
D43: 35 | F43: 0 | J43: 12 | K43: 0
D44: 36 | F44: 0 | J44: 12 | K44: 0
D45: 37 | F45: 0 | J45: 12 | K45: 0
D46: 38 | F46: 0 | J46: 12 | K46: 0
D47: 39 | F47: 0 | J47: 12 | K47: 0
D48: 40 | F48: 0 | J48: 12 | K48: 0
A49: Post-96 Project Number | I49: =B10 -> N013 | K49: =SUMPRODUCT(K9:K48,J9:J48) -> 0 | L49: =SUMPRODUCT(L9:L48,J9:J48) -> 0
J50: Difference | L50: =L49-K49 -> 0

Sheet N14 (hidden)
B2: Click to return to Main Menu
A5: Name of Community | F5: =#REF! ->  | J5: CMHC File No | L5: =#REF! -> 
D6: Unit No | E6: Type of Unit | G6: Address | I6: Tenant's Name | J6: Months Occupied | K6: Minimum monthly revenue contribution according to 301 form | L6: Actual Monthly Rent Charged
B7: Project Number
G8: Civic No | H8: Street
D9: 1 | F9: =IF(E9<>"",VLOOKUP(E9,$A$16:$C$31,2),0) -> 0 | J9: 12 | K9: =IF(E9<>"",VLOOKUP(E9,$A$16:$C$31,3),0) -> 0
B10: N014 | D10: 2 | F10: =IF(E10<>"",VLOOKUP(E10,$A$16:$C$31,2),0) -> 0 | J10: 12 | K10: =IF(E10<>"",VLOOKUP(E10,$A$16:$C$31,3),0) -> 0
D11: 3 | F11: 0 | J11: 12 | K11: 0
D12: 4 | F12: 0 | J12: 12 | K12: 0
A13: TYPE | B13: No of Units | D13: 5 | F13: 0 | J13: 12 | K13: 0
D14: 6 | F14: 0 | J14: 12 | K14: 0
B15: Model | C15: 301 | D15: 7 | F15: 0 | J15: 12 | K15: 0
A16: 1 | B16: Triplex-1Bdr | D16: 8 | F16: 0 | J16: 12 | K16: 0
A17: 2 | B17: Quadruplex-1Bdr | D17: 9 | F17: 0 | J17: 12 | K17: 0
D18: 10 | F18: 0 | J18: 12 | K18: 0
A19: 3 | B19: Duplex-2Bdr | D19: 11 | F19: 0 | J19: 12 | K19: 0
A20: 4 | B20: Triplex-2Bdr | D20: 12 | F20: 0 | J20: 12 | K20: 0
D21: 13 | F21: 0 | J21: 12 | K21: 0
A22: 5 | B22: Bungalow-3Bdr | D22: 14 | F22: 0 | J22: 12 | K22: 0
A23: 6 | B23: Duplex-3Bdr | D23: 15 | F23: 0 | J23: 12 | K23: 0
A24: 7 | B24: Row-3Bdr | D24: 16 | F24: 0 | J24: 12 | K24: 0
D25: 17 | F25: 0 | J25: 12 | K25: 0
A26: 8 | B26: Bungalow-4Bdr | D26: 18 | F26: 0 | J26: 12 | K26: 0
A27: 9 | B27: Duplex-4Bdr | D27: 19 | F27: 0 | J27: 12 | K27: 0
A28: 10 | B28: Row-4Bdr | D28: 20 | F28: 0 | J28: 12 | K28: 0
D29: 21 | F29: 0 | J29: 12 | K29: 0
A30: 11 | B30: Bungalow-5Bdr | D30: 22 | F30: 0 | J30: 12 | K30: 0
A31: 12 | B31: Duplex-5Bdr | D31: 23 | F31: 0 | J31: 12 | K31: 0
D32: 24 | F32: 0 | J32: 12 | K32: 0
D33: 25 | F33: 0 | J33: 12 | K33: 0
D34: 26 | F34: 0 | J34: 12 | K34: 0
D35: 27 | F35: 0 | J35: 12 | K35: 0
D36: 28 | F36: 0 | J36: 12 | K36: 0
D37: 29 | F37: 0 | J37: 12 | K37: 0
D38: 30 | F38: 0 | J38: 12 | K38: 0
D39: 31 | F39: 0 | J39: 12 | K39: 0
D40: 32 | F40: 0 | J40: 12 | K40: 0
D41: 33 | F41: 0 | J41: 12 | K41: 0
D42: 34 | F42: 0 | J42: 12 | K42: 0
D43: 35 | F43: 0 | J43: 12 | K43: 0
D44: 36 | F44: 0 | J44: 12 | K44: 0
D45: 37 | F45: 0 | J45: 12 | K45: 0
D46: 38 | F46: 0 | J46: 12 | K46: 0
D47: 39 | F47: 0 | J47: 12 | K47: 0
D48: 40 | F48: 0 | J48: 12 | K48: 0
A49: Post-96 Project Number | I49: =B10 -> N014 | K49: =SUMPRODUCT(K9:K48,J9:J48) -> 0 | L49: =SUMPRODUCT(L9:L48,J9:J48) -> 0
J50: Difference | L50: =L49-K49 -> 0

Sheet N15 (hidden)
B2: Click to return to Main Menu
A5: Name of Community | F5: =#REF! ->  | J5: CMHC File No | L5: =#REF! -> 
D6: Unit No | E6: Type of Unit | G6: Address | I6: Tenant's Name | J6: Months Occupied | K6: Minimum monthly revenue contribution according to 301 form | L6: Actual Monthly Rent Charged
B7: Project Number
G8: Civic No | H8: Street
D9: 1 | F9: =IF(E9<>"",VLOOKUP(E9,$A$16:$C$31,2),0) -> 0 | J9: 12 | K9: =IF(E9<>"",VLOOKUP(E9,$A$16:$C$31,3),0) -> 0
B10: N015 | D10: 2 | F10: =IF(E10<>"",VLOOKUP(E10,$A$16:$C$31,2),0) -> 0 | J10: 12 | K10: =IF(E10<>"",VLOOKUP(E10,$A$16:$C$31,3),0) -> 0
D11: 3 | F11: 0 | J11: 12 | K11: 0
D12: 4 | F12: 0 | J12: 12 | K12: 0
A13: TYPE | B13: No of Units | D13: 5 | F13: 0 | J13: 12 | K13: 0
D14: 6 | F14: 0 | J14: 12 | K14: 0
B15: Model | C15: 301 | D15: 7 | F15: 0 | J15: 12 | K15: 0
A16: 1 | B16: Triplex-1Bdr | D16: 8 | F16: 0 | J16: 12 | K16: 0
A17: 2 | B17: Quadruplex-1Bdr | D17: 9 | F17: 0 | J17: 12 | K17: 0
D18: 10 | F18: 0 | J18: 12 | K18: 0
A19: 3 | B19: Duplex-2Bdr | D19: 11 | F19: 0 | J19: 12 | K19: 0
A20: 4 | B20: Triplex-2Bdr | D20: 12 | F20: 0 | J20: 12 | K20: 0
D21: 13 | F21: 0 | J21: 12 | K21: 0
A22: 5 | B22: Bungalow-3Bdr | D22: 14 | F22: 0 | J22: 12 | K22: 0
A23: 6 | B23: Duplex-3Bdr | D23: 15 | F23: 0 | J23: 12 | K23: 0
A24: 7 | B24: Row-3Bdr | D24: 16 | F24: 0 | J24: 12 | K24: 0
D25: 17 | F25: 0 | J25: 12 | K25: 0
A26: 8 | B26: Bungalow-4Bdr | D26: 18 | F26: 0 | J26: 12 | K26: 0
A27: 9 | B27: Duplex-4Bdr | D27: 19 | F27: 0 | J27: 12 | K27: 0
A28: 10 | B28: Row-4Bdr | D28: 20 | F28: 0 | J28: 12 | K28: 0
D29: 21 | F29: 0 | J29: 12 | K29: 0
A30: 11 | B30: Bungalow-5Bdr | D30: 22 | F30: 0 | J30: 12 | K30: 0
A31: 12 | B31: Duplex-5Bdr | D31: 23 | F31: 0 | J31: 12 | K31: 0
D32: 24 | F32: 0 | J32: 12 | K32: 0
D33: 25 | F33: 0 | J33: 12 | K33: 0
D34: 26 | F34: 0 | J34: 12 | K34: 0
D35: 27 | F35: 0 | J35: 12 | K35: 0
D36: 28 | F36: 0 | J36: 12 | K36: 0
D37: 29 | F37: 0 | J37: 12 | K37: 0
D38: 30 | F38: 0 | J38: 12 | K38: 0
D39: 31 | F39: 0 | J39: 12 | K39: 0
D40: 32 | F40: 0 | J40: 12 | K40: 0
D41: 33 | F41: 0 | J41: 12 | K41: 0
D42: 34 | F42: 0 | J42: 12 | K42: 0
D43: 35 | F43: 0 | J43: 12 | K43: 0
D44: 36 | F44: 0 | J44: 12 | K44: 0
D45: 37 | F45: 0 | J45: 12 | K45: 0
D46: 38 | F46: 0 | J46: 12 | K46: 0
D47: 39 | F47: 0 | J47: 12 | K47: 0
D48: 40 | F48: 0 | J48: 12 | K48: 0
A49: Post-96 Project Number | I49: =B10 -> N015 | K49: =SUMPRODUCT(K9:K48,J9:J48) -> 0 | L49: =SUMPRODUCT(L9:L48,J9:J48) -> 0
J50: Difference | L50: =L49-K49 -> 0

Sheet N16 (hidden)
B2: Click to return to Main Menu
A5: Name of Community | F5: =#REF! ->  | J5: CMHC File No | L5: =#REF! -> 
D6: Unit No | E6: Type of Unit | G6: Address | I6: Tenant's Name | J6: Months Occupied | K6: Minimum monthly revenue contribution according to 301 form | L6: Actual Monthly Rent Charged
B7: Project Number
G8: Civic No | H8: Street
D9: 1 | F9: =IF(E9<>"",VLOOKUP(E9,$A$16:$C$31,2),0) -> 0 | J9: 12 | K9: =IF(E9<>"",VLOOKUP(E9,$A$16:$C$31,3),0) -> 0
B10: N016 | D10: 2 | F10: =IF(E10<>"",VLOOKUP(E10,$A$16:$C$31,2),0) -> 0 | J10: 12 | K10: =IF(E10<>"",VLOOKUP(E10,$A$16:$C$31,3),0) -> 0
D11: 3 | F11: 0 | J11: 12 | K11: 0
D12: 4 | F12: 0 | J12: 12 | K12: 0
A13: TYPE | B13: No of Units | D13: 5 | F13: 0 | J13: 12 | K13: 0
D14: 6 | F14: 0 | J14: 12 | K14: 0
B15: Model | C15: 301 | D15: 7 | F15: 0 | J15: 12 | K15: 0
A16: 1 | B16: Triplex-1Bdr | D16: 8 | F16: 0 | J16: 12 | K16: 0
A17: 2 | B17: Quadruplex-1Bdr | D17: 9 | F17: 0 | J17: 12 | K17: 0
D18: 10 | F18: 0 | J18: 12 | K18: 0
A19: 3 | B19: Duplex-2Bdr | D19: 11 | F19: 0 | J19: 12 | K19: 0
A20: 4 | B20: Triplex-2Bdr | D20: 12 | F20: 0 | J20: 12 | K20: 0
D21: 13 | F21: 0 | J21: 12 | K21: 0
A22: 5 | B22: Bungalow-3Bdr | D22: 14 | F22: 0 | J22: 12 | K22: 0
A23: 6 | B23: Duplex-3Bdr | D23: 15 | F23: 0 | J23: 12 | K23: 0
A24: 7 | B24: Row-3Bdr | D24: 16 | F24: 0 | J24: 12 | K24: 0
D25: 17 | F25: 0 | J25: 12 | K25: 0
A26: 8 | B26: Bungalow-4Bdr | D26: 18 | F26: 0 | J26: 12 | K26: 0
A27: 9 | B27: Duplex-4Bdr | D27: 19 | F27: 0 | J27: 12 | K27: 0
A28: 10 | B28: Row-4Bdr | D28: 20 | F28: 0 | J28: 12 | K28: 0
D29: 21 | F29: 0 | J29: 12 | K29: 0
A30: 11 | B30: Bungalow-5Bdr | D30: 22 | F30: 0 | J30: 12 | K30: 0
A31: 12 | B31: Duplex-5Bdr | D31: 23 | F31: 0 | J31: 12 | K31: 0
D32: 24 | F32: 0 | J32: 12 | K32: 0
D33: 25 | F33: 0 | J33: 12 | K33: 0
D34: 26 | F34: 0 | J34: 12 | K34: 0
D35: 27 | F35: 0 | J35: 12 | K35: 0
D36: 28 | F36: 0 | J36: 12 | K36: 0
D37: 29 | F37: 0 | J37: 12 | K37: 0
D38: 30 | F38: 0 | J38: 12 | K38: 0
D39: 31 | F39: 0 | J39: 12 | K39: 0
D40: 32 | F40: 0 | J40: 12 | K40: 0
D41: 33 | F41: 0 | J41: 12 | K41: 0
D42: 34 | F42: 0 | J42: 12 | K42: 0
D43: 35 | F43: 0 | J43: 12 | K43: 0
D44: 36 | F44: 0 | J44: 12 | K44: 0
D45: 37 | F45: 0 | J45: 12 | K45: 0
D46: 38 | F46: 0 | J46: 12 | K46: 0
D47: 39 | F47: 0 | J47: 12 | K47: 0
D48: 40 | F48: 0 | J48: 12 | K48: 0
A49: Post-96 Project Number | I49: =B10 -> N016 | K49: =SUMPRODUCT(K9:K48,J9:J48) -> 0 | L49: =SUMPRODUCT(L9:L48,J9:J48) -> 0
J50: Difference | L50: =L49-K49 -> 0

Sheet N17 (hidden)
B2: Click to return to Main Menu
A5: Name of Community | F5: =#REF! ->  | J5: CMHC File No | L5: =#REF! -> 
D6: Unit No | E6: Type of Unit | G6: Address | I6: Tenant's Name | J6: Months Occupied | K6: Minimum monthly revenue contribution according to 301 form | L6: Actual Monthly Rent Charged
B7: Project Number
G8: Civic No | H8: Street
D9: 1 | F9: =IF(E9<>"",VLOOKUP(E9,$A$16:$C$31,2),0) -> 0 | J9: 12 | K9: =IF(E9<>"",VLOOKUP(E9,$A$16:$C$31,3),0) -> 0
B10: N017 | D10: 2 | F10: =IF(E10<>"",VLOOKUP(E10,$A$16:$C$31,2),0) -> 0 | J10: 12 | K10: =IF(E10<>"",VLOOKUP(E10,$A$16:$C$31,3),0) -> 0
D11: 3 | F11: 0 | J11: 12 | K11: 0
D12: 4 | F12: 0 | J12: 12 | K12: 0
A13: TYPE | B13: No of Units | D13: 5 | F13: 0 | J13: 12 | K13: 0
D14: 6 | F14: 0 | J14: 12 | K14: 0
B15: Model | C15: 301 | D15: 7 | F15: 0 | J15: 12 | K15: 0
A16: 1 | B16: Triplex-1Bdr | D16: 8 | F16: 0 | J16: 12 | K16: 0
A17: 2 | B17: Quadruplex-1Bdr | D17: 9 | F17: 0 | J17: 12 | K17: 0
D18: 10 | F18: 0 | J18: 12 | K18: 0
A19: 3 | B19: Duplex-2Bdr | D19: 11 | F19: 0 | J19: 12 | K19: 0
A20: 4 | B20: Triplex-2Bdr | D20: 12 | F20: 0 | J20: 12 | K20: 0
D21: 13 | F21: 0 | J21: 12 | K21: 0
A22: 5 | B22: Bungalow-3Bdr | D22: 14 | F22: 0 | J22: 12 | K22: 0
A23: 6 | B23: Duplex-3Bdr | D23: 15 | F23: 0 | J23: 12 | K23: 0
A24: 7 | B24: Row-3Bdr | D24: 16 | F24: 0 | J24: 12 | K24: 0
D25: 17 | F25: 0 | J25: 12 | K25: 0
A26: 8 | B26: Bungalow-4Bdr | D26: 18 | F26: 0 | J26: 12 | K26: 0
A27: 9 | B27: Duplex-4Bdr | D27: 19 | F27: 0 | J27: 12 | K27: 0
A28: 10 | B28: Row-4Bdr | D28: 20 | F28: 0 | J28: 12 | K28: 0
D29: 21 | F29: 0 | J29: 12 | K29: 0
A30: 11 | B30: Bungalow-5Bdr | D30: 22 | F30: 0 | J30: 12 | K30: 0
A31: 12 | B31: Duplex-5Bdr | D31: 23 | F31: 0 | J31: 12 | K31: 0
D32: 24 | F32: 0 | J32: 12 | K32: 0
D33: 25 | F33: 0 | J33: 12 | K33: 0
D34: 26 | F34: 0 | J34: 12 | K34: 0
D35: 27 | F35: 0 | J35: 12 | K35: 0
D36: 28 | F36: 0 | J36: 12 | K36: 0
D37: 29 | F37: 0 | J37: 12 | K37: 0
D38: 30 | F38: 0 | J38: 12 | K38: 0
D39: 31 | F39: 0 | J39: 12 | K39: 0
D40: 32 | F40: 0 | J40: 12 | K40: 0
D41: 33 | F41: 0 | J41: 12 | K41: 0
D42: 34 | F42: 0 | J42: 12 | K42: 0
D43: 35 | F43: 0 | J43: 12 | K43: 0
D44: 36 | F44: 0 | J44: 12 | K44: 0
D45: 37 | F45: 0 | J45: 12 | K45: 0
D46: 38 | F46: 0 | J46: 12 | K46: 0
D47: 39 | F47: 0 | J47: 12 | K47: 0
D48: 40 | F48: 0 | J48: 12 | K48: 0
A49: Post-96 Project Number | I49: =B10 -> N017 | K49: =SUMPRODUCT(K9:K48,J9:J48) -> 0 | L49: =SUMPRODUCT(L9:L48,J9:J48) -> 0
J50: Difference | L50: =L49-K49 -> 0

Sheet N18 (hidden)
B2: Click to return to Main Menu
A5: Name of Community | F5: =#REF! ->  | J5: CMHC File No | L5: =#REF! -> 
D6: Unit No | E6: Type of Unit | G6: Address | I6: Tenant's Name | J6: Months Occupied | K6: Minimum monthly revenue contribution according to 301 form | L6: Actual Monthly Rent Charged
B7: Project Number
G8: Civic No | H8: Street
D9: 1 | F9: =IF(E9<>"",VLOOKUP(E9,$A$16:$C$31,2),0) -> 0 | J9: 12 | K9: =IF(E9<>"",VLOOKUP(E9,$A$16:$C$31,3),0) -> 0
B10: N018 | D10: 2 | F10: =IF(E10<>"",VLOOKUP(E10,$A$16:$C$31,2),0) -> 0 | J10: 12 | K10: =IF(E10<>"",VLOOKUP(E10,$A$16:$C$31,3),0) -> 0
D11: 3 | F11: 0 | J11: 12 | K11: 0
D12: 4 | F12: 0 | J12: 12 | K12: 0
A13: TYPE | B13: No of Units | D13: 5 | F13: 0 | J13: 12 | K13: 0
D14: 6 | F14: 0 | J14: 12 | K14: 0
B15: Model | C15: 301 | D15: 7 | F15: 0 | J15: 12 | K15: 0
A16: 1 | B16: Triplex-1Bdr | D16: 8 | F16: 0 | J16: 12 | K16: 0
A17: 2 | B17: Quadruplex-1Bdr | D17: 9 | F17: 0 | J17: 12 | K17: 0
D18: 10 | F18: 0 | J18: 12 | K18: 0
A19: 3 | B19: Duplex-2Bdr | D19: 11 | F19: 0 | J19: 12 | K19: 0
A20: 4 | B20: Triplex-2Bdr | D20: 12 | F20: 0 | J20: 12 | K20: 0
D21: 13 | F21: 0 | J21: 12 | K21: 0
A22: 5 | B22: Bungalow-3Bdr | D22: 14 | F22: 0 | J22: 12 | K22: 0
A23: 6 | B23: Duplex-3Bdr | D23: 15 | F23: 0 | J23: 12 | K23: 0
A24: 7 | B24: Row-3Bdr | D24: 16 | F24: 0 | J24: 12 | K24: 0
D25: 17 | F25: 0 | J25: 12 | K25: 0
A26: 8 | B26: Bungalow-4Bdr | D26: 18 | F26: 0 | J26: 12 | K26: 0
A27: 9 | B27: Duplex-4Bdr | D27: 19 | F27: 0 | J27: 12 | K27: 0
A28: 10 | B28: Row-4Bdr | D28: 20 | F28: 0 | J28: 12 | K28: 0
D29: 21 | F29: 0 | J29: 12 | K29: 0
A30: 11 | B30: Bungalow-5Bdr | D30: 22 | F30: 0 | J30: 12 | K30: 0
A31: 12 | B31: Duplex-5Bdr | D31: 23 | F31: 0 | J31: 12 | K31: 0
D32: 24 | F32: 0 | J32: 12 | K32: 0
D33: 25 | F33: 0 | J33: 12 | K33: 0
D34: 26 | F34: 0 | J34: 12 | K34: 0
D35: 27 | F35: 0 | J35: 12 | K35: 0
D36: 28 | F36: 0 | J36: 12 | K36: 0
D37: 29 | F37: 0 | J37: 12 | K37: 0
D38: 30 | F38: 0 | J38: 12 | K38: 0
D39: 31 | F39: 0 | J39: 12 | K39: 0
D40: 32 | F40: 0 | J40: 12 | K40: 0
D41: 33 | F41: 0 | J41: 12 | K41: 0
D42: 34 | F42: 0 | J42: 12 | K42: 0
D43: 35 | F43: 0 | J43: 12 | K43: 0
D44: 36 | F44: 0 | J44: 12 | K44: 0
D45: 37 | F45: 0 | J45: 12 | K45: 0
D46: 38 | F46: 0 | J46: 12 | K46: 0
D47: 39 | F47: 0 | J47: 12 | K47: 0
D48: 40 | F48: 0 | J48: 12 | K48: 0
A49: Post-96 Project Number | I49: =B10 -> N018 | K49: =SUMPRODUCT(K9:K48,J9:J48) -> 0 | L49: =SUMPRODUCT(L9:L48,J9:J48) -> 0
J50: Difference | L50: =L49-K49 -> 0

Sheet Fin. Stat & Projections (hidden)
A2: Click to return to Main Menu
C4: SOCIAL HOUSING ( SECTION 95 NHA )
C5: BUDGET REVIEW & PROJECTION
C6: FISCAL YEAR ENDING: 2007 / 03 / 31
C7: FISCAL YEAR | E7: 05-06 | G7: FISCAL YEAR | I7: 06-07 | K7: FISCAL YEAR | M7: 07-08
C8: Number of units: | F8: 416 | G8: Number of units: | J8: 416 | K8: Number of units: | N8: 416
C9: No of months into year: | F9: 12 | G9: No of months into year: | J9: 12 | K9: No of months into year: | N9: 12
D11: Per Unit | E11: CMHC Accepted | H11: Per Unit | I11: CMHC Accepted | K11: Projection | L11: Per Unit | N11: Per Unit
A12: =#REF! ->  | C12: SUBMITTED | D12: Per Month | F12: Per unit | G12: Submitted | H12: Per Month | J12: Per unit | K12: Based on | L12: Per Month | M12: SCENARIO | N12: Per Month
A13: =#REF! ->  | F13: per month | J13: per month | K13: Previous years | M13: 05-06
A15: Rents | C15: 1610533 | D15: =C15/($F$8*$F$9) -> 322.6227965 | E15: 1610533 | F15: =E15/($F$8*$F$9) -> 322.6227965 | G15: =#REF! ->  | H15: =IF($J$8=0,0,G15/($J$8*$J$9)) ->  | I15: 1836924 | J15: =IF($J$8=0,0,I15/($J$8*$J$9)) -> 367.9735577 | K15: =SUM(C15,G15)/2 ->  | L15: =IF($N$8=0,0,K15/($N$8*$N$9)) ->  | M15: =#REF! ->  | N15: =IF($N$8=0,0,M15/($N$8*$N$9)) -> 
A16: Section 95 Subsidy | C16: 1413582 | D16: =C16/($F$8*$F$9) -> 283.1694712 | E16: 1413348 | F16: =E16/($F$8*$F$9) -> 283.1225962 | G16: =#REF! ->  | H16: =IF($J$8=0,0,G16/($J$8*$J$9)) ->  | I16: 1371388 | J16: =IF($J$8=0,0,I16/($J$8*$J$9)) -> 274.7171474 | K16: =SUM(C16,G16)/2 ->  | L16: =IF($N$8=0,0,K16/($N$8*$N$9)) ->  | M16: =#REF! ->  | N16: =IF($N$8=0,0,M16/($N$8*$N$9)) -> 
A17: Band's Funds | C17: 27403 | D17: 5.489383013 | E17: 27403 | F17: =E17/($F$8*$F$9) -> 5.489383013 | G17: =#REF! ->  | H17: =IF($J$8=0,0,G17/($J$8*$J$9)) ->  | I17: 12106 | J17: =IF($J$8=0,0,I17/($J$8*$J$9)) -> 2.425080128 | K17: =SUM(C17,G17)/2 ->  | L17: =IF($N$8=0,0,K17/($N$8*$N$9)) ->  | M17: =#REF! ->  | N17: =IF($N$8=0,0,M17/($N$8*$N$9)) -> 
A18: Other
A20: TOTAL REVENUES | C20: =SUM(C15:C17) -> 3051518 | D20: 611.2816506 | E20: =SUM(E15:E17) -> 3051284 | F20: =E20/($F$8*$F$9) -> 611.2347756 | G20: =SUM(G15:G17) ->  | H20: =IF($J$8=0,0,G20/($J$8*$J$9)) ->  | I20: =SUM(I15:I17) -> 3220418 | J20: =IF($J$8=0,0,I20/($J$8*$J$9)) -> 645.1157853 | K20: =SUM(K15:K17) ->  | L20: =IF($N$8=0,0,K20/($N$8*$N$9)) ->  | M20: =SUM(M15:M17) ->  | N20: =IF($N$8=0,0,M20/($N$8*$N$9)) -> 
A22: Insurance | C22: 70482 | D22: 14.11899038 | E22: 70482 | F22: =E22/($F$8*$F$9) -> 14.11899038 | G22: =#REF! ->  | H22: =IF($J$8=0,0,G22/($J$8*$J$9)) ->  | I22: 67382 | J22: =IF($J$8=0,0,I22/($J$8*$J$9)) -> 13.49799679 | K22: =SUM(C22,G22)/2 ->  | L22: =IF($N$8=0,0,K22/($N$8*$N$9)) ->  | M22: =#REF! ->  | N22: =IF($N$8=0,0,M22/($N$8*$N$9)) -> 
A23: Administration | C23: 167460 | D23: 33.54567308 | E23: 167460 | F23: 33.54567308 | G23: =#REF! ->  | I23: 160143 | J23: 32.07992788 | K23: =SUM(C23,G23)/2 ->  | M23: =#REF! -> 
A24: Maintenance | C24: 371849 | D24: 74.48898237 | E24: 371849 | F24: 74.48898237 | G24: =#REF! ->  | I24: 502923 | J24: 100.7457933 | K24: =SUM(C24,G24)/2 ->  | M24: =#REF! -> 
A25: Principal & Interest Payment | C25: 1839974 | D25: 368.5845353 | E25: 1839974 | F25: 368.5845353 | G25: =#REF! ->  | I25: 1827688 | J25: 366.1233974 | K25: =#REF! ->  | M25: =#REF! -> 
A26: Audit / Legal | C26: 20775 | D26: 4.161658654 | E26: 20775 | F26: 4.161658654 | G26: =#REF! ->  | I26: 11873 | J26: 2.378405449 | K26: =SUM(C26,G26)/2 ->  | M26: =#REF! -> 
A27: Transfer to Replacement Reserve | C27: 278540 | D27: 55.79727564 | E27: 278540 | F27: 55.79727564 | G27: =#REF! ->  | I27: 278540 | J27: 55.79727564 | K27: =SUM(C27,G27)/2 ->  | M27: =#REF! -> 
A28: Bad Debts | C28: 302438 | D28: 60.58453526 | E28: 80527 | F28: 16.13120994 | G28: =#REF! ->  | I28: 91846 | J28: 18.39863782 | K28: =SUM(C28,G28)/2 ->  | M28: =#REF! -> 
A29: Others (Contingency) - renovation | C29: 0 | D29: 0 | E29: 0 | F29: 0 | G29: =#REF! ->  | I29: 0 | J29: 0 | K29: =SUM(C29,G29)/2 ->  | M29: =#REF! -> 
A31: TOTAL EXPENSES | C31: =SUM(C22:C29) -> 3051518 | D31: 611.2816506 | E31: =SUM(E22:E29) -> 2829607 | F31: 566.8283253 | G31: =SUM(G22:G29) ->  | H31: =IF($J$8=0,0,G31/($J$8*$J$9)) ->  | I31: =SUM(I22:I29) -> 2940395 | J31: =IF($J$8=0,0,I31/($J$8*$J$9)) -> 589.0214343 | K31: =SUM(K22:K29) ->  | L31: =IF($N$8=0,0,K31/($N$8*$N$9)) ->  | M31: =SUM(M22:M29) ->  | N31: =IF($N$8=0,0,M31/($N$8*$N$9)) -> 
A33: SURPLUS / DEFICIT | C33: =C20-C31 -> 0 | D33: 0 | E33: =E20-E31 -> 221677 | F33: 44.40645032 | G33: =G20-G31 ->  | H33: =IF($J$8=0,0,G33/($J$8*$J$9)) ->  | I33: =I20-I31 -> 280023 | J33: =IF($J$8=0,0,I33/($J$8*$J$9)) -> 56.09435096 | K33: =K20-K31 ->  | L33: =IF($N$8=0,0,K33/($N$8*$N$9)) ->  | M33: =M20-M31 ->  | N33: =IF($N$8=0,0,M33/($N$8*$N$9)) -> 
C35: RENOVATION RESERVE | G35: RENOVATION RESERVE
C36: Submitted | E36: Accepted | G36: Submitted | I36: Accepted
A37: Previous accumulated Funds | C37: 243977 | E37: 517827
A38: Interest earned | C38: 0 | E38: 0
A39: Adjustment per CMHC analysis | C39: 0 | E39: 0
A40: Surplus / Deficit of Year | C40: =C33 -> 0 | E40: =E33 -> 221677
A41: BALANCE, END OF YEAR | C41: =SUM(C37:C40) -> 243977 | D41: =C41/($F$8*$F$9) -> 48.87359776 | E41: =SUM(E37:E40) -> 739504 | F41: =E41/($F$9*$F$8) -> 148.1378205 | G41: =SUM(G37:G40) -> 0 | H41: =G41/($J$8*$J$9) -> 0 | I41: =SUM(I37:I40) -> 0 | J41: =I41/($J$9*$J$8) -> 0
A43: REPLACEMENT RESERVE FUND | C43: Submitted | E43: Accepted | G43: Submitted | I43: Accepted
A44: Previous accumulated Funds | C44: 1819409 | E44: 1950020 | I44: 28500
A45: Interest earned | C45: 14041 | E45: 14041 | I45: 248
A46: Allocation for the year | C46: 278540 | E46: =E27 -> 278540 | G46: =G27 ->  | I46: =I27 -> 278540
A47: Transfered to Housing repairs | C47: 0 | E47: 0 | I47: 0
A48: BALANCE, END OF YEAR | C48: =C44+C45+C46-C47 -> 2111990 | D48: =C48/($F$8*$F$9) -> 423.0749199 | E48: =SUM(E44:E47) -> 2242601 | F48: =E48/($F$8*$F$9) -> 449.2389824 | G48: =SUM(G44:G47) ->  | H48: =G48/($J$9*$J$8) ->  | I48: =SUM(I44:I47) -> 307288 | J48: =I48/($J$9*$J$8) -> 61.55608974

Sheet Pre-97 Historical data (hidden)
B2: Click to return to Main Menu
A4: Cree Nation of Mistissini
A5: Pre-1997 Section 95 Housing Program
C6: 1985 (9 months) | E6: 1986 | G6: 1987 | I6: 1988 | K6: 1989 | M6: 1990 | O6: 1991 | Q6: 1992 | S6: 1993 | U6: 1994 | W6: 1995 | Y6: 1996 | AA6: 1997 | AC6: 1998 | AE6: 1999 | AG6: 2000 | AI6: 2001 | AK6: 2002 | AM6: 2003 | AO6: 2004 | AQ6: 2005 | AS6: 2006 | AU6: 2007 | AW6: 2008 | AY6: 2009 | BB6: Summary from March 1, 1985 (Beginning of Program)
C7: Units | E7: Units | G7: Units | I7: Units | K7: Units | M7: Units | O7: Units | Q7: Units | S7: Units | U7: Units | W7: Units | Y7: Units | AA7: Units | AC7: Units | AE7: Units | AG7: Units | AI7: Units | AK7: Units | AM7: Units | AO7: Units | AQ7: Units | AS7: Units | AU7: Units | AW7: Units | AY7: Units
C8: Submit | D8: CMHC | E8: Submit | F8: CMHC | G8: =$E$8 -> Submit | H8: =$F$8 -> CMHC | I8: =$E$8 -> Submit | J8: =$F$8 -> CMHC | K8: =$E$8 -> Submit | L8: =$F$8 -> CMHC | M8: =$E$8 -> Submit | N8: =$F$8 -> CMHC | O8: =$E$8 -> Submit | P8: =$F$8 -> CMHC | Q8: =$E$8 -> Submit | R8: =$F$8 -> CMHC | S8: =$E$8 -> Submit | T8: =$F$8 -> CMHC | U8: =$E$8 -> Submit | V8: =$F$8 -> CMHC | W8: =$E$8 -> Submit | X8: =$F$8 -> CMHC | Y8: =$E$8 -> Submit | Z8: =$F$8 -> CMHC | AA8: =$E$8 -> Submit | AB8: =$F$8 -> CMHC | AC8: =$E$8 -> Submit | AD8: =$F$8 -> CMHC | AE8: =$E$8 -> Submit | AF8: =$F$8 -> CMHC | AG8: =$E$8 -> Submit | AH8: =$F$8 -> CMHC | AI8: =$E$8 -> Submit | AJ8: =$F$8 -> CMHC | AK8: =$E$8 -> Submit | AL8: =$F$8 -> CMHC | AM8: =$E$8 -> Submit | AN8: =$F$8 -> CMHC | AO8: =$E$8 -> Submit | AP8: =$F$8 -> CMHC | AQ8: =$E$8 -> Submit | AR8: =$F$8 -> CMHC | AS8: =$E$8 -> Submit | AT8: =$F$8 -> CMHC | AU8: =$E$8 -> Submit | AV8: =$F$8 -> CMHC | AW8: =$E$8 -> Submit | AX8: =$F$8 -> CMHC | AY8: =$E$8 -> Submit | AZ8: =$F$8 -> CMHC | BB8: =$E$8 -> Submit | BC8: =$F$8 -> CMHC | BD8: Difference
A9: REVENUE
A10: Tenant Rents | G10: 0 | H10: 0 | I10: 0 | J10: 0 | K10: 0 | L10: 0 | M10: 0 | N10: 0 | O10: 0 | P10: 0 | Q10: 0 | R10: 0 | S10: 0 | T10: 0 | U10: 0 | W10: 0 | X10: 0 | AE10: 1264646 | AF10: 1264646 | AG10: 1287475 | AH10: 1287475 | AI10: 1267655 | AJ10: 1267655 | AK10: 1312410 | AL10: 1312410 | AM10: 1300470 | AN10: 1300470 | AO10: 1394870 | AP10: 1394870 | BB10: =E10+G10+I10+K10+M10+O10+Q10+S10+U10+W10+Y10+AA10+AC10+AE10+AG10+AI10+AK10+AM10+AO10+AQ10+AS10+AU10+AW10+AY10 -> 7827526 | BC10: =F10+H10+J10+L10+N10+P10+R10+T10+V10+X10+Z10+AB10+AD10+AF10+AH10+AJ10+AL10+AN10+AP10+AR10+AT10+AV10+AX10+AZ10 -> 7827526 | BD10: =BB10-BC10 -> 0
A11: Other FN Contribution | G11: 0 | H11: 0 | I11: 0 | J11: 0 | K11: 0 | L11: 0 | M11: 0 | N11: 0 | O11: 0 | P11: 0 | Q11: 0 | R11: 0 | S11: 0 | T11: 0 | U11: 0 | V11: 0 | W11: 0 | X11: 0 | Y11: 0 | Z11: 0 | AA11: 0 | AB11: 0 | AC11: 0 | AD11: 0 | AE11: 0 | AF11: 0 | AG11: 0 | AH11: 0 | AI11: 0 | AJ11: 0 | AK11: 0 | AL11: 0 | AM11: 0 | AN11: 0 | AO11: 0 | AP11: 0 | AQ11: 0 | AR11: 0 | AS11: 0 | AT11: 0 | AU11: 0 | AV11: 0 | AW11: 0 | AX11: 0 | AY11: 0 | AZ11: 0 | BB11: =E11+G11+I11+K11+M11+O11+Q11+S11+U11+W11+Y11+AA11+AC11+AE11+AG11+AI11+AK11+AM11+AO11+AQ11+AS11+AU11+AW11+AY11 -> 0 | BC11: =F11+H11+J11+L11+N11+P11+R11+T11+V11+X11+Z11+AB11+AD11+AF11+AH11+AJ11+AL11+AN11+AP11+AR11+AT11+AV11+AX11+AZ11 -> 0 | BD11: =BB11-BC11 -> 0
A12: Indian & Northern Affairs | G12: 0 | H12: 0 | I12: 0 | J12: 0 | K12: 0 | L12: 0 | M12: 0 | N12: 0 | O12: 0 | P12: 0 | Q12: 0 | R12: 0 | S12: 0 | T12: 0 | U12: 0 | V12: 0 | W12: 0 | X12: 0 | Y12: 0 | Z12: 0 | AA12: 0 | AB12: 0 | AC12: 0 | AD12: 0 | AE12: 0 | AF12: 0 | AG12: 0 | AH12: 0 | AI12: 0 | AJ12: 0 | AK12: 0 | AL12: 0 | AM12: 0 | AN12: 0 | AO12: 0 | AP12: 0 | AQ12: 0 | AR12: 0 | AS12: 0 | AT12: 0 | AU12: 0 | AV12: 0 | AW12: 0 | AX12: 0 | AY12: 0 | AZ12: 0 | BB12: 0 | BC12: 0
A13: CMHC Subsidy (regular) | G13: 0 | H13: 0 | I13: 0 | J13: 0 | K13: 0 | L13: 0 | M13: 0 | N13: 0 | O13: 0 | P13: 0 | Q13: 0 | R13: 0 | S13: 0 | T13: 0 | U13: 0 | W13: 0 | X13: 0 | AE13: 1900751 | AF13: 1888271 | AG13: 1888441 | AH13: 1888441 | AI13: 1860249 | AJ13: 1860249 | AK13: 1685980 | AL13: 1685980 | AM13: 1577626 | AN13: 1577626 | AO13: 1442336 | AP13: 1442336 | BB13: 10355383 | BC13: 10342903 | BD13: =BB13-BC13 -> 12480
A14: CMHC Subsidy (aFC) | G14: 0 | H14: 0 | I14: 0 | J14: 0 | K14: 0 | L14: 0 | M14: 0 | N14: 0 | O14: 0 | P14: 0 | Q14: 0 | R14: 0 | S14: 0 | T14: 0 | U14: 0 | V14: 0 | W14: 0 | X14: 0 | Y14: 0 | Z14: 0 | AA14: 0 | AB14: 0 | AC14: 0 | AD14: 0 | AE14: 0 | AF14: 0 | AG14: 0 | AH14: 0 | AI14: 0 | AJ14: 0 | AK14: 0 | AL14: 0 | AM14: 0 | AN14: 0 | AO14: 0 | AP14: 0 | AQ14: 0 | AR14: 0 | AS14: 0 | AT14: 0 | AU14: 0 | AV14: 0 | AW14: 0 | AX14: 0 | AY14: 0 | AZ14: 0 | BB14: 0 | BC14: 0 | BD14: =BB14-BC14 -> 0
A15: Interest | G15: 0 | H15: 0 | I15: 0 | J15: 0 | K15: 0 | L15: 0 | M15: 0 | N15: 0 | O15: 0 | P15: 0 | Q15: 0 | R15: 0 | S15: 0 | T15: 0 | U15: 0 | V15: 0 | W15: 0 | X15: 0 | Y15: 0 | Z15: 0 | AA15: 0 | AB15: 0 | AC15: 0 | AD15: 0 | AE15: 0 | AF15: 0 | AG15: 0 | AH15: 0 | AI15: 0 | AJ15: 0 | AK15: 0 | AL15: 0 | AM15: 0 | AN15: 0 | AO15: 0 | AQ15: 0 | AR15: 0 | AS15: 0 | AT15: 0 | AU15: 0 | AV15: 0 | AW15: 0 | AX15: 0 | AY15: 0 | AZ15: 0 | BB15: 0 | BC15: 0 | BD15: =BB15-BC15 -> 0
A16: Other | G16: 0 | H16: 0 | I16: 0 | J16: 0 | K16: 0 | L16: 0 | M16: 0 | N16: 0 | O16: 0 | P16: 0 | Q16: 0 | R16: 0 | S16: 0 | T16: 0 | U16: 0 | V16: 0 | W16: 0 | X16: 0 | Y16: 0 | AE16: 0 | AF16: 37069 | AG16: 43071 | AH16: 43071 | AI16: 13911 | AJ16: 13911 | AK16: 4681 | AL16: 4681 | AM16: 0 | AN16: 0 | AO16: 19421 | AP16: 19421 | BB16: 81084 | BC16: 118153 | BD16: =BB16-BC16 -> -37069
A17: Total Revenue | C17: =SUM(C10:C16) -> 0 | D17: =SUM(D10:D16) -> 0 | E17: =SUM(E10:E16) -> 0 | F17: 0 | G17: 0 | H17: 0 | I17: 0 | J17: 0 | K17: 0 | L17: 0 | M17: 0 | N17: 0 | O17: 0 | P17: 0 | Q17: 0 | R17: 0 | S17: 0 | T17: 0 | U17: 0 | V17: 0 | W17: 0 | X17: 0 | Y17: 0 | Z17: 0 | AA17: 0 | AB17: 0 | AC17: 0 | AD17: 0 | AE17: 3165397 | AF17: 3189986 | AG17: 3218987 | AH17: 3218987 | AI17: 3141815 | AJ17: 3141815 | AK17: 3003071 | AL17: 3003071 | AM17: 2878096 | AN17: 2878096 | AO17: 2856627 | AP17: 2856627 | AQ17: 0 | AR17: 0 | AS17: 0 | AT17: 0 | AU17: =SUM(AU10:AU16) -> 0 | AV17: 0 | AW17: 0 | AX17: 0 | AY17: 0 | AZ17: 0 | BB17: =SUM(BB10:BB16) -> 18263993 | BC17: =SUM(BC10:BC16) -> 18288582 | BD17: =BB17-BC17 -> -24589
A18: Difference | C18: =C17-D17 -> 0 | E18: =E17-F17 -> 0 | G18: =G17-H17 -> 0 | I18: =I17-J17 -> 0 | K18: =K17-L17 -> 0 | M18: =M17-N17 -> 0 | O18: =O17-P17 -> 0 | Q18: =Q17-R17 -> 0 | S18: =S17-T17 -> 0 | U18: =U17-V17 -> 0 | W18: =W17-X17 -> 0 | Y18: =Y17-Z17 -> 0 | AA18: =AA17-AB17 -> 0 | AC18: =AC17-AD17 -> 0 | AE18: =AE17-AF17 -> -24589 | AG18: =AG17-AH17 -> 0 | AI18: =AI17-AJ17 -> 0 | AK18: =AK17-AL17 -> 0 | AM18: =AM17-AN17 -> 0 | AO18: =AO17-AP17 -> 0 | AQ18: =AQ17-AR17 -> 0 | AS18: =AS17-AT17 -> 0 | AU18: =AU17-AV17 -> 0 | AW18: =AW17-AX17 -> 0 | AY18: =AY17-AZ17 -> 0 | BB18: =BB17-BC17 -> -24589
A19: EXPENSES
A20: Insurance | AE20: 84714 | AF20: 84714 | AG20: 82214 | AH20: 82214 | AI20: 76243 | AJ20: 76243 | AK20: 72007 | AL20: 72007 | AM20: 72007 | AN20: 72007 | AO20: 73266 | AP20: 73266 | BB20: =E20+G20+I20+K20+M20+O20+Q20+S20+U20+W20+Y20+AA20+AC20+AE20+AG20+AI20+AK20+AM20+AO20+AQ20+AS20 -> 460451 | BC20: 460451 | BD20: =BB20-BC20 -> 0
A21: Administration | AE21: 187272 | AF21: 187272 | AG21: 205960 | AH21: 199385 | AI21: 187511 | AJ21: 187511 | AK21: 177410 | AL21: 177410 | AM21: 145498 | AN21: 145498 | AO21: 180549 | AP21: 180549 | BB21: 1084200 | BC21: 1077625 | BD21: 6575
A22: Repairs & Maintenance | AE22: 549682 | AF22: 549682 | AG22: 444505 | AH22: 460616 | AI22: 437399 | AJ22: 437399 | AK22: 496269 | AL22: 496269 | AM22: 396384 | AN22: 396384 | AO22: 346279 | AP22: 346279 | BB22: 2670518 | BC22: 2686629 | BD22: -16111
A23: Services | AE23: 0 | AF23: 0 | AG23: 4032 | AH23: 13493 | AI23: 5866 | AJ23: 6517 | AK23: 0 | AL23: 0 | AM23: 0 | AN23: 0 | AO23: 0 | AP23: 0 | BB23: 9898 | BC23: 20010 | BD23: -10112
A24: Principal & Interest | AE24: 2003521 | AF24: 2003521 | AG24: 1983942 | AH24: 1983942 | AI24: 2021846 | AJ24: 2021846 | AK24: 1899037 | AL24: 1899037 | AM24: 1856226 | AN24: 1856226 | AO24: 1850156 | AP24: 1850156 | BB24: 11614728 | BC24: 11614728 | BD24: 0
A25: Replacement Reserve | AE25: 0 | AF25: 278540 | AG25: 278540 | AH25: 278540 | AI25: 278540 | AJ25: 278540 | AK25: 103167 | AL25: 250000 | AM25: 278540 | AN25: 278540 | AO25: 278540 | AP25: 278540 | BB25: 1217327 | BC25: 1642700 | BD25: -425373
A26: Bad Debts | AE26: 324468 | AF26: 63232 | AG26: 0 | AH26: 0 | AI26: 0 | AJ26: 0 | AK26: 252318 | AL26: 105485 | AM26: 99062 | AN26: 65024 | AO26: 112040 | AP26: 69744 | BB26: 787888 | BC26: 303485 | BD26: 484403
A27: Professional Fees | AE27: 6650 | AF27: 6650 | AG27: 2631 | AH27: 2631 | AI27: 4000 | AJ27: 4000 | AK27: 1363 | AL27: 1363 | AM27: 30379 | AN27: 30380 | AO27: 15797 | AP27: 15797 | BB27: 60820 | BC27: 60821 | BD27: -1
A28: Others | AE28: 0 | AF28: 0 | AG28: 0 | AH28: 0 | AI28: 0 | AJ28: 0 | AK28: 0 | AL28: 0 | AM28: 0 | AN28: 0 | AO28: 0 | AP28: 0 | BB28: 0 | BC28: 0 | BD28: 0
A29: Renovation reserve | AE29: 11676 | AF29: 11676 | AG29: 209878 | AH29: 198166 | AI29: 130410 | AJ29: 0 | AK29: 0 | AL29: 0 | AM29: 0 | AN29: 0 | AO29: 0 | AP29: 0 | BB29: 351964 | BC29: 209842 | BD29: 142122
A30: Other (Contigency) | AE30: 4699 | AF30: 4699 | AG30: 0 | AH30: 0 | AI30: 0 | AJ30: 0 | AK30: 1500 | AL30: 1500 | AM30: 0 | AN30: 0 | AO30: 0 | AP30: 0 | BB30: 6199 | BC30: 6199 | BD30: 0
A31: Total Expenses | C31: =SUM(C20:C30) -> 0 | D31: =SUM(D20:D30) -> 0 | E31: =SUM(E20:E30) -> 0 | F31: 0 | G31: 0 | H31: 0 | I31: 0 | J31: 0 | K31: 0 | L31: 0 | M31: 0 | N31: 0 | O31: 0 | P31: 0 | Q31: 0 | R31: 0 | S31: 0 | T31: 0 | U31: 0 | V31: =SUM(V20:V30) -> 0 | W31: 0 | X31: 0 | Y31: 0 | Z31: 0 | AA31: 0 | AB31: 0 | AC31: 0 | AD31: 0 | AE31: 3172682 | AF31: 3189986 | AG31: 3211702 | AH31: 3218987 | AI31: 3141815 | AJ31: 3012056 | AK31: 3003071 | AL31: 3003071 | AM31: 2878096 | AN31: =SUM(AN20:AN30) -> 2844059 | AO31: 2856627 | AP31: 2814331 | AQ31: 0 | AR31: 0 | AS31: 0 | AT31: 0 | AU31: =SUM(AU20:AU30) -> 0 | AV31: 0 | AW31: 0 | AX31: 0 | AY31: 0 | AZ31: 0 | BB31: =SUM(BB20:BB30) -> 18263993 | BC31: =SUM(BC20:BC30) -> 18082490 | BD31: 181503
A32: Difference | C32: =C31-D31 -> 0 | E32: =E31-F31 -> 0 | G32: =G31-H31 -> 0 | I32: =I31-J31 -> 0 | K32: =K31-L31 -> 0 | M32: =M31-N31 -> 0 | O32: =O31-P31 -> 0 | Q32: =Q31-R31 -> 0 | S32: =S31-T31 -> 0 | U32: =U31-V31 -> 0 | W32: =W31-X31 -> 0 | Y32: =Y31-Z31 -> 0 | AA32: =AA31-AB31 -> 0 | AC32: =AC31-AD31 -> 0 | AE32: =AE31-AF31 -> -17304 | AG32: =AG31-AH31 -> -7285 | AI32: =AI31-AJ31 -> 129759 | AK32: =AK31-AL31 -> 0 | AM32: =AM31-AN31 -> 34037 | AO32: =AO31-AP31 -> 42296 | AQ32: =AQ31-AR31 -> 0 | AS32: =AS31-AT31 -> 0 | AU32: =AU31-AV31 -> 0 | AW32: =AW31-AX31 -> 0 | AY32: =AY31-AZ31 -> 0
A33: Current Surplus/(Deficit) | C33: =C17-C31 -> 0 | D33: =D17-D31 -> 0 | E33: =E17-E31 -> 0 | F33: =F17-F31 -> 0 | G33: 0 | H33: 0 | I33: 0 | J33: 0 | K33: 0 | L33: 0 | M33: 0 | N33: 0 | O33: 0 | P33: 0 | Q33: 0 | R33: 0 | S33: 0 | T33: 0 | U33: 0 | V33: 0 | W33: 0 | X33: 0 | Y33: 0 | Z33: 0 | AA33: 0 | AB33: 0 | AC33: 0 | AD33: 0 | AE33: -7285 | AF33: 0 | AG33: 7285 | AH33: 0 | AI33: 0 | AJ33: 129759 | AK33: 0 | AL33: 0 | AM33: 0 | AN33: 34037 | AO33: 0 | AP33: 42296 | AQ33: 0 | AR33: 0 | AS33: 0 | AT33: 0 | AU33: =AU17-AU31 -> 0 | AV33: 0 | AW33: 0 | AX33: 0 | AY33: 0 | AZ33: 0 | BB33: =E33+G33+I33+K33+M33+O33+Q33+S33+U33+W33+Y33+AA33+AC33+AE33+AG33+AI33+AK33+AM33+AO33+AQ33+AS33 -> 0 | BC33: =F33+H33+J33+L33+N33+P33+R33+T33+V33+X33+Z33+AB33+AD33+AF33+AH33+AJ33+AL33+AN33+AP33+AR33+AT33 -> 206092 | BD33: =BB33-BC33 -> -206092
A34: Accrued Surplus/(Deficit) | C34: 7924 | D34: 237028 | E34: =C38 -> 7924 | F34: =D38 -> 237028 | G34: =E38 -> 7924 | H34: 237028 | I34: 7924 | J34: 237028 | K34: 7924 | L34: 237028 | M34: 7924 | N34: 237028 | O34: 7924 | P34: 237028 | Q34: 7924 | R34: 237028 | S34: 7924 | T34: 237028 | U34: 7924 | V34: 237028 | W34: 7924 | X34: 237028 | Y34: 7924 | Z34: 237028 | AA34: 7924 | AB34: 237028 | AC34: 7924 | AD34: 237028 | AE34: 7924 | AF34: 237028 | AG34: 639 | AH34: 237028 | AI34: 7924 | AJ34: 237028 | AK34: 7924 | AL34: 366787 | AM34: 7924 | AN34: 366787 | AO34: 7924 | AP34: 400824 | AQ34: 7924 | AR34: 443120 | AS34: 7924 | AT34: 443120 | AU34: =AS38 -> 7924 | AV34: 443120 | AW34: 7924 | AX34: 443120 | AY34: 7924 | AZ34: 443120
A35: (to)/from Subsidy Surplus | C35: 0 | D35: 0 | F35: 0 | G35: 0 | H35: 0 | I35: 0 | J35: 0 | K35: 0 | L35: 0 | M35: 0 | N35: 0 | O35: 0 | P35: 0 | Q35: 0 | R35: 0 | S35: 0 | T35: 0 | U35: 0 | V35: 0 | W35: 0 | X35: 0 | Y35: 0 | Z35: 0 | AA35: 0 | AB35: 0 | AC35: 0 | AD35: 0 | AE35: 0 | AF35: 0 | AG35: 0 | AH35: 0 | AI35: 0 | AJ35: 0 | AK35: 0 | AL35: 0 | AM35: 0 | AN35: 0 | AO35: 0 | AP35: 0 | AQ35: 0 | AR35: 0 | AS35: 0 | AT35: 0 | AU35: 0 | AV35: 0 | AW35: 0 | AX35: 0 | AY35: 0 | AZ35: 0 | BB35: =E35+G35+I35+K35+M35+O35+Q35+S35+U35+W35+Y35+AA35+AC35+AE35+AG35+AI35+AK35+AM35+AO35+AQ35+AS35 -> 0 | BC35: 0 | BD35: =BB35-BC35 -> 0
A36: Surplus Refund to CMHC | D36: 0 | F36: 0 | G36: 0 | H36: 0 | I36: 0 | J36: 0 | K36: 0 | L36: 0 | M36: 0 | N36: 0 | O36: 0 | P36: 0 | Q36: 0 | R36: 0 | S36: 0 | T36: 0 | U36: 0 | V36: 0 | W36: 0 | X36: 0 | Y36: 0 | Z36: 0 | AA36: 0 | AB36: 0 | AC36: 0 | AD36: 0 | AE36: 0 | AF36: 0 | AG36: 0 | AH36: 0 | AI36: 0 | AJ36: 0 | AK36: 0 | AL36: 0 | AM36: 0 | AN36: 0 | AO36: 0 | AP36: 0 | AQ36: 0 | AR36: 0 | AS36: 0 | AT36: 0 | AU36: 0 | AV36: 0 | AW36: 0 | AX36: 0 | AY36: 0 | AZ36: 0 | BB36: 0 | BC36: 0 | BD36: =BB36-BC36 -> 0
A37: Prior Period Adjustment | C37: 0 | D37: 0 | E37: 0 | F37: 0 | G37: 0 | H37: 0 | I37: 0 | J37: 0 | K37: 0 | L37: 0 | M37: 0 | N37: 0 | O37: 0 | P37: 0 | Q37: 0 | R37: 0 | S37: 0 | T37: 0 | U37: 0 | V37: 0 | W37: 0 | X37: 0 | Y37: 0 | Z37: 0 | AA37: 0 | AB37: 0 | AC37: 0 | AD37: 0 | AE37: 0 | AF37: 0 | AG37: 0 | AH37: 0 | AI37: 0 | AJ37: 0 | AK37: 0 | AL37: 0 | AM37: 0 | AN37: 0 | AO37: 0 | AP37: 0 | AQ37: 0 | AR37: 0 | AS37: 0 | AT37: 0 | AU37: 0 | AV37: 0 | AW37: 0 | AX37: 0 | AY37: 0 | AZ37: 0 | BB37: 0 | BC37: 0 | BD37: =BB37-BC37 -> 0
A38: Total Surplus/(Deficit) | C38: =SUM(C33:C37) -> 7924 | D38: =SUM(D33:D37) -> 237028 | E38: =SUM(E33:E37) -> 7924 | F38: 237028 | G38: 7924 | H38: 237028 | I38: 7924 | J38: 237028 | K38: 7924 | L38: 237028 | M38: 7924 | N38: 237028 | O38: 7924 | P38: 237028 | Q38: 7924 | R38: 237028 | S38: 7924 | T38: 237028 | U38: 7924 | V38: 237028 | W38: 7924 | X38: 237028 | Y38: 7924 | Z38: 237028 | AA38: 7924 | AB38: 237028 | AC38: 7924 | AD38: 237028 | AE38: 639 | AF38: 237028 | AG38: 7924 | AH38: 237028 | AI38: 7924 | AJ38: 366787 | AK38: 7924 | AL38: 366787 | AM38: 7924 | AN38: 400824 | AO38: 7924 | AP38: 443120 | AQ38: 7924 | AR38: 443120 | AS38: 7924 | AT38: 443120 | AU38: =SUM(AU33:AU37) -> 7924 | AV38: 443120 | AW38: 7924 | AX38: 443120 | AY38: 7924 | AZ38: 443120 | BB38: =SUM(BB33:BB37) -> 0 | BC38: =SUM(BC33:BC37) -> 206092 | BD38: =BB38-BC38 -> -206092
A40: Subsidy Surplus Account | BB40: Subsidy Surplus Account Summary from Beginning
A41: Beginning Principal | C41: 7924 | D41: 237028 | E41: =C47 -> 7924 | F41: =D47 -> 237028 | G41: =E47 -> 7924 | H41: 237028 | I41: 7924 | J41: 237028 | K41: 7924 | L41: 237028 | M41: 7924 | N41: 237028 | O41: 7924 | P41: 237028 | Q41: 7924 | R41: 237028 | S41: 7924 | T41: 237028 | U41: 7924 | V41: 237028 | W41: 7924 | X41: 237028 | Y41: 7924 | Z41: 237028 | AA41: 7924 | AB41: 237028 | AC41: 7924 | AD41: 237028 | AE41: 7924 | AF41: 237028 | AG41: 7924 | AH41: 237028 | AI41: =AG47 -> 265409 | AJ41: 435194 | AK41: 265409 | AL41: 564953 | AM41: 265409 | AN41: 564953 | AO41: 265409 | AP41: 598991 | AQ41: 265409 | AR41: 598991 | AS41: 265409 | AT41: 598991 | AU41: =AS47 -> 265409 | AV41: 598991 | AW41: 265409 | AX41: 598991 | AY41: 265409 | AZ41: 598991
A42: Beginning Interest | D42: 0 | E42: 0 | F42: 0 | G42: =E48 -> 0 | H42: 0 | I42: =G48 -> 0 | J42: 0 | K42: =I48 -> 0 | L42: 0 | M42: =K48 -> 0 | N42: 0 | O42: =M48 -> 0 | P42: 0 | Q42: =O48 -> 0 | R42: 0 | S42: 0 | T42: 0 | U42: 0 | V42: 0 | W42: 0 | X42: 0 | Y42: 0 | Z42: 0 | AA42: 0 | AB42: 0 | AC42: 0 | AD42: 0 | AE42: 0 | AF42: 0 | AG42: 0 | AH42: 0 | AI42: 0 | AJ42: 28381 | AK42: 0 | AL42: 28381 | AM42: 0 | AN42: 28381 | AO42: 0 | AP42: 28381 | AQ42: 0 | AR42: 28381 | AS42: 0 | AT42: 28381 | AU42: 0 | AV42: 28381 | AW42: 0 | AX42: 28381 | AY42: 0 | AZ42: 28381
A43: Principal from Operating | C43: 0 | D43: 0 | E43: 0 | F43: 0 | G43: 0 | H43: 0 | I43: 0 | J43: 0 | K43: 0 | L43: 0 | M43: 0 | N43: 0 | O43: 0 | P43: 0 | Q43: 0 | R43: 0 | S43: 0 | T43: 0 | U43: 0 | V43: 0 | W43: 0 | X43: =-X35 -> 0 | Y43: 0 | Z43: 0 | AA43: 0 | AB43: 0 | AC43: 0 | AD43: =-AD35 -> 0 | AE43: 0 | AF43: =-AF35 -> 0 | AG43: 257485 | AH43: 198166 | AI43: 0 | AJ43: 129759 | AK43: 0 | AL43: =-AL35 -> 0 | AM43: 0 | AN43: 34038 | AO43: 0 | AP43: =-AP35 -> 0 | AQ43: 0 | AR43: =-AR35 -> 0 | AS43: 0 | AT43: =-AT35 -> 0 | AU43: 0 | AV43: =-AV35 -> 0 | AW43: 0 | AX43: =-AX35 -> 0 | AY43: 0 | AZ43: =-AZ35 -> 0 | BB43: =E43+G43+I43+K43+M43+O43+Q43+S43+U43+W43+Y43+AA43+AC43+AE43+AG43+AI43+AK43+AM43+AO43+AQ43+AS43 -> 257485 | BC43: 361963
A44: Interest earned | C44: 0 | D44: 0 | E44: 0 | F44: 0 | G44: 0 | H44: 0 | I44: 0 | J44: 0 | K44: 0 | L44: 0 | M44: 0 | N44: 0 | O44: 0 | P44: 0 | Q44: 0 | R44: 0 | S44: 0 | T44: 0 | U44: 0 | V44: 0 | W44: 0 | X44: 0 | Y44: 0 | Z44: 0 | AA44: 0 | AB44: 0 | AC44: 0 | AD44: 0 | AE44: 0 | AF44: 0 | AG44: 0 | AH44: 28381 | AI44: 0 | AJ44: 0 | AK44: 0 | AL44: 0 | AM44: 0 | AN44: 0 | AO44: 0 | AP44: 0 | AQ44: 0 | AR44: 0 | AS44: 0 | AT44: 0 | AU44: 0 | AV44: 0 | AW44: 0 | AX44: 0 | AY44: 0 | AZ44: 0 | BB44: 0 | BC44: 28381
A45: Principal to Operating | C45: 0 | D45: 0 | E45: 0 | F45: 0 | G45: 0 | H45: 0 | I45: 0 | J45: 0 | K45: 0 | L45: 0 | M45: 0 | N45: 0 | O45: 0 | P45: 0 | Q45: 0 | R45: 0 | S45: 0 | T45: 0 | U45: 0 | V45: 0 | W45: 0 | X45: 0 | Y45: 0 | Z45: 0 | AA45: 0 | AB45: 0 | AC45: 0 | AD45: 0 | AE45: 0 | AF45: 0 | AG45: 0 | AH45: 0 | AI45: 0 | AJ45: 0 | AK45: 0 | AL45: 0 | AM45: 0 | AN45: 0 | AO45: 0 | AP45: 0 | AQ45: 0 | AR45: 0 | AS45: 0 | AT45: 0 | AU45: 0 | AV45: 0 | AW45: 0 | AX45: 0 | AY45: 0 | AZ45: 0 | BB45: 0 | BC45: 0
A46: Interest to Operating | C46: 0 | D46: 0 | E46: 0 | F46: 0 | G46: 0 | H46: 0 | I46: 0 | J46: 0 | K46: 0 | L46: 0 | M46: 0 | N46: 0 | O46: 0 | P46: 0 | Q46: 0 | R46: 0 | S46: 0 | T46: 0 | U46: 0 | V46: 0 | W46: 0 | X46: 0 | Y46: 0 | Z46: 0 | AA46: 0 | AB46: 0 | AC46: 0 | AD46: 0 | AE46: 0 | AF46: 0 | AG46: 0 | AH46: 0 | AI46: 0 | AJ46: 0 | AK46: 0 | AL46: 0 | AM46: 0 | AN46: 0 | AO46: 0 | AP46: 0 | AQ46: 0 | AR46: 0 | AS46: 0 | AT46: 0 | AU46: 0 | AV46: 0 | AW46: 0 | AX46: 0 | AY46: 0 | AZ46: 0 | BB46: 0 | BC46: 0
A47: Ending Principal | C47: =C41+C43+C45 -> 7924 | D47: =D41+D43+D45 -> 237028 | E47: =E41+E43+E45 -> 7924 | F47: 237028 | G47: 7924 | H47: 237028 | I47: 7924 | J47: 237028 | K47: 7924 | L47: 237028 | M47: 7924 | N47: 237028 | O47: 7924 | P47: 237028 | Q47: 7924 | R47: 237028 | S47: 7924 | T47: 237028 | U47: 7924 | V47: 237028 | W47: 7924 | X47: 237028 | Y47: 7924 | Z47: 237028 | AA47: 7924 | AB47: 237028 | AC47: 7924 | AD47: 237028 | AE47: 7924 | AF47: 237028 | AG47: 265409 | AH47: 435194 | AI47: 265409 | AJ47: 564953 | AK47: 265409 | AL47: 564953 | AM47: 265409 | AN47: 598991 | AO47: 265409 | AP47: 598991 | AQ47: 265409 | AR47: 598991 | AS47: 265409 | AT47: 598991 | AU47: =AU41+AU43+AU45 -> 265409 | AV47: 598991 | AW47: 265409 | AX47: 598991 | AY47: 265409 | AZ47: 598991 | BB47: =BB41+BB43+BB45 -> 257485 | BC47: =BC41+BC43+BC45 -> 361963
A48: Ending Interest | C48: 0 | D48: =D42+D44+D46 -> 0 | E48: 0 | F48: 0 | G48: 0 | H48: 0 | I48: 0 | J48: 0 | K48: 0 | L48: 0 | M48: 0 | N48: 0 | O48: 0 | P48: 0 | Q48: 0 | R48: 0 | S48: 0 | T48: 0 | U48: 0 | V48: 0 | W48: 0 | X48: 0 | Y48: 0 | Z48: 0 | AA48: 0 | AB48: 0 | AC48: 0 | AD48: 0 | AE48: 0 | AF48: 0 | AG48: =AG42+AG44+AG46 -> 0 | AH48: 28381 | AI48: 0 | AJ48: 28381 | AK48: 0 | AL48: 28381 | AM48: 0 | AN48: 28381 | AO48: 0 | AP48: 28381 | AQ48: 0 | AR48: 28381 | AS48: 0 | AT48: 28381 | AU48: 0 | AV48: 28381 | AW48: 0 | AX48: 28381 | AY48: 0 | AZ48: 28381 | BB48: =BB42+BB44+BB46 -> 0 | BC48: =BC42+BC44 -> 28381
A49: Total Ending Balance | C49: =SUM(C47:C48) -> 7924 | D49: =SUM(D47:D48) -> 237028 | E49: =SUM(E47:E48) -> 7924 | F49: 237028 | G49: 7924 | H49: 237028 | I49: 7924 | J49: 237028 | K49: 7924 | L49: 237028 | M49: 7924 | N49: 237028 | O49: 7924 | P49: 237028 | Q49: 7924 | R49: 237028 | S49: 7924 | T49: 237028 | U49: 7924 | V49: 237028 | W49: 7924 | X49: 237028 | Y49: 7924 | Z49: 237028 | AA49: 7924 | AB49: 237028 | AC49: 7924 | AD49: 237028 | AE49: 7924 | AF49: 237028 | AG49: 265409 | AH49: =SUM(AH47:AH48) -> 463575 | AI49: 265409 | AJ49: 593334 | AK49: 265409 | AL49: 593334 | AM49: 265409 | AN49: 627372 | AO49: 265409 | AP49: 627372 | AQ49: 265409 | AR49: 627372 | AS49: 265409 | AT49: 627372 | AU49: =SUM(AU47:AU48) -> 265409 | AV49: 627372 | AW49: 265409 | AX49: 627372 | AY49: 265409 | AZ49: 627372 | BB49: =SUM(BB47:BB48) -> 257485 | BC49: =SUM(BC47:BC48) -> 390344
A50: (Maximum principal balance allowed) | C50: 15 unit x $500 | D50: =500*15 -> 7500 | E50: 15 unit x $500 | F50: =500*15 -> 7500 | G50: 15 unit x $500 | H50: =500*15 -> 7500 | I50: 26 unit x $500 | J50: =500*26 -> 13000 | K50: 52 unit x $500 | L50: =500*52 -> 26000 | M50: 52 unit x $500 | N50: =500*52 -> 26000 | O50: 79 unit x $500 | P50: =500*79 -> 39500 | Q50: 127 unit x $500 | R50: =500*127 -> 63500 | S50: 167 unit x $500 | T50: =500*167 -> 83500 | U50: 207 unit x $500 | V50: =500*207 -> 103500 | W50: 207 unit x $500 | X50: =500*207 -> 103500 | Y50: 202 unit x $500 | Z50: =500*202 -> 101000 | AA50: 202 unit x $500 | AB50: =500*202 -> 101000 | AC50: 202 unit x $500 | AD50: =500*202 -> 101000 | AE50: 202 unit x $500 | AF50: =500*202 -> 101000 | AG50: 202 unit x $500 | AH50: =500*202 -> 101000 | AI50: 202 unit x $500 | AJ50: =500*202 -> 101000 | AK50: 202 unit x $500 | AL50: =500*202 -> 101000 | AM50: 202 unit x $500 | AN50: =500*202 -> 101000 | AO50: 202 unit x $500 | AP50: =500*202 -> 101000 | AQ50: 202 unit x $500 | AR50: =500*202 -> 101000 | AS50: 202 unit x $500 | AT50: =500*202 -> 101000 | AU50: 203 unit x $500 | AV50: =500*202 -> 101000 | AW50: 204 unit x $500 | AX50: =500*202 -> 101000 | AY50: 205 unit x $500 | AZ50: =500*202 -> 101000
A52: Replacement Reserve Account | BB52: Replacement Reserve Fund
A53: Beginning Balance | C53: 960008 | D53: 1166058 | E53: =C58 -> 960008 | F53: =D58 -> 1166058 | G53: =E58 -> 960008 | H53: 1166058 | I53: 960008 | J53: 1166058 | K53: 960008 | L53: 1166058 | M53: 960008 | N53: 1166058 | O53: 960008 | P53: 1166058 | Q53: 960008 | R53: 1166058 | S53: 960008 | T53: 1166058 | U53: 960008 | V53: 1166058 | W53: 960008 | X53: 1166058 | Y53: 960008 | Z53: 1166058 | AA53: 960008 | AB53: 1166058 | AC53: 960008 | AD53: 1166058 | AE53: 960008 | AF53: 1166058 | AG53: 996402 | AH53: 1480992 | AI53: 1320220 | AJ53: 1303998 | AK53: 1621698 | AL53: 1605476 | AM53: 1735722 | AN53: 1866333 | AO53: 1530318 | AP53: 1660929 | AQ53: =AO58 -> 1819409 | AR53: 1950020 | AS53: 1819409 | AT53: 1950020 | AU53: 1819409 | AV53: 1950020 | AW53: 1819409 | AX53: 1950020 | AY53: 1819409 | AZ53: 1950020
A54: Current Year Allocation | C54: =C25 -> 0 | D54: =D25 -> 0 | E54: 0 | F54: 0 | G54: 0 | H54: 0 | I54: 0 | J54: 0 | K54: 0 | L54: 0 | M54: 0 | N54: 0 | O54: 0 | P54: 0 | Q54: 0 | R54: 0 | S54: 0 | T54: 0 | U54: 0 | V54: 0 | W54: 0 | X54: 0 | Y54: 0 | Z54: 0 | AA54: 0 | AB54: 0 | AC54: 0 | AD54: 0 | AE54: 0 | AF54: 278540 | AG54: 278540 | AH54: 278540 | AI54: 278540 | AJ54: 278540 | AK54: 103167 | AL54: 250000 | AM54: 278540 | AN54: 278540 | AO54: 278540 | AP54: 278540 | AQ54: 0 | AR54: 0 | AS54: 0 | AT54: 0 | AU54: 0 | AV54: 0 | AW54: 0 | AX54: 0 | AY54: 0 | AZ54: 0 | BB54: =E54+G54+I54+K54+M54+O54+Q54+S54+U54+W54+Y54+AA54+AC54+AE54+AG54+AI54+AK54+AM54+AO54+AQ54+AS54+AU54+AW54+AY54 -> 1217327 | BC54: 1642700 | BD54: =BB54-BC54 -> -425373
A55: Interest Earned | AE55: 36394 | AF55: 36394 | AG55: 45137 | AH55: 45137 | AI55: 22938 | AJ55: 22938 | AK55: 10857 | AL55: 10857 | AM55: 16056 | AN55: 16056 | AO55: 10551 | AP55: 10551 | BB55: 141933 | BC55: 141933 | BD55: =BB55-BC55 -> 0
A56: Expenditures | AH56: -500671 | AM56: -500000 | AN56: -500000 | BB56: -500000 | BC56: -1000671 | BD56: =BB56-BC56 -> 500671
A57: Prior Period Adjustment | AG57: =996543-996402 -> 141 | BB57: 141 | BC57: 0 | BD57: =BB57-BC57 -> 141
A58: Ending Balance Required | C58: =SUM(C53:C57) -> 960008 | D58: =SUM(D53:D57) -> 1166058 | E58: =SUM(E53:E57) -> 960008 | F58: 1166058 | G58: 960008 | H58: 1166058 | I58: 960008 | J58: 1166058 | K58: 960008 | L58: 1166058 | M58: 960008 | N58: 1166058 | O58: 960008 | P58: 1166058 | Q58: 960008 | R58: 1166058 | S58: 960008 | T58: 1166058 | U58: 960008 | V58: 1166058 | W58: 960008 | X58: 1166058 | Y58: 960008 | Z58: 1166058 | AA58: 960008 | AB58: 1166058 | AC58: 960008 | AD58: 1166058 | AE58: 996402 | AF58: 1480992 | AG58: 1320220 | AH58: 1303998 | AI58: 1621698 | AJ58: 1605476 | AK58: 1735722 | AL58: 1866333 | AM58: 1530318 | AN58: 1660929 | AO58: 1819409 | AP58: 1950020 | AQ58: 1819409 | AR58: 1950020 | AS58: 1819409 | AT58: 1950020 | AU58: 1819409 | AV58: 1950020 | AW58: 1819409 | AX58: 1950020 | AY58: 1819409 | AZ58: 1950020 | BB58: =SUM(BB53:BB57) -> 859401 | BC58: =SUM(BC53:BC57) -> 783962 | BD58: =BB58-BC58 -> 75439
A60: Subsidy Surplus Refunds from First Nation to CMHC | BB60: Surplus Subsidy Refunded
A61: Accrued Refund Owing | D61: 0 | F61: =D65 -> 0 | H61: =F65 -> 0 | J61: =H65 -> 0 | L61: =J65 -> 0 | N61: =L65 -> 0 | P61: =N65 -> 0 | R61: =P65 -> 0 | T61: =R65 -> 0 | V61: =T65 -> 0 | X61: =V65 -> 0 | Z61: =X65 -> 0 | AB61: =Z65 -> 0 | AD61: =AB65 -> 0 | AF61: =AB65 -> 0 | AH61: =X65 -> 0 | AJ61: =Z65 -> 0 | AL61: =AB65 -> 0 | AN61: =X65 -> 0 | AP61: =Z65 -> 0 | AR61: =AB65 -> 0 | AT61: =AD65 -> 0 | AV61: =AF65 -> 0 | AX61: =AH65 -> 0 | AZ61: =AJ65 -> 0
A62: Current Surplus to be Refunded | F62: =-F36 -> 0 | H62: =-H36 -> 0 | J62: =-J36 -> 0 | L62: =-L36 -> 0 | N62: =-N36 -> 0 | P62: =-P36 -> 0 | R62: =-R36 -> 0 | T62: =-T36 -> 0 | V62: =-V36 -> 0 | X62: =-X36 -> 0 | Z62: =-Z36 -> 0 | AB62: =-AB36 -> 0 | AD62: =-AD36 -> 0 | AF62: =-AF36 -> 0 | AH62: =-AH36 -> 0 | AJ62: =-AJ36 -> 0 | AL62: =-AL36 -> 0 | AN62: =-AN36 -> 0 | AP62: =-AP36 -> 0 | AR62: =-AR36 -> 0 | AT62: =-AT36 -> 0 | AV62: =-AV36 -> 0 | AX62: =-AX36 -> 0 | AZ62: =-AZ36 -> 0 | BB62: =E62+G62+I62+K62+M62+O62+Q62+S62+U62+W62+Y62+AA62+AC62+AE62+AG62+AI62+AK62+AM62+AO62+AQ62+AS62 -> 0 | BC62: =F62+H62+J62+L62+N62+P62+R62+T62+V62+X62+Z62+AB62+AD62+AF62+AH62+AJ62+AL62+AN62+AP62+AR62+AT62 -> 0
A63: Total Refundable to CMHC | D63: =SUM(D61:D62) -> 0 | F63: =SUM(F61:F62) -> 0 | H63: =SUM(H61:H62) -> 0 | J63: =SUM(J61:J62) -> 0 | L63: =SUM(L61:L62) -> 0 | N63: =SUM(N61:N62) -> 0 | P63: =SUM(P61:P62) -> 0 | R63: =SUM(R61:R62) -> 0 | T63: =SUM(T61:T62) -> 0 | V63: =SUM(V61:V62) -> 0 | X63: =SUM(X61:X62) -> 0 | Z63: =SUM(Z61:Z62) -> 0 | AB63: =SUM(AB61:AB62) -> 0 | AD63: =SUM(AD61:AD62) -> 0 | AF63: =SUM(AF61:AF62) -> 0 | AH63: =SUM(AH61:AH62) -> 0 | AJ63: =SUM(AJ61:AJ62) -> 0 | AL63: =SUM(AL61:AL62) -> 0 | AN63: =SUM(AN61:AN62) -> 0 | AP63: =SUM(AP61:AP62) -> 0 | AR63: =SUM(AR61:AR62) -> 0 | AT63: =SUM(AT61:AT62) -> 0 | AV63: =SUM(AV61:AV62) -> 0 | AX63: =SUM(AX61:AX62) -> 0 | AZ63: =SUM(AZ61:AZ62) -> 0
A64: Actual Refund this year | D64: 0 | F64: 0 | H64: 0 | J64: 0 | L64: 0 | N64: 0 | P64: 0 | R64: 0 | T64: 0 | V64: 0 | X64: 0 | Z64: 0 | AB64: 0 | AD64: 0 | AF64: 0 | AH64: 0 | AJ64: 0 | AL64: 0 | AN64: 0 | AP64: 0 | AR64: 0 | AT64: 0 | BB64: =E64+G64+I64+K64+M64+O64+Q64+S64+U64+W64+Y64+AA64+AC64+AE64+AG64+AI64+AK64+AM64+AO64+AQ64+AS64 -> 0 | BC64: =F64+H64+J64+L64+N64+P64+R64+T64+V64+X64+Z64+AB64+AD64+AF64+AH64+AJ64+AL64+AN64+AP64+AR64+AT64 -> 0
A65: Remaining Amount to Refund | D65: =SUM(D63:D64) -> 0 | F65: =SUM(F63:F64) -> 0 | H65: =SUM(H63:H64) -> 0 | J65: =SUM(J63:J64) -> 0 | L65: =SUM(L63:L64) -> 0 | N65: =SUM(N63:N64) -> 0 | P65: =SUM(P63:P64) -> 0 | R65: =SUM(R63:R64) -> 0 | T65: =SUM(T63:T64) -> 0 | V65: =SUM(V63:V64) -> 0 | X65: =SUM(X63:X64) -> 0 | Z65: =SUM(Z63:Z64) -> 0 | AB65: =SUM(AB63:AB64) -> 0 | AD65: =SUM(AD63:AD64) -> 0 | AF65: =SUM(AF63:AF64) -> 0 | AH65: =SUM(AH63:AH64) -> 0 | AJ65: =SUM(AJ63:AJ64) -> 0 | AL65: =SUM(AL63:AL64) -> 0 | AN65: =SUM(AN63:AN64) -> 0 | AP65: =SUM(AP63:AP64) -> 0 | AR65: =SUM(AR63:AR64) -> 0 | AT65: =SUM(AT63:AT64) -> 0 | AV65: =SUM(AV63:AV64) -> 0 | AX65: =SUM(AX63:AX64) -> 0 | AZ65: =SUM(AZ63:AZ64) -> 0 | BB65: =BB62+BB64 -> 0 | BC65: =BC62+BC64 -> 0

Sheet Post-96 Historical data (hidden)
B2: Click to return to Main Menu
AF4: Totals from Completion
C5: 2001 | E5: 2002 | G5: 2003 | I5: 2004 | K5: 2005 | M5: 2006 | O5: 2007 | Q5: 2008 | S5: 2009 | U5: 2010 | W5: 2011 | Y5: 2012 | AA5: 2013 | AC5: 2014 | AF5: of First Homes (Nov 2000)
C6: Template | D6: CMHC | E6: =$C$6 -> Template | F6: =$D$6 -> CMHC | G6: =$C$6 -> Template | H6: =$D$6 -> CMHC | I6: Submitted | J6: CMHC | K6: Submitted | L6: CMHC | M6: Submitted | N6: CMHC | O6: Submitted | P6: CMHC | Q6: Submitted | R6: CMHC | S6: Submitted | T6: CMHC | U6: Submitted | V6: CMHC | W6: Submitted | X6: CMHC | Y6: Submitted | Z6: CMHC | AA6: Submitted | AB6: CMHC | AC6: Submitted | AD6: CMHC | AF6: =$C$6 -> Template | AG6: =$D$6 -> CMHC | AH6: Differences
A7: REVENUE | C7: (5 months)
B8: Template First Nation Minimum Revenue | C8: 0 | D8: 0 | E8: 0 | F8: 0 | G8: 0 | H8: 0 | I8: 0 | J8: 0 | K8: 0 | L8: 0 | M8: 0 | N8: 0 | O8: 0 | P8: 0 | Q8: 0 | R8: 0 | S8: 0 | T8: 0 | U8: 0 | V8: 0 | W8: 0 | X8: 0 | Y8: 0 | Z8: 0 | AA8: 0 | AB8: 0 | AC8: 0 | AD8: 0 | AF8: =C8+E8+G8+I8+K8+M8+O8+Q8+S8+U8+W8+Y8+AA8+AC8 -> 0 | AG8: 0 | AH8: =AG8-AF8 -> 0
B9: Template First Nation Additional Funds | C9: 0 | D9: 0 | E9: 0 | F9: 0 | G9: 0 | H9: 0 | I9: 0 | J9: 0 | K9: 0 | L9: 0 | M9: 0 | N9: 0 | AF9: 0 | AG9: 0 | AH9: =AG9-AF9 -> 0
B10: CMHC Subsidy | C10: 0 | D10: 0 | E10: 0 | F10: 0 | G10: 0 | H10: 0 | I10: 0 | J10: 0 | K10: 0 | L10: 0 | M10: 0 | N10: 0 | O10: 0 | P10: 0 | Q10: 0 | R10: 0 | S10: 0 | T10: 0 | U10: 0 | V10: 0 | W10: 0 | X10: 0 | Y10: 0 | Z10: 0 | AA10: 0 | AB10: 0 | AC10: 0 | AD10: 0 | AF10: 0 | AG10: 0 | AH10: =AG10-AF10 -> 0
B11: Other | C11: 0 | D11: 0 | E11: 0 | F11: 0 | G11: 0 | H11: 0 | I11: 0 | J11: 0 | K11: 0 | L11: 0 | M11: 0 | N11: 0 | O11: 0 | P11: 0 | Q11: 0 | R11: 0 | S11: 0 | T11: 0 | U11: 0 | V11: 0 | W11: 0 | X11: 0 | Y11: 0 | Z11: 0 | AA11: 0 | AB11: 0 | AC11: 0 | AD11: 0 | AF11: =C11+I11+K11+M11+O11+Q11+S11+U11+W11+Y11+AA11+AC11 -> 0 | AG11: =D11+J11+L11+N11+P11+R11+T11+V11+X11+Z11+AB11+AD11 -> 0 | AH11: =AG11-AF11 -> 0
A12: Total Revenue | C12: =SUM(C8:C11) -> 0 | D12: 0 | E12: 0 | F12: 0 | G12: 0 | H12: 0 | I12: 0 | J12: 0 | K12: 0 | L12: 0 | M12: 0 | N12: 0 | O12: 0 | P12: 0 | Q12: 0 | R12: 0 | S12: 0 | T12: 0 | U12: 0 | V12: 0 | W12: 0 | X12: 0 | Y12: 0 | Z12: 0 | AA12: 0 | AB12: 0 | AC12: 0 | AD12: 0 | AF12: =SUM(AF8:AF11) -> 0 | AG12: =SUM(AG8:AG11) -> 0 | AH12: =SUM(AH8:AH11) -> 0
A14: EXPENSES
B15: Property Taxes | C15: 0 | D15: 0 | E15: 0 | F15: 0 | G15: 0 | H15: 0 | I15: 0 | J15: 0 | K15: 0 | L15: 0 | M15: 0 | N15: 0 | O15: 0 | P15: 0 | Q15: 0 | R15: 0 | S15: 0 | T15: 0 | U15: 0 | V15: 0 | W15: 0 | X15: 0 | Y15: 0 | Z15: 0 | AA15: 0 | AB15: 0 | AC15: 0 | AD15: 0 | AF15: =C15+E15+G15+I15+K15+M15+O15+Q15+S15+U15+W15+Y15+AA15+AC15 -> 0 | AG15: 0
B16: Insurance | C16: 0 | D16: 0 | E16: 0 | F16: 0 | G16: 0 | H16: 0 | I16: 0 | J16: 0 | K16: 0 | L16: 0 | M16: 0 | N16: 0 | O16: 0 | P16: 0 | Q16: 0 | R16: 0 | S16: 0 | T16: 0 | U16: 0 | V16: 0 | W16: 0 | X16: 0 | Y16: 0 | Z16: 0 | AA16: 0 | AB16: 0 | AC16: 0 | AD16: 0 | AF16: 0 | AG16: 0 | AH16: =AG16-AF16 -> 0
B17: Repairs & Maintenance | C17: 0 | D17: 0 | E17: 0 | F17: 0 | G17: 0 | H17: 0 | I17: 0 | J17: 0 | K17: 0 | L17: 0 | M17: 0 | N17: 0 | O17: 0 | P17: 0 | Q17: 0 | R17: 0 | S17: 0 | T17: 0 | U17: 0 | V17: 0 | W17: 0 | X17: 0 | Y17: 0 | Z17: 0 | AA17: 0 | AB17: 0 | AC17: 0 | AD17: 0 | AF17: 0 | AG17: 0 | AH17: 0
B18: Utilities | C18: 0 | D18: 0 | E18: 0 | F18: 0 | G18: 0 | H18: 0 | I18: 0 | J18: 0 | K18: 0 | L18: 0 | M18: 0 | N18: 0 | O18: 0 | P18: 0 | Q18: 0 | R18: 0 | S18: 0 | T18: 0 | U18: 0 | V18: 0 | W18: 0 | X18: 0 | Y18: 0 | Z18: 0 | AA18: 0 | AB18: 0 | AC18: 0 | AD18: 0 | AF18: 0 | AG18: 0 | AH18: 0
B19: Heat | C19: 0 | D19: 0 | E19: 0 | F19: 0 | G19: 0 | H19: 0 | I19: 0 | J19: 0 | K19: 0 | L19: 0 | M19: 0 | N19: 0 | O19: 0 | P19: 0 | Q19: 0 | R19: 0 | S19: 0 | T19: 0 | U19: 0 | V19: 0 | W19: 0 | X19: 0 | Y19: 0 | Z19: 0 | AA19: 0 | AB19: 0 | AC19: 0 | AD19: 0 | AF19: 0 | AG19: 0 | AH19: 0
B20: Administration | C20: 0 | D20: 0 | E20: 0 | F20: 0 | G20: 0 | H20: 0 | I20: 0 | J20: 0 | K20: 0 | L20: 0 | M20: 0 | N20: 0 | O20: 0 | P20: 0 | Q20: 0 | R20: 0 | S20: 0 | T20: 0 | U20: 0 | V20: 0 | W20: 0 | X20: 0 | Y20: 0 | Z20: 0 | AA20: 0 | AB20: 0 | AC20: 0 | AD20: 0 | AF20: 0 | AG20: 0 | AH20: 0
B21: Replacement Reserve | C21: 0 | D21: 0 | E21: 0 | F21: 0 | G21: 0 | H21: 0 | I21: 0 | J21: 0 | K21: 0 | L21: 0 | M21: 0 | N21: 0 | O21: 0 | P21: 0 | Q21: 0 | R21: 0 | S21: 0 | T21: 0 | U21: 0 | V21: 0 | W21: 0 | X21: 0 | Y21: 0 | Z21: 0 | AA21: 0 | AB21: 0 | AC21: 0 | AD21: 0 | AF21: 0 | AG21: 0 | AH21: 0
B22: Loan Payments | C22: 0 | D22: 0 | E22: 0 | F22: 0 | G22: 0 | H22: 0 | I22: 0 | J22: 0 | K22: 0 | L22: 0 | M22: 0 | N22: 0 | O22: 0 | P22: 0 | Q22: 0 | R22: 0 | S22: 0 | T22: 0 | U22: 0 | V22: 0 | W22: 0 | X22: 0 | Y22: 0 | Z22: 0 | AA22: 0 | AB22: 0 | AC22: 0 | AD22: 0 | AF22: 0 | AG22: 0 | AH22: 0
B23: Interest on Loan | C23: 0 | D23: 0 | E23: 0 | F23: 0 | G23: 0 | H23: 0 | I23: 0 | J23: 0 | K23: 0 | L23: 0 | M23: 0 | N23: 0 | O23: 0 | P23: 0 | Q23: 0 | R23: 0 | S23: 0 | T23: 0 | U23: 0 | V23: 0 | W23: 0 | X23: 0 | Y23: 0 | Z23: 0 | AA23: 0 | AB23: 0 | AC23: 0 | AD23: 0 | AF23: 0 | AG23: 0 | AH23: 0
B24: Professional Fees | C24: 0 | D24: 0 | E24: 0 | F24: 0 | G24: 0 | H24: 0 | I24: 0 | J24: 0 | K24: 0 | L24: 0 | M24: 0 | N24: 0 | O24: 0 | P24: 0 | Q24: 0 | R24: 0 | S24: 0 | T24: 0 | U24: 0 | V24: 0 | W24: 0 | X24: 0 | Y24: 0 | Z24: 0 | AA24: 0 | AB24: 0 | AC24: 0 | AD24: 0 | AF24: 0 | AG24: 0 | AH24: 0
B25: Bad Debts | C25: 0 | D25: 0 | E25: 0 | F25: 0 | G25: 0 | H25: 0 | I25: 0 | J25: 0 | K25: 0 | L25: 0 | M25: 0 | N25: 0 | O25: 0 | P25: 0 | Q25: 0 | R25: 0 | S25: 0 | T25: 0 | U25: 0 | V25: 0 | W25: 0 | X25: 0 | Y25: 0 | Z25: 0 | AA25: 0 | AB25: 0 | AC25: 0 | AD25: 0 | AF25: 0 | AG25: 0 | AH25: 0
B26: Other | C26: 0 | D26: 0 | E26: 0 | F26: 0 | G26: 0 | H26: 0 | I26: 0 | J26: 0 | K26: 0 | L26: 0 | M26: 0 | N26: 0 | O26: 0 | P26: 0 | Q26: 0 | R26: 0 | S26: 0 | T26: 0 | U26: 0 | V26: 0 | W26: 0 | X26: 0 | Y26: 0 | Z26: 0 | AA26: 0 | AB26: 0 | AC26: 0 | AD26: 0 | AF26: =C26+E26+G26+I26+K26+M26+O26+Q26+S26+U26+W26+Y26+AA26+AC26 -> 0 | AG26: =D26+J26+L26+N26+P26+R26+T26+V26+X26+Z26+AB26+AD26 -> 0 | AH26: 0
A27: Total Expenses | C27: =SUM(C15:C26) -> 0 | D27: 0 | E27: 0 | F27: 0 | G27: 0 | H27: 0 | I27: 0 | J27: 0 | K27: 0 | L27: 0 | M27: 0 | N27: 0 | O27: 0 | P27: 0 | Q27: 0 | R27: 0 | S27: 0 | T27: 0 | U27: 0 | V27: 0 | W27: 0 | X27: 0 | Y27: 0 | Z27: 0 | AA27: 0 | AB27: 0 | AC27: 0 | AD27: 0 | AF27: =SUM(AF15:AF26) -> 0 | AG27: =SUM(AG23:AG26) -> 0 | AH27: =SUM(AH16:AH26) -> 0
A29: Current Surplus/(Deficit) | C29: =C12-C27 -> 0 | D29: 0 | E29: 0 | F29: 0 | G29: 0 | H29: 0 | I29: 0 | J29: 0 | K29: 0 | L29: 0 | M29: 0 | N29: 0 | O29: 0 | P29: 0 | Q29: 0 | R29: 0 | S29: 0 | T29: 0 | U29: 0 | V29: 0 | W29: 0 | X29: 0 | Y29: 0 | Z29: 0 | AA29: 0 | AB29: 0 | AC29: 0 | AD29: 0 | AF29: =C29+E29+G29+I29+K29+M29+O29+Q29+S29+U29+W29+Y29+AA29+AC29 -> 0 | AG29: =D29+F29+H29+J29+L29+N29+P29+R29+T29+V29+X29+Z29+AB29+AD29 -> 0 | AH29: =AH12-AH27 -> 0
B31: (to)/from Operating reserve | C31: 0 | D31: 0 | E31: 0 | F31: 0 | G31: 0 | H31: 0 | I31: 0 | J31: 0 | K31: 0 | L31: 0 | M31: 0 | N31: 0 | O31: 0 | P31: 0 | Q31: 0 | R31: 0 | S31: 0 | T31: 0 | U31: 0 | V31: 0 | W31: 0 | X31: 0 | Y31: 0 | Z31: 0 | AA31: 0 | AB31: 0 | AC31: 0 | AD31: 0 | AF31: =C31+E31+G31+I31+K31+M31+O31+Q31+S31+U31+W31+Y31+AA31+AC31 -> 0 | AG31: =D31+F31+H31+J31+L31+N31+P31+R31+T31+V31+X31+Z31+AB31+AD31 -> 0 | AH31: =AG31-AF31 -> 0
B32: Prior Period Adjustment | C32: 0 | D32: 0 | E32: 0 | F32: 0 | G32: 0 | H32: 0 | I32: 0 | J32: 0 | K32: 0 | L32: 0 | M32: 0 | N32: 0 | O32: 0 | P32: 0 | Q32: 0 | R32: 0 | S32: 0 | T32: 0 | U32: 0 | V32: 0 | W32: 0 | X32: 0 | Y32: 0 | Z32: 0 | AA32: 0 | AB32: 0 | AC32: 0 | AD32: 0 | AF32: =C32+E32+G32+I32+K32+M32+O32+Q32+S32+U32+W32+Y32+AA32+AC32 -> 0 | AG32: =D32+F32+H32+J32+L32+N32+P32+R32+T32+V32+X32+Z32+AB32+AD32 -> 0
A33: Ending Balance | C33: =SUM(C29:C32) -> 0 | D33: 0 | E33: 0 | F33: 0 | G33: 0 | H33: 0 | I33: 0 | J33: 0 | K33: 0 | L33: 0 | M33: 0 | N33: 0 | O33: 0 | P33: 0 | Q33: 0 | R33: 0 | S33: 0 | T33: 0 | U33: 0 | V33: 0 | W33: 0 | X33: 0 | Y33: 0 | Z33: 0 | AA33: 0 | AB33: 0 | AC33: 0 | AD33: 0 | AF33: =SUM(AF29:AF32) -> 0 | AG33: =SUM(AG29:AG32) -> 0 | AH33: =SUM(AH29:AH32) -> 0
A35: Average Number of Homes Subsidized during the Year: | D35: =5/12*5 -> 2.083333333 | F35: 5 | H35: 5 | J35: =5+(6/12*4) -> 7 | L35: =11+6/12*9 -> 15.5 | N35: 17 | AF35: Homes Currently Subsidized: | AG35: 0 units
A37: Operating Reserve Fund | C37: (Accumulated Surplus from Operating Account)
AF38: Operating Reserve Fund
A39: Beginning Balance | C39: 0 | D39: 0 | E39: =C43 -> 0 | F39: 0 | G39: 0 | H39: 0 | I39: 0 | J39: 0 | K39: 0 | L39: 0 | M39: 0 | N39: 0 | O39: 0 | P39: 0 | Q39: 0 | R39: 0 | S39: 0 | T39: 0 | U39: 0 | V39: 0 | W39: 0 | X39: 0 | Y39: 0 | Z39: 0 | AA39: 0 | AB39: 0 | AC39: 0 | AD39: 0
A40: (to)/From Operating | C40: =-C31 -> 0 | D40: 0 | E40: 0 | F40: 0 | G40: 0 | H40: 0 | I40: 0 | J40: 0 | K40: 0 | L40: 0 | M40: 0 | N40: 0 | O40: 0 | P40: 0 | Q40: 0 | R40: 0 | S40: 0 | T40: 0 | U40: 0 | V40: 0 | W40: 0 | X40: 0 | Y40: 0 | Z40: 0 | AA40: 0 | AB40: 0 | AC40: 0 | AD40: 0 | AF40: =C40+E40+G40+I40+K40+M40+O40+Q40+S40+U40+W40+Y40+AA40+AC40 -> 0 | AG40: 0
A41: Interest Earned | C41: 0 | D41: 0 | E41: 0 | F41: 0 | G41: 0 | H41: 0 | I41: 0 | J41: 0 | K41: 0 | L41: 0 | M41: 0 | N41: 0 | O41: 0 | P41: 0 | Q41: 0 | R41: 0 | S41: 0 | T41: 0 | U41: 0 | V41: 0 | W41: 0 | X41: 0 | Y41: 0 | Z41: 0 | AA41: 0 | AB41: 0 | AC41: 0 | AD41: 0 | AF41: 0 | AG41: 0
A42: Prior Period Adjustment | C42: 0 | D42: 0 | E42: 0 | F42: 0 | G42: 0 | H42: 0 | I42: 0 | J42: 0 | K42: 0 | L42: 0 | M42: 0 | N42: 0 | O42: 0 | P42: 0 | Q42: 0 | R42: 0 | S42: 0 | T42: 0 | U42: 0 | V42: 0 | W42: 0 | X42: 0 | Y42: 0 | Z42: 0 | AA42: 0 | AB42: 0 | AC42: 0 | AD42: 0 | AF42: 0 | AG42: 0
A43: Ending Balance | C43: =SUM(C39:C42) -> 0 | D43: 0 | E43: 0 | F43: 0 | G43: 0 | H43: 0 | I43: 0 | J43: 0 | K43: 0 | L43: 0 | M43: 0 | N43: 0 | O43: 0 | P43: 0 | Q43: 0 | R43: 0 | S43: 0 | T43: 0 | U43: 0 | V43: 0 | W43: 0 | X43: 0 | Y43: 0 | Z43: 0 | AA43: 0 | AB43: 0 | AC43: 0 | AD43: 0 | AF43: =SUM(AF39:AF42) -> 0 | AG43: =SUM(AG39:AG42) -> 0 | AH43: =AG43-AF43 -> 0
AF45: Operating Surplus which would have occurred if Template First Nation did not contribute beyond its required amount: | AG45: =AG68 -> 0
AF46: Maximum Allowable Arrears (portion of surplus attributable to Template First Nation funding above its required amount): | AG46: =AG69 -> 0
A48: Replacement Reserve Fund | C48: (Set Aside for Future Replacements in Homes)
AF49: Replacement Reserve Fund
A50: Beginning Balance | C50: 0 | D50: 0 | E50: =C56 -> 0 | F50: 0 | G50: 0 | H50: 0 | I50: 0 | J50: 0 | K50: 0 | L50: 0 | M50: 0 | N50: 0 | O50: 0 | P50: 0 | Q50: 0 | R50: 0 | S50: 0 | T50: 0 | U50: 0 | V50: 0 | W50: 0 | X50: 0 | Y50: 0 | Z50: 0 | AA50: 0 | AB50: 0 | AC50: 0 | AD50: 0
A51: Current Year Allocation | C51: =C21 -> 0 | D51: 0 | E51: 0 | F51: 0 | G51: 0 | H51: 0 | I51: 0 | J51: 0 | K51: 0 | L51: 0 | M51: 0 | N51: 0 | O51: 0 | P51: 0 | Q51: 0 | R51: 0 | S51: 0 | T51: 0 | U51: 0 | V51: 0 | W51: 0 | X51: 0 | Y51: 0 | Z51: 0 | AA51: 0 | AB51: 0 | AC51: 0 | AD51: 0 | AF51: =C51+E51+G51+I51+K51+M51+O51+Q51+S51+U51+W51+Y51+AA51+AC51 -> 0 | AG51: 0
A52: Interest Earned | C52: 0 | D52: 0 | E52: 0 | F52: 0 | G52: 0 | H52: 0 | I52: 0 | J52: 0 | K52: 0 | L52: 0 | M52: 0 | N52: 0 | O52: 0 | P52: 0 | Q52: 0 | R52: 0 | S52: 0 | T52: 0 | U52: 0 | V52: 0 | W52: 0 | X52: 0 | Y52: 0 | Z52: 0 | AA52: 0 | AB52: 0 | AC52: 0 | AD52: 0 | AF52: 0 | AG52: 0
A53: Expenditures | C53: 0 | D53: 0 | E53: 0 | F53: 0 | G53: 0 | H53: 0 | I53: 0 | J53: 0 | K53: 0 | L53: 0 | M53: 0 | N53: 0 | O53: 0 | P53: 0 | Q53: 0 | R53: 0 | S53: 0 | T53: 0 | U53: 0 | V53: 0 | W53: 0 | X53: 0 | Y53: 0 | Z53: 0 | AA53: 0 | AB53: 0 | AC53: 0 | AD53: 0 | AF53: 0 | AG53: 0
A54: Transfers per overadvanced capital financing | C54: 0 | D54: 0 | E54: 0 | F54: 0 | G54: 0 | H54: 0 | I54: 0 | J54: 0 | K54: 0 | L54: 0 | M54: 0 | N54: 0 | AF54: 0 | AG54: 0
A55: Prior Period Adjustment | C55: 0 | D55: 0 | E55: 0 | F55: 0 | G55: 0 | H55: 0 | I55: 0 | J55: 0 | K55: 0 | L55: 0 | M55: 0 | N55: 0 | O55: 0 | P55: 0 | Q55: 0 | R55: 0 | S55: 0 | T55: 0 | U55: 0 | V55: 0 | W55: 0 | X55: 0 | Y55: 0 | Z55: 0 | AA55: 0 | AB55: 0 | AC55: 0 | AD55: 0 | AF55: 0 | AG55: 0
A56: Ending Balance Required | C56: =SUM(C50:C55) -> 0 | D56: 0 | E56: 0 | F56: 0 | G56: 0 | H56: 0 | I56: 0 | J56: 0 | K56: 0 | L56: 0 | M56: 0 | N56: 0 | O56: 0 | P56: 0 | Q56: 0 | R56: 0 | S56: 0 | T56: 0 | U56: 0 | V56: 0 | W56: 0 | X56: 0 | Y56: 0 | Z56: 0 | AA56: 0 | AB56: 0 | AC56: 0 | AD56: 0 | AF56: =SUM(AF50:AF55) -> 0 | AG56: =SUM(AG50:AG55) -> 0 | AH56: =AG56-AF56 -> 0
K58: Total Restricted Cash: | AG58: =AG43+AG56 -> 0
A60: MRC | D60: =D8 -> 0 | F60: =F8 -> 0 | H60: =H8 -> 0 | J60: =J8 -> 0 | L60: =L8 -> 0 | N60: =N8 -> 0 | P60: =P8 -> 0 | R60: =R8 -> 0 | T60: =T8 -> 0 | V60: =V8 -> 0 | X60: =X8 -> 0 | Z60: =Z8 -> 0 | AB60: =AB8 -> 0 | AD60: =AD8 -> 0 | AG60: =AG8 -> 0
A61: CMHC | D61: =D10 -> 0 | F61: =F10 -> 0 | H61: =H10 -> 0 | J61: =J10 -> 0 | L61: =L10 -> 0 | N61: =N10 -> 0 | P61: =P10 -> 0 | R61: =R10 -> 0 | T61: =T10 -> 0 | V61: =V10 -> 0 | X61: =X10 -> 0 | Z61: =Z10 -> 0 | AB61: =AB10 -> 0 | AD61: =AD10 -> 0 | AG61: =AG10 -> 0
A62: Total Revenue | D62: =SUM(D60:D61) -> 0 | F62: =SUM(F60:F61) -> 0 | H62: =SUM(H60:H61) -> 0 | J62: =SUM(J60:J61) -> 0 | L62: =SUM(L60:L61) -> 0 | N62: =SUM(N60:N61) -> 0 | P62: =SUM(P60:P61) -> 0 | R62: =SUM(R60:R61) -> 0 | T62: =SUM(T60:T61) -> 0 | V62: =SUM(V60:V61) -> 0 | X62: =SUM(X60:X61) -> 0 | Z62: =SUM(Z60:Z61) -> 0 | AB62: =SUM(AB60:AB61) -> 0 | AD62: =SUM(AD60:AD61) -> 0 | AG62: =SUM(AG60:AG61) -> 0
A63: Principal & Interest | D63: =-D22-D23 -> 0 | F63: =-F22-F23 -> 0 | H63: =-H22-H23 -> 0 | J63: =-J22-J23 -> 0 | L63: =-L22-L23 -> 0 | N63: =-N22-N23 -> 0 | P63: =-P22-P23 -> 0 | R63: =-R22-R23 -> 0 | T63: =-T22-T23 -> 0 | V63: =-V22-V23 -> 0 | X63: =-X22-X23 -> 0 | Z63: =-Z22-Z23 -> 0 | AB63: =-AB22-AB23 -> 0 | AD63: =-AD22-AD23 -> 0 | AG63: =-AG22-AG23 -> 0
A64: Exp of $3,600 per unit per year | D64: 0 | F64: 0 | H64: 0 | J64: 0 | L64: 0 | N64: 0 | P64: 0 | R64: 0 | T64: 0 | V64: 0 | X64: 0 | Z64: 0 | AB64: 0 | AD64: 0 | AG64: =SUM(C64:AE64) -> 0
A65: SURPLUS/(DEFICIT) BASED ON PLAN | D65: =SUM(D62:D64) -> 0 | F65: =SUM(F62:F64) -> 0 | H65: =SUM(H62:H64) -> 0 | J65: =SUM(J62:J64) -> 0 | L65: =SUM(L62:L64) -> 0 | N65: =SUM(N62:N64) -> 0 | P65: =SUM(P62:P64) -> 0 | R65: =SUM(R62:R64) -> 0 | T65: =SUM(T62:T64) -> 0 | V65: =SUM(V62:V64) -> 0 | X65: =SUM(X62:X64) -> 0 | Z65: =SUM(Z62:Z64) -> 0 | AB65: =SUM(AB62:AB64) -> 0 | AD65: =SUM(AD62:AD64) -> 0 | AG65: =SUM(AG62:AG64) -> 0
A66: Add Net Expenses (over)/under next expense provision | D66: =-D64-(SUM(D15:D21)+SUM(D24:D26)) -> 0 | F66: =-F64-(SUM(F15:F21)+SUM(F24:F26)) -> 0 | H66: =-H64-(SUM(H15:H21)+SUM(H24:H26)) -> 0 | J66: =-J64-(SUM(J15:J21)+SUM(J24:J26)) -> 0 | L66: =-L64-(SUM(L15:L21)+SUM(L24:L26)) -> 0 | N66: =-N64-(SUM(N15:N21)+SUM(N24:N26)) -> 0 | P66: =-P64-(SUM(P15:P21)+SUM(P24:P26)) -> 0 | R66: =-R64-(SUM(R15:R21)+SUM(R24:R26)) -> 0 | T66: =-T64-(SUM(T15:T21)+SUM(T24:T26)) -> 0 | V66: =-V64-(SUM(V15:V21)+SUM(V24:V26)) -> 0 | X66: =-X64-(SUM(X15:X21)+SUM(X24:X26)) -> 0 | Z66: =-Z64-(SUM(Z15:Z21)+SUM(Z24:Z26)) -> 0 | AB66: =-AB64-(SUM(AB15:AB21)+SUM(AB24:AB26)) -> 0 | AD66: =-AD64-(SUM(AD15:AD21)+SUM(AD24:AD26)) -> 0 | AG66: =-AG64-(SUM(AG15:AG21)+SUM(AG24:AG26)) -> 0
A67: Add Other Revenue | D67: =D11 -> 0 | F67: =F11 -> 0 | H67: =H11 -> 0 | J67: =J11 -> 0 | L67: =L11 -> 0 | N67: =N11 -> 0 | P67: =P11 -> 0 | R67: =R11 -> 0 | T67: =T11 -> 0 | V67: =V11 -> 0 | X67: =X11 -> 0 | Z67: =Z11 -> 0 | AB67: =AB11 -> 0 | AD67: =AD11 -> 0 | AG67: =AG11 -> 0
A68: SURPLUS/(DEFICIT) net of extra funding | D68: =SUM(D65:D67) -> 0 | F68: =SUM(F65:F67) -> 0 | H68: =SUM(H65:H67) -> 0 | J68: =SUM(J65:J67) -> 0 | L68: =SUM(L65:L67) -> 0 | N68: =SUM(N65:N67) -> 0 | P68: =SUM(P65:P67) -> 0 | R68: =SUM(R65:R67) -> 0 | T68: =SUM(T65:T67) -> 0 | V68: =SUM(V65:V67) -> 0 | X68: =SUM(X65:X67) -> 0 | Z68: =SUM(Z65:Z67) -> 0 | AB68: =SUM(AB65:AB67) -> 0 | AD68: =SUM(AD65:AD67) -> 0 | AG68: =SUM(AG65:AG67) -> 0
A69: Add in Extra Tsartlip Funding | D69: =D9 -> 0 | F69: =F9 -> 0 | H69: =H9 -> 0 | J69: =J9 -> 0 | L69: =L9 -> 0 | N69: =N9 -> 0 | P69: =P9 -> 0 | R69: =R9 -> 0 | T69: =T9 -> 0 | V69: =V9 -> 0 | X69: =X9 -> 0 | Z69: =Z9 -> 0 | AB69: =AB9 -> 0 | AD69: =AD9 -> 0 | AG69: =AG9 -> 0
A70: Total Surplus | D70: =SUM(D68:D69) -> 0 | F70: =SUM(F68:F69) -> 0 | H70: =SUM(H68:H69) -> 0 | J70: =SUM(J68:J69) -> 0 | L70: =SUM(L68:L69) -> 0 | N70: =SUM(N68:N69) -> 0 | P70: =SUM(P68:P69) -> 0 | R70: =SUM(R68:R69) -> 0 | T70: =SUM(T68:T69) -> 0 | V70: =SUM(V68:V69) -> 0 | X70: =SUM(X68:X69) -> 0 | Z70: =SUM(Z68:Z69) -> 0 | AB70: =SUM(AB68:AB69) -> 0 | AD70: =SUM(AD68:AD69) -> 0 | AG70: =SUM(AG68:AG69) -> 0

Sheet Feuil5 (hidden)
A1: CREE NATION OF Mistissini
A2: FINANCIAL STATEMENT REVIEW FOR FISCAL YEAR END
F3: Pre - 97 Program | S3: Post- 96
A4: Revenus | C4: 1994-1995 | D4: 1995-1996 | E4: 1996-1997 | F4: 1997-1998 | G4: 1998-1999 | H4: 1999-2000 | I4: 2000-2001 | J4: 2001-2002 | K4: 2002-2003 | L4: 2003-2004 | M4: 2004-2005 | N4: 2005-2006 | O4: Total | Q4: 1999-2000 | R4: 2000-2001 | S4: 2001-2002 | T4: 2002-2003 | U4: 2003-2004 | V4: 2004-2005 | W4: 2005-2006
A6: Rent | B6: Submitted | H6: 1264646 | I6: 1287475 | J6: 1267655 | K6: 1312410 | L6: 1300470 | M6: 1394870 | O6: =SUM(F6:N6) -> 7827526 | Q6: 15100 | R6: 66150 | S6: 133455 | T6: 191530 | U6: 173725 | V6: 273911
B7: Accepted | H7: 1264646 | I7: 1287475 | J7: 1267655 | K7: 1312410 | L7: 1300470 | M7: 1394870 | O7: =SUM(F7:N7) -> 7827526 | Q7: 8400 | R7: 66150 | S7: 133455 | T7: 191530 | U7: 173725 | V7: 273911
A8: Band Contribution | B8: Submitted | C8: 0 | D8: 0 | E8: 0 | F8: 0 | G8: 0 | H8: 0 | I8: 0 | J8: 0 | K8: 0 | L8: 0 | M8: 0 | O8: 0 | Q8: 0 | R8: 0 | S8: 0 | T8: 0 | U8: 0 | V8: 0 | W8: 0
B9: Accepted | C9: 0 | D9: 0 | E9: 0 | F9: 0 | G9: 0 | H9: 0 | I9: 0 | J9: 0 | K9: 0 | L9: 0 | M9: 0 | O9: 0 | Q9: 0 | R9: 0 | S9: 0 | T9: 0 | U9: 0 | V9: 0 | W9: 0
A10: Section 95 Subsidies | B10: Submitted | H10: 1900751 | I10: 1888441 | J10: 1860249 | K10: 1685980 | L10: 1577626 | M10: 1442336 | O10: 10355383 | Q10: 0 | R10: 53138 | S10: 112982 | T10: 212930 | U10: 241903 | V10: 325027
B11: Accepted | H11: 1888271 | I11: 1888441 | J11: 1860249 | K11: 1685980 | L11: 1577626 | M11: 1442336 | O11: 10342903 | Q11: 12480 | R11: 53138 | S11: 112981 | T11: 212930 | U11: 241903 | V11: 300980
A12: Interest | B12: Submitted | C12: 0 | D12: 0 | E12: 0 | F12: 0 | G12: 0 | H12: 0 | I12: 0 | J12: 0 | K12: 0 | L12: 0 | M12: 0 | O12: 0 | Q12: 0 | R12: 0 | S12: 0 | T12: 0 | U12: 0 | V12: 0 | W12: 0
B13: Accepted | C13: 0 | D13: 0 | E13: 0 | F13: 0 | G13: 0 | H13: 0 | I13: 0 | J13: 0 | K13: 0 | L13: 0 | M13: 0 | O13: 0 | Q13: 0 | R13: 0 | S13: 0 | T13: 0 | U13: 0 | V13: 0 | W13: 0
A14: Other | B14: Submitted | C14: 0 | D14: 0 | E14: 0 | F14: 0 | G14: 0 | H14: 0 | I14: 43071 | J14: 13911 | K14: 4681 | L14: 0 | M14: 19421 | O14: 81084 | Q14: 0 | R14: 0 | S14: 0 | T14: 0 | U14: 0 | V14: 0 | W14: 0
B15: Accepted | C15: 0 | D15: 0 | E15: 0 | F15: 0 | G15: 0 | H15: 37069 | I15: 43071 | J15: 13911 | K15: 4681 | L15: 0 | M15: 19421 | O15: 118153 | Q15: 0 | R15: 0 | S15: 0 | T15: 0 | U15: 0 | V15: 0 | W15: 0
A16: Total Revenus | B16: Submitted | C16: =C6+C8+C10+C12++++C14 -> 0 | D16: =D6+D8+D10+D12++++D14 -> 0 | E16: =E6+E8+E10+E12++++E14 -> 0 | F16: =F6+F8+F10+F12++++F14 -> 0 | G16: 0 | H16: 3165397 | I16: 3218987 | J16: 3141815 | K16: 3003071 | L16: 2878096 | M16: =M6+M8+M10+M12+M14 -> 2856627 | N16: 0 | O16: 18263993 | Q16: =Q6+Q8+Q10+Q12+Q14 -> 15100 | R16: =R6+R8+R10+R12+R14 -> 119288 | S16: =S6+S8+S10+S12+S14 -> 246437 | T16: =T6+T8+T10+T12+T14 -> 404460 | U16: 415628 | V16: 598938 | W16: =W6+W8+W10+W12+W14 -> 0
B17: Accepted | C17: =C7+C9+C11+C13+C15 -> 0 | D17: =D7+D9+D11+D13+D15 -> 0 | E17: =E7+E9+E11+E13+E15 -> 0 | F17: =F7+F9+F11+F13+F15 -> 0 | G17: 0 | H17: 3189986 | I17: 3218987 | J17: 3141815 | K17: 3003071 | L17: 2878096 | M17: 2856627 | N17: 0 | O17: 18288582 | Q17: =Q7+Q9+Q11+Q13+Q15 -> 20880 | R17: =R7+R9+R11+R13+R15 -> 119288 | S17: 246436 | T17: =T7+T9+T11+T13+T15 -> 404460 | U17: 415628 | V17: 574891 | W17: =W7+W9+W11+W13+W15 -> 0
B18: Difference | C18: =C16-C17 -> 0 | D18: =D16-D17 -> 0 | E18: =E16-E17 -> 0 | F18: =F16-F17 -> 0 | G18: =G16-G17 -> 0 | H18: -24589 | I18: 0 | J18: 0 | K18: 0 | L18: 0 | M18: 0 | N18: 0 | O18: -24589 | Q18: -5780 | R18: 0 | S18: 1 | T18: 0 | U18: 0 | V18: 24047 | W18: 0
A19: Expenses
A21: Insurance | B21: Submitted | H21: 84714 | I21: 82214 | J21: 76243 | K21: 72007 | L21: 72007 | M21: 73266 | O21: =SUM(F21:N21) -> 460451 | Q21: 0 | R21: 2500 | S21: 8471 | T21: 12707 | U21: 12707 | V21: 11448
B22: Accepted | H22: 84714 | I22: 82214 | J22: 76243 | K22: 72007 | L22: 72007 | M22: 73266 | O22: =SUM(F22:N22) -> 460451 | Q22: 0 | R22: 2500 | S22: 5627 | T22: 12707 | U22: 12707 | V22: 11448
A23: Administration | B23: Submitted | H23: 187272 | I23: 205960 | J23: 187511 | K23: 177410 | L23: 145498 | M23: 180549 | O23: 1084200 | Q23: 0 | R23: 5000 | S23: 2822 | T23: 3606 | U23: 6707 | V23: 6263
B24: Accepted | H24: 187272 | I24: 199385 | J24: 187511 | K24: 177410 | L24: 145498 | M24: 180549 | O24: 1077625 | Q24: 0 | R24: 5000 | S24: 2822 | T24: 3606 | U24: 6707 | V24: 6263
A25: Repair & Maintenance | B25: Submitted | H25: 549682 | I25: 444505 | J25: 437399 | K25: 496269 | L25: 396384 | M25: 346279 | O25: 2670518 | Q25: 0 | R25: 16111 | S25: 25600 | T25: 31654 | U25: 24732 | V25: 24820
B26: Accepted | H26: 549682 | I26: 460616 | J26: 437399 | K26: 496269 | L26: 396384 | M26: 346279 | O26: 2686629 | Q26: 0 | R26: 0 | S26: 25600 | T26: 31654 | U26: 24732 | V26: 24820
A27: Municipal services | B27: Submitted | C27: 0 | D27: 0 | E27: 0 | F27: 0 | G27: 0 | H27: 0 | I27: 0 | J27: 0 | K27: 0 | L27: 0 | M27: 0 | O27: 0 | Q27: 0 | R27: 0 | S27: 0 | T27: 0 | U27: 0 | V27: 0 | W27: 0
B28: Accepted | C28: 0 | D28: 0 | E28: 0 | F28: 0 | G28: 0 | H28: 0 | I28: 0 | J28: 0 | K28: 0 | L28: 0 | M28: 0 | O28: 0 | Q28: 0 | R28: 0 | S28: 0 | T28: 0 | U28: 0 | V28: 0 | W28: 0
A29: Services | B29: Submitted | C29: 0 | D29: 0 | E29: 0 | F29: 0 | G29: 0 | H29: 0 | I29: 4032 | J29: 5866 | K29: 0 | L29: 0 | M29: 0 | O29: 9898 | Q29: 0 | R29: 9461 | S29: 651 | T29: 1980 | U29: 0 | V29: 0 | W29: 0
B30: Accepted | C30: 0 | D30: 0 | E30: 0 | F30: 0 | G30: 0 | H30: 0 | I30: 13493 | J30: 6517 | K30: 0 | L30: 0 | M30: 0 | O30: 20010 | Q30: 0 | R30: 0 | S30: 0 | T30: 1980 | U30: 0 | V30: 0 | W30: 0
A31: Electricity | B31: Submitted | C31: 0 | D31: 0 | E31: 0 | F31: 0 | G31: 0 | H31: 0 | I31: 0 | J31: 0 | K31: 0 | L31: 0 | M31: 0 | O31: 0 | Q31: 0 | R31: 0 | S31: 0 | T31: 0 | U31: 0 | V31: 0 | W31: 0
B32: Accepted | C32: 0 | D32: 0 | E32: 0 | F32: 0 | G32: 0 | H32: 0 | I32: 0 | J32: 0 | K32: 0 | L32: 0 | M32: 0 | O32: 0 | Q32: 0 | R32: 0 | S32: 0 | T32: 0 | U32: 0 | V32: 0 | W32: 0
A33: Principal & Interest Payments | B33: Submitted | H33: 2003521 | I33: 1983942 | J33: 2021846 | K33: 1899037 | L33: 1856226 | M33: 1850156 | O33: 11614728 | Q33: 6655 | R33: 50229 | S33: 116350 | T33: 213995 | U33: 251835 | V33: 315616
B34: Accepted | H34: 2003521 | I34: 1983942 | J34: 2021846 | K34: 1899037 | L34: 1856226 | M34: 1850156 | O34: 11614728 | Q34: 12576 | R34: 50229 | S34: 116350 | T34: 196153 | U34: 231204 | V34: 315616
A35: Transfer to Replacement Reserve | B35: Submitted | H35: 0 | I35: 278540 | J35: 278540 | K35: 103167 | L35: 278540 | M35: 278540 | O35: 1217327 | Q35: 8445 | R35: 26217 | S35: 45175 | T35: 54925 | U35: 65642 | V35: 90350
B36: Accepted | H36: 278540 | I36: 278540 | J36: 278540 | K36: 250000 | L36: 278540 | M36: 278540 | O36: 1642700 | Q36: 3250 | R36: 13000 | S36: 29033 | T36: 59800 | U36: 65000 | V36: 90350
A37: Bad Debts | B37: Submitted | H37: 324468 | J37: 0 | K37: 252318 | L37: 99062 | M37: 112040 | O37: 787888 | R37: 7802 | S37: 25000 | T37: 25000 | U37: 742 | V37: 48886
B38: Accepted | C38: 0 | D38: 0 | E38: 0 | F38: 0 | G38: 0 | H38: 63232 | I38: 0 | J38: 0 | K38: 105485 | L38: =L6*5% -> 65023.5 | M38: =M6*5% -> 69743.5 | N38: =N6*5% -> 0 | O38: 303484 | R38: 7802 | S38: 25000 | T38: 25000 | U38: 0 | V38: 0 | W38: 0
A39: Professional Fees | B39: Submitted | H39: 6650 | I39: 2631 | J39: 4000 | K39: 1363 | L39: 30379 | M39: 15797 | O39: 60820 | R39: 1000 | S39: 1461 | T39: 1500 | U39: 1779 | V39: 2468
B40: Accepted | H40: 6650 | I40: 2631 | J40: 4000 | K40: 1363 | L40: 30379.6 | M40: 15797 | O40: 60820.6 | R40: 1000 | S40: 1461 | T40: 1500 | U40: 1779 | V40: 2468
A41: Others | B41: Submitted | C41: 0 | D41: 0 | E41: 0 | F41: 0 | G41: 0 | H41: 0 | I41: 0 | J41: 0 | K41: 0 | L41: 0 | M41: 0 | N41: 0 | O41: 0 | R41: 0 | S41: 0 | T41: 0 | U41: 0 | V41: 0 | W41: 0
B42: Accepted | C42: 0 | D42: 0 | E42: 0 | F42: 0 | G42: 0 | H42: 0 | I42: 0 | J42: 0 | K42: 0 | L42: 0 | M42: 0 | N42: 0 | O42: 0 | R42: 0 | S42: 0 | T42: 0 | U42: 0 | V42: 0 | W42: 0
A43: Renovation reserve | B43: Submitted | C43: 0 | D43: 0 | E43: 0 | F43: 0 | G43: 0 | H43: 11676 | I43: 209878 | J43: 130410 | K43: 0 | L43: 0 | M43: 0 | N43: 0 | O43: =SUM(F43:N43) -> 351964 | R43: 0 | S43: 0 | T43: 0 | U43: 0 | V43: 0 | W43: 0
B44: Accepted | C44: 0 | D44: 0 | E44: 0 | F44: 0 | G44: 0 | H44: 11676 | I44: 198166 | J44: 0 | K44: 0 | L44: 0 | M44: 0 | N44: 0 | O44: =SUM(F44:N44) -> 209842 | R44: 0 | S44: 0 | T44: 0 | U44: 0 | V44: 0 | W44: 0
A45: Others (Contingency) | B45: Submitted | C45: 0 | D45: 0 | E45: 0 | F45: 0 | G45: 0 | H45: 4699 | I45: 0 | J45: 0 | K45: 1500 | L45: 0 | M45: 0 | N45: 0 | O45: 6199 | R45: 968 | S45: 0 | T45: 0 | U45: 425 | V45: 1181
B46: Accepted | C46: 0 | D46: 0 | E46: 0 | F46: 0 | G46: 0 | H46: 4699 | I46: 0 | J46: 0 | K46: 1500 | L46: 0 | M46: 0 | N46: 0 | O46: 6199 | R46: 968 | S46: 0 | T46: 0 | U46: 425 | V46: 1181
A47: Total Expenses | B47: Submitted | C47: =C21+C23+C25+C27+C29+C31+C33+C35+C37+C39+C45+C41+C43 -> 0 | D47: 0 | E47: 0 | F47: 0 | G47: 0 | H47: 3172682 | I47: 3211702 | J47: =J21+J23+J25+J27+J29+J31+J33+J35+J37+J39+J45+J41+J43 -> 3141815 | K47: =K21+K23+K25+K27+K29+K31+K33+K35+K37+K39+K45+K41 -> 3003071 | L47: 2878096 | M47: 2856627 | N47: 0 | O47: 17912029 | Q47: =Q21+Q23+Q25+Q27+Q29+Q31+Q33+Q35+Q37+Q39+Q45+Q41 -> 15100 | R47: 119288 | S47: 225530 | T47: 345367 | U47: 364569 | V47: 501032 | W47: 0
B48: Accepted | C48: 0 | D48: 0 | E48: 0 | F48: 0 | G48: 0 | H48: 3189986 | I48: 3218987 | J48: =J22+J24+J26+J28+J30+J32+J34+J36+J38+J40+J46+J42+J44 -> 3012056 | K48: 3003071 | L48: 2844058.1 | M48: 2814330.5 | N48: 0 | O48: 17872646.6 | Q48: 15826 | R48: 80499 | S48: 205893 | T48: 332400 | U48: 342554 | V48: 452146 | W48: 0
B49: Difference | C49: =C47-C48 -> 0 | D49: =D47-D48 -> 0 | E49: =E47-E48 -> 0 | F49: =F47-F48 -> 0 | G49: 0 | H49: -17304 | I49: -7285 | J49: 129759 | K49: 0 | L49: 34037.9 | M49: 42296.5 | N49: =N47-N48 -> 0 | O49: =O47-O48 -> 39382.4 | Q49: =Q47-Q48 -> -726 | R49: 38789 | S49: 19637 | T49: 12967 | U49: 22015 | V49: 48886 | W49: 0
A51: SURPLUS / DEFICIT | B51: Submitted | C51: =C16-C47 -> 0 | D51: 0 | E51: 0 | F51: 0 | G51: 0 | H51: -7285 | I51: 7285 | J51: 0 | K51: 0 | L51: 0 | M51: 0 | N51: 0 | O51: 351964 | Q51: =Q16-Q47 -> 0 | R51: 0 | S51: 20907 | T51: 59093 | U51: 51059 | V51: 97906 | W51: 0
B52: Accepted | C52: 0 | D52: 0 | E52: 0 | F52: 0 | G52: 0 | H52: 0 | I52: 0 | J52: 129759 | K52: 0 | L52: 34037.9 | M52: 42296.5 | N52: 0 | O52: 415935.4 | Q52: 5054 | R52: 38789 | S52: 40543 | T52: 72060 | U52: 73074 | V52: 122745 | W52: 0
B53: Difference | C53: =C51-C52 -> 0 | D53: =D51-D52 -> 0 | E53: =E51-E52 -> 0 | F53: =F51-F52 -> 0 | G53: 0 | H53: -7285 | I53: 7285 | J53: -129759 | K53: 0 | L53: -34037.9 | M53: -42296.5 | N53: =N51-N52 -> 0 | O53: =O51-O52 -> -63971.4 | Q53: =Q51-Q52 -> -5054 | R53: -38789 | S53: -19636 | T53: -12967 | U53: -22015 | V53: -24839 | W53: 0
A58: Replacement Reserve Funds
A60: Previous accumulated Funds | B60: Submitted | H60: 960008 | I60: 996543 | J60: 1320220 | K60: 1621698 | L60: 1735722 | M60: 1530318 | Q60: 0 | R60: 3250 | S60: 29467 | T60: 74642 | U60: 129567 | V60: 195209
B61: Accepted | H61: 1166058 | I61: 1480992 | J61: 1303998 | K61: 1605476 | L61: 1866333 | M61: 1660929 | Q61: 0 | R61: 3250 | S61: 16250 | T61: 45283 | U61: 105083 | V61: 170083
A62: Interest earned | B62: Submitted | H62: 36394 | I62: 45137 | J62: 22938 | K62: 10857 | L62: 16056 | M62: 10551 | Q62: 0 | R62: 0 | S62: 0 | T62: 0 | U62: 0 | V62: 0
B63: Accepted | H63: 36394 | I63: 45137 | J63: 22938 | K63: 10857 | L63: 16056 | M63: 10551 | Q63: 0 | R63: 0 | S63: 0 | T63: 0 | U63: 0 | V63: 0
A64: Allocation for the year | B64: Submitted | H64: 0 | I64: 278540 | J64: 278540 | K64: 103167 | L64: 278540 | M64: 278540 | Q64: 8445 | R64: 26217 | S64: 45175 | T64: 54925 | U64: 65642 | V64: 90350
B65: Accepted | H65: 278540 | I65: 278540 | J65: 278540 | K65: 250000 | L65: 278540 | M65: 278540 | Q65: 3250 | R65: 13000 | S65: 29033 | T65: 59800 | U65: 65000 | V65: 90350
A66: Transfered to Housing repairs | B66: Submitted | I66: 0 | J66: 0 | K66: 0 | L66: 500000 | M66: 0 | Q66: 0 | R66: 0 | S66: 0 | U66: 0 | V66: 0
B67: Accepted | E67: 0 | I67: 500671 | J67: 0 | K67: 0 | L67: 500000 | M67: 0 | Q67: 0 | R67: 0 | S67: 0 | U67: 0 | V67: 0
A68: Balance, End of Year | B68: Submitted | C68: =C60+C62+C64-C66 -> 0 | D68: 0 | E68: 0 | F68: 0 | G68: 0 | H68: 996402 | I68: 1320220 | J68: 1621698 | K68: 1735722 | L68: 1530318 | M68: =M60+M62+M64-M66 -> 1819409 | N68: =N60+N62+N64-N66 -> 0 | Q68: =Q60+Q62+Q64-Q66 -> 8445 | R68: =R60+R62+R64-R66 -> 29467 | S68: =S60+S62+S64-S66 -> 74642 | T68: =T60+T62+T64-T66 -> 129567 | U68: 195209 | V68: 285559 | W68: =W60+W62+W64-W66 -> 0
B69: Accepted | C69: 0 | D69: 0 | E69: 0 | F69: 0 | G69: 0 | H69: 1480992 | I69: 1303998 | J69: 1605476 | K69: 1866333 | L69: 1660929 | M69: =M61+M63+M65-M67 -> 1950020 | N69: =N61+N63+N65-N67 -> 0 | Q69: =Q61+Q63+Q65-Q67 -> 3250 | R69: =R61+R63+R65-R67 -> 16250 | S69: 45283 | T69: =T61+T63+T65-T67 -> 105083 | U69: 170083 | V69: 260433 | W69: =W61+W63+W65-W67 -> 0
B70: Difference | C70: =C68-C69 -> 0 | D70: =D68-D69 -> 0 | E70: =E68-E69 -> 0 | F70: =F68-F69 -> 0 | G70: 0 | H70: -484590 | I70: 16222 | J70: 16222 | K70: -130611 | L70: -130611 | M70: =M68-M69 -> -130611 | N70: =N68-N69 -> 0 | Q70: =Q68-Q69 -> 5195 | R70: 13217 | S70: 29359 | T70: 24484 | U70: 25126 | V70: 25126 | W70: 0
A71: Subsidy Surplus / Renovation Funds
A73: Previous accumulated Funds | B73: Submitted | H73: 7924 | I73: 7924 | J73: 0 | K73: 395819 | L73: 395819 | M73: 395819 | N73: 0
B74: Accepted | H74: 237028 | I74: 237028 | J74: 463575 | K74: 593334 | L74: 593334 | M74: 627372 | N74: 0
A75: Interest earned | B75: Submitted | I75: 0 | J75: 0 | K75: 0 | L75: 0 | M75: 0 | N75: 0
B76: Accepted | I76: 28381 | J76: 0 | K76: 0 | L76: 0 | M76: 0 | N76: 0
A77: Transfer From | B77: Submitted | I77: 0 | J77: 0 | K77: 0 | L77: 0 | M77: 151842 | N77: 0
B78: Accepted | I78: 0 | J78: 0 | K78: 0 | L78: 0 | M78: 151842
A79: Surplus / Deficit of Year | B79: Submitted | I79: 257485 | J79: 0 | K79: 0 | L79: 0 | M79: 0 | N79: =N51 -> 0
B80: Accepted | I80: 198166 | J80: 129759 | K80: 0 | L80: 34038 | M80: 42297 | N80: =N52 -> 0
A81: Balance, End of Year | B81: Submitted | C81: =C73+C75+C79-C77 -> 0 | D81: =D73+D75+D79-D77 -> 0 | E81: =E73+E75+E79-E77 -> 0 | F81: =F73+F75+F79-F77 -> 0 | G81: =G73+G75+G79-G77 -> 0 | H81: 7924 | I81: 265409 | J81: 0 | K81: 395819 | L81: 395819 | M81: 243977 | N81: 0
B82: Accepted | C82: =+C74+C76+C80-C78 -> 0 | D82: =+D74+D76+D80-D78 -> 0 | E82: =+E74+E76+E80-E78 -> 0 | F82: =+F74+F76+F80-F78 -> 0 | G82: =+G74+G76+G80-G78 -> 0 | H82: 237028 | I82: 463575 | J82: 593334 | K82: 593334 | L82: 627372 | M82: 517827 | N82: 0
B83: Difference | C83: =C81-C82 -> 0 | D83: =D81-D82 -> 0 | E83: =E81-E82 -> 0 | F83: =F81-F82 -> 0 | G83: 0 | H83: -229104 | I83: -198166 | J83: -593334 | K83: -197515 | L83: -231553 | M83: =M81-M82 -> -273850 | N83: =N81-N82 -> 0
A85: Operating Reserve Funds
A86: Previous accumulated Funds | B86: Submitted | Q86: 0 | R86: 5054 | S86: 5054 | T86: 25961 | U86: 85054 | V86: 136113
B87: Accepted | Q87: 0 | R87: 5054 | S87: 43843 | T87: 84386 | U87: 156446 | V87: 229521
A88: Interest earned | B88: Submitted | Q88: 0 | R88: 0 | S88: 0 | T88: 0 | U88: 0 | V88: 0
B89: Accepted | Q89: 0 | R89: 0 | S89: 0 | T89: 0 | U89: 0 | V89: 0
A90: Surplus / Deficit of Year | B90: Submitted | Q90: 0 | R90: 0 | S90: 20907 | T90: 59093 | U90: 51059 | V90: 97906
B91: Accepted | Q91: 5054 | R91: 38789 | S91: 40543 | T91: 72060 | U91: 73074 | V91: 122745
A92: Balance, End of Year | B92: Submitted | Q92: =+Q86+Q88+Q90 -> 0 | R92: 5054 | S92: 25961 | T92: 85054 | U92: 136113 | V92: 234019 | W92: =W86+W88+W90 -> 0
B93: Accepted | Q93: 5054 | R93: 43843 | S93: 84386 | T93: 156446 | U93: 229520 | V93: 352266 | W93: =+W87+W89+W91 -> 0
B94: Difference | Q94: =Q92-Q93 -> -5054 | R94: -38789 | S94: -58425 | T94: -71392 | U94: -93407 | V94: -118247 | W94: 0

Sheet Feuil4 (hidden)
A1: APPENDIX I
A2: COMPARATIVE TABLE (R051)
A3: PORTFOLIO MANAGEMENT - SOCIAL HOUSING ( SECTION 95 NHA )
A4: FINANCIAL STATEMENT REVIEW FOR FISCAL YEAR END: MARCH 31, 2007
A5: CREE NATION OF MISTISSINI
A7: Program | B7: Pre-97 | G7: Post - 96
A8: CMHC Account No. | B8: 08-868-630 | G8: 16-229-494
A9: Phase | B9: (001-022) | G9: (001-007)
A10: Number of Units | B10: 416 | G10: 84
B12: 2006 | C12: 2007 | G12: 2006 | H12: 2007
A13: Revenus | B13: Accepted by CMHC | C13: Submitted to CMHC | D13: Accepted by CMHC | E13: Difference | G13: Accepted by CMHC | H13: Submitted to CMHC | I13: Accepted by CMHC | J13: Difference
A15: Rent | B15: 1610533 | C15: 1836924 | D15: 1836924 | E15: =C15-D15 -> 0 | G15: 325675 | H15: 520938 | I15: 406731 | J15: =H15-I15 -> 114207
A16: Band Contribution | B16: 0 | C16: 0 | D16: 0 | E16: 0 | G16: 0 | I16: 0 | J16: 0
A17: Section 95 Subsidies | B17: 1413348 | C17: 1371388 | D17: 1371388 | E17: 0 | G17: 377295 | H17: 391819 | I17: 391819 | J17: 0
A18: Interest | B18: 0 | C18: 0 | D18: 0 | E18: 0 | G18: 0 | H18: 0 | I18: 0 | J18: 0
A19: Other | B19: 27403 | C19: 12106 | D19: 12106 | E19: 0 | G19: 0 | H19: 0 | I19: 0 | J19: 0
A20: Total Revenus | B20: =SUM(B15:B19) -> 3051284 | C20: =SUM(C15:C19) -> 3220418 | D20: =SUM(D15:D19) -> 3220418 | E20: 0 | G20: =SUM(G15:G19) -> 702970 | H20: =SUM(H15:H19) -> 912757 | I20: =SUM(I15:I19) -> 798550 | J20: 114207
A22: Expenses
A23: Insurance | B23: 70482 | C23: 67382 | D23: 67382 | E23: =C23-D23 -> 0 | G23: 14232 | H23: 17332 | I23: 17332 | J23: =H23-I23 -> 0
A24: Administration | B24: 167460 | C24: 160143 | D24: 160143 | E24: =C24-D24 -> 0 | G24: 34797 | H24: 39668 | I24: 39668 | J24: =H24-I24 -> 0
A25: Repair & Maintenance | B25: 371849 | C25: 502923 | D25: 502923 | E25: 0 | G25: 24989 | H25: 17721 | I25: 17721 | J25: =H25-I25 -> 0
A26: Municipal services | B26: 0 | C26: 0 | D26: 0 | E26: 0 | G26: 0 | H26: 0 | I26: 0 | J26: 0
A27: Services (water, garbage, sewer) | B27: 0 | C27: 0 | D27: 0 | E27: 0 | G27: 0 | H27: 0 | I27: 0 | J27: 0
A28: Electricity | B28: 0 | C28: 0 | D28: 0 | E28: 0 | G28: 0 | H28: 0 | I28: 0 | J28: 0
A29: Principal & Interest Payments | B29: 1839974 | C29: 1827688 | D29: 1827688 | E29: 0 | G29: 359382 | H29: 407425 | I29: 407425 | J29: 0
A30: Transfer to Replacement Reserve | B30: 278540 | C30: 171747 | D30: 278540 | E30: -106793 | G30: 107900 | H30: 115046 | I30: 115046 | J30: 0
A31: Bad Debts | B31: =B15*5% -> 80526.65 | C31: 478662 | D31: 91846 | E31: 386816 | G31: 0 | H31: 114207 | I31: 0 | J31: 114207
A32: Professional Fees | B32: 20775 | C32: 11873 | D32: 11873 | E32: 0 | G32: 4195 | H32: 4578 | I32: 4578 | J32: 0
A33: Others (Contingency) | B33: 0 | C33: 0 | D33: 0 | E33: 0 | G33: 0 | H33: 0 | I33: 0 | J33: 0
A34: Total Expenses | B34: =SUM(B23:B33) -> 2829606.65 | C34: =SUM(C23:C33) -> 3220418 | D34: =SUM(D23:D33) -> 2940395 | E34: =C34-D34 -> 280023 | G34: =SUM(G23:G33) -> 545495 | H34: =SUM(H23:H33) -> 715977 | I34: =SUM(I23:I33) -> 601770 | J34: =H34-I34 -> 114207
A36: SURPLUS / DEFICIT | B36: =B20-B34 -> 221677.35 | C36: =C20-C34 -> 0 | D36: =D20-D34 -> 280023 | E36: =C36-D36 -> -280023 | G36: =G20-G34 -> 157475 | H36: =H20-H34 -> 196780 | I36: =I20-I34 -> 196780 | J36: =H36-I36 -> 0
B38: Accepted by CMHC | C38: Submitted to CMHC | D38: Accepted by CMHC | E38: Difference | G38: Accepted by CMHC | H38: Submitted to CMHC | I38: Accepted by CMHC | J38: Difference
A39: Replacement Reserve Funds
A40: Previous accumulated Funds | B40: 1950020 | C40: 1819409 | D40: 2242601 | E40: =C40-D40 -> -423192 | G40: 260433 | H40: 393459 | I40: 368333 | J40: =H40-I40 -> 25126
A41: Interest earned | B41: 14041 | C41: 14041 | D41: 49087 | E41: =C41-D41 -> -35046 | G41: 0 | H41: 0 | I41: 0 | J41: =H41-I41 -> 0
A42: Allocation for the year | B42: =B30 -> 278540 | C42: =C30 -> 171747 | D42: =D30 -> 278540 | E42: =C42-D42 -> -106793 | G42: =G30 -> 107900 | H42: =H30 -> 115046 | I42: =I30 -> 115046 | J42: =H42-I42 -> 0
A43: Transfered to Housing repairs | B43: 0 | C43: 0 | D43: 227770 | E43: =C43-D43 -> -227770 | J43: =H43-I43 -> 0
A44: Balance, End of Year | B44: =B40+B41+B42-B43 -> 2242601 | C44: =C40+C41+C42-C43 -> 2005197 | D44: 2342458 | E44: =C44-D44 -> -337261 | G44: =G40+G41+G42-G43 -> 368333 | H44: =H40+H41+H42-H43 -> 508505 | I44: =I40+I41+I42-I43 -> 483379 | J44: =H44-I44 -> 25126
A46: Combined Replacement reserve | B46: 2610934 | C46: =C44+H44 -> 2513702 | D46: 2145000 | E46: =C46-D46 -> 368702
A48: Subsidy Surplus Funds or Renovation reserve
A49: Previous accumulated Funds | B49: 517827 | C49: 243977 | D49: 739504 | E49: =C49-D49 -> -495527
A50: Interest earned | B50: 0 | D50: 0 | E50: =C50-D50 -> 0
A51: Transferred to Housing repairs | B51: 0 | D51: 0 | E51: =C51-D51 -> 0
A52: Surplus / Deficit of Year | B52: =B36 -> 221677.35 | C52: =C36 -> 0 | D52: =D36 -> 280023 | E52: =C52-D52 -> -280023
A53: Balance, End of Year | B53: =SUM(B49:B52) -> 739504.35 | C53: =SUM(C49:C52) -> 243977 | D53: =SUM(D49:D52) -> 1019527 | E53: =C53-D53 -> -775550
A55: Operating Reserve Funds
A56: Previous accumulated Funds | G56: 352266 | H56: 234019 | I56: 509741 | J56: =H56-I56 -> -275722
A57: Interest earned | G57: 0 | H57: 0 | I57: 0 | J57: =H57-I57 -> 0
A58: Transferred to cover deficit or repairs | G58: 0 | H58: 0 | I58: 0 | J58: =H58-I58 -> 0
A59: Surplus / Deficit of Year | G59: =G36 -> 157475 | H59: =H36 -> 196780 | I59: =I36 -> 196780 | J59: =H59-I59 -> 0
A60: Balance, End of Year | G60: =SUM(G56:G59) -> 509741 | H60: =SUM(H56:H59) -> 430799 | I60: =SUM(I56:I59) -> 706521 | J60: =H60-I60 -> -275722

Sheet Feuil3 (hidden)
A1: APPENDIX I
A2: COMPARATIVE TABLE (R051)
A3: PORTFOLIO MANAGEMENT - SOCIAL HOUSING ( SECTION 95 NHA )
A4: FINANCIAL STATEMENT REVIEW FOR FISCAL YEAR END: MARCH 31, 2006
A5: Community | C5: CREE NATION OF MISTISSINI
A6: Program | C6: Pre-97 | I6: Post - 96
A7: CMHC Account No. | C7: 08-868-630 | I7: 16-229-494
A8: Phase | C8: (001-022) | I8: (001-006)
A9: Number of Units | C9: 416 | I9: =10+8+13+15+16+10 -> 72
C11: 2005 | F11: 2006 | K11: 2005 | M11: 2006
A12: Revenus | B12: % of Rev | C12: Submitted to CMHC | D12: Accepted by CMHC | E12: % of Rev | F12: Submitted to CMHC | G12: Accepted by CMHC | H12: Difference | J12: % of Rev | K12: Submitted to CMHC | L12: Accepted by CMHC | M12: Submitted to CMHC | N12: Accepted by CMHC | O12: Difference
A14: Rent | B14: =C14/C19 -> 0.4882926612 | C14: 1394870 | D14: 1394870 | E14: =F14/F19 -> 0.5277809274 | F14: 1610533 | G14: 1610533 | H14: =F14-G14 -> 0 | J14: =K14/K19 -> 0.4573278035 | K14: 273911 | L14: 273911 | M14: 369424 | N14: 369424 | O14: =M14-N14 -> 0
A15: Band Contribution | B15: =C15/C19 -> 0 | C15: 0 | D15: 0 | E15: =F15/F19 -> 0 | F15: 0 | G15: 0 | H15: 0 | J15: =K15/K19 -> 0 | K15: 0 | L15: 0 | N15: 0 | O15: 0
A16: Section 95 Subsidies | B16: =C16/C19 -> 0.5049087613 | C16: 1442336 | D16: 1442336 | E16: =F16/F19 -> 0.4632389519 | F16: 1413582 | G16: 1413582 | H16: 0 | J16: =K16/K19 -> 0.5426721965 | K16: 325027 | L16: 300980 | M16: 377295 | N16: 377295 | O16: 0
A17: Interest | B17: =C17/C19 -> 0 | C17: 0 | D17: 0 | E17: =F17/F19 -> 0 | F17: 0 | G17: 0 | H17: 0 | J17: =K17/K19 -> 0 | K17: 0 | L17: 0 | M17: 0 | N17: 0 | O17: 0
A18: Other | B18: =C18/C19 -> 0.006798577483 | C18: 19421 | D18: 19421 | E18: =F18/F19 -> 0.008980120714 | F18: 27403 | G18: 27403 | H18: 0 | J18: =K18/K19 -> 0 | K18: 0 | L18: 0 | M18: 0 | N18: 0 | O18: 0
A19: Total Revenus | B19: =SUM(B14:B18) -> 1 | C19: 2856627 | D19: 2856627 | E19: 1 | F19: 3051518 | G19: 3051518 | H19: 0 | J19: =SUM(J14:J18) -> 1 | K19: =SUM(K14:K18) -> 598938 | L19: =SUM(L14:L18) -> 574891 | M19: =SUM(M14:M18) -> 746719 | N19: =SUM(N14:N18) -> 746719 | O19: 0
A21: Expenses | B21: % of Exp | E21: % of Exp | J21: % of Exp
A22: Insurance | B22: =C22/C33 -> 0.0256477307 | C22: 73266 | D22: 73266 | E22: =F22/F33 -> 0.02309735679 | F22: 70482 | G22: 70482 | H22: =F22-G22 -> 0 | J22: =K22/K33 -> 0.02284883999 | K22: 11448 | L22: 11448 | M22: 14232 | N22: 14232 | O22: =M22-N22 -> 0
A23: Administration | B23: =C23/C33 -> 0.0632035614 | C23: 180549 | D23: 180549 | E23: =F23/F33 -> 0.05487760518 | F23: =188235-5824-14951 -> 167460 | G23: 167460 | H23: =F23-G23 -> 0 | J23: =K23/K33 -> 0.01250019959 | K23: 6263 | L23: 6263 | M23: =38992-4195 -> 34797 | N23: 34797 | O23: =M23-N23 -> 0
A24: Repair & Maintenance | B24: =C24/C33 -> 0.1212195362 | C24: 346279 | D24: 346279 | E24: =F24/F33 -> 0.1218570561 | F24: 371849 | G24: 371849 | H24: 0 | J24: =K24/K33 -> 0.04953775408 | K24: 24820 | L24: 24820 | M24: 24989 | N24: 24989 | O24: =M24-N24 -> 0
A25: Municipal services | B25: =C25/C33 -> 0 | C25: 0 | D25: 0 | E25: =F25/F33 -> 0 | F25: 0 | G25: 0 | H25: 0 | J25: =K25/K33 -> 0 | K25: 0 | L25: 0 | M25: 0 | N25: 0 | O25: 0
A26: Services (water, garbage, sewer) | B26: =C26/C33 -> 0 | C26: 0 | D26: 0 | E26: =F26/F33 -> 0 | F26: 0 | G26: 0 | H26: 0 | J26: =K26/K33 -> 0 | K26: 0 | L26: 0 | M26: 0 | N26: 0 | O26: 0
A27: Electricity | B27: =C27/C33 -> 0 | C27: 0 | D27: 0 | E27: =F27/F33 -> 0 | F27: 0 | G27: 0 | H27: 0 | J27: =K27/K33 -> 0 | K27: 0 | L27: 0 | M27: 0 | N27: 0 | O27: 0
A28: Principal & Interest Payments | B28: =C28/C33 -> 0.6476715371 | C28: 1850156 | D28: 1850156 | E28: =F28/F33 -> 0.6029700628 | F28: 1839974 | G28: 1839974 | H28: 0 | J28: =K28/K33 -> 0.6299318207 | K28: 315616 | L28: 315616 | M28: 359382 | N28: 359382 | O28: 0
A29: Transfer to Replacement Reserve | B29: =C29/C33 -> 0.09750660482 | C29: 278540 | D29: 278540 | E29: =F29/F33 -> 0.09127916008 | F29: 278540 | G29: 278540 | H29: 0 | J29: =K29/K33 -> 0.1803278034 | K29: 90350 | L29: 90350 | M29: 107900 | N29: 107900 | O29: 0
A30: Bad Debts | B30: =C30/C33 -> 0.03922108137 | C30: 112040 | D30: =D14*5% -> 69743.5 | E30: =F30/F33 -> 0.09911067213 | F30: 302438 | G30: =G14*5% -> 80526.65 | H30: 221911.35 | J30: =K30/K33 -> 0.09757061425 | K30: 48886 | L30: 0 | M30: 43749 | N30: 0 | O30: 43749
A31: Professional Fees | B31: =C31/C33 -> 0.005529948432 | C31: 15797 | D31: 15797 | E31: =F31/F33 -> 0.006808086991 | F31: =5824+14951 -> 20775 | G31: 20775 | H31: 0 | J31: =K31/K33 -> 0.004925833081 | K31: 2468 | L31: 2468 | M31: 4195 | N31: 4195 | O31: 0
A32: Others (Contingency) | B32: =C32/C33 -> 0 | C32: 0 | D32: 0 | E32: =F32/F33 -> 0 | F32: 0 | G32: 0 | H32: 0 | J32: =K32/K33 -> 0.002357134874 | K32: 1181 | L32: 1181 | M32: 0 | N32: 0 | O32: 0
A33: Total Expenses | B33: =SUM(B22:B32) -> 1 | C33: 2856627 | D33: 2814330.5 | E33: 1 | F33: 3051518 | G33: 2829606.65 | H33: =F33-G33 -> 221911.35 | J33: =SUM(J22:J32) -> 1 | K33: =SUM(K22:K32) -> 501032 | L33: =SUM(L22:L32) -> 452146 | M33: =SUM(M22:M32) -> 589244 | N33: =SUM(N22:N32) -> 545495 | O33: =M33-N33 -> 43749
A35: SURPLUS / DEFICIT | C35: =C19-C33 -> 0 | D35: =D19-D33 -> 42296.5 | F35: =F19-F33 -> 0 | G35: =G19-G33 -> 221911.35 | H35: =F35-G35 -> -221911.35 | K35: =K19-K33 -> 97906 | L35: =L19-L33 -> 122745 | M35: =M19-M33 -> 157475 | N35: =N19-N33 -> 201224 | O35: =M35-N35 -> -43749
C37: Submitted to CMHC | D37: Accepted by CMHC | F37: Submitted to CMHC | G37: Accepted by CMHC | H37: Difference | K37: Submitted to CMHC | L37: Accepted by CMHC | M37: Submitted to CMHC | N37: Accepted by CMHC | O37: Difference
A38: Replacement Reserve Funds
A39: Previous accumulated Funds | C39: 1530318 | D39: 1660929 | F39: 1819409 | G39: 1950020 | H39: =F39-G39 -> -130611 | K39: 195209 | L39: 170083 | M39: 285559 | N39: 260433 | O39: =M39-N39 -> 25126
A40: Interest earned | C40: 10551 | D40: 10551 | F40: 14041 | G40: 14041 | H40: =F40-G40 -> 0 | K40: 0 | L40: 0 | M40: 0 | O40: =M40-N40 -> 0
A41: Allocation for the year | C41: =C29 -> 278540 | D41: =D29 -> 278540 | F41: =F29 -> 278540 | G41: =G29 -> 278540 | H41: =F41-G41 -> 0 | K41: 90350 | L41: 90350 | M41: 107900 | N41: 107900 | O41: =M41-N41 -> 0
A42: Transfered to Housing repairs | C42: 0 | D42: 0 | F42: 0 | G42: 0 | H42: =F42-G42 -> 0 | K42: 0 | L42: 0 | O42: =M42-N42 -> 0
A43: Balance, End of Year | C43: =C39+C40+C41-C42 -> 1819409 | D43: =D39+D40+D41-D42 -> 1950020 | F43: =F39+F40+F41-F42 -> 2111990 | G43: =G39+G40+G41-G42 -> 2242601 | H43: =F43-G43 -> -130611 | K43: =K39+K40+K41-K42 -> 285559 | L43: =L39+L40+L41-L42 -> 260433 | M43: =M39+M40+M41-M42 -> 393459 | N43: =N39+N40+N41-N42 -> 368333 | O43: =M43-N43 -> 25126
A45: Combined Replacement reserve | C45: =C43+K43 -> 2104968 | D45: =D43+L43 -> 2210453 | F45: =F43+M43 -> 2505449 | G45: =G43+N43 -> 2610934 | H45: =F45-G45 -> -105485
A47: Subsidy Surplus Funds or Renovation reserve
A48: Previous accumulated Funds | C48: 395819 | D48: 627372 | F48: 243977 | G48: 517827 | H48: =F48-G48 -> -273850
A49: Interest earned | C49: 0 | D49: 0 | G49: 0 | H49: =F49-G49 -> 0
A50: Transferred to Housing repairs | C50: -151842 | D50: -151842 | G50: 0 | H50: =F50-G50 -> 0
A51: Surplus / Deficit of Year | C51: =C35 -> 0 | D51: =D35 -> 42296.5 | F51: =F35 -> 0 | G51: =G35 -> 221911.35 | H51: =F51-G51 -> -221911.35
A52: Balance, End of Year | C52: =SUM(C48:C51) -> 243977 | D52: =SUM(D48:D51) -> 517826.5 | F52: =SUM(F48:F51) -> 243977 | G52: =SUM(G48:G51) -> 739738.35 | H52: =F52-G52 -> -495761.35
A54: Operating Reserve Funds
A55: Previous accumulated Funds | K55: 136113 | L55: 229521 | M55: 234019 | N55: 352266 | O55: =M55-N55 -> -118247
A56: Interest earned | K56: 0 | L56: 0 | M56: 0 | N56: 0 | O56: =M56-N56 -> 0
A57: Transferred to cover deficit or repairs | M57: 0 | N57: 0 | O57: =M57-N57 -> 0
A58: Surplus / Deficit of Year | K58: =K35 -> 97906 | L58: =L35 -> 122745 | M58: =M35 -> 157475 | N58: =N35 -> 201224 | O58: =M58-N58 -> -43749
A59: Balance, End of Year | K59: =SUM(K55:K58) -> 234019 | L59: =SUM(L55:L58) -> 352266 | M59: =SUM(M55:M58) -> 391494 | N59: =SUM(N55:N58) -> 553490 | O59: =M59-N59 -> -161996

Sheet Feuil2 (hidden)
A1: APPENDIX I
A2: COMPARATIVE TABLE (R051)
A3: PORTFOLIO MANAGEMENT - SOCIAL HOUSING ( SECTION 95 NHA )
A4: FINANCIAL STATEMENT REVIEW FOR FISCAL YEAR END: MARCH 31, 2006
A5: CREE NATION OF MISTISSINI
A7: Program | B7: Pre-97 | G7: Post - 96
A8: CMHC Account No. | B8: 08-868-630 | G8: 16-229-494
A9: Phase | B9: (001-022) | G9: (001-007)
A10: Number of Units | B10: 416 | G10: 84
B12: 2005 | C12: 2006 | G12: 2005 | H12: 2006
A13: Revenus | B13: Accepted by CMHC | C13: Submitted to CMHC | D13: Accepted by CMHC | E13: Difference | G13: Accepted by CMHC | H13: Submitted to CMHC | I13: Accepted by CMHC | J13: Difference
A15: Rent | B15: 1394870 | C15: 1610533 | D15: 1610533 | E15: =C15-D15 -> 0 | G15: 273911 | H15: 369424 | I15: 325675 | J15: =H15-I15 -> 43749
A16: Band Contribution | B16: 0 | C16: 0 | D16: 0 | E16: 0 | G16: 0 | I16: 0 | J16: 0
A17: Section 95 Subsidies | B17: 1442336 | C17: 1413582 | D17: 1413348 | E17: 234 | G17: 300980 | H17: 377295 | I17: 377295 | J17: 0
A18: Interest | B18: 0 | C18: 0 | D18: 0 | E18: 0 | G18: 0 | H18: 0 | I18: 0 | J18: 0
A19: Other | B19: 19421 | C19: 27403 | D19: 27403 | E19: 0 | G19: 0 | H19: 0 | I19: 0 | J19: 0
A20: Total Revenus | B20: =SUM(B15:B19) -> 2856627 | C20: =SUM(C15:C19) -> 3051518 | D20: =SUM(D15:D19) -> 3051284 | E20: 234 | G20: =SUM(G15:G19) -> 574891 | H20: =SUM(H15:H19) -> 746719 | I20: =SUM(I15:I19) -> 702970 | J20: 43749
A22: Expenses
A23: Insurance | B23: 73266 | C23: 70482 | D23: 70482 | E23: =C23-D23 -> 0 | G23: 11448 | H23: 14232 | I23: 14232 | J23: =H23-I23 -> 0
A24: Administration | B24: 180549 | C24: =188235-5824-14951 -> 167460 | D24: 167460 | E24: =C24-D24 -> 0 | G24: 6263 | H24: =38992-4195 -> 34797 | I24: 34797 | J24: =H24-I24 -> 0
A25: Repair & Maintenance | B25: 346279 | C25: 371849 | D25: 371849 | E25: 0 | G25: 24820 | H25: 24989 | I25: 24989 | J25: =H25-I25 -> 0
A26: Municipal services | B26: 0 | C26: 0 | D26: 0 | E26: 0 | G26: 0 | H26: 0 | I26: 0 | J26: 0
A27: Services (water, garbage, sewer) | B27: 0 | C27: 0 | D27: 0 | E27: 0 | G27: 0 | H27: 0 | I27: 0 | J27: 0
A28: Electricity | B28: 0 | C28: 0 | D28: 0 | E28: 0 | G28: 0 | H28: 0 | I28: 0 | J28: 0
A29: Principal & Interest Payments | B29: 1850156 | C29: 1839974 | D29: 1839974 | E29: 0 | G29: 315616 | H29: 359382 | I29: 359382 | J29: 0
A30: Transfer to Replacement Reserve | B30: 278540 | C30: 278540 | D30: 278540 | E30: 0 | G30: 90350 | H30: 107900 | I30: 107900 | J30: 0
A31: Bad Debts | B31: 69744 | C31: 302438 | D31: =D15*5% -> 80526.65 | E31: 221911.35 | G31: 0 | H31: 43749 | I31: 0 | J31: 43749
A32: Professional Fees | B32: 15797 | C32: =5824+14951 -> 20775 | D32: 20775 | E32: 0 | G32: 2468 | H32: 4195 | I32: 4195 | J32: 0
A33: Others (Contingency) | B33: 0 | C33: 0 | D33: 0 | E33: 0 | G33: 1181 | H33: 0 | I33: 0 | J33: 0
A34: Total Expenses | B34: =SUM(B23:B33) -> 2814331 | C34: =SUM(C23:C33) -> 3051518 | D34: =SUM(D23:D33) -> 2829606.65 | E34: =C34-D34 -> 221911.35 | G34: =SUM(G23:G33) -> 452146 | H34: =SUM(H23:H33) -> 589244 | I34: =SUM(I23:I33) -> 545495 | J34: =H34-I34 -> 43749
A36: SURPLUS / DEFICIT | B36: =B20-B34 -> 42296 | C36: =C20-C34 -> 0 | D36: =D20-D34 -> 221677.35 | E36: =C36-D36 -> -221677.35 | G36: =G20-G34 -> 122745 | H36: =H20-H34 -> 157475 | I36: =I20-I34 -> 157475 | J36: =H36-I36 -> 0
B38: Accepted by CMHC | C38: Submitted to CMHC | D38: Accepted by CMHC | E38: Difference | G38: Accepted by CMHC | H38: Submitted to CMHC | I38: Accepted by CMHC | J38: Difference
A39: Replacement Reserve Funds
A40: Previous accumulated Funds | B40: 1660929 | C40: 1819409 | D40: 1950020 | E40: =C40-D40 -> -130611 | G40: 170083 | H40: 285559 | I40: 260433 | J40: =H40-I40 -> 25126
A41: Interest earned | B41: 10551 | C41: 14041 | D41: 14041 | E41: =C41-D41 -> 0 | G41: 0 | H41: 0 | I41: 0 | J41: =H41-I41 -> 0
A42: Allocation for the year | B42: =B30 -> 278540 | C42: =C30 -> 278540 | D42: =D30 -> 278540 | E42: =C42-D42 -> 0 | G42: 90350 | H42: =H30 -> 107900 | I42: =I30 -> 107900 | J42: =H42-I42 -> 0
A43: Transfered to Housing repairs | B43: 0 | C43: 0 | D43: 0 | E43: =C43-D43 -> 0 | G43: 0 | J43: =H43-I43 -> 0
A44: Balance, End of Year | B44: =B40+B41+B42-B43 -> 1950020 | C44: =C40+C41+C42-C43 -> 2111990 | D44: =D40+D41+D42-D43 -> 2242601 | E44: =C44-D44 -> -130611 | G44: =G40+G41+G42-G43 -> 260433 | H44: =H40+H41+H42-H43 -> 393459 | I44: =I40+I41+I42-I43 -> 368333 | J44: =H44-I44 -> 25126
A46: Combined Replacement reserve | B46: =B44+G44 -> 2210453 | C46: =C44+H44 -> 2505449 | D46: =D44+I44 -> 2610934 | E46: =C46-D46 -> -105485
A48: Subsidy Surplus Funds or Renovation reserve
A49: Previous accumulated Funds | B49: 627372 | C49: 243977 | D49: 517827 | E49: =C49-D49 -> -273850
A50: Interest earned | B50: 0 | D50: 0 | E50: =C50-D50 -> 0
A51: Transferred to Housing repairs | B51: -151842 | D51: 0 | E51: =C51-D51 -> 0
A52: Surplus / Deficit of Year | B52: =B36 -> 42296 | C52: =C36 -> 0 | D52: =D36 -> 221677.35 | E52: =C52-D52 -> -221677.35
A53: Balance, End of Year | B53: =SUM(B49:B52) -> 517826 | C53: =SUM(C49:C52) -> 243977 | D53: =SUM(D49:D52) -> 739504.35 | E53: =C53-D53 -> -495527.35
A55: Operating Reserve Funds
A56: Previous accumulated Funds | G56: 229521 | H56: 234019 | I56: 352266 | J56: =H56-I56 -> -118247
A57: Interest earned | G57: 0 | H57: 0 | I57: 0 | J57: =H57-I57 -> 0
A58: Transferred to cover deficit or repairs | H58: 0 | I58: 0 | J58: =H58-I58 -> 0
A59: Surplus / Deficit of Year | G59: =G36 -> 122745 | H59: =H36 -> 157475 | I59: =I36 -> 157475 | J59: =H59-I59 -> 0
A60: Balance, End of Year | G60: =SUM(G56:G59) -> 352266 | H60: =SUM(H56:H59) -> 391494 | I60: =SUM(I56:I59) -> 509741 | J60: =H60-I60 -> -118247

Sheet Feuil1 (hidden)
A1: APPENDIX I
A2: COMPARATIVE TABLE (R051)
A3: PORTFOLIO MANAGEMENT - SOCIAL HOUSING ( SECTION 95 NHA )
A4: FINANCIAL STATEMENT REVIEW FOR FISCAL YEAR END: MARCH 31, 2005 | L4: 1340337 | M4: 1556460 | N4: 1483333
L5: 1474195 | M5: 1668781 | N5: 1979957
A6: Community | C6: CREE NATION OF MISTISSINI | L6: =L4/L5 -> 0.9091992579 | M6: =M4/M5 -> 0.9326927859 | N6: =N4/N5 -> 0.7491743508
A7: Program | C7: Pre-97 | G7: Post - 96
A8: CMHC Account No. | C8: 08-868-630 | G8: 16-229-494
A9: Phase | C9: (001-022) | G9: (001-006)
A10: Number of Units | C10: 416 | G10: =10+8+13+15+16+10 -> 72
A12: Revenus | B12: % of Rev | C12: Submitted to CMHC | D12: Accepted by CMHC | E12: Difference | G12: % of Rev | H12: Submitted to CMHC | I12: Accepted by CMHC | J12: Difference | L12: 333842 | M12: 125071 | N12: =L12-M12 -> 208771
L13: 22800 | M13: 14135 | N13: =L13-M13 -> 8665
A14: Rent | B14: =C14/C19 -> 0.4882926612 | C14: 1394870 | D14: 1394870 | E14: =C14-D14 -> 0 | G14: =H14/H19 -> 0.4573278035 | H14: 273911 | I14: 273911 | J14: =H14-I14 -> 0
A15: Band Contribution | B15: =C15/C19 -> 0 | C15: 0 | D15: 0 | E15: 0 | G15: =H15/H19 -> 0 | H15: 0 | I15: 0 | J15: 0 | M15: =M12/L12 -> 0.3746412974 | N15: =N12/L12 -> 0.6253587026
A16: Section 95 Subsidies | B16: =C16/C19 -> 0.5049087613 | C16: 1442336 | D16: 1442336 | E16: 0 | G16: =H16/H19 -> 0.5426721965 | H16: 325027 | I16: 300980 | J16: 24047 | K16: 300980 | M16: =M13/L13 -> 0.6199561404 | N16: =N13/L13 -> 0.3800438596
A17: Interest | B17: =C17/C19 -> 0 | C17: 0 | D17: 0 | E17: 0 | G17: =H17/H19 -> 0 | H17: 0 | I17: 0 | J17: 0
A18: Other | B18: =C18/C19 -> 0.006798577483 | C18: 19421 | D18: 19421 | E18: 0 | G18: =H18/H19 -> 0 | H18: 0 | I18: 0 | J18: 0
A19: Total Revenus | B19: =SUM(B14:B18) -> 1 | C19: =SUM(C14:C18) -> 2856627 | D19: =SUM(D14:D18) -> 2856627 | E19: 0 | G19: =SUM(G14:G18) -> 1 | H19: =SUM(H14:H18) -> 598938 | I19: =SUM(I14:I18) -> 574891 | J19: 24047
A21: Expenses | B21: % of Exp | G21: % of Exp
A22: Insurance | B22: =C22/C33 -> 0.0256477307 | C22: 73266 | D22: 73266 | E22: =C22-D22 -> 0 | G22: =H22/H33 -> 0.02284883999 | H22: 11448 | I22: 11448 | J22: =H22-I22 -> 0 | L22: =196346-15797 -> 180549
A23: Administration | B23: =C23/C33 -> 0.0632035614 | C23: 180549 | D23: 180549 | E23: 0 | G23: =H23/H33 -> 0.01250019959 | H23: 6263 | I23: 6263 | J23: 0 | L23: =11033+4764 -> 15797
A24: Repair & Maintenance | B24: =C24/C33 -> 0.1212195362 | C24: 346279 | D24: 346279 | E24: 0 | G24: =H24/H33 -> 0.04953775408 | H24: 24820 | I24: 24820 | J24: 0
A25: Municipal services | B25: =C25/C33 -> 0 | C25: 0 | D25: 0 | E25: 0 | G25: =H25/H33 -> 0 | H25: 0 | I25: 0 | J25: 0
A26: Services (water, garbage, sewer) | B26: =C26/C33 -> 0 | C26: 0 | D26: 0 | E26: 0 | G26: =H26/H33 -> 0 | H26: 0 | I26: 0 | J26: 0
A27: Electricity | B27: =C27/C33 -> 0 | C27: 0 | D27: 0 | E27: 0 | G27: =H27/H33 -> 0 | H27: 0 | I27: 0 | J27: 0
A28: Principal & Interest Payments | B28: =C28/C33 -> 0.6476715371 | C28: 1850156 | D28: 1850156 | E28: 0 | G28: =H28/H33 -> 0.6299318207 | H28: 315616 | I28: 315616 | J28: 0 | L28: 2397311
A29: Transfer to Replacement Reserve | B29: =C29/C33 -> 0.09750660482 | C29: 278540 | D29: 278540 | E29: 0 | G29: =H29/H33 -> 0.1803278034 | H29: 90350 | I29: 90350 | J29: 0 | L29: 2545990
A30: Bad Debts | B30: =C30/C33 -> 0.03922108137 | C30: 112040 | D30: =D14*5% -> 69743.5 | E30: 42296.5 | G30: =H30/H33 -> 0.09757061425 | H30: 48886 | I30: 0 | J30: 48886 | L30: =L29-L28 -> 148679
A31: Professional Fees | B31: =C31/C33 -> 0.005529948432 | C31: 15797 | D31: 15797 | E31: 0 | G31: =H31/H33 -> 0.004925833081 | H31: 2468 | I31: 2468 | J31: 0
A32: Others (Contingency) | B32: =C32/C33 -> 0 | C32: 0 | D32: 0 | E32: 0 | G32: =H32/H33 -> 0.002357134874 | H32: 1181 | I32: 1181 | J32: 0
A33: Total Expenses | B33: =SUM(B22:B32) -> 1 | C33: =SUM(C22:C32) -> 2856627 | D33: =SUM(D22:D32) -> 2814330.5 | E33: 42296.5 | G33: =SUM(G22:G32) -> 1 | H33: =SUM(H22:H32) -> 501032 | I33: =SUM(I22:I32) -> 452146 | J33: 48886
A35: SURPLUS / DEFICIT | C35: =C19-C33 -> 0 | D35: =D19-D33 -> 42296.5 | E35: =C35-D35 -> -42296.5 | H35: =H19-H33 -> 97906 | I35: =I19-I33 -> 122745 | J35: =H35-I35 -> -24839
C37: Submitted to CMHC | D37: Accepted by CMHC | E37: Difference | G37: Submitted to CMHC | H37: Accepted by CMHC | I37: Difference
A38: Replacement Reserve Funds
A39: Previous accumulated Funds | C39: 1530318 | D39: 1660929 | E39: =C39-D39 -> -130611 | G39: 195209 | H39: 170083 | I39: =G39-H39 -> 25126
A40: Interest earned | C40: 10551 | D40: 10551 | E40: =C40-D40 -> 0 | G40: 0 | H40: 0 | I40: =G40-H40 -> 0
A41: Allocation for the year | C41: 278540 | D41: 278540 | E41: =C41-D41 -> 0 | G41: 90350 | H41: 90350 | I41: =G41-H41 -> 0 | K41: 170083 | L41: 260433
A42: Transfered to Housing repairs | C42: 0 | D42: 0 | E42: =C42-D42 -> 0 | G42: 0 | H42: 0 | I42: =G42-H42 -> 0 | K42: 229521 | L42: 352266
A43: Balance, End of Year | C43: =C39+C40+C41-C42 -> 1819409 | D43: =D39+D40+D41-D42 -> 1950020 | E43: =C43-D43 -> -130611 | G43: =G39+G40+G41-G42 -> 285559 | H43: =H39+H40+H41-H42 -> 260433 | I43: =G43-H43 -> 25126 | K43: =D39 -> 1660929 | L43: 1950020
A45: Combined Replacement reserve | C45: =C43+G43 -> 2104968 | D45: =D43+H43 -> 2210453 | E45: =C45-D45 -> -105485
K46: =SUM(K41:K43) -> 2060533 | L46: =SUM(L41:L43) -> 2562719
A47: Subsidy Surplus Funds or Renovation reserve
A48: Previous accumulated Funds | C48: 395819 | D48: 627372 | E48: =C48-D48 -> -231553
A49: Interest earned | C49: 0 | D49: 0 | E49: =C49-D49 -> 0
A50: Transferred to Housing repairs | C50: -151842 | D50: -151842
A51: Surplus / Deficit of Year | C51: 0 | D51: =D35 -> 42296.5 | E51: =C51-D51 -> -42296.5 | L51: 2060533 | M51: =L46 -> 2562719
A52: Balance, End of Year | C52: =SUM(C48:C51) -> 243977 | D52: =SUM(D48:D51) -> 517826.5 | E52: =C52-D52 -> -273849.5 | K52: cash | L52: 824382 | M52: 858063
K53: restricted cash | L53: 347481 | M53: 734466
A54: Operating Reserve Funds | K54: »Rest depot | L54: 915000 | M54: 915000
A55: Previous accumulated Funds | G55: 136113 | H55: 229521 | I55: =G55-H55 -> -93408 | L55: =SUM(L52:L54) -> 2086863 | M55: =SUM(M52:M54) -> 2507529
A56: Interest earned | G56: 0 | H56: 0 | I56: =G56-H56 -> 0 | L56: =L55-L51 -> 26330 | M56: =M55-M51 -> -55190
A57: Transferred to cover deficit or repairs
A58: Surplus / Deficit of Year | G58: =H35 -> 97906 | H58: =I35 -> 122745 | I58: =G58-H58 -> -24839
A59: Balance, End of Year | G59: =SUM(G55:G58) -> 234019 | H59: =SUM(H55:H58) -> 352266 | I59: =G59-H59 -> -118247
A62: Good

Sheet Feuil6 (hidden)
A1: CREE NATION OF Mistissini
A2: FINANCIAL STATEMENT REVIEW FOR FISCAL YEAR END
F3: Pre - 97 Program | S3: Post- 96
A4: Revenus | C4: 1994-1995 | D4: 1995-1996 | E4: 1996-1997 | F4: 1997-1998 | G4: 1998-1999 | H4: 1999-2000 | I4: 2000-2001 | J4: 2001-2002 | K4: 2002-2003 | L4: 2003-2004 | M4: 2004-2005 | N4: 2005-2006 | O4: Total | Q4: 1999-2000 | R4: 2000-2001 | S4: 2001-2002 | T4: 2002-2003 | U4: 2003-2004 | V4: 2004-2005 | W4: 2005-2006
A6: Rent | B6: Submitted | H6: 1264646 | I6: 1287475 | J6: 1267655 | K6: 1312410 | L6: 1300470 | M6: 1394870 | O6: =SUM(F6:N6) -> 7827526 | Q6: 15100 | R6: 66150 | S6: 133455 | T6: 191530 | U6: 173725 | V6: 273911
B7: Accepted | H7: 1264646 | I7: 1287475 | J7: 1267655 | K7: 1312410 | L7: 1300470 | M7: 1394870 | O7: =SUM(F7:N7) -> 7827526 | Q7: 8400 | R7: 66150 | S7: 133455 | T7: 191530 | U7: 173725 | V7: 273911
A8: Band Contribution | B8: Submitted | C8: 0 | D8: 0 | E8: 0 | F8: 0 | G8: 0 | H8: 0 | I8: 0 | J8: 0 | K8: 0 | L8: 0 | M8: 0 | O8: 0 | Q8: 0 | R8: 0 | S8: 0 | T8: 0 | U8: 0 | V8: 0 | W8: 0
B9: Accepted | C9: 0 | D9: 0 | E9: 0 | F9: 0 | G9: 0 | H9: 0 | I9: 0 | J9: 0 | K9: 0 | L9: 0 | M9: 0 | O9: 0 | Q9: 0 | R9: 0 | S9: 0 | T9: 0 | U9: 0 | V9: 0 | W9: 0
A10: Section 95 Subsidies | B10: Submitted | H10: 1900751 | I10: 1888441 | J10: 1860249 | K10: 1685980 | L10: 1577626 | M10: 1442336 | O10: 10355383 | Q10: 0 | R10: 53138 | S10: 112982 | T10: 212930 | U10: 241903 | V10: 325027
B11: Accepted | H11: 1888271 | I11: 1888441 | J11: 1860249 | K11: 1685980 | L11: 1577626 | M11: 1442336 | O11: 10342903 | Q11: 12480 | R11: 53138 | S11: 112981 | T11: 212930 | U11: 241903 | V11: 300980
A12: Interest | B12: Submitted | C12: 0 | D12: 0 | E12: 0 | F12: 0 | G12: 0 | H12: 0 | I12: 0 | J12: 0 | K12: 0 | L12: 0 | M12: 0 | O12: 0 | Q12: 0 | R12: 0 | S12: 0 | T12: 0 | U12: 0 | V12: 0 | W12: 0
B13: Accepted | C13: 0 | D13: 0 | E13: 0 | F13: 0 | G13: 0 | H13: 0 | I13: 0 | J13: 0 | K13: 0 | L13: 0 | M13: 0 | O13: 0 | Q13: 0 | R13: 0 | S13: 0 | T13: 0 | U13: 0 | V13: 0 | W13: 0
A14: Other | B14: Submitted | C14: 0 | D14: 0 | E14: 0 | F14: 0 | G14: 0 | H14: 0 | I14: 43071 | J14: 13911 | K14: 4681 | L14: 0 | M14: 19421 | O14: 81084 | Q14: 0 | R14: 0 | S14: 0 | T14: 0 | U14: 0 | V14: 0 | W14: 0
B15: Accepted | C15: 0 | D15: 0 | E15: 0 | F15: 0 | G15: 0 | H15: 37069 | I15: 43071 | J15: 13911 | K15: 4681 | L15: 0 | M15: 19421 | O15: 118153 | Q15: 0 | R15: 0 | S15: 0 | T15: 0 | U15: 0 | V15: 0 | W15: 0
A16: Total Revenus | B16: Submitted | C16: =C6+C8+C10+C12++++C14 -> 0 | D16: =D6+D8+D10+D12++++D14 -> 0 | E16: =E6+E8+E10+E12++++E14 -> 0 | F16: =F6+F8+F10+F12++++F14 -> 0 | G16: 0 | H16: 3165397 | I16: 3218987 | J16: 3141815 | K16: 3003071 | L16: 2878096 | M16: =M6+M8+M10+M12+M14 -> 2856627 | N16: 0 | O16: 18263993 | Q16: =Q6+Q8+Q10+Q12+Q14 -> 15100 | R16: =R6+R8+R10+R12+R14 -> 119288 | S16: =S6+S8+S10+S12+S14 -> 246437 | T16: =T6+T8+T10+T12+T14 -> 404460 | U16: 415628 | V16: 598938 | W16: =W6+W8+W10+W12+W14 -> 0
B17: Accepted | C17: =C7+C9+C11+C13+C15 -> 0 | D17: =D7+D9+D11+D13+D15 -> 0 | E17: =E7+E9+E11+E13+E15 -> 0 | F17: =F7+F9+F11+F13+F15 -> 0 | G17: 0 | H17: 3189986 | I17: 3218987 | J17: 3141815 | K17: 3003071 | L17: 2878096 | M17: 2856627 | N17: 0 | O17: 18288582 | Q17: =Q7+Q9+Q11+Q13+Q15 -> 20880 | R17: =R7+R9+R11+R13+R15 -> 119288 | S17: 246436 | T17: =T7+T9+T11+T13+T15 -> 404460 | U17: 415628 | V17: 574891 | W17: =W7+W9+W11+W13+W15 -> 0
B18: Difference | C18: =C16-C17 -> 0 | D18: =D16-D17 -> 0 | E18: =E16-E17 -> 0 | F18: =F16-F17 -> 0 | G18: =G16-G17 -> 0 | H18: -24589 | I18: 0 | J18: 0 | K18: 0 | L18: 0 | M18: 0 | N18: 0 | O18: -24589 | Q18: -5780 | R18: 0 | S18: 1 | T18: 0 | U18: 0 | V18: 24047 | W18: 0
A19: Expenses
A21: Insurance | B21: Submitted | H21: 84714 | I21: 82214 | J21: 76243 | K21: 72007 | L21: 72007 | M21: 73266 | O21: =SUM(F21:N21) -> 460451 | Q21: 0 | R21: 2500 | S21: 8471 | T21: 12707 | U21: 12707 | V21: 11448
B22: Accepted | H22: 84714 | I22: 82214 | J22: 76243 | K22: 72007 | L22: 72007 | M22: 73266 | O22: =SUM(F22:N22) -> 460451 | Q22: 0 | R22: 2500 | S22: 5627 | T22: 12707 | U22: 12707 | V22: 11448
A23: Administration | B23: Submitted | H23: 187272 | I23: 205960 | J23: 187511 | K23: 177410 | L23: 145498 | M23: 180549 | O23: 1084200 | Q23: 0 | R23: 5000 | S23: 2822 | T23: 3606 | U23: 6707 | V23: 6263
B24: Accepted | H24: 187272 | I24: 199385 | J24: 187511 | K24: 177410 | L24: 145498 | M24: 180549 | O24: 1077625 | Q24: 0 | R24: 5000 | S24: 2822 | T24: 3606 | U24: 6707 | V24: 6263
A25: Repair & Maintenance | B25: Submitted | H25: 549682 | I25: 444505 | J25: 437399 | K25: 496269 | L25: 396384 | M25: 346279 | O25: 2670518 | Q25: 0 | R25: 16111 | S25: 25600 | T25: 31654 | U25: 24732 | V25: 24820
B26: Accepted | H26: 549682 | I26: 460616 | J26: 437399 | K26: 496269 | L26: 396384 | M26: 346279 | O26: 2686629 | Q26: 0 | R26: 0 | S26: 25600 | T26: 31654 | U26: 24732 | V26: 24820
A27: Municipal services | B27: Submitted | C27: 0 | D27: 0 | E27: 0 | F27: 0 | G27: 0 | H27: 0 | I27: 0 | J27: 0 | K27: 0 | L27: 0 | M27: 0 | O27: 0 | Q27: 0 | R27: 0 | S27: 0 | T27: 0 | U27: 0 | V27: 0 | W27: 0
B28: Accepted | C28: 0 | D28: 0 | E28: 0 | F28: 0 | G28: 0 | H28: 0 | I28: 0 | J28: 0 | K28: 0 | L28: 0 | M28: 0 | O28: 0 | Q28: 0 | R28: 0 | S28: 0 | T28: 0 | U28: 0 | V28: 0 | W28: 0
A29: Services (water, garbage, sewer) | B29: Submitted | C29: 0 | D29: 0 | E29: 0 | F29: 0 | G29: 0 | H29: 0 | I29: 4032 | J29: 5866 | K29: 0 | L29: 0 | M29: 0 | O29: 9898 | Q29: 0 | R29: 9461 | S29: 651 | T29: 1980 | U29: 0 | V29: 0 | W29: 0
B30: Accepted | C30: 0 | D30: 0 | E30: 0 | F30: 0 | G30: 0 | H30: 0 | I30: 13493 | J30: 6517 | K30: 0 | L30: 0 | M30: 0 | O30: 20010 | Q30: 0 | R30: 0 | S30: 0 | T30: 1980 | U30: 0 | V30: 0 | W30: 0
A31: Electricity | B31: Submitted | C31: 0 | D31: 0 | E31: 0 | F31: 0 | G31: 0 | H31: 0 | I31: 0 | J31: 0 | K31: 0 | L31: 0 | M31: 0 | O31: 0 | Q31: 0 | R31: 0 | S31: 0 | T31: 0 | U31: 0 | V31: 0 | W31: 0
B32: Accepted | C32: 0 | D32: 0 | E32: 0 | F32: 0 | G32: 0 | H32: 0 | I32: 0 | J32: 0 | K32: 0 | L32: 0 | M32: 0 | O32: 0 | Q32: 0 | R32: 0 | S32: 0 | T32: 0 | U32: 0 | V32: 0 | W32: 0
A33: Principal & Interest Payments | B33: Submitted | H33: 2003521 | I33: 1983942 | J33: 2021846 | K33: 1899037 | L33: 1856226 | M33: 1850156 | O33: 11614728 | Q33: 6655 | R33: 50229 | S33: 116350 | T33: 213995 | U33: 251835 | V33: 315616
B34: Accepted | H34: 2003521 | I34: 1983942 | J34: 2021846 | K34: 1899037 | L34: 1856226 | M34: 1850156 | O34: 11614728 | Q34: 12576 | R34: 50229 | S34: 116350 | T34: 196153 | U34: 231204 | V34: 315616
A35: Transfer to Replacement Reserve | B35: Submitted | H35: 0 | I35: 278540 | J35: 278540 | K35: 103167 | L35: 278540 | M35: 278540 | O35: 1217327 | Q35: 8445 | R35: 26217 | S35: 45175 | T35: 54925 | U35: 65642 | V35: 90350
B36: Accepted | H36: 278540 | I36: 278540 | J36: 278540 | K36: 250000 | L36: 278540 | M36: 278540 | O36: 1642700 | Q36: 3250 | R36: 13000 | S36: 29033 | T36: 59800 | U36: 65000 | V36: 90350
A37: Bad Debts | B37: Submitted | H37: 324468 | J37: 0 | K37: 252318 | L37: 99062 | M37: 112040 | O37: 787888 | R37: 7802 | S37: 25000 | T37: 25000 | U37: 742 | V37: 48886
B38: Accepted | C38: 0 | D38: 0 | E38: 0 | F38: 0 | G38: 0 | H38: 63232 | I38: 0 | J38: 0 | K38: 105485 | L38: =L6*5% -> 65023.5 | M38: =M6*5% -> 69743.5 | N38: =N6*5% -> 0 | O38: 303484 | R38: 7802 | S38: 25000 | T38: 25000 | U38: 0 | V38: 0 | W38: 0
A39: Professional Fees | B39: Submitted | H39: 6650 | I39: 2631 | J39: 4000 | K39: 1363 | L39: 30379 | M39: 15797 | O39: 60820 | R39: 1000 | S39: 1461 | T39: 1500 | U39: 1779 | V39: 2468
B40: Accepted | H40: 6650 | I40: 2631 | J40: 4000 | K40: 1363 | L40: 30379.6 | M40: 15797 | O40: 60820.6 | R40: 1000 | S40: 1461 | T40: 1500 | U40: 1779 | V40: 2468
A41: Others | B41: Submitted | C41: 0 | D41: 0 | E41: 0 | F41: 0 | G41: 0 | H41: 0 | I41: 0 | J41: 0 | K41: 0 | L41: 0 | M41: 0 | N41: 0 | O41: 0 | R41: 0 | S41: 0 | T41: 0 | U41: 0 | V41: 0 | W41: 0
B42: Accepted | C42: 0 | D42: 0 | E42: 0 | F42: 0 | G42: 0 | H42: 0 | I42: 0 | J42: 0 | K42: 0 | L42: 0 | M42: 0 | N42: 0 | O42: 0 | R42: 0 | S42: 0 | T42: 0 | U42: 0 | V42: 0 | W42: 0
A43: Renovation reserve | B43: Submitted | C43: 0 | D43: 0 | E43: 0 | F43: 0 | G43: 0 | H43: 11676 | I43: 209878 | J43: 130410 | K43: 0 | L43: 0 | M43: 0 | N43: 0 | O43: =SUM(F43:N43) -> 351964 | R43: 0 | S43: 0 | T43: 0 | U43: 0 | V43: 0 | W43: 0
B44: Accepted | C44: 0 | D44: 0 | E44: 0 | F44: 0 | G44: 0 | H44: 11676 | I44: 198166 | J44: 0 | K44: 0 | L44: 0 | M44: 0 | N44: 0 | O44: =SUM(F44:N44) -> 209842 | R44: 0 | S44: 0 | T44: 0 | U44: 0 | V44: 0 | W44: 0
